Workbook

Sheet Sample Report (hidden)
A2: Date
A3: Hen
A4: Program
A5: Start at 999999
A6: Sequence component 1 | B6: Time 1 | C6: Seqeunce Component 2 | D6: Time 2 | E6: Seqeunce Component 3 | F6: Time 3 | G6: Correct 0 = No 1=Yes | J6: Seqeunce | K6: Time
A7: 12 | B7: 7 | C7: 12 | D7: 42 | E7: 13 | F7: 18 | G7: if 77 new line, if 31 or 41 = yes new line on 77, | J7: =string of Seqeunce compponent 1, 2 & 3 | K7: =time 3
A8: This continues until ther is a 1 on its own to indicate start of summary data
J9: 10-19 =1
A10: Summary Data | J10: 20-29 =2
A11: Correct | B11: Incorrect | C11: Rft | D11: total | E11: Av Correct | F11: Av Incorrect | G11: Percent correct | H11: Time | J11: in this example the seqeunce would be 111
A12: 40 | B12: 33 | C12: 40 | D12: 73 | E12: 23.95 | F12: 15 | G12: 54 | H12: 806

Sheet Summary
A2: Day | B2: Date | C2: Average Response Rate | D2: Target % | E2: RF for non correct sequence | F2: U Value | K2: Block 1 | L2: Block 2 | M2: Block 3 | N2: Block 4 | O2: Block 5 | P2: Block 6
A3: 1 | B3: ='!M923A00.Gus'!B2:C2 -> <date> | C3: =('!M923A00.Gus'!F129/60)/'!M923A00.Gus'!Q3 -> 2.069783198 | D3: ='!M923A00.Gus'!N20/'!M923A00.Gus'!Q3 -> 0.0325203252 | E3: =SUM('!M923A00.Gus'!L20:Q20)/'!M923A00.Gus'!Q3 -> 2.170731707 | F3: ='!M923A00.Gus'!Q16 -> 0.1616212793 | J3: Average Response Rate | K3: =AVERAGE(C3:C7) -> 2.012535523 | L3: =AVERAGE(C8:C12) -> 2.849552546 | M3: =AVERAGE(C13:C17) -> 2.154612925 | N3: =AVERAGE(C18:C22) -> 2.305972485 | O3: =AVERAGE(C23:C27) -> 2.477626208 | P3: =AVERAGE(C28:C32) -> 2.193463665
A4: 2 | B4: ='!M924B00.Gus'!B2:C2 -> <date> | C4: =('!M924B00.Gus'!F132/60)/'!M924B00.Gus'!Q3 -> 1.892857143 | D4: ='!M924B00.Gus'!N20/'!M924B00.Gus'!Q3 -> 0.06349206349 | E4: =SUM('!M924B00.Gus'!L20:Q20)/'!M924B00.Gus'!Q3 -> 1.365079365 | F4: ='!M924B00.Gus'!Q16 -> 0.1835848431 | J4: Target % | K4: =AVERAGE(D3:D7) -> 0.08605999073 | L4: =AVERAGE(D8:D12) -> 0.1015460458 | M4: =AVERAGE(D13:D17) -> 0.1456541713 | N4: =AVERAGE(D18:D22) -> 0.1690901433 | O4: =AVERAGE(D23:D27) -> 0.2087725416 | P4: =AVERAGE(D28:D32) -> 0.1810661541
A5: 3 | B5: ='!M925920.Gus'!B2:C2 -> <date> | C5: =('!M925920.Gus'!F165/60)/'!M925920.Gus'!Q3 -> 2.006708595 | D5: ='!M925920.Gus'!N20/'!M925920.Gus'!Q3 -> 0.1132075472 | E5: =SUM('!M925920.Gus'!L20:Q20)/'!M925920.Gus'!Q3 -> 1.779874214 | F5: ='!M925920.Gus'!Q16 -> 0.198992679 | J5: CCRF | K5: =AVERAGE(E3:E7) -> 1.767128427 | L5: =AVERAGE(E8:E12) -> 2.517048642 | M5: =AVERAGE(E13:E17) -> 1.701112032 | N5: =AVERAGE(E18:E22) -> 1.91377888 | O5: =AVERAGE(E23:E27) -> 2.051533473 | P5: =AVERAGE(E28:E32) -> 1.83558342
A6: 4 | B6: ='!M926930.Gus'!B2:C2 -> <date> | C6: =('!M926930.Gus'!F109/60)/'!M926930.Gus'!Q3 -> 2.074919094 | D6: ='!M926930.Gus'!N20/'!M926930.Gus'!Q3 -> 0.1165048544 | E6: =SUM('!M926930.Gus'!L20:Q20)/'!M926930.Gus'!Q3 -> 1.631067961 | F6: ='!M926930.Gus'!Q16 -> 0.2161767488 | J6: U Value | K6: =AVERAGE(F3:F7) -> 0.1996258238 | L6: =AVERAGE(F8:F12) -> 0.2398581476 | M6: =AVERAGE(F13:F17) -> 0.2943207435 | N6: =AVERAGE(F18:F22) -> 0.2677278706 | O6: =AVERAGE(F23:F27) -> 0.281247479 | P6: =AVERAGE(F28:F32) -> 0.327436801
A7: 5 | B7: ='!M927A20.Gus'!B2:C2 -> <date> | C7: =('!M927A20.Gus'!F159/60)/'!M927A20.Gus'!Q3 -> 2.018409586 | D7: ='!M927A20.Gus'!N20/'!M927A20.Gus'!Q3 -> 0.1045751634 | E7: =SUM('!M927A20.Gus'!L20:Q20)/'!M927A20.Gus'!Q3 -> 1.888888889 | F7: ='!M927A20.Gus'!Q16 -> 0.2377535687
A8: 6 | B8: ='!M928910.Gus'!B2:C2 -> <date> | C8: =('!M928910.Gus'!F40/60)/'!M928910.Gus'!Q3 -> 5.26952381 | D8: ='!M928910.Gus'!N20/'!M928910.Gus'!Q3 -> 0 | E8: =SUM('!M928910.Gus'!L20:Q20)/'!M928910.Gus'!Q3 -> 6.685714286 | F8: ='!M928910.Gus'!Q16 -> 0.07500408361
A9: 7 | B9: ='!M930B00.Gus'!B2:C2 -> <date> | C9: =('!M930B00.Gus'!F191/60)/'!M930B00.Gus'!Q3 -> 2.156306306 | D9: ='!M930B00.Gus'!N20/'!M930B00.Gus'!Q3 -> 0.1243243243 | E9: =SUM('!M930B00.Gus'!L20:Q20)/'!M930B00.Gus'!Q3 -> 1.118918919 | F9: ='!M930B00.Gus'!Q16 -> 0.3283645699 | G9: =K3 -> 2.012535523 | H9: =L3 -> 2.849552546 | I9: 2.154612925 | J9: 2.305972485 | K9: 2.477626208 | L9: 2.193463665 | M9: =K4 -> 0.08605999073 | N9: =L4 -> 0.1015460458 | O9: 0.1456541713 | P9: 0.1690901433 | Q9: 0.2087725416 | R9: 0.1810661541 | S9: =K6 -> 0.1996258238 | T9: =L6 -> 0.2398581476 | U9: 0.2943207435 | V9: 0.2677278706 | W9: 0.281247479 | X9: 0.327436801
A10: 8 | B10: ='!MA01A50.Gus'!B2:C2 -> <date> | C10: =('!MA01A50.Gus'!F151/60)/'!MA01A50.Gus'!Q3 -> 2.50183908 | D10: ='!MA01A50.Gus'!N20/'!MA01A50.Gus'!Q3 -> 0.1172413793 | E10: =SUM('!MA01A50.Gus'!L20:Q20)/'!MA01A50.Gus'!Q3 -> 1.979310345 | F10: ='!MA01A50.Gus'!Q16 -> 0.2755983345
A11: 9 | B11: ='!MA02940.Gus'!B2:C2 -> <date> | C11: =('!MA02940.Gus'!F189/60)/'!MA02940.Gus'!Q3 -> 2.158652095 | D11: ='!MA02940.Gus'!N20/'!MA02940.Gus'!Q3 -> 0.1202185792 | E11: =SUM('!MA02940.Gus'!L20:Q20)/'!MA02940.Gus'!Q3 -> 1.120218579 | F11: ='!MA02940.Gus'!Q16 -> 0.2664379269
A12: 10 | B12: ='!MA03940.Gus'!B2:C2 -> <date> | C12: =('!MA03940.Gus'!F191/60)/'!MA03940.Gus'!Q3 -> 2.161441441 | D12: ='!MA03940.Gus'!N20/'!MA03940.Gus'!Q3 -> 0.1459459459 | E12: =SUM('!MA03940.Gus'!L20:Q20)/'!MA03940.Gus'!Q3 -> 1.681081081 | F12: ='!MA03940.Gus'!Q16 -> 0.2538858232
A13: 11 | B13: ='!MA04A50.Gus'!B2:C2 -> <date> | C13: =('!MA04A50.Gus'!F194/60)/'!MA04A50.Gus'!Q3 -> 2.125265957 | D13: ='!MA04A50.Gus'!N20/'!MA04A50.Gus'!Q3 -> 0.1436170213 | E13: =SUM('!MA04A50.Gus'!L20:Q20)/'!MA04A50.Gus'!Q3 -> 1.659574468 | F13: ='!MA04A50.Gus'!Q16 -> 0.2905110713
A14: 12 | B14: ='!MA05A00.Gus'!B2:C2 -> <date> | C14: =('!MA05A00.Gus'!F190/60)/'!MA05A00.Gus'!Q3 -> 2.172916667 | D14: ='!MA05A00.Gus'!N20/'!MA05A00.Gus'!Q3 -> 0.1413043478 | E14: =SUM('!MA05A00.Gus'!L20:Q20)/'!MA05A00.Gus'!Q3 -> 1.625 | F14: ='!MA05A00.Gus'!Q16 -> 0.3067308144
A15: 13 | B15: ='!MA06850.Gus'!B2:C2 -> <date> | C15: =('!MA06850.Gus'!F146/60)/'!MA06850.Gus'!Q3 -> 2.311904762 | D15: ='!MA06850.Gus'!N20/'!MA06850.Gus'!Q3 -> 0.1428571429 | E15: =SUM('!MA06850.Gus'!L20:Q20)/'!MA06850.Gus'!Q3 -> 1.992857143 | F15: ='!MA06850.Gus'!Q16 -> 0.2807425038
A16: 14 | B16: ='!MA07910.Gus'!B2:C2 -> <date> | C16: =('!MA07910.Gus'!F189/60)/'!MA07910.Gus'!Q3 -> 2.185336976 | D16: ='!MA07910.Gus'!N20/'!MA07910.Gus'!Q3 -> 0.1420765027 | E16: =SUM('!MA07910.Gus'!L20:Q20)/'!MA07910.Gus'!Q3 -> 1.68852459 | F16: ='!MA07910.Gus'!Q16 -> 0.29571506
A17: 15 | B17: ='!MA08A50.Gus'!B2:C2 -> <date> | C17: =('!MA08A50.Gus'!F208/60)/'!MA08A50.Gus'!Q3 -> 1.977640264 | D17: ='!MA08A50.Gus'!N20/'!MA08A50.Gus'!Q3 -> 0.1584158416 | E17: =SUM('!MA08A50.Gus'!L20:Q20)/'!MA08A50.Gus'!Q3 -> 1.53960396 | F17: ='!MA08A50.Gus'!Q16 -> 0.2979042679
A18: 16 | B18: ='!MA09920.Gus'!B2:C2 -> <date> | C18: =('!MA09920.Gus'!F195/60)/'!MA09920.Gus'!Q3 -> 2.109259259 | D18: ='!MA09920.Gus'!N20/'!MA09920.Gus'!Q3 -> 0.1428571429 | E18: =SUM('!MA09920.Gus'!L20:Q20)/'!MA09920.Gus'!Q3 -> 1.597883598 | F18: ='!MA09920.Gus'!Q16 -> 0.275685067
A19: 17 | B19: ='!MA10A30.Gus'!B2:C2 -> <date> | C19: =('!MA10A30.Gus'!F182/60)/'!MA10A30.Gus'!Q3 -> 2.190909091 | D19: ='!MA10A30.Gus'!N20/'!MA10A30.Gus'!Q3 -> 0.1875 | E19: =SUM('!MA10A30.Gus'!L20:Q20)/'!MA10A30.Gus'!Q3 -> 1.727272727 | F19: ='!MA10A30.Gus'!Q16 -> 0.2663451789
A20: 18 | B20: ='!MA12910.Gus'!B2:C2 -> <date> | C20: =('!MA12910.Gus'!F107/60)/'!MA12910.Gus'!Q3 -> 2.543137255 | D20: ='!MA12910.Gus'!N20/'!MA12910.Gus'!Q3 -> 0.1176470588 | E20: =SUM('!MA12910.Gus'!L20:Q20)/'!MA12910.Gus'!Q3 -> 2.62745098 | F20: ='!MA12910.Gus'!Q16 -> 0.2517237611
A21: 19 | B21: ='!MA13A30.Gus'!B2:C2 -> <date> | C21: =('!MA13A30.Gus'!F186/60)/'!MA13A30.Gus'!Q3 -> 2.206018519 | D21: ='!MA13A30.Gus'!N20/'!MA13A30.Gus'!Q3 -> 0.2111111111 | E21: =SUM('!MA13A30.Gus'!L20:Q20)/'!MA13A30.Gus'!Q3 -> 1.777777778 | F21: ='!MA13A30.Gus'!Q16 -> 0.2737785292
A22: 20 | B22: ='!MA14A00.Gus'!B2:C2 -> <date> | C22: =('!MA14A00.Gus'!F167/60)/'!MA14A00.Gus'!Q3 -> 2.480538302 | D22: ='!MA14A00.Gus'!N20/'!MA14A00.Gus'!Q3 -> 0.1863354037 | E22: =SUM('!MA14A00.Gus'!L20:Q20)/'!MA14A00.Gus'!Q3 -> 1.838509317 | F22: ='!MA14A00.Gus'!Q16 -> 0.2711068168
A23: 21 | B23: ='!MA15A40.Gus'!B2:C2 -> <date> | C23: =('!MA15A40.Gus'!F118/60)/'!MA15A40.Gus'!Q3 -> 2.128869048 | D23: ='!MA15A40.Gus'!N20/'!MA15A40.Gus'!Q3 -> 0.1964285714 | E23: =SUM('!MA15A40.Gus'!L20:Q20)/'!MA15A40.Gus'!Q3 -> 2.5 | F23: ='!MA15A40.Gus'!Q16 -> 0.3005142489
A24: 22 | B24: ='!MA16920.Gus'!B2:C2 -> <date> | C24: =('!MA16920.Gus'!F165/60)/'!MA16920.Gus'!Q3 -> 2.511320755 | D24: ='!MA16920.Gus'!N20/'!MA16920.Gus'!Q3 -> 0.1823899371 | E24: =SUM('!MA16920.Gus'!L20:Q20)/'!MA16920.Gus'!Q3 -> 1.911949686 | F24: ='!MA16920.Gus'!Q16 -> 0.2652587444
A25: 23 | B25: ='!MA17B10.Gus'!B2:C2 -> <date> | C25: =('!MA17B10.Gus'!F159/60)/'!MA17B10.Gus'!Q3 -> 2.614379085 | D25: ='!MA17B10.Gus'!N20/'!MA17B10.Gus'!Q3 -> 0.2549019608 | E25: =SUM('!MA17B10.Gus'!L20:Q20)/'!MA17B10.Gus'!Q3 -> 1.973856209 | F25: ='!MA17B10.Gus'!Q16 -> 0.2823700104
A26: 24 | B26: ='!MA18A30.Gus'!B2:C2 -> <date> | C26: =('!MA18A30.Gus'!F171/60)/'!MA18A30.Gus'!Q3 -> 2.417575758 | D26: ='!MA18A30.Gus'!N20/'!MA18A30.Gus'!Q3 -> 0.2060606061 | E26: =SUM('!MA18A30.Gus'!L20:Q20)/'!MA18A30.Gus'!Q3 -> 1.824242424 | F26: ='!MA18A30.Gus'!Q16 -> 0.2867916666
A27: 25 | B27: ='!MA19940.Gus'!B2:C2 -> <date> | C27: =('!MA19940.Gus'!F153/60)/'!MA19940.Gus'!Q3 -> 2.715986395 | D27: ='!MA19940.Gus'!N20/'!MA19940.Gus'!Q3 -> 0.2040816327 | E27: =SUM('!MA19940.Gus'!L20:Q20)/'!MA19940.Gus'!Q3 -> 2.047619048 | F27: ='!MA19940.Gus'!Q16 -> 0.2713027246
A28: 26 | B28: ='!MA20920.Gus'!B2:C2 -> <date> | C28: =('!MA20920.Gus'!F67/60)/'!MA20920.Gus'!Q3 -> 2.003551913 | D28: ='!MA20920.Gus'!N20/'!MA20920.Gus'!Q3 -> 0.04918032787 | E28: =SUM('!MA20920.Gus'!L20:Q20)/'!MA20920.Gus'!Q3 -> 2.196721311 | F28: ='!MA20920.Gus'!Q16 -> 0.4028333143
A29: 27 | B29: ='!MA21940.Gus'!B2:C2 -> <date> | C29: =('!MA21940.Gus'!F79/60)/'!MA21940.Gus'!Q3 -> 2.208219178 | D29: ='!MA21940.Gus'!N20/'!MA21940.Gus'!Q3 -> 0.1780821918 | E29: =SUM('!MA21940.Gus'!L20:Q20)/'!MA21940.Gus'!Q3 -> 2.04109589 | F29: ='!MA21940.Gus'!Q16 -> 0.4294091456
A30: 28 | B30: ='!MA22B00.Gus'!B2:C2 -> <date> | C30: =('!MA22B00.Gus'!F157/60)/'!MA22B00.Gus'!Q3 -> 2.308388521 | D30: ='!MA22B00.Gus'!N20/'!MA22B00.Gus'!Q3 -> 0.2582781457 | E30: =SUM('!MA22B00.Gus'!L20:Q20)/'!MA22B00.Gus'!Q3 -> 2.059602649 | F30: ='!MA22B00.Gus'!Q16 -> 0.2844638212
A31: 29 | B31: ='!MA23B10.Gus'!B2:C2 -> <date> | C31: =('!MA23B10.Gus'!F190/60)/'!MA23B10.Gus'!Q3 -> 2.154438406 | D31: ='!MA23B10.Gus'!N20/'!MA23B10.Gus'!Q3 -> 0.1956521739 | E31: =SUM('!MA23B10.Gus'!L20:Q20)/'!MA23B10.Gus'!Q3 -> 1.679347826 | F31: ='!MA23B10.Gus'!Q16 -> 0.2494242847
A32: 30 | B32: ='!MA24A40.Gus'!B2:C2 -> <date> | C32: =('!MA24A40.Gus'!F180/60)/'!MA24A40.Gus'!Q3 -> 2.292720307 | D32: ='!MA24A40.Gus'!N20/'!MA24A40.Gus'!Q3 -> 0.224137931 | E32: =SUM('!MA24A40.Gus'!L20:Q20)/'!MA24A40.Gus'!Q3 -> 1.201149425 | F32: ='!MA24A40.Gus'!Q16 -> 0.2710534392

Sheet Start
F1: Use Folder 51 | H1: Auto Clean Up | J1: Correct sequence
F2: FALSE | H2: TRUE | J2: 221
A4: Working with Folder | G4: Process All/Or Pick A number: ALL or an integer
A5: F:\Possum Chapter\Raw Data\Gus\New Phase RRL\ | G5: ALL
A6: Filenames:
A7: !MA22B00.Gus | G7: Paint Cells
A8: !MA23B10.Gus | G8: FALSE
A9: !MA24A40.Gus
A10: !M923A00.Gus
A11: !M924B00.Gus
A12: !M925920.Gus
A13: !M926930.Gus
A14: !M927A20.Gus
A15: !M928910.Gus
A16: !M930B00.Gus
A17: !MA01A50.Gus
A18: !MA02940.Gus
A19: !MA03940.Gus
A20: !MA04A50.Gus
A21: !MA05A00.Gus
A22: !MA06850.Gus
A23: !MA07910.Gus
A24: !MA08A50.Gus
A25: !MA09920.Gus
A26: !MA10A30.Gus
A27: !MA12910.Gus
A28: !MA13A30.Gus
A29: !MA14A00.Gus
A30: !MA15A40.Gus
A31: !MA16920.Gus
A32: !MA17B10.Gus
A33: !MA18A30.Gus
A34: !MA19940.Gus
A35: !MA20920.Gus
A36: !MA21940.Gus

Sheet !M923A00.Gus
A1: Report for:!M923A00.Gus
A2: Date: | B2: <date>
A3: Hen: | B3: <hen> | F3: Correct Sequence | G3: =Start!J2 -> 221 | P3: Total Sequences in Data | Q3: =4994-COUNTBLANK(L7:L5000) -> 123 | V3: Total Sequences in Block Data | W3: =COUNTA(L7:L27) -> 21 | AA3: Total Sequences in Block Data | AB3: =COUNTA(L28:L47) -> 20 | AF3: Total Sequences in Block Data | AG3: =COUNTA(L48:L68) -> 21 | AK3: Total Sequences in Block Data | AL3: =COUNTA(L69:L88) -> 20 | AP3: Total Sequences in Block Data | AQ3: =COUNTA(L89:L109) -> 21 | AU3: Total Sequences in Block Data | AV3: =COUNTA(L110:L129) -> 20
P4: Total Sequences in Summary | Q4: =SUM(O7:O14) -> 123 | V4: Total Sequences in Block Summary | W4: =SUM(U7:U14) -> 21 | AA4: Total Sequences in Block Summary | AB4: =SUM(Z7:Z14) -> 20 | AF4: Total Sequences in Block Summary | AG4: =SUM(AE7:AE14) -> 21 | AK4: Total Sequences in Block Summary | AL4: =SUM(AJ7:AJ14) -> 20 | AP4: Total Sequences in Block Summary | AQ4: =SUM(AO7:AO14) -> 21 | AU4: Total Sequences in Block Summary | AV4: =SUM(AT7:AT14) -> 20
T5: Block 1 | Y5: Block 2 | AD5: Block 3 | AI5: Block 4 | AN5: Block 5 | AS5: Block 6
A6: Sequence Component 1 | B6: Time 1 | C6: Sequence Component 2 | D6: Time 2 | E6: Sequence Component 3 | F6: Time 3 | G6: Sequence Component 4 | H6: Time 4 | I6: Sequence Component 5 | J6: Time 5 | K6: Correct? 0=No 1=Yes | L6: Sequence | N6: Frequency | P6: Relative Frequency | Q6: Variability | T6: Frequency | V6: Relative Frequency | W6: Variability | Y6: Frequency | AA6: Relative Frequency | AB6: Variability | AD6: Frequency | AF6: Relative Frequency | AG6: Variability | AI6: Frequency | AK6: Relative Frequency | AL6: Variability | AN6: Frequency | AP6: Relative Frequency | AQ6: Variability | AS6: Frequency | AU6: Relative Frequency | AV6: Variability
A7: 21 | B7: 2 | C7: 21 | D7: 4 | E7: 22 | F7: 8 | K7: 0 | L7: 222 | N7: 111 | O7: =COUNTIF($L$7:$L$500,N7) -> 0 | P7: =O7/$Q$4 -> 0 | Q7: =IF(P7=0,0,(P7*((LOG(P7))/LOG(2)))) -> 0 | T7: =N7 -> 111 | U7: =COUNTIF(L7:L27,T7) -> 0 | V7: =U7/(W4-U13) -> 0 | W7: =IF(V7=0,0,(V7*((LOG(V7))/LOG(2)))) -> 0 | Y7: =N7 -> 111 | Z7: =COUNTIF(L28:L47,Y7) -> 0 | AA7: =Z7/(AB4-Z13) -> 0 | AB7: =IF(AA7=0,0,(AA7*((LOG(AA7))/LOG(2)))) -> 0 | AD7: =N7 -> 111 | AE7: =COUNTIF(L48:L68,AD7) -> 0 | AF7: =AE7/(AG4-AE13) -> 0 | AG7: =IF(AF7=0,0,(AF7*((LOG(AF7))/LOG(2)))) -> 0 | AI7: =N7 -> 111 | AJ7: =COUNTIF(L69:L88,AI7) -> 0 | AK7: =AJ7/(AL4-AJ13) -> 0 | AL7: =IF(AK7=0,0,(AK7*((LOG(AK7))/LOG(2)))) -> 0 | AN7: =N7 -> 111 | AO7: =COUNTIF(L89:L109,AN7) -> 0 | AP7: =AO7/(AQ4-AO13) -> 0 | AQ7: =IF(AP7=0,0,(AP7*((LOG(AP7))/LOG(2)))) -> 0 | AS7: =N7 -> 111 | AT7: =COUNTIF(L110:L129,AS7) -> 0 | AU7: =AT7/(AV4-AT13) -> 0 | AV7: =IF(AU7=0,0,(AU7*((LOG(AU7))/LOG(2)))) -> 0
A8: 12 | B8: 110 | C8: 23 | D8: 122 | E8: 24 | F8: 132 | K8: 0 | L8: 122 | N8: 112 | O8: =COUNTIF($L$7:$L$500,N8) -> 0 | P8: =O8/$Q$4 -> 0 | Q8: =IF(P8=0,0,(P8*((LOG(P8))/LOG(2)))) -> 0 | T8: =N8 -> 112 | U8: =COUNTIF(L7:L27,T8) -> 0 | V8: =U8/(W4-U13) -> 0 | W8: =IF(V8=0,0,(V8*((LOG(V8))/LOG(2)))) -> 0 | Y8: =N8 -> 112 | Z8: =COUNTIF(L28:L47,Y8) -> 0 | AA8: =Z8/(AB4-Z13) -> 0 | AB8: =IF(AA8=0,0,(AA8*((LOG(AA8))/LOG(2)))) -> 0 | AD8: =N8 -> 112 | AE8: =COUNTIF(L48:L68,AD8) -> 0 | AF8: =AE8/(AG4-AE13) -> 0 | AG8: =IF(AF8=0,0,(AF8*((LOG(AF8))/LOG(2)))) -> 0 | AI8: =N8 -> 112 | AJ8: =COUNTIF(L69:L88,AI8) -> 0 | AK8: =AJ8/(AL4-AJ13) -> 0 | AL8: =IF(AK8=0,0,(AK8*((LOG(AK8))/LOG(2)))) -> 0 | AN8: =N8 -> 112 | AO8: =COUNTIF(L89:L109,AN8) -> 0 | AP8: =AO8/(AQ4-AO13) -> 0 | AQ8: =IF(AP8=0,0,(AP8*((LOG(AP8))/LOG(2)))) -> 0 | AS8: =N8 -> 112 | AT8: =COUNTIF(L110:L129,AS8) -> 0 | AU8: =AT8/(AV4-AT13) -> 0 | AV8: =IF(AU8=0,0,(AU8*((LOG(AU8))/LOG(2)))) -> 0
A9: 21 | B9: 237 | C9: 21 | D9: 239 | E9: 22 | F9: 245 | K9: 0 | L9: 222 | N9: 121 | O9: =COUNTIF($L$7:$L$500,N9) -> 0 | P9: =O9/$Q$4 -> 0 | Q9: =IF(P9=0,0,(P9*((LOG(P9))/LOG(2)))) -> 0 | T9: =N9 -> 121 | U9: =COUNTIF(L7:L27,T9) -> 0 | V9: =U9/(W4-U13) -> 0 | W9: =IF(V9=0,0,(V9*((LOG(V9))/LOG(2)))) -> 0 | Y9: =N9 -> 121 | Z9: =COUNTIF(L28:L47,Y9) -> 0 | AA9: =Z9/(AB4-Z13) -> 0 | AB9: =IF(AA9=0,0,(AA9*((LOG(AA9))/LOG(2)))) -> 0 | AD9: =N9 -> 121 | AE9: =COUNTIF(L48:L68,AD9) -> 0 | AF9: =AE9/(AG4-AE13) -> 0 | AG9: =IF(AF9=0,0,(AF9*((LOG(AF9))/LOG(2)))) -> 0 | AI9: =N9 -> 121 | AJ9: =COUNTIF(L69:L88,AI9) -> 0 | AK9: =AJ9/(AL4-AJ13) -> 0 | AL9: =IF(AK9=0,0,(AK9*((LOG(AK9))/LOG(2)))) -> 0 | AN9: =N9 -> 121 | AO9: =COUNTIF(L89:L109,AN9) -> 0 | AP9: =AO9/(AQ4-AO13) -> 0 | AQ9: =IF(AP9=0,0,(AP9*((LOG(AP9))/LOG(2)))) -> 0 | AS9: =N9 -> 121 | AT9: =COUNTIF(L110:L129,AS9) -> 0 | AU9: =AT9/(AV4-AT13) -> 0 | AV9: =IF(AU9=0,0,(AU9*((LOG(AU9))/LOG(2)))) -> 0
A10: 21 | B10: 349 | C10: 21 | D10: 351 | E10: 22 | F10: 353 | K10: 0 | L10: 222 | N10: 122 | O10: =COUNTIF($L$7:$L$500,N10) -> 21 | P10: =O10/$Q$4 -> 0.1707317073 | Q10: =IF(P10=0,0,(P10*((LOG(P10))/LOG(2)))) -> -0.4353995019 | T10: =N10 -> 122 | U10: =COUNTIF(L7:L27,T10) -> 5 | V10: =U10/(W4-U13) -> 0.2380952381 | W10: =IF(V10=0,0,(V10*((LOG(V10))/LOG(2)))) -> -0.49294984 | Y10: =N10 -> 122 | Z10: =COUNTIF(L28:L47,Y10) -> 2 | AA10: =Z10/(AB4-Z13) -> 0.1052631579 | AB10: =IF(AA10=0,0,(AA10*((LOG(AA10))/LOG(2)))) -> -0.3418871067 | AD10: =N10 -> 122 | AE10: =COUNTIF(L48:L68,AD10) -> 0 | AF10: =AE10/(AG4-AE13) -> 0 | AG10: =IF(AF10=0,0,(AF10*((LOG(AF10))/LOG(2)))) -> 0 | AI10: =N10 -> 122 | AJ10: =COUNTIF(L69:L88,AI10) -> 5 | AK10: =AJ10/(AL4-AJ13) -> 0.2631578947 | AL10: =IF(AK10=0,0,(AK10*((LOG(AK10))/LOG(2)))) -> -0.5068419523 | AN10: =N10 -> 122 | AO10: =COUNTIF(L89:L109,AN10) -> 4 | AP10: =AO10/(AQ4-AO13) -> 0.1904761905 | AQ10: =IF(AP10=0,0,(AP10*((LOG(AP10))/LOG(2)))) -> -0.4556795091 | AS10: =N10 -> 122 | AT10: =COUNTIF(L110:L129,AS10) -> 5 | AU10: =AT10/(AV4-AT13) -> 0.25 | AV10: =IF(AU10=0,0,(AU10*((LOG(AU10))/LOG(2)))) -> -0.5
A11: 12 | B11: 447 | C11: 23 | D11: 456 | E11: 24 | F11: 459 | K11: 0 | L11: 122 | N11: 211 | O11: =COUNTIF($L$7:$L$500,N11) -> 0 | P11: =O11/$Q$4 -> 0 | Q11: =IF(P11=0,0,(P11*((LOG(P11))/LOG(2)))) -> 0 | T11: =N11 -> 211 | U11: =COUNTIF(L7:L27,T11) -> 0 | V11: =U11/(W4-U13) -> 0 | W11: =IF(V11=0,0,(V11*((LOG(V11))/LOG(2)))) -> 0 | Y11: =N11 -> 211 | Z11: =COUNTIF(L28:L47,Y11) -> 0 | AA11: =Z11/(AB4-Z13) -> 0 | AB11: =IF(AA11=0,0,(AA11*((LOG(AA11))/LOG(2)))) -> 0 | AD11: =N11 -> 211 | AE11: =COUNTIF(L48:L68,AD11) -> 0 | AF11: =AE11/(AG4-AE13) -> 0 | AG11: =IF(AF11=0,0,(AF11*((LOG(AF11))/LOG(2)))) -> 0 | AI11: =N11 -> 211 | AJ11: =COUNTIF(L69:L88,AI11) -> 0 | AK11: =AJ11/(AL4-AJ13) -> 0 | AL11: =IF(AK11=0,0,(AK11*((LOG(AK11))/LOG(2)))) -> 0 | AN11: =N11 -> 211 | AO11: =COUNTIF(L89:L109,AN11) -> 0 | AP11: =AO11/(AQ4-AO13) -> 0 | AQ11: =IF(AP11=0,0,(AP11*((LOG(AP11))/LOG(2)))) -> 0 | AS11: =N11 -> 211 | AT11: =COUNTIF(L110:L129,AS11) -> 0 | AU11: =AT11/(AV4-AT13) -> 0 | AV11: =IF(AU11=0,0,(AU11*((LOG(AU11))/LOG(2)))) -> 0
A12: 21 | B12: 557 | C12: 21 | D12: 561 | E12: 22 | F12: 580 | K12: 0 | L12: 222 | N12: 212 | O12: =COUNTIF($L$7:$L$500,N12) -> 6 | P12: =O12/$Q$4 -> 0.0487804878 | Q12: =IF(P12=0,0,(P12*((LOG(P12))/LOG(2)))) -> -0.2125635124 | T12: =N12 -> 212 | U12: =COUNTIF(L7:L27,T12) -> 0 | V12: =U12/(W4-U13) -> 0 | W12: =IF(V12=0,0,(V12*((LOG(V12))/LOG(2)))) -> 0 | Y12: =N12 -> 212 | Z12: =COUNTIF(L28:L47,Y12) -> 1 | AA12: =Z12/(AB4-Z13) -> 0.05263157895 | AB12: =IF(AA12=0,0,(AA12*((LOG(AA12))/LOG(2)))) -> -0.2235751323 | AD12: =N12 -> 212 | AE12: =COUNTIF(L48:L68,AD12) -> 1 | AF12: =AE12/(AG4-AE13) -> 0.05263157895 | AG12: =IF(AF12=0,0,(AF12*((LOG(AF12))/LOG(2)))) -> -0.2235751323 | AI12: =N12 -> 212 | AJ12: =COUNTIF(L69:L88,AI12) -> 1 | AK12: =AJ12/(AL4-AJ13) -> 0.05263157895 | AL12: =IF(AK12=0,0,(AK12*((LOG(AK12))/LOG(2)))) -> -0.2235751323 | AN12: =N12 -> 212 | AO12: =COUNTIF(L89:L109,AN12) -> 1 | AP12: =AO12/(AQ4-AO13) -> 0.04761904762 | AQ12: =IF(AP12=0,0,(AP12*((LOG(AP12))/LOG(2)))) -> -0.2091579725 | AS12: =N12 -> 212 | AT12: =COUNTIF(L110:L129,AS12) -> 2 | AU12: =AT12/(AV4-AT13) -> 0.1 | AV12: =IF(AU12=0,0,(AU12*((LOG(AU12))/LOG(2)))) -> -0.3321928095
A13: 21 | B13: 686 | C13: 21 | D13: 699 | E13: 22 | F13: 713 | K13: 0 | L13: 222 | N13: 221 | O13: =COUNTIF($L$7:$L$500,N13) -> 4 | P13: =O13/$Q$4 -> 0.0325203252 | Q13: =IF(P13=0,0,(P13*((LOG(P13))/LOG(2)))) -> -0.160732179 | T13: =N13 -> 221 | U13: =COUNTIF(L7:L27,T13) -> 0 | Y13: =N13 -> 221 | Z13: =COUNTIF(L28:L47,Y13) -> 1 | AD13: =N13 -> 221 | AE13: =COUNTIF(L48:L68,AD13) -> 2 | AI13: =N13 -> 221 | AJ13: =COUNTIF(L69:L88,AI13) -> 1 | AN13: =N13 -> 221 | AO13: =COUNTIF(L89:L109,AN13) -> 0 | AS13: =N13 -> 221 | AT13: =COUNTIF(L110:L129,AS13) -> 0
A14: 21 | B14: 810 | C14: 21 | D14: 814 | E14: 22 | F14: 819 | K14: 0 | L14: 222 | N14: 222 | O14: =COUNTIF($L$7:$L$500,N14) -> 92 | P14: =O14/$Q$4 -> 0.7479674797 | Q14: =IF(P14=0,0,(P14*((LOG(P14))/LOG(2)))) -> -0.3133628824 | T14: =N14 -> 222 | U14: =COUNTIF(L7:L27,T14) -> 16 | V14: =U14/(W4-U13) -> 0.7619047619 | W14: =IF(V14=0,0,(V14*((LOG(V14))/LOG(2)))) -> -0.2989085126 | Y14: =N14 -> 222 | Z14: =COUNTIF(L28:L47,Y14) -> 16 | AA14: =Z14/(AB4-Z13) -> 0.8421052632 | AB14: =IF(AA14=0,0,(AA14*((LOG(AA14))/LOG(2)))) -> -0.208781064 | AD14: =N14 -> 222 | AE14: =COUNTIF(L48:L68,AD14) -> 18 | AF14: =AE14/(AG4-AE13) -> 0.9473684211 | AG14: =IF(AF14=0,0,(AF14*((LOG(AF14))/LOG(2)))) -> -0.07389711663 | AI14: =N14 -> 222 | AJ14: =COUNTIF(L69:L88,AI14) -> 13 | AK14: =AJ14/(AL4-AJ13) -> 0.6842105263 | AL14: =IF(AK14=0,0,(AK14*((LOG(AK14))/LOG(2)))) -> -0.3745969126 | AN14: =N14 -> 222 | AO14: =COUNTIF(L89:L109,AN14) -> 16 | AP14: =AO14/(AQ4-AO13) -> 0.7619047619 | AQ14: =IF(AP14=0,0,(AP14*((LOG(AP14))/LOG(2)))) -> -0.2989085126 | AS14: =N14 -> 222 | AT14: =COUNTIF(L110:L129,AS14) -> 13 | AU14: =AT14/(AV4-AT13) -> 0.65 | AV14: =IF(AU14=0,0,(AU14*((LOG(AU14))/LOG(2)))) -> -0.4039674449
A15: 21 | B15: 916 | C15: 21 | D15: 922 | E15: 22 | F15: 925 | K15: 0 | L15: 222 | P15: =SUM(P7:P14) -> 1 | Q15: =-SUM(Q7:Q14) -> 1.122058076 | V15: =SUM(V7:V14) -> 1 | W15: =-SUM(W7:W14) -> 0.7918583526 | AA15: =SUM(AA7:AA14) -> 1 | AB15: =-SUM(AB7:AB14) -> 0.7742433029 | AF15: =SUM(AF7:AF14) -> 1 | AG15: =-SUM(AG7:AG14) -> 0.2974722489 | AK15: =SUM(AK7:AK14) -> 1 | AL15: =-SUM(AL7:AL14) -> 1.105013997 | AP15: =SUM(AP7:AP14) -> 1 | AQ15: =-SUM(AQ7:AQ14) -> 0.9637459942 | AU15: =SUM(AU7:AU14) -> 1 | AV15: =-SUM(AV7:AV14) -> 1.236160254
A16: 12 | B16: 1022 | C16: 23 | D16: 1030 | E16: 24 | F16: 1035 | K16: 0 | L16: 122 | P16: U= | Q16: =Q15/(LOG(Q4)/LOG(2)) -> 0.1616212793 | V16: U1= | W16: =W15/(LOG(W4)/LOG(2)) -> 0.1802825881 | AA16: U2= | AB16: =AB15/(LOG(AB4)/LOG(2)) -> 0.179143032 | AF16: U3= | AG16: =AG15/(LOG(AG4)/LOG(2)) -> 0.06772558089 | AK16: U4= | AL16: =AL15/(LOG(AL4)/LOG(2)) -> 0.2556761642 | AP16: U5= | AQ16: =AQ15/(LOG(AQ4)/LOG(2)) -> 0.2194162902 | AU16: U6= | AV16: =AV15/(LOG(AV4)/LOG(2)) -> 0.2860205508
A17: 21 | B17: 1136 | C17: 21 | D17: 1140 | E17: 22 | F17: 1146 | K17: 0 | L17: 222
A18: 21 | B18: 1248 | C18: 21 | D18: 1254 | E18: 22 | F18: 1261 | K18: 0 | L18: 222
A19: 21 | B19: 1358 | C19: 21 | D19: 1362 | E19: 22 | F19: 1366 | K19: 0 | L19: 222 | N19: Total Target Seq
A20: 21 | B20: 1466 | C20: 21 | D20: 1468 | E20: 22 | F20: 1479 | K20: 0 | L20: 222 | N20: =COUNTIF(L7:L129,G3) -> 4 | P20: 21 | Q20: 20 | R20: 21 | S20: 20 | T20: 21 | U20: 20
A21: 21 | B21: 1577 | C21: 21 | D21: 1581 | E21: 22 | F21: 1585 | K21: 0 | L21: 222 | P21: % of reinforcement given in 6 equal intervals based on number of trials
A22: 21 | B22: 1677 | C22: 21 | D22: 1680 | E22: 22 | F22: 1685 | K22: 0 | L22: 222 | P22: %_1 | Q22: %_2 | R22: %_3 | S22: %_4 | T22: %_5 | U22: %_6
A23: 21 | B23: 1785 | C23: 21 | D23: 1788 | E23: 22 | F23: 1791 | K23: 0 | L23: 222 | O23: target sequence | P23: =$G$3 -> 221 | Q23: =$G$3 -> 221 | R23: =$G$3 -> 221 | S23: =$G$3 -> 221 | T23: =$G$3 -> 221 | U23: =$G$3 -> 221
A24: 21 | B24: 1892 | C24: 21 | D24: 1900 | E24: 22 | F24: 1907 | K24: 0 | L24: 222 | O24: total reinforcement | P24: =U13 -> 0 | Q24: =Z13 -> 1 | R24: =AE13 -> 2 | S24: =AJ13 -> 1 | T24: =AO13 -> 0 | U24: =AT13 -> 0
A25: 12 | B25: 2018 | C25: 23 | D25: 2027 | E25: 24 | F25: 2033 | K25: 0 | L25: 122 | O25: % target
A26: 21 | B26: 2131 | C26: 21 | D26: 2134 | E26: 22 | F26: 2139 | K26: 0 | L26: 222 | O26: CCRF
A27: 12 | B27: 2231 | C27: 23 | D27: 2236 | E27: 24 | F27: 2240 | K27: 0 | L27: 122 | O27: % CCRf
A28: 21 | B28: 2337 | C28: 21 | D28: 2340 | E28: 22 | F28: 2343 | K28: 0 | L28: 222 | O28: average response rate | P28: =F27/P20 -> 106.6666667 | Q28: =(F47-F27)/Q20 -> 120.15 | R28: =(F68-F47)/R20 -> 127.5238095 | S28: =(F88-F68)/S20 -> 138.15 | T28: =(F109-F88)/T20 -> 136.4285714 | U28: =(F129-F109)/U20 -> 116.3
A29: 12 | B29: 2448 | C29: 23 | D29: 2458 | E29: 24 | F29: 2461 | K29: 0 | L29: 122
A30: 21 | B30: 2584 | C30: 21 | D30: 2588 | E30: 22 | F30: 2600 | K30: 0 | L30: 222
A31: 21 | B31: 2697 | C31: 21 | D31: 2700 | E31: 22 | F31: 2712 | K31: 0 | L31: 222
A32: 21 | B32: 2809 | C32: 21 | D32: 2815 | E32: 22 | F32: 2827 | K32: 0 | L32: 222
A33: 21 | B33: 2927 | C33: 21 | D33: 2931 | E33: 22 | F33: 2935 | K33: 0 | L33: 222
A34: 21 | B34: 3036 | C34: 21 | D34: 3048 | E34: 22 | F34: 3059 | K34: 0 | L34: 222
A35: 21 | B35: 3157 | C35: 21 | D35: 3161 | E35: 22 | F35: 3169 | K35: 0 | L35: 222
A36: 21 | B36: 3266 | C36: 21 | D36: 3271 | E36: 22 | F36: 3290 | K36: 0 | L36: 222
A37: 21 | B37: 3388 | C37: 21 | D37: 3396 | E37: 11 | F37: 3400 | K37: 0 | L37: 221
A38: 21 | B38: 3625 | C38: 21 | D38: 3635 | E38: 22 | F38: 3642 | K38: 0 | L38: 222
A39: 21 | B39: 3755 | C39: 21 | D39: 3764 | E39: 22 | F39: 3770 | K39: 0 | L39: 222
A40: 12 | B40: 3872 | C40: 23 | D40: 3884 | E40: 24 | F40: 3888 | K40: 0 | L40: 122
A41: 21 | B41: 3998 | C41: 12 | D41: 4001 | E41: 24 | F41: 4006 | K41: 0 | L41: 212
A42: 21 | B42: 4098 | C42: 21 | D42: 4104 | E42: 22 | F42: 4109 | K42: 0 | L42: 222
A43: 21 | B43: 4205 | C43: 21 | D43: 4212 | E43: 22 | F43: 4215 | K43: 0 | L43: 222
A44: 21 | B44: 4317 | C44: 21 | D44: 4321 | E44: 22 | F44: 4327 | K44: 0 | L44: 222
A45: 21 | B45: 4423 | C45: 21 | D45: 4426 | E45: 22 | F45: 4429 | K45: 0 | L45: 222
A46: 21 | B46: 4527 | C46: 21 | D46: 4530 | E46: 22 | F46: 4537 | K46: 0 | L46: 222
A47: 21 | B47: 4635 | C47: 21 | D47: 4638 | E47: 22 | F47: 4643 | K47: 0 | L47: 222
A48: 21 | B48: 4745 | C48: 21 | D48: 4753 | E48: 22 | F48: 4759 | K48: 0 | L48: 222
A49: 21 | B49: 4857 | C49: 21 | D49: 4864 | E49: 22 | F49: 4870 | K49: 0 | L49: 222
A50: 21 | B50: 4969 | C50: 21 | D50: 4971 | E50: 22 | F50: 4974 | K50: 0 | L50: 222
A51: 21 | B51: 5072 | C51: 21 | D51: 5076 | E51: 22 | F51: 5081 | K51: 0 | L51: 222
A52: 21 | B52: 5178 | C52: 21 | D52: 5181 | E52: 22 | F52: 5186 | K52: 0 | L52: 222
A53: 21 | B53: 5287 | C53: 21 | D53: 5288 | E53: 22 | F53: 5292 | K53: 0 | L53: 222
A54: 21 | B54: 5388 | C54: 12 | D54: 5391 | E54: 24 | F54: 5393 | K54: 0 | L54: 212
A55: 21 | B55: 5494 | C55: 21 | D55: 5498 | E55: 22 | F55: 5504 | K55: 0 | L55: 222
A56: 21 | B56: 5603 | C56: 21 | D56: 5610 | E56: 22 | F56: 5622 | K56: 0 | L56: 222
A57: 21 | B57: 5714 | C57: 21 | D57: 5717 | E57: 22 | F57: 5722 | K57: 0 | L57: 222
A58: 21 | B58: 5822 | C58: 21 | D58: 5828 | E58: 22 | F58: 5834 | K58: 0 | L58: 222
A59: 21 | B59: 5932 | C59: 21 | D59: 5936 | E59: 22 | F59: 5940 | K59: 0 | L59: 222
A60: 21 | B60: 6037 | C60: 21 | D60: 6049 | E60: 22 | F60: 6056 | K60: 0 | L60: 222
A61: 21 | B61: 6157 | C61: 21 | D61: 6164 | E61: 11 | F61: 6169 | K61: 0 | L61: 221
A62: 21 | B62: 6287 | C62: 21 | D62: 6303 | E62: 11 | F62: 6316 | K62: 0 | L62: 221
A63: 21 | B63: 6759 | C63: 21 | D63: 6764 | E63: 22 | F63: 6770 | K63: 0 | L63: 222
A64: 21 | B64: 6870 | C64: 21 | D64: 6875 | E64: 22 | F64: 6878 | K64: 0 | L64: 222
A65: 21 | B65: 6985 | C65: 21 | D65: 6989 | E65: 22 | F65: 6994 | K65: 0 | L65: 222
A66: 21 | B66: 7091 | C66: 21 | D66: 7095 | E66: 22 | F66: 7103 | K66: 0 | L66: 222
A67: 21 | B67: 7202 | C67: 21 | D67: 7209 | E67: 22 | F67: 7218 | K67: 0 | L67: 222
A68: 21 | B68: 7310 | C68: 21 | D68: 7316 | E68: 22 | F68: 7321 | K68: 0 | L68: 222
A69: 21 | B69: 7419 | C69: 21 | D69: 7423 | E69: 22 | F69: 7427 | K69: 0 | L69: 222
A70: 12 | B70: 7520 | C70: 23 | D70: 7525 | E70: 24 | F70: 7528 | K70: 0 | L70: 122
A71: 21 | B71: 7626 | C71: 21 | D71: 7634 | E71: 22 | F71: 7640 | K71: 0 | L71: 222
A72: 21 | B72: 7738 | C72: 21 | D72: 7743 | E72: 22 | F72: 7748 | K72: 0 | L72: 222
A73: 21 | B73: 7845 | C73: 21 | D73: 7849 | E73: 22 | F73: 7855 | K73: 0 | L73: 222
A74: 21 | B74: 7951 | C74: 21 | D74: 7954 | E74: 22 | F74: 7967 | K74: 0 | L74: 222
A75: 12 | B75: 8063 | C75: 23 | D75: 8071 | E75: 24 | F75: 8073 | K75: 0 | L75: 122
A76: 21 | B76: 8185 | C76: 21 | D76: 8192 | E76: 11 | F76: 8196 | K76: 0 | L76: 221
A77: 12 | B77: 8868 | C77: 23 | D77: 8881 | E77: 24 | F77: 8885 | K77: 0 | L77: 122
A78: 21 | B78: 8981 | C78: 21 | D78: 8985 | E78: 22 | F78: 8990 | K78: 0 | L78: 222
A79: 21 | B79: 9088 | C79: 21 | D79: 9090 | E79: 22 | F79: 9101 | K79: 0 | L79: 222
A80: 21 | B80: 9201 | C80: 21 | D80: 9209 | E80: 22 | F80: 9214 | K80: 0 | L80: 222
A81: 21 | B81: 9315 | C81: 21 | D81: 9318 | E81: 22 | F81: 9324 | K81: 0 | L81: 222
A82: 12 | B82: 9418 | C82: 23 | D82: 9422 | E82: 24 | F82: 9429 | K82: 0 | L82: 122
A83: 12 | B83: 9523 | C83: 23 | D83: 9527 | E83: 24 | F83: 9531 | K83: 0 | L83: 122
A84: 21 | B84: 9629 | C84: 21 | D84: 9637 | E84: 22 | F84: 9642 | K84: 0 | L84: 222
A85: 21 | B85: 9744 | C85: 21 | D85: 9747 | E85: 22 | F85: 9753 | K85: 0 | L85: 222
A86: 21 | B86: 9850 | C86: 21 | D86: 9857 | E86: 22 | F86: 9864 | K86: 0 | L86: 222
A87: 21 | B87: 9969 | C87: 21 | D87: 9975 | E87: 22 | F87: 9979 | K87: 0 | L87: 222
A88: 21 | B88: 10077 | C88: 12 | D88: 10082 | E88: 24 | F88: 10084 | K88: 0 | L88: 212
A89: 21 | B89: 10185 | C89: 12 | D89: 10191 | E89: 24 | F89: 10193 | K89: 0 | L89: 212
A90: 12 | B90: 10285 | C90: 23 | D90: 10290 | E90: 24 | F90: 10294 | K90: 0 | L90: 122
A91: 12 | B91: 10391 | C91: 23 | D91: 10397 | E91: 24 | F91: 10403 | K91: 0 | L91: 122
A92: 21 | B92: 10501 | C92: 21 | D92: 10505 | E92: 22 | F92: 10509 | K92: 0 | L92: 222
A93: 21 | B93: 10606 | C93: 21 | D93: 10617 | E93: 22 | F93: 10629 | K93: 0 | L93: 222
A94: 21 | B94: 10722 | C94: 21 | D94: 10727 | E94: 22 | F94: 10730 | K94: 0 | L94: 222
A95: 21 | B95: 10828 | C95: 21 | D95: 10833 | E95: 22 | F95: 10837 | K95: 0 | L95: 222
A96: 12 | B96: 10939 | C96: 23 | D96: 10951 | E96: 24 | F96: 10956 | K96: 0 | L96: 122
A97: 21 | B97: 11053 | C97: 21 | D97: 11058 | E97: 22 | F97: 11063 | K97: 0 | L97: 222
A98: 21 | B98: 11160 | C98: 21 | D98: 11166 | E98: 22 | F98: 11172 | K98: 0 | L98: 222
A99: 21 | B99: 11268 | C99: 21 | D99: 11272 | E99: 22 | F99: 11277 | K99: 0 | L99: 222
A100: 21 | B100: 11374 | C100: 21 | D100: 11377 | E100: 22 | F100: 11384 | K100: 0 | L100: 222
A101: 21 | B101: 11482 | C101: 21 | D101: 11486 | E101: 22 | F101: 11491 | K101: 0 | L101: 222
A102: 21 | B102: 11745 | C102: 21 | D102: 11750 | E102: 22 | F102: 11756 | K102: 0 | L102: 222
A103: 21 | B103: 11996 | C103: 21 | D103: 11999 | E103: 22 | F103: 12007 | K103: 0 | L103: 222
A104: 21 | B104: 12105 | C104: 21 | D104: 12109 | E104: 22 | F104: 12114 | K104: 0 | L104: 222
A105: 21 | B105: 12210 | C105: 21 | D105: 12218 | E105: 22 | F105: 12222 | K105: 0 | L105: 222
A106: 12 | B106: 12316 | C106: 23 | D106: 12321 | E106: 24 | F106: 12323 | K106: 0 | L106: 122
A107: 21 | B107: 12443 | C107: 21 | D107: 12447 | E107: 22 | F107: 12453 | K107: 0 | L107: 222
A108: 21 | B108: 12551 | C108: 21 | D108: 12555 | E108: 22 | F108: 12559 | K108: 0 | L108: 222
A109: 21 | B109: 12940 | C109: 21 | D109: 12945 | E109: 22 | F109: 12949 | K109: 0 | L109: 222
A110: 12 | B110: 13142 | C110: 23 | D110: 13150 | E110: 24 | F110: 13154 | K110: 0 | L110: 122
A111: 21 | B111: 13254 | C111: 21 | D111: 13262 | E111: 22 | F111: 13265 | K111: 0 | L111: 222
A112: 21 | B112: 13363 | C112: 21 | D112: 13376 | E112: 22 | F112: 13382 | K112: 0 | L112: 222
A113: 12 | B113: 13475 | C113: 23 | D113: 13478 | E113: 24 | F113: 13486 | K113: 0 | L113: 122
A114: 21 | B114: 13578 | C114: 21 | D114: 13583 | E114: 22 | F114: 13586 | K114: 0 | L114: 222
A115: 21 | B115: 13684 | C115: 21 | D115: 13689 | E115: 22 | F115: 13694 | K115: 0 | L115: 222
A116: 21 | B116: 13792 | C116: 21 | D116: 13801 | E116: 22 | F116: 13806 | K116: 0 | L116: 222
A117: 21 | B117: 13905 | C117: 21 | D117: 13908 | E117: 22 | F117: 13913 | K117: 0 | L117: 222
A118: 21 | B118: 14046 | C118: 21 | D118: 14052 | E118: 22 | F118: 14057 | K118: 0 | L118: 222
A119: 21 | B119: 14171 | C119: 21 | D119: 14178 | E119: 22 | F119: 14183 | K119: 0 | L119: 222
A120: 21 | B120: 14281 | C120: 21 | D120: 14286 | E120: 22 | F120: 14290 | K120: 0 | L120: 222
A121: 21 | B121: 14388 | C121: 21 | D121: 14391 | E121: 22 | F121: 14395 | K121: 0 | L121: 222
A122: 12 | B122: 14487 | C122: 23 | D122: 14493 | E122: 24 | F122: 14499 | K122: 0 | L122: 122
A123: 21 | B123: 14599 | C123: 12 | D123: 14607 | E123: 24 | F123: 14613 | K123: 0 | L123: 212
A124: 21 | B124: 14715 | C124: 12 | D124: 14717 | E124: 24 | F124: 14722 | K124: 0 | L124: 212
A125: 21 | B125: 14825 | C125: 21 | D125: 14835 | E125: 22 | F125: 14840 | K125: 0 | L125: 222
A126: 12 | B126: 14934 | C126: 23 | D126: 14943 | E126: 24 | F126: 14951 | K126: 0 | L126: 122
A127: 21 | B127: 15050 | C127: 21 | D127: 15054 | E127: 22 | F127: 15062 | K127: 0 | L127: 222
A128: 21 | B128: 15164 | C128: 21 | D128: 15166 | E128: 22 | F128: 15173 | K128: 0 | L128: 222
A129: 12 | B129: 15265 | C129: 23 | D129: 15271 | E129: 24 | F129: 15275 | K129: 0 | L129: 122

Sheet !M924B00.Gus
A1: Report for:!M924B00.Gus
A2: Date: | B2: <date>
A3: Hen: | B3: <hen> | F3: Correct Sequence | G3: =Start!J2 -> 221 | P3: Total Sequences in Data | Q3: =4994-COUNTBLANK(L7:L5000) -> 126 | V3: Total Sequences in Block Data | W3: =COUNTA(L7:L27) -> 21 | AA3: Total Sequences in Block Data | AB3: =COUNTA(L28:L48) -> 21 | AF3: Total Sequences in Block Data | AG3: =COUNTA(L49:L69) -> 21 | AK3: Total Sequences in Block Data | AL3: =COUNTA(L70:L90) -> 21 | AP3: Total Sequences in Block Data | AQ3: =COUNTA(L91:L111) -> 21 | AU3: Total Sequences in Block Data | AV3: =COUNTA(L112:L132) -> 21
P4: Total Sequences in Summary | Q4: =SUM(O7:O14) -> 126 | V4: Total Sequences in Block Summary | W4: =SUM(U7:U14) -> 21 | AA4: Total Sequences in Block Summary | AB4: =SUM(Z7:Z14) -> 21 | AF4: Total Sequences in Block Summary | AG4: =SUM(AE7:AE14) -> 21 | AK4: Total Sequences in Block Summary | AL4: =SUM(AJ7:AJ14) -> 21 | AP4: Total Sequences in Block Summary | AQ4: =SUM(AO7:AO14) -> 21 | AU4: Total Sequences in Block Summary | AV4: =SUM(AT7:AT14) -> 21
T5: Block 1 | Y5: Block 2 | AD5: Block 3 | AI5: Block 4 | AN5: Block 5 | AS5: Block 6
A6: Sequence Component 1 | B6: Time 1 | C6: Sequence Component 2 | D6: Time 2 | E6: Sequence Component 3 | F6: Time 3 | G6: Sequence Component 4 | H6: Time 4 | I6: Sequence Component 5 | J6: Time 5 | K6: Correct? 0=No 1=Yes | L6: Sequence | N6: Frequency | P6: Relative Frequency | Q6: Variability | T6: Frequency | V6: Relative Frequency | W6: Variability | Y6: Frequency | AA6: Relative Frequency | AB6: Variability | AD6: Frequency | AF6: Relative Frequency | AG6: Variability | AI6: Frequency | AK6: Relative Frequency | AL6: Variability | AN6: Frequency | AP6: Relative Frequency | AQ6: Variability | AS6: Frequency | AU6: Relative Frequency | AV6: Variability
A7: 21 | B7: 21 | C7: 21 | D7: 25 | E7: 22 | F7: 29 | K7: 0 | L7: 222 | N7: 111 | O7: =COUNTIF($L$7:$L$500,N7) -> 0 | P7: =O7/$Q$4 -> 0 | Q7: =IF(P7=0,0,(P7*((LOG(P7))/LOG(2)))) -> 0 | T7: =N7 -> 111 | U7: =COUNTIF(L7:L27,T7) -> 0 | V7: =U7/(W4-U13) -> 0 | W7: =IF(V7=0,0,(V7*((LOG(V7))/LOG(2)))) -> 0 | Y7: =N7 -> 111 | Z7: =COUNTIF(L28:L48,Y7) -> 0 | AA7: =Z7/(AB4-Z13) -> 0 | AB7: =IF(AA7=0,0,(AA7*((LOG(AA7))/LOG(2)))) -> 0 | AD7: =N7 -> 111 | AE7: =COUNTIF(L49:L69,AD7) -> 0 | AF7: =AE7/(AG4-AE13) -> 0 | AG7: =IF(AF7=0,0,(AF7*((LOG(AF7))/LOG(2)))) -> 0 | AI7: =N7 -> 111 | AJ7: =COUNTIF(L70:L90,AI7) -> 0 | AK7: =AJ7/(AL4-AJ13) -> 0 | AL7: =IF(AK7=0,0,(AK7*((LOG(AK7))/LOG(2)))) -> 0 | AN7: =N7 -> 111 | AO7: =COUNTIF(L91:L111,AN7) -> 0 | AP7: =AO7/(AQ4-AO13) -> 0 | AQ7: =IF(AP7=0,0,(AP7*((LOG(AP7))/LOG(2)))) -> 0 | AS7: =N7 -> 111 | AT7: =COUNTIF(L112:L132,AS7) -> 0 | AU7: =AT7/(AV4-AT13) -> 0 | AV7: =IF(AU7=0,0,(AU7*((LOG(AU7))/LOG(2)))) -> 0
A8: 21 | B8: 130 | C8: 21 | D8: 133 | E8: 22 | F8: 141 | K8: 0 | L8: 222 | N8: 112 | O8: =COUNTIF($L$7:$L$500,N8) -> 1 | P8: =O8/$Q$4 -> 0.007936507937 | Q8: =IF(P8=0,0,(P8*((LOG(P8))/LOG(2)))) -> -0.05537523749 | T8: =N8 -> 112 | U8: =COUNTIF(L7:L27,T8) -> 0 | V8: =U8/(W4-U13) -> 0 | W8: =IF(V8=0,0,(V8*((LOG(V8))/LOG(2)))) -> 0 | Y8: =N8 -> 112 | Z8: =COUNTIF(L28:L48,Y8) -> 0 | AA8: =Z8/(AB4-Z13) -> 0 | AB8: =IF(AA8=0,0,(AA8*((LOG(AA8))/LOG(2)))) -> 0 | AD8: =N8 -> 112 | AE8: =COUNTIF(L49:L69,AD8) -> 1 | AF8: =AE8/(AG4-AE13) -> 0.05555555556 | AG8: =IF(AF8=0,0,(AF8*((LOG(AF8))/LOG(2)))) -> -0.2316625001 | AI8: =N8 -> 112 | AJ8: =COUNTIF(L70:L90,AI8) -> 0 | AK8: =AJ8/(AL4-AJ13) -> 0 | AL8: =IF(AK8=0,0,(AK8*((LOG(AK8))/LOG(2)))) -> 0 | AN8: =N8 -> 112 | AO8: =COUNTIF(L91:L111,AN8) -> 0 | AP8: =AO8/(AQ4-AO13) -> 0 | AQ8: =IF(AP8=0,0,(AP8*((LOG(AP8))/LOG(2)))) -> 0 | AS8: =N8 -> 112 | AT8: =COUNTIF(L112:L132,AS8) -> 0 | AU8: =AT8/(AV4-AT13) -> 0 | AV8: =IF(AU8=0,0,(AU8*((LOG(AU8))/LOG(2)))) -> 0
A9: 21 | B9: 238 | C9: 21 | D9: 247 | E9: 22 | F9: 253 | K9: 0 | L9: 222 | N9: 121 | O9: =COUNTIF($L$7:$L$500,N9) -> 2 | P9: =O9/$Q$4 -> 0.01587301587 | Q9: =IF(P9=0,0,(P9*((LOG(P9))/LOG(2)))) -> -0.0948774591 | T9: =N9 -> 121 | U9: =COUNTIF(L7:L27,T9) -> 0 | V9: =U9/(W4-U13) -> 0 | W9: =IF(V9=0,0,(V9*((LOG(V9))/LOG(2)))) -> 0 | Y9: =N9 -> 121 | Z9: =COUNTIF(L28:L48,Y9) -> 1 | AA9: =Z9/(AB4-Z13) -> 0.05 | AB9: =IF(AA9=0,0,(AA9*((LOG(AA9))/LOG(2)))) -> -0.2160964047 | AD9: =N9 -> 121 | AE9: =COUNTIF(L49:L69,AD9) -> 0 | AF9: =AE9/(AG4-AE13) -> 0 | AG9: =IF(AF9=0,0,(AF9*((LOG(AF9))/LOG(2)))) -> 0 | AI9: =N9 -> 121 | AJ9: =COUNTIF(L70:L90,AI9) -> 0 | AK9: =AJ9/(AL4-AJ13) -> 0 | AL9: =IF(AK9=0,0,(AK9*((LOG(AK9))/LOG(2)))) -> 0 | AN9: =N9 -> 121 | AO9: =COUNTIF(L91:L111,AN9) -> 0 | AP9: =AO9/(AQ4-AO13) -> 0 | AQ9: =IF(AP9=0,0,(AP9*((LOG(AP9))/LOG(2)))) -> 0 | AS9: =N9 -> 121 | AT9: =COUNTIF(L112:L132,AS9) -> 1 | AU9: =AT9/(AV4-AT13) -> 0.04761904762 | AV9: =IF(AU9=0,0,(AU9*((LOG(AU9))/LOG(2)))) -> -0.2091579725
A10: 21 | B10: 351 | C10: 21 | D10: 358 | E10: 22 | F10: 360 | K10: 0 | L10: 222 | N10: 122 | O10: =COUNTIF($L$7:$L$500,N10) -> 16 | P10: =O10/$Q$4 -> 0.126984127 | Q10: =IF(P10=0,0,(P10*((LOG(P10))/LOG(2)))) -> -0.3780672919 | T10: =N10 -> 122 | U10: =COUNTIF(L7:L27,T10) -> 7 | V10: =U10/(W4-U13) -> 0.35 | W10: =IF(V10=0,0,(V10*((LOG(V10))/LOG(2)))) -> -0.5301006105 | Y10: =N10 -> 122 | Z10: =COUNTIF(L28:L48,Y10) -> 3 | AA10: =Z10/(AB4-Z13) -> 0.15 | AB10: =IF(AA10=0,0,(AA10*((LOG(AA10))/LOG(2)))) -> -0.4105448391 | AD10: =N10 -> 122 | AE10: =COUNTIF(L49:L69,AD10) -> 2 | AF10: =AE10/(AG4-AE13) -> 0.1111111111 | AG10: =IF(AF10=0,0,(AF10*((LOG(AF10))/LOG(2)))) -> -0.352213889 | AI10: =N10 -> 122 | AJ10: =COUNTIF(L70:L90,AI10) -> 1 | AK10: =AJ10/(AL4-AJ13) -> 0.05555555556 | AL10: =IF(AK10=0,0,(AK10*((LOG(AK10))/LOG(2)))) -> -0.2316625001 | AN10: =N10 -> 122 | AO10: =COUNTIF(L91:L111,AN10) -> 2 | AP10: =AO10/(AQ4-AO13) -> 0.09523809524 | AQ10: =IF(AP10=0,0,(AP10*((LOG(AP10))/LOG(2)))) -> -0.3230778498 | AS10: =N10 -> 122 | AT10: =COUNTIF(L112:L132,AS10) -> 1 | AU10: =AT10/(AV4-AT13) -> 0.04761904762 | AV10: =IF(AU10=0,0,(AU10*((LOG(AU10))/LOG(2)))) -> -0.2091579725
A11: 12 | B11: 454 | C11: 23 | D11: 459 | E11: 24 | F11: 461 | K11: 0 | L11: 122 | N11: 211 | O11: =COUNTIF($L$7:$L$500,N11) -> 0 | P11: =O11/$Q$4 -> 0 | Q11: =IF(P11=0,0,(P11*((LOG(P11))/LOG(2)))) -> 0 | T11: =N11 -> 211 | U11: =COUNTIF(L7:L27,T11) -> 0 | V11: =U11/(W4-U13) -> 0 | W11: =IF(V11=0,0,(V11*((LOG(V11))/LOG(2)))) -> 0 | Y11: =N11 -> 211 | Z11: =COUNTIF(L28:L48,Y11) -> 0 | AA11: =Z11/(AB4-Z13) -> 0 | AB11: =IF(AA11=0,0,(AA11*((LOG(AA11))/LOG(2)))) -> 0 | AD11: =N11 -> 211 | AE11: =COUNTIF(L49:L69,AD11) -> 0 | AF11: =AE11/(AG4-AE13) -> 0 | AG11: =IF(AF11=0,0,(AF11*((LOG(AF11))/LOG(2)))) -> 0 | AI11: =N11 -> 211 | AJ11: =COUNTIF(L70:L90,AI11) -> 0 | AK11: =AJ11/(AL4-AJ13) -> 0 | AL11: =IF(AK11=0,0,(AK11*((LOG(AK11))/LOG(2)))) -> 0 | AN11: =N11 -> 211 | AO11: =COUNTIF(L91:L111,AN11) -> 0 | AP11: =AO11/(AQ4-AO13) -> 0 | AQ11: =IF(AP11=0,0,(AP11*((LOG(AP11))/LOG(2)))) -> 0 | AS11: =N11 -> 211 | AT11: =COUNTIF(L112:L132,AS11) -> 0 | AU11: =AT11/(AV4-AT13) -> 0 | AV11: =IF(AU11=0,0,(AU11*((LOG(AU11))/LOG(2)))) -> 0
A12: 21 | B12: 558 | C12: 21 | D12: 561 | E12: 22 | F12: 568 | K12: 0 | L12: 222 | N12: 212 | O12: =COUNTIF($L$7:$L$500,N12) -> 5 | P12: =O12/$Q$4 -> 0.03968253968 | Q12: =IF(P12=0,0,(P12*((LOG(P12))/LOG(2)))) -> -0.1847361837 | T12: =N12 -> 212 | U12: =COUNTIF(L7:L27,T12) -> 0 | V12: =U12/(W4-U13) -> 0 | W12: =IF(V12=0,0,(V12*((LOG(V12))/LOG(2)))) -> 0 | Y12: =N12 -> 212 | Z12: =COUNTIF(L28:L48,Y12) -> 0 | AA12: =Z12/(AB4-Z13) -> 0 | AB12: =IF(AA12=0,0,(AA12*((LOG(AA12))/LOG(2)))) -> 0 | AD12: =N12 -> 212 | AE12: =COUNTIF(L49:L69,AD12) -> 0 | AF12: =AE12/(AG4-AE13) -> 0 | AG12: =IF(AF12=0,0,(AF12*((LOG(AF12))/LOG(2)))) -> 0 | AI12: =N12 -> 212 | AJ12: =COUNTIF(L70:L90,AI12) -> 2 | AK12: =AJ12/(AL4-AJ13) -> 0.1111111111 | AL12: =IF(AK12=0,0,(AK12*((LOG(AK12))/LOG(2)))) -> -0.352213889 | AN12: =N12 -> 212 | AO12: =COUNTIF(L91:L111,AN12) -> 1 | AP12: =AO12/(AQ4-AO13) -> 0.04761904762 | AQ12: =IF(AP12=0,0,(AP12*((LOG(AP12))/LOG(2)))) -> -0.2091579725 | AS12: =N12 -> 212 | AT12: =COUNTIF(L112:L132,AS12) -> 2 | AU12: =AT12/(AV4-AT13) -> 0.09523809524 | AV12: =IF(AU12=0,0,(AU12*((LOG(AU12))/LOG(2)))) -> -0.3230778498
A13: 12 | B13: 661 | C13: 23 | D13: 665 | E13: 24 | F13: 668 | K13: 0 | L13: 122 | N13: 221 | O13: =COUNTIF($L$7:$L$500,N13) -> 8 | P13: =O13/$Q$4 -> 0.06349206349 | Q13: =IF(P13=0,0,(P13*((LOG(P13))/LOG(2)))) -> -0.2525257094 | T13: =N13 -> 221 | U13: =COUNTIF(L7:L27,T13) -> 1 | Y13: =N13 -> 221 | Z13: =COUNTIF(L28:L48,Y13) -> 1 | AD13: =N13 -> 221 | AE13: =COUNTIF(L49:L69,AD13) -> 3 | AI13: =N13 -> 221 | AJ13: =COUNTIF(L70:L90,AI13) -> 3 | AN13: =N13 -> 221 | AO13: =COUNTIF(L91:L111,AN13) -> 0 | AS13: =N13 -> 221 | AT13: =COUNTIF(L112:L132,AS13) -> 0
A14: 12 | B14: 762 | C14: 23 | D14: 765 | E14: 24 | F14: 773 | K14: 0 | L14: 122 | N14: 222 | O14: =COUNTIF($L$7:$L$500,N14) -> 94 | P14: =O14/$Q$4 -> 0.746031746 | Q14: =IF(P14=0,0,(P14*((LOG(P14))/LOG(2)))) -> -0.3153409583 | T14: =N14 -> 222 | U14: =COUNTIF(L7:L27,T14) -> 13 | V14: =U14/(W4-U13) -> 0.65 | W14: =IF(V14=0,0,(V14*((LOG(V14))/LOG(2)))) -> -0.4039674449 | Y14: =N14 -> 222 | Z14: =COUNTIF(L28:L48,Y14) -> 16 | AA14: =Z14/(AB4-Z13) -> 0.8 | AB14: =IF(AA14=0,0,(AA14*((LOG(AA14))/LOG(2)))) -> -0.2575424759 | AD14: =N14 -> 222 | AE14: =COUNTIF(L49:L69,AD14) -> 15 | AF14: =AE14/(AG4-AE13) -> 0.8333333333 | AG14: =IF(AF14=0,0,(AF14*((LOG(AF14))/LOG(2)))) -> -0.2191953382 | AI14: =N14 -> 222 | AJ14: =COUNTIF(L70:L90,AI14) -> 15 | AK14: =AJ14/(AL4-AJ13) -> 0.8333333333 | AL14: =IF(AK14=0,0,(AK14*((LOG(AK14))/LOG(2)))) -> -0.2191953382 | AN14: =N14 -> 222 | AO14: =COUNTIF(L91:L111,AN14) -> 18 | AP14: =AO14/(AQ4-AO13) -> 0.8571428571 | AQ14: =IF(AP14=0,0,(AP14*((LOG(AP14))/LOG(2)))) -> -0.1906220754 | AS14: =N14 -> 222 | AT14: =COUNTIF(L112:L132,AS14) -> 17 | AU14: =AT14/(AV4-AT13) -> 0.8095238095 | AV14: =IF(AU14=0,0,(AU14*((LOG(AU14))/LOG(2)))) -> -0.2467870422
A15: 12 | B15: 867 | C15: 23 | D15: 871 | E15: 24 | F15: 875 | K15: 0 | L15: 122 | P15: =SUM(P7:P14) -> 1 | Q15: =-SUM(Q7:Q14) -> 1.28092284 | V15: =SUM(V7:V14) -> 1 | W15: =-SUM(W7:W14) -> 0.9340680554 | AA15: =SUM(AA7:AA14) -> 1 | AB15: =-SUM(AB7:AB14) -> 0.8841837198 | AF15: =SUM(AF7:AF14) -> 1 | AG15: =-SUM(AG7:AG14) -> 0.8030717273 | AK15: =SUM(AK7:AK14) -> 1 | AL15: =-SUM(AL7:AL14) -> 0.8030717273 | AP15: =SUM(AP7:AP14) -> 1 | AQ15: =-SUM(AQ7:AQ14) -> 0.7228578977 | AU15: =SUM(AU7:AU14) -> 1 | AV15: =-SUM(AV7:AV14) -> 0.988180837
A16: 21 | B16: 973 | C16: 21 | D16: 975 | E16: 22 | F16: 977 | K16: 0 | L16: 222 | P16: U= | Q16: =Q15/(LOG(Q4)/LOG(2)) -> 0.1835848431 | V16: U1= | W16: =W15/(LOG(W4)/LOG(2)) -> 0.2126595065 | AA16: U2= | AB16: =AB15/(LOG(AB4)/LOG(2)) -> 0.2013023274 | AF16: U3= | AG16: =AG15/(LOG(AG4)/LOG(2)) -> 0.1828355399 | AK16: U4= | AL16: =AL15/(LOG(AL4)/LOG(2)) -> 0.1828355399 | AP16: U5= | AQ16: =AQ15/(LOG(AQ4)/LOG(2)) -> 0.1645732373 | AU16: U6= | AV16: =AV15/(LOG(AV4)/LOG(2)) -> 0.2249793769
A17: 21 | B17: 1073 | C17: 21 | D17: 1078 | E17: 22 | F17: 1087 | K17: 0 | L17: 222
A18: 21 | B18: 1184 | C18: 21 | D18: 1188 | E18: 22 | F18: 1191 | K18: 0 | L18: 222
A19: 21 | B19: 1288 | C19: 21 | D19: 1290 | E19: 22 | F19: 1295 | K19: 0 | L19: 222 | N19: Total Target Seq
A20: 12 | B20: 1388 | C20: 23 | D20: 1392 | E20: 24 | F20: 1394 | K20: 0 | L20: 122 | N20: =COUNTIF(L7:L132,G3) -> 8 | P20: 21 | Q20: 21 | R20: 21 | S20: 21 | T20: 21 | U20: 21
A21: 21 | B21: 1492 | C21: 21 | D21: 1495 | E21: 22 | F21: 1499 | K21: 0 | L21: 222 | P21: % of reinforcement given in 6 equal intervals based on number of trials
A22: 12 | B22: 1592 | C22: 23 | D22: 1596 | E22: 24 | F22: 1599 | K22: 0 | L22: 122 | P22: %_1 | Q22: %_2 | R22: %_3 | S22: %_4 | T22: %_5 | U22: %_6
A23: 12 | B23: 1694 | C23: 23 | D23: 1696 | E23: 24 | F23: 1698 | K23: 0 | L23: 122 | O23: target sequence | P23: =$G$3 -> 221 | Q23: =$G$3 -> 221 | R23: =$G$3 -> 221 | S23: =$G$3 -> 221 | T23: =$G$3 -> 221 | U23: =$G$3 -> 221
A24: 21 | B24: 1791 | C24: 21 | D24: 1794 | E24: 22 | F24: 1798 | K24: 0 | L24: 222 | O24: total reinforcement | P24: =U13 -> 1 | Q24: =Z13 -> 1 | R24: =AE13 -> 3 | S24: =AJ13 -> 3 | T24: =AO13 -> 0 | U24: =AT13 -> 0
A25: 21 | B25: 1895 | C25: 21 | D25: 1899 | E25: 11 | F25: 1903 | K25: 0 | L25: 221 | O25: % target
A26: 21 | B26: 2067 | C26: 21 | D26: 2078 | E26: 22 | F26: 2085 | K26: 0 | L26: 222 | O26: CCRF
A27: 21 | B27: 2180 | C27: 21 | D27: 2184 | E27: 22 | F27: 2189 | K27: 0 | L27: 222 | O27: % CCRf
A28: 12 | B28: 2292 | C28: 23 | D28: 2305 | E28: 24 | F28: 2312 | K28: 0 | L28: 122 | O28: average response rate | P28: =F27/P20 -> 104.2380952 | Q28: =(F48-F27)/Q20 -> 110.2857143 | R28: =(F69-F48)/R20 -> 127.6190476 | S28: =(F90-F69)/S20 -> 125.6190476 | T28: =(F111-F90)/T20 -> 107.4761905 | U28: =(F132-F111)/U20 -> 106.1904762
A29: 21 | B29: 2408 | C29: 21 | D29: 2412 | E29: 22 | F29: 2417 | K29: 0 | L29: 222
A30: 21 | B30: 2513 | C30: 21 | D30: 2518 | E30: 22 | F30: 2522 | K30: 0 | L30: 222
A31: 21 | B31: 2619 | C31: 21 | D31: 2622 | E31: 22 | F31: 2625 | K31: 0 | L31: 222
A32: 21 | B32: 2718 | C32: 21 | D32: 2722 | E32: 22 | F32: 2726 | K32: 0 | L32: 222
A33: 21 | B33: 2822 | C33: 21 | D33: 2825 | E33: 22 | F33: 2829 | K33: 0 | L33: 222
A34: 12 | B34: 2921 | C34: 23 | D34: 2925 | E34: 13 | F34: 2931 | K34: 0 | L34: 121
A35: 21 | B35: 3028 | C35: 21 | D35: 3031 | E35: 22 | F35: 3041 | K35: 0 | L35: 222
A36: 21 | B36: 3137 | C36: 21 | D36: 3141 | E36: 22 | F36: 3144 | K36: 0 | L36: 222
A37: 21 | B37: 3242 | C37: 21 | D37: 3248 | E37: 22 | F37: 3254 | K37: 0 | L37: 222
A38: 21 | B38: 3351 | C38: 21 | D38: 3353 | E38: 22 | F38: 3358 | K38: 0 | L38: 222
A39: 12 | B39: 3450 | C39: 23 | D39: 3453 | E39: 24 | F39: 3458 | K39: 0 | L39: 122
A40: 21 | B40: 3554 | C40: 21 | D40: 3557 | E40: 11 | F40: 3561 | K40: 0 | L40: 221
A41: 21 | B41: 3692 | C41: 21 | D41: 3705 | E41: 22 | F41: 3716 | K41: 0 | L41: 222
A42: 12 | B42: 3859 | C42: 23 | D42: 3866 | E42: 24 | F42: 3874 | K42: 0 | L42: 122
A43: 21 | B43: 3972 | C43: 21 | D43: 3977 | E43: 22 | F43: 3984 | K43: 0 | L43: 222
A44: 21 | B44: 4080 | C44: 21 | D44: 4083 | E44: 22 | F44: 4088 | K44: 0 | L44: 222
A45: 21 | B45: 4185 | C45: 21 | D45: 4188 | E45: 22 | F45: 4195 | K45: 0 | L45: 222
A46: 21 | B46: 4292 | C46: 21 | D46: 4295 | E46: 22 | F46: 4299 | K46: 0 | L46: 222
A47: 21 | B47: 4396 | C47: 21 | D47: 4398 | E47: 22 | F47: 4401 | K47: 0 | L47: 222
A48: 21 | B48: 4497 | C48: 21 | D48: 4499 | E48: 22 | F48: 4505 | K48: 0 | L48: 222
A49: 21 | B49: 4597 | C49: 21 | D49: 4601 | E49: 22 | F49: 4604 | K49: 0 | L49: 222
A50: 12 | B50: 4699 | C50: 14 | D50: 4708 | E50: 24 | F50: 4720 | K50: 0 | L50: 112
A51: 21 | B51: 4891 | C51: 21 | D51: 4897 | E51: 22 | F51: 4906 | K51: 0 | L51: 222
A52: 21 | B52: 5003 | C52: 21 | D52: 5006 | E52: 22 | F52: 5015 | K52: 0 | L52: 222
A53: 21 | B53: 5121 | C53: 21 | D53: 5126 | E53: 22 | F53: 5133 | K53: 0 | L53: 222
A54: 21 | B54: 5231 | C54: 21 | D54: 5234 | E54: 22 | F54: 5238 | K54: 0 | L54: 222
A55: 12 | B55: 5331 | C55: 23 | D55: 5335 | E55: 24 | F55: 5338 | K55: 0 | L55: 122
A56: 21 | B56: 5434 | C56: 21 | D56: 5442 | E56: 11 | F56: 5447 | K56: 0 | L56: 221
A57: 21 | B57: 5587 | C57: 21 | D57: 5597 | E57: 11 | F57: 5601 | K57: 0 | L57: 221
A58: 21 | B58: 5966 | C58: 21 | D58: 5971 | E58: 11 | F58: 5974 | K58: 0 | L58: 221
A59: 21 | B59: 6110 | C59: 21 | D59: 6120 | E59: 22 | F59: 6127 | K59: 0 | L59: 222
A60: 21 | B60: 6227 | C60: 21 | D60: 6236 | E60: 22 | F60: 6241 | K60: 0 | L60: 222
A61: 21 | B61: 6338 | C61: 21 | D61: 6342 | E61: 22 | F61: 6346 | K61: 0 | L61: 222
A62: 21 | B62: 6442 | C62: 21 | D62: 6446 | E62: 22 | F62: 6448 | K62: 0 | L62: 222
A63: 21 | B63: 6545 | C63: 21 | D63: 6547 | E63: 22 | F63: 6549 | K63: 0 | L63: 222
A64: 12 | B64: 6641 | C64: 23 | D64: 6648 | E64: 24 | F64: 6654 | K64: 0 | L64: 122
A65: 21 | B65: 6752 | C65: 21 | D65: 6755 | E65: 22 | F65: 6760 | K65: 0 | L65: 222
A66: 21 | B66: 6857 | C66: 21 | D66: 6862 | E66: 22 | F66: 6867 | K66: 0 | L66: 222
A67: 21 | B67: 6966 | C67: 21 | D67: 6968 | E67: 22 | F67: 6973 | K67: 0 | L67: 222
A68: 21 | B68: 7070 | C68: 21 | D68: 7072 | E68: 22 | F68: 7076 | K68: 0 | L68: 222
A69: 21 | B69: 7174 | C69: 21 | D69: 7181 | E69: 22 | F69: 7185 | K69: 0 | L69: 222
A70: 21 | B70: 7281 | C70: 21 | D70: 7285 | E70: 22 | F70: 7289 | K70: 0 | L70: 222
A71: 21 | B71: 7386 | C71: 12 | D71: 7393 | E71: 24 | F71: 7395 | K71: 0 | L71: 212
A72: 21 | B72: 7492 | C72: 21 | D72: 7498 | E72: 22 | F72: 7500 | K72: 0 | L72: 222
A73: 21 | B73: 7597 | C73: 21 | D73: 7602 | E73: 22 | F73: 7607 | K73: 0 | L73: 222
A74: 12 | B74: 7699 | C74: 23 | D74: 7702 | E74: 24 | F74: 7705 | K74: 0 | L74: 122
A75: 21 | B75: 7802 | C75: 21 | D75: 7805 | E75: 22 | F75: 7811 | K75: 0 | L75: 222
A76: 21 | B76: 7907 | C76: 21 | D76: 7913 | E76: 11 | F76: 7921 | K76: 0 | L76: 221
A77: 21 | B77: 8102 | C77: 21 | D77: 8106 | E77: 22 | F77: 8122 | K77: 0 | L77: 222
A78: 21 | B78: 8219 | C78: 21 | D78: 8223 | E78: 11 | F78: 8227 | K78: 0 | L78: 221
A79: 21 | B79: 8365 | C79: 21 | D79: 8391 | E79: 22 | F79: 8397 | K79: 0 | L79: 222
A80: 21 | B80: 8489 | C80: 21 | D80: 8492 | E80: 22 | F80: 8497 | K80: 0 | L80: 222
A81: 21 | B81: 8593 | C81: 21 | D81: 8597 | E81: 22 | F81: 8604 | K81: 0 | L81: 222
A82: 21 | B82: 8696 | C82: 21 | D82: 8700 | E82: 22 | F82: 8704 | K82: 0 | L82: 222
A83: 21 | B83: 8819 | C83: 21 | D83: 8825 | E83: 22 | F83: 8832 | K83: 0 | L83: 222
A84: 21 | B84: 8927 | C84: 21 | D84: 8930 | E84: 22 | F84: 8934 | K84: 0 | L84: 222
A85: 21 | B85: 9030 | C85: 21 | D85: 9033 | E85: 22 | F85: 9039 | K85: 0 | L85: 222
A86: 21 | B86: 9131 | C86: 21 | D86: 9134 | E86: 22 | F86: 9137 | K86: 0 | L86: 222
A87: 21 | B87: 9234 | C87: 21 | D87: 9240 | E87: 22 | F87: 9246 | K87: 0 | L87: 222
A88: 21 | B88: 9342 | C88: 21 | D88: 9345 | E88: 11 | F88: 9349 | K88: 0 | L88: 221
A89: 21 | B89: 9703 | C89: 12 | D89: 9709 | E89: 24 | F89: 9718 | K89: 0 | L89: 212
A90: 21 | B90: 9813 | C90: 21 | D90: 9818 | E90: 22 | F90: 9823 | K90: 0 | L90: 222
A91: 21 | B91: 9919 | C91: 21 | D91: 9924 | E91: 22 | F91: 9937 | K91: 0 | L91: 222
A92: 21 | B92: 10035 | C92: 21 | D92: 10040 | E92: 22 | F92: 10043 | K92: 0 | L92: 222
A93: 21 | B93: 10139 | C93: 21 | D93: 10143 | E93: 22 | F93: 10145 | K93: 0 | L93: 222
A94: 12 | B94: 10241 | C94: 23 | D94: 10244 | E94: 24 | F94: 10248 | K94: 0 | L94: 122
A95: 21 | B95: 10344 | C95: 21 | D95: 10351 | E95: 22 | F95: 10356 | K95: 0 | L95: 222
A96: 21 | B96: 10449 | C96: 12 | D96: 10458 | E96: 24 | F96: 10465 | K96: 0 | L96: 212
A97: 21 | B97: 10559 | C97: 21 | D97: 10562 | E97: 22 | F97: 10566 | K97: 0 | L97: 222
A98: 21 | B98: 10663 | C98: 21 | D98: 10667 | E98: 22 | F98: 10671 | K98: 0 | L98: 222
A99: 21 | B99: 10763 | C99: 21 | D99: 10767 | E99: 22 | F99: 10774 | K99: 0 | L99: 222
A100: 21 | B100: 10870 | C100: 21 | D100: 10878 | E100: 22 | F100: 10883 | K100: 0 | L100: 222
A101: 21 | B101: 10980 | C101: 21 | D101: 10984 | E101: 22 | F101: 10989 | K101: 0 | L101: 222
A102: 21 | B102: 11086 | C102: 21 | D102: 11090 | E102: 22 | F102: 11096 | K102: 0 | L102: 222
A103: 12 | B103: 11198 | C103: 23 | D103: 11202 | E103: 24 | F103: 11207 | K103: 0 | L103: 122
A104: 21 | B104: 11303 | C104: 21 | D104: 11307 | E104: 22 | F104: 11311 | K104: 0 | L104: 222
A105: 21 | B105: 11407 | C105: 21 | D105: 11411 | E105: 22 | F105: 11417 | K105: 0 | L105: 222
A106: 21 | B106: 11513 | C106: 21 | D106: 11517 | E106: 22 | F106: 11521 | K106: 0 | L106: 222
A107: 21 | B107: 11614 | C107: 21 | D107: 11621 | E107: 22 | F107: 11629 | K107: 0 | L107: 222
A108: 21 | B108: 11725 | C108: 21 | D108: 11734 | E108: 22 | F108: 11744 | K108: 0 | L108: 222
A109: 21 | B109: 11863 | C109: 21 | D109: 11865 | E109: 22 | F109: 11869 | K109: 0 | L109: 222
A110: 21 | B110: 11965 | C110: 21 | D110: 11968 | E110: 22 | F110: 11972 | K110: 0 | L110: 222
A111: 21 | B111: 12068 | C111: 21 | D111: 12071 | E111: 22 | F111: 12080 | K111: 0 | L111: 222
A112: 21 | B112: 12177 | C112: 21 | D112: 12181 | E112: 22 | F112: 12189 | K112: 0 | L112: 222
A113: 21 | B113: 12291 | C113: 21 | D113: 12293 | E113: 22 | F113: 12298 | K113: 0 | L113: 222
A114: 21 | B114: 12391 | C114: 21 | D114: 12395 | E114: 22 | F114: 12398 | K114: 0 | L114: 222
A115: 21 | B115: 12496 | C115: 21 | D115: 12498 | E115: 22 | F115: 12500 | K115: 0 | L115: 222
A116: 21 | B116: 12595 | C116: 21 | D116: 12600 | E116: 22 | F116: 12604 | K116: 0 | L116: 222
A117: 21 | B117: 12697 | C117: 21 | D117: 12700 | E117: 22 | F117: 12706 | K117: 0 | L117: 222
A118: 21 | B118: 12807 | C118: 21 | D118: 12814 | E118: 22 | F118: 12818 | K118: 0 | L118: 222
A119: 21 | B119: 12915 | C119: 21 | D119: 12918 | E119: 22 | F119: 12921 | K119: 0 | L119: 222
A120: 21 | B120: 13020 | C120: 21 | D120: 13025 | E120: 22 | F120: 13029 | K120: 0 | L120: 222
A121: 21 | B121: 13127 | C121: 21 | D121: 13132 | E121: 22 | F121: 13142 | K121: 0 | L121: 222
A122: 21 | B122: 13240 | C122: 21 | D122: 13243 | E122: 22 | F122: 13247 | K122: 0 | L122: 222
A123: 21 | B123: 13344 | C123: 12 | D123: 13349 | E123: 24 | F123: 13352 | K123: 0 | L123: 212
A124: 21 | B124: 13450 | C124: 21 | D124: 13454 | E124: 22 | F124: 13458 | K124: 0 | L124: 222
A125: 12 | B125: 13558 | C125: 23 | D125: 13565 | E125: 24 | F125: 13572 | K125: 0 | L125: 122
A126: 21 | B126: 13668 | C126: 21 | D126: 13672 | E126: 22 | F126: 13676 | K126: 0 | L126: 222
A127: 12 | B127: 13769 | C127: 23 | D127: 13772 | E127: 13 | F127: 13776 | K127: 0 | L127: 121
A128: 21 | B128: 13868 | C128: 21 | D128: 13874 | E128: 22 | F128: 13883 | K128: 0 | L128: 222
A129: 21 | B129: 13981 | C129: 21 | D129: 13985 | E129: 22 | F129: 13989 | K129: 0 | L129: 222
A130: 21 | B130: 14086 | C130: 21 | D130: 14091 | E130: 22 | F130: 14096 | K130: 0 | L130: 222
A131: 21 | B131: 14194 | C131: 21 | D131: 14197 | E131: 22 | F131: 14202 | K131: 0 | L131: 222
A132: 21 | B132: 14300 | C132: 12 | D132: 14304 | E132: 24 | F132: 14310 | K132: 0 | L132: 212

Sheet !M925920.Gus
A1: Report for:!M925920.Gus
A2: Date: | B2: <date>
A3: Hen: | B3: <hen> | F3: Correct Sequence | G3: =Start!J2 -> 221 | P3: Total Sequences in Data | Q3: =4994-COUNTBLANK(L7:L5000) -> 159 | V3: Total Sequences in Block Data | W3: =COUNTA(L7:L33) -> 27 | AA3: Total Sequences in Block Data | AB3: =COUNTA(L34:L59) -> 26 | AF3: Total Sequences in Block Data | AG3: =COUNTA(L60:L86) -> 27 | AK3: Total Sequences in Block Data | AL3: =COUNTA(L87:L112) -> 26 | AP3: Total Sequences in Block Data | AQ3: =COUNTA(L113:L139) -> 27 | AU3: Total Sequences in Block Data | AV3: =COUNTA(L140:L165) -> 26
P4: Total Sequences in Summary | Q4: =SUM(O7:O14) -> 159 | V4: Total Sequences in Block Summary | W4: =SUM(U7:U14) -> 27 | AA4: Total Sequences in Block Summary | AB4: =SUM(Z7:Z14) -> 26 | AF4: Total Sequences in Block Summary | AG4: =SUM(AE7:AE14) -> 27 | AK4: Total Sequences in Block Summary | AL4: =SUM(AJ7:AJ14) -> 26 | AP4: Total Sequences in Block Summary | AQ4: =SUM(AO7:AO14) -> 27 | AU4: Total Sequences in Block Summary | AV4: =SUM(AT7:AT14) -> 26
T5: Block 1 | Y5: Block 2 | AD5: Block 3 | AI5: Block 4 | AN5: Block 5 | AS5: Block 6
A6: Sequence Component 1 | B6: Time 1 | C6: Sequence Component 2 | D6: Time 2 | E6: Sequence Component 3 | F6: Time 3 | G6: Sequence Component 4 | H6: Time 4 | I6: Sequence Component 5 | J6: Time 5 | K6: Correct? 0=No 1=Yes | L6: Sequence | N6: Frequency | P6: Relative Frequency | Q6: Variability | T6: Frequency | V6: Relative Frequency | W6: Variability | Y6: Frequency | AA6: Relative Frequency | AB6: Variability | AD6: Frequency | AF6: Relative Frequency | AG6: Variability | AI6: Frequency | AK6: Relative Frequency | AL6: Variability | AN6: Frequency | AP6: Relative Frequency | AQ6: Variability | AS6: Frequency | AU6: Relative Frequency | AV6: Variability
A7: 21 | B7: 5 | C7: 21 | D7: 15 | E7: 22 | F7: 22 | K7: 0 | L7: 222 | N7: 111 | O7: =COUNTIF($L$7:$L$500,N7) -> 0 | P7: =O7/$Q$4 -> 0 | Q7: =IF(P7=0,0,(P7*((LOG(P7))/LOG(2)))) -> 0 | T7: =N7 -> 111 | U7: =COUNTIF(L7:L33,T7) -> 0 | V7: =U7/(W4-U13) -> 0 | W7: =IF(V7=0,0,(V7*((LOG(V7))/LOG(2)))) -> 0 | Y7: =N7 -> 111 | Z7: =COUNTIF(L34:L59,Y7) -> 0 | AA7: =Z7/(AB4-Z13) -> 0 | AB7: =IF(AA7=0,0,(AA7*((LOG(AA7))/LOG(2)))) -> 0 | AD7: =N7 -> 111 | AE7: =COUNTIF(L60:L86,AD7) -> 0 | AF7: =AE7/(AG4-AE13) -> 0 | AG7: =IF(AF7=0,0,(AF7*((LOG(AF7))/LOG(2)))) -> 0 | AI7: =N7 -> 111 | AJ7: =COUNTIF(L87:L112,AI7) -> 0 | AK7: =AJ7/(AL4-AJ13) -> 0 | AL7: =IF(AK7=0,0,(AK7*((LOG(AK7))/LOG(2)))) -> 0 | AN7: =N7 -> 111 | AO7: =COUNTIF(L113:L139,AN7) -> 0 | AP7: =AO7/(AQ4-AO13) -> 0 | AQ7: =IF(AP7=0,0,(AP7*((LOG(AP7))/LOG(2)))) -> 0 | AS7: =N7 -> 111 | AT7: =COUNTIF(L140:L165,AS7) -> 0 | AU7: =AT7/(AV4-AT13) -> 0 | AV7: =IF(AU7=0,0,(AU7*((LOG(AU7))/LOG(2)))) -> 0
A8: 21 | B8: 119 | C8: 21 | D8: 121 | E8: 22 | F8: 125 | K8: 0 | L8: 222 | N8: 112 | O8: =COUNTIF($L$7:$L$500,N8) -> 0 | P8: =O8/$Q$4 -> 0 | Q8: =IF(P8=0,0,(P8*((LOG(P8))/LOG(2)))) -> 0 | T8: =N8 -> 112 | U8: =COUNTIF(L7:L33,T8) -> 0 | V8: =U8/(W4-U13) -> 0 | W8: =IF(V8=0,0,(V8*((LOG(V8))/LOG(2)))) -> 0 | Y8: =N8 -> 112 | Z8: =COUNTIF(L34:L59,Y8) -> 0 | AA8: =Z8/(AB4-Z13) -> 0 | AB8: =IF(AA8=0,0,(AA8*((LOG(AA8))/LOG(2)))) -> 0 | AD8: =N8 -> 112 | AE8: =COUNTIF(L60:L86,AD8) -> 0 | AF8: =AE8/(AG4-AE13) -> 0 | AG8: =IF(AF8=0,0,(AF8*((LOG(AF8))/LOG(2)))) -> 0 | AI8: =N8 -> 112 | AJ8: =COUNTIF(L87:L112,AI8) -> 0 | AK8: =AJ8/(AL4-AJ13) -> 0 | AL8: =IF(AK8=0,0,(AK8*((LOG(AK8))/LOG(2)))) -> 0 | AN8: =N8 -> 112 | AO8: =COUNTIF(L113:L139,AN8) -> 0 | AP8: =AO8/(AQ4-AO13) -> 0 | AQ8: =IF(AP8=0,0,(AP8*((LOG(AP8))/LOG(2)))) -> 0 | AS8: =N8 -> 112 | AT8: =COUNTIF(L140:L165,AS8) -> 0 | AU8: =AT8/(AV4-AT13) -> 0 | AV8: =IF(AU8=0,0,(AU8*((LOG(AU8))/LOG(2)))) -> 0
A9: 12 | B9: 218 | C9: 23 | D9: 223 | E9: 24 | F9: 225 | K9: 0 | L9: 122 | N9: 121 | O9: =COUNTIF($L$7:$L$500,N9) -> 2 | P9: =O9/$Q$4 -> 0.01257861635 | Q9: =IF(P9=0,0,(P9*((LOG(P9))/LOG(2)))) -> -0.07940733277 | T9: =N9 -> 121 | U9: =COUNTIF(L7:L33,T9) -> 0 | V9: =U9/(W4-U13) -> 0 | W9: =IF(V9=0,0,(V9*((LOG(V9))/LOG(2)))) -> 0 | Y9: =N9 -> 121 | Z9: =COUNTIF(L34:L59,Y9) -> 0 | AA9: =Z9/(AB4-Z13) -> 0 | AB9: =IF(AA9=0,0,(AA9*((LOG(AA9))/LOG(2)))) -> 0 | AD9: =N9 -> 121 | AE9: =COUNTIF(L60:L86,AD9) -> 0 | AF9: =AE9/(AG4-AE13) -> 0 | AG9: =IF(AF9=0,0,(AF9*((LOG(AF9))/LOG(2)))) -> 0 | AI9: =N9 -> 121 | AJ9: =COUNTIF(L87:L112,AI9) -> 1 | AK9: =AJ9/(AL4-AJ13) -> 0.05 | AL9: =IF(AK9=0,0,(AK9*((LOG(AK9))/LOG(2)))) -> -0.2160964047 | AN9: =N9 -> 121 | AO9: =COUNTIF(L113:L139,AN9) -> 0 | AP9: =AO9/(AQ4-AO13) -> 0 | AQ9: =IF(AP9=0,0,(AP9*((LOG(AP9))/LOG(2)))) -> 0 | AS9: =N9 -> 121 | AT9: =COUNTIF(L140:L165,AS9) -> 1 | AU9: =AT9/(AV4-AT13) -> 0.03846153846 | AV9: =IF(AU9=0,0,(AU9*((LOG(AU9))/LOG(2)))) -> -0.180786143
A10: 21 | B10: 322 | C10: 21 | D10: 325 | E10: 22 | F10: 327 | K10: 0 | L10: 222 | N10: 122 | O10: =COUNTIF($L$7:$L$500,N10) -> 15 | P10: =O10/$Q$4 -> 0.09433962264 | Q10: =IF(P10=0,0,(P10*((LOG(P10))/LOG(2)))) -> -0.3213200339 | T10: =N10 -> 122 | U10: =COUNTIF(L7:L33,T10) -> 4 | V10: =U10/(W4-U13) -> 0.1481481481 | W10: =IF(V10=0,0,(V10*((LOG(V10))/LOG(2)))) -> -0.4081314818 | Y10: =N10 -> 122 | Z10: =COUNTIF(L34:L59,Y10) -> 3 | AA10: =Z10/(AB4-Z13) -> 0.1363636364 | AB10: =IF(AA10=0,0,(AA10*((LOG(AA10))/LOG(2)))) -> -0.3919730615 | AD10: =N10 -> 122 | AE10: =COUNTIF(L60:L86,AD10) -> 4 | AF10: =AE10/(AG4-AE13) -> 0.1739130435 | AG10: =IF(AF10=0,0,(AF10*((LOG(AF10))/LOG(2)))) -> -0.4388803402 | AI10: =N10 -> 122 | AJ10: =COUNTIF(L87:L112,AI10) -> 2 | AK10: =AJ10/(AL4-AJ13) -> 0.1 | AL10: =IF(AK10=0,0,(AK10*((LOG(AK10))/LOG(2)))) -> -0.3321928095 | AN10: =N10 -> 122 | AO10: =COUNTIF(L113:L139,AN10) -> 1 | AP10: =AO10/(AQ4-AO13) -> 0.04347826087 | AQ10: =IF(AP10=0,0,(AP10*((LOG(AP10))/LOG(2)))) -> -0.1966766068 | AS10: =N10 -> 122 | AT10: =COUNTIF(L140:L165,AS10) -> 1 | AU10: =AT10/(AV4-AT13) -> 0.03846153846 | AV10: =IF(AU10=0,0,(AU10*((LOG(AU10))/LOG(2)))) -> -0.180786143
A11: 12 | B11: 420 | C11: 23 | D11: 428 | E11: 24 | F11: 434 | K11: 0 | L11: 122 | N11: 211 | O11: =COUNTIF($L$7:$L$500,N11) -> 3 | P11: =O11/$Q$4 -> 0.01886792453 | Q11: =IF(P11=0,0,(P11*((LOG(P11))/LOG(2)))) -> -0.1080739708 | T11: =N11 -> 211 | U11: =COUNTIF(L7:L33,T11) -> 1 | V11: =U11/(W4-U13) -> 0.03703703704 | W11: =IF(V11=0,0,(V11*((LOG(V11))/LOG(2)))) -> -0.1761069445 | Y11: =N11 -> 211 | Z11: =COUNTIF(L34:L59,Y11) -> 0 | AA11: =Z11/(AB4-Z13) -> 0 | AB11: =IF(AA11=0,0,(AA11*((LOG(AA11))/LOG(2)))) -> 0 | AD11: =N11 -> 211 | AE11: =COUNTIF(L60:L86,AD11) -> 0 | AF11: =AE11/(AG4-AE13) -> 0 | AG11: =IF(AF11=0,0,(AF11*((LOG(AF11))/LOG(2)))) -> 0 | AI11: =N11 -> 211 | AJ11: =COUNTIF(L87:L112,AI11) -> 1 | AK11: =AJ11/(AL4-AJ13) -> 0.05 | AL11: =IF(AK11=0,0,(AK11*((LOG(AK11))/LOG(2)))) -> -0.2160964047 | AN11: =N11 -> 211 | AO11: =COUNTIF(L113:L139,AN11) -> 1 | AP11: =AO11/(AQ4-AO13) -> 0.04347826087 | AQ11: =IF(AP11=0,0,(AP11*((LOG(AP11))/LOG(2)))) -> -0.1966766068 | AS11: =N11 -> 211 | AT11: =COUNTIF(L140:L165,AS11) -> 0 | AU11: =AT11/(AV4-AT13) -> 0 | AV11: =IF(AU11=0,0,(AU11*((LOG(AU11))/LOG(2)))) -> 0
A12: 21 | B12: 533 | C12: 21 | D12: 536 | E12: 22 | F12: 541 | K12: 0 | L12: 222 | N12: 212 | O12: =COUNTIF($L$7:$L$500,N12) -> 9 | P12: =O12/$Q$4 -> 0.05660377358 | Q12: =IF(P12=0,0,(P12*((LOG(P12))/LOG(2)))) -> -0.234507054 | T12: =N12 -> 212 | U12: =COUNTIF(L7:L33,T12) -> 2 | V12: =U12/(W4-U13) -> 0.07407407407 | W12: =IF(V12=0,0,(V12*((LOG(V12))/LOG(2)))) -> -0.278139815 | Y12: =N12 -> 212 | Z12: =COUNTIF(L34:L59,Y12) -> 3 | AA12: =Z12/(AB4-Z13) -> 0.1363636364 | AB12: =IF(AA12=0,0,(AA12*((LOG(AA12))/LOG(2)))) -> -0.3919730615 | AD12: =N12 -> 212 | AE12: =COUNTIF(L60:L86,AD12) -> 1 | AF12: =AE12/(AG4-AE13) -> 0.04347826087 | AG12: =IF(AF12=0,0,(AF12*((LOG(AF12))/LOG(2)))) -> -0.1966766068 | AI12: =N12 -> 212 | AJ12: =COUNTIF(L87:L112,AI12) -> 1 | AK12: =AJ12/(AL4-AJ13) -> 0.05 | AL12: =IF(AK12=0,0,(AK12*((LOG(AK12))/LOG(2)))) -> -0.2160964047 | AN12: =N12 -> 212 | AO12: =COUNTIF(L113:L139,AN12) -> 0 | AP12: =AO12/(AQ4-AO13) -> 0 | AQ12: =IF(AP12=0,0,(AP12*((LOG(AP12))/LOG(2)))) -> 0 | AS12: =N12 -> 212 | AT12: =COUNTIF(L140:L165,AS12) -> 2 | AU12: =AT12/(AV4-AT13) -> 0.07692307692 | AV12: =IF(AU12=0,0,(AU12*((LOG(AU12))/LOG(2)))) -> -0.2846492091
A13: 12 | B13: 634 | C13: 23 | D13: 638 | E13: 24 | F13: 642 | K13: 0 | L13: 122 | N13: 221 | O13: =COUNTIF($L$7:$L$500,N13) -> 18 | P13: =O13/$Q$4 -> 0.1132075472 | Q13: =IF(P13=0,0,(P13*((LOG(P13))/LOG(2)))) -> -0.3558065608 | T13: =N13 -> 221 | U13: =COUNTIF(L7:L33,T13) -> 0 | Y13: =N13 -> 221 | Z13: =COUNTIF(L34:L59,Y13) -> 4 | AD13: =N13 -> 221 | AE13: =COUNTIF(L60:L86,AD13) -> 4 | AI13: =N13 -> 221 | AJ13: =COUNTIF(L87:L112,AI13) -> 6 | AN13: =N13 -> 221 | AO13: =COUNTIF(L113:L139,AN13) -> 4 | AS13: =N13 -> 221 | AT13: =COUNTIF(L140:L165,AS13) -> 0
A14: 21 | B14: 742 | C14: 21 | D14: 746 | E14: 22 | F14: 748 | K14: 0 | L14: 222 | N14: 222 | O14: =COUNTIF($L$7:$L$500,N14) -> 112 | P14: =O14/$Q$4 -> 0.7044025157 | Q14: =IF(P14=0,0,(P14*((LOG(P14))/LOG(2)))) -> -0.3560952184 | T14: =N14 -> 222 | U14: =COUNTIF(L7:L33,T14) -> 20 | V14: =U14/(W4-U13) -> 0.7407407407 | W14: =IF(V14=0,0,(V14*((LOG(V14))/LOG(2)))) -> -0.3207106721 | Y14: =N14 -> 222 | Z14: =COUNTIF(L34:L59,Y14) -> 16 | AA14: =Z14/(AB4-Z13) -> 0.7272727273 | AB14: =IF(AA14=0,0,(AA14*((LOG(AA14))/LOG(2)))) -> -0.3341320863 | AD14: =N14 -> 222 | AE14: =COUNTIF(L60:L86,AD14) -> 18 | AF14: =AE14/(AG4-AE13) -> 0.7826086957 | AG14: =IF(AF14=0,0,(AF14*((LOG(AF14))/LOG(2)))) -> -0.2767593558 | AI14: =N14 -> 222 | AJ14: =COUNTIF(L87:L112,AI14) -> 15 | AK14: =AJ14/(AL4-AJ13) -> 0.75 | AL14: =IF(AK14=0,0,(AK14*((LOG(AK14))/LOG(2)))) -> -0.3112781245 | AN14: =N14 -> 222 | AO14: =COUNTIF(L113:L139,AN14) -> 21 | AP14: =AO14/(AQ4-AO13) -> 0.9130434783 | AQ14: =IF(AP14=0,0,(AP14*((LOG(AP14))/LOG(2)))) -> -0.1198319652 | AS14: =N14 -> 222 | AT14: =COUNTIF(L140:L165,AS14) -> 22 | AU14: =AT14/(AV4-AT13) -> 0.8461538462 | AV14: =IF(AU14=0,0,(AU14*((LOG(AU14))/LOG(2)))) -> -0.2039299303
A15: 21 | B15: 846 | C15: 21 | D15: 850 | E15: 22 | F15: 856 | K15: 0 | L15: 222 | P15: =SUM(P7:P14) -> 1 | Q15: =-SUM(Q7:Q14) -> 1.455210171 | V15: =SUM(V7:V14) -> 1 | W15: =-SUM(W7:W14) -> 1.183088913 | AA15: =SUM(AA7:AA14) -> 1 | AB15: =-SUM(AB7:AB14) -> 1.118078209 | AF15: =SUM(AF7:AF14) -> 1 | AG15: =-SUM(AG7:AG14) -> 0.9123163028 | AK15: =SUM(AK7:AK14) -> 1 | AL15: =-SUM(AL7:AL14) -> 1.291760148 | AP15: =SUM(AP7:AP14) -> 1 | AQ15: =-SUM(AQ7:AQ14) -> 0.5131851787 | AU15: =SUM(AU7:AU14) -> 1 | AV15: =-SUM(AV7:AV14) -> 0.8501514254
A16: 21 | B16: 955 | C16: 21 | D16: 960 | E16: 22 | F16: 965 | K16: 0 | L16: 222 | P16: U= | Q16: =Q15/(LOG(Q4)/LOG(2)) -> 0.198992679 | V16: U1= | W16: =W15/(LOG(W4)/LOG(2)) -> 0.2488153322 | AA16: U2= | AB16: =AB15/(LOG(AB4)/LOG(2)) -> 0.2378667266 | AF16: U3= | AG16: =AG15/(LOG(AG4)/LOG(2)) -> 0.1918691667 | AK16: U4= | AL16: =AL15/(LOG(AL4)/LOG(2)) -> 0.2748168737 | AP16: U5= | AQ16: =AQ15/(LOG(AQ4)/LOG(2)) -> 0.1079279328 | AU16: U6= | AV16: =AV15/(LOG(AV4)/LOG(2)) -> 0.1808663607
A17: 21 | B17: 1062 | C17: 21 | D17: 1069 | E17: 22 | F17: 1076 | K17: 0 | L17: 222
A18: 21 | B18: 1174 | C18: 21 | D18: 1176 | E18: 22 | F18: 1178 | K18: 0 | L18: 222
A19: 21 | B19: 1277 | C19: 21 | D19: 1280 | E19: 22 | F19: 1282 | K19: 0 | L19: 222 | N19: Total Target Seq
A20: 21 | B20: 1380 | C20: 12 | D20: 1383 | E20: 24 | F20: 1389 | K20: 0 | L20: 212 | N20: =COUNTIF(L7:L165,G3) -> 18 | P20: 27 | Q20: 26 | R20: 27 | S20: 26 | T20: 27 | U20: 26
A21: 21 | B21: 1485 | C21: 21 | D21: 1488 | E21: 22 | F21: 1494 | K21: 0 | L21: 222 | P21: % of reinforcement given in 6 equal intervals based on number of trials
A22: 21 | B22: 1592 | C22: 21 | D22: 1597 | E22: 22 | F22: 1602 | K22: 0 | L22: 222 | P22: %_1 | Q22: %_2 | R22: %_3 | S22: %_4 | T22: %_5 | U22: %_6
A23: 21 | B23: 1700 | C23: 21 | D23: 1703 | E23: 22 | F23: 1707 | K23: 0 | L23: 222 | O23: target sequence | P23: =$G$3 -> 221 | Q23: =$G$3 -> 221 | R23: =$G$3 -> 221 | S23: =$G$3 -> 221 | T23: =$G$3 -> 221 | U23: =$G$3 -> 221
A24: 21 | B24: 1806 | C24: 21 | D24: 1810 | E24: 22 | F24: 1814 | K24: 0 | L24: 222 | O24: total reinforcement | P24: =U13 -> 0 | Q24: =Z13 -> 4 | R24: =AE13 -> 4 | S24: =AJ13 -> 6 | T24: =AO13 -> 4 | U24: =AT13 -> 0
A25: 21 | B25: 1913 | C25: 21 | D25: 1920 | E25: 22 | F25: 1923 | K25: 0 | L25: 222 | O25: % target
A26: 21 | B26: 2023 | C26: 12 | D26: 2027 | E26: 13 | F26: 2032 | K26: 0 | L26: 211 | O26: CCRF
A27: 21 | B27: 2130 | C27: 21 | D27: 2134 | E27: 22 | F27: 2138 | K27: 0 | L27: 222 | O27: % CCRf
A28: 21 | B28: 2235 | C28: 21 | D28: 2238 | E28: 22 | F28: 2242 | K28: 0 | L28: 222 | O28: average response rate | P28: =F33/P20 -> 103.4074074 | Q28: =(F59-F33)/Q20 -> 127.1923077 | R28: =(F86-F59)/R20 -> 114.4074074 | S28: =(F112-F86)/S20 -> 127.3461538 | T28: =(F139-F112)/T20 -> 140.6666667 | U28: =(F165-F139)/U20 -> 109.5
A29: 21 | B29: 2341 | C29: 21 | D29: 2344 | E29: 22 | F29: 2347 | K29: 0 | L29: 222
A30: 21 | B30: 2446 | C30: 21 | D30: 2449 | E30: 22 | F30: 2453 | K30: 0 | L30: 222
A31: 21 | B31: 2551 | C31: 12 | D31: 2556 | E31: 24 | F31: 2558 | K31: 0 | L31: 212
A32: 21 | B32: 2658 | C32: 21 | D32: 2661 | E32: 22 | F32: 2663 | K32: 0 | L32: 222
A33: 12 | B33: 2776 | C33: 23 | D33: 2786 | E33: 24 | F33: 2792 | K33: 0 | L33: 122
A34: 12 | B34: 2886 | C34: 23 | D34: 2890 | E34: 24 | F34: 2896 | K34: 0 | L34: 122
A35: 21 | B35: 2994 | C35: 21 | D35: 3000 | E35: 22 | F35: 3005 | K35: 0 | L35: 222
A36: 21 | B36: 3103 | C36: 21 | D36: 3105 | E36: 22 | F36: 3111 | K36: 0 | L36: 222
A37: 21 | B37: 3208 | C37: 21 | D37: 3214 | E37: 22 | F37: 3217 | K37: 0 | L37: 222
A38: 21 | B38: 3315 | C38: 21 | D38: 3320 | E38: 11 | F38: 3324 | K38: 0 | L38: 221
A39: 21 | B39: 3439 | C39: 21 | D39: 3445 | E39: 22 | F39: 3458 | K39: 0 | L39: 222
A40: 21 | B40: 3594 | C40: 21 | D40: 3601 | E40: 22 | F40: 3611 | K40: 0 | L40: 222
A41: 21 | B41: 3712 | C41: 21 | D41: 3717 | E41: 22 | F41: 3725 | K41: 0 | L41: 222
A42: 12 | B42: 3818 | C42: 23 | D42: 3825 | E42: 24 | F42: 3829 | K42: 0 | L42: 122
A43: 21 | B43: 3926 | C43: 21 | D43: 3931 | E43: 22 | F43: 3936 | K43: 0 | L43: 222
A44: 21 | B44: 4033 | C44: 12 | D44: 4042 | E44: 24 | F44: 4043 | K44: 0 | L44: 212
A45: 21 | B45: 4140 | C45: 21 | D45: 4146 | E45: 22 | F45: 4151 | K45: 0 | L45: 222
A46: 21 | B46: 4249 | C46: 21 | D46: 4258 | E46: 22 | F46: 4263 | K46: 0 | L46: 222
A47: 21 | B47: 4360 | C47: 21 | D47: 4364 | E47: 22 | F47: 4368 | K47: 0 | L47: 222
A48: 21 | B48: 4466 | C48: 21 | D48: 4468 | E48: 11 | F48: 4473 | K48: 0 | L48: 221
A49: 21 | B49: 4645 | C49: 21 | D49: 4652 | E49: 22 | F49: 4665 | K49: 0 | L49: 222
A50: 21 | B50: 4796 | C50: 12 | D50: 4802 | E50: 24 | F50: 4807 | K50: 0 | L50: 212
A51: 12 | B51: 4939 | C51: 23 | D51: 4941 | E51: 24 | F51: 4956 | K51: 0 | L51: 122
A52: 21 | B52: 5053 | C52: 21 | D52: 5058 | E52: 11 | F52: 5062 | K52: 0 | L52: 221
A53: 21 | B53: 5226 | C53: 21 | D53: 5230 | E53: 11 | F53: 5233 | K53: 0 | L53: 221
A54: 21 | B54: 5456 | C54: 21 | D54: 5473 | E54: 22 | F54: 5482 | K54: 0 | L54: 222
A55: 21 | B55: 5641 | C55: 12 | D55: 5650 | E55: 24 | F55: 5658 | K55: 0 | L55: 212
A56: 21 | B56: 5755 | C56: 21 | D56: 5761 | E56: 22 | F56: 5766 | K56: 0 | L56: 222
A57: 21 | B57: 5864 | C57: 21 | D57: 5867 | E57: 22 | F57: 5873 | K57: 0 | L57: 222
A58: 21 | B58: 5969 | C58: 21 | D58: 5976 | E58: 22 | F58: 5981 | K58: 0 | L58: 222
A59: 21 | B59: 6088 | C59: 21 | D59: 6095 | E59: 22 | F59: 6099 | K59: 0 | L59: 222
A60: 12 | B60: 6193 | C60: 23 | D60: 6198 | E60: 24 | F60: 6201 | K60: 0 | L60: 122
A61: 21 | B61: 6298 | C61: 21 | D61: 6302 | E61: 22 | F61: 6305 | K61: 0 | L61: 222
A62: 21 | B62: 6403 | C62: 21 | D62: 6411 | E62: 11 | F62: 6415 | K62: 0 | L62: 221
A63: 21 | B63: 6524 | C63: 21 | D63: 6538 | E63: 22 | F63: 6544 | K63: 0 | L63: 222
A64: 12 | B64: 6636 | C64: 23 | D64: 6638 | E64: 24 | F64: 6643 | K64: 0 | L64: 122
A65: 21 | B65: 6742 | C65: 21 | D65: 6745 | E65: 22 | F65: 6751 | K65: 0 | L65: 222
A66: 21 | B66: 6847 | C66: 21 | D66: 6851 | E66: 22 | F66: 6855 | K66: 0 | L66: 222
A67: 21 | B67: 6951 | C67: 21 | D67: 6955 | E67: 22 | F67: 6959 | K67: 0 | L67: 222
A68: 21 | B68: 7056 | C68: 21 | D68: 7058 | E68: 11 | F68: 7060 | K68: 0 | L68: 221
A69: 21 | B69: 7219 | C69: 21 | D69: 7229 | E69: 22 | F69: 7236 | K69: 0 | L69: 222
A70: 21 | B70: 7338 | C70: 21 | D70: 7341 | E70: 11 | F70: 7346 | K70: 0 | L70: 221
A71: 21 | B71: 7498 | C71: 12 | D71: 7501 | E71: 24 | F71: 7510 | K71: 0 | L71: 212
A72: 21 | B72: 7607 | C72: 21 | D72: 7612 | E72: 22 | F72: 7617 | K72: 0 | L72: 222
A73: 21 | B73: 7714 | C73: 21 | D73: 7718 | E73: 22 | F73: 7722 | K73: 0 | L73: 222
A74: 21 | B74: 7818 | C74: 21 | D74: 7821 | E74: 22 | F74: 7823 | K74: 0 | L74: 222
A75: 21 | B75: 7924 | C75: 21 | D75: 7938 | E75: 22 | F75: 7946 | K75: 0 | L75: 222
A76: 21 | B76: 8041 | C76: 21 | D76: 8047 | E76: 22 | F76: 8051 | K76: 0 | L76: 222
A77: 12 | B77: 8145 | C77: 23 | D77: 8148 | E77: 24 | F77: 8151 | K77: 0 | L77: 122
A78: 21 | B78: 8248 | C78: 21 | D78: 8251 | E78: 22 | F78: 8260 | K78: 0 | L78: 222
A79: 21 | B79: 8357 | C79: 21 | D79: 8360 | E79: 22 | F79: 8366 | K79: 0 | L79: 222
A80: 21 | B80: 8462 | C80: 21 | D80: 8464 | E80: 22 | F80: 8469 | K80: 0 | L80: 222
A81: 21 | B81: 8566 | C81: 21 | D81: 8568 | E81: 22 | F81: 8572 | K81: 0 | L81: 222
A82: 21 | B82: 8669 | C82: 21 | D82: 8672 | E82: 22 | F82: 8678 | K82: 0 | L82: 222
A83: 21 | B83: 8775 | C83: 21 | D83: 8778 | E83: 11 | F83: 8784 | K83: 0 | L83: 221
A84: 21 | B84: 8946 | C84: 21 | D84: 8966 | E84: 22 | F84: 8975 | K84: 0 | L84: 222
A85: 21 | B85: 9066 | C85: 21 | D85: 9075 | E85: 22 | F85: 9087 | K85: 0 | L85: 222
A86: 12 | B86: 9182 | C86: 23 | D86: 9185 | E86: 24 | F86: 9188 | K86: 0 | L86: 122
A87: 12 | B87: 9281 | C87: 23 | D87: 9285 | E87: 13 | F87: 9291 | K87: 0 | L87: 121
A88: 21 | B88: 9388 | C88: 21 | D88: 9396 | E88: 11 | F88: 9399 | K88: 0 | L88: 221
A89: 21 | B89: 9540 | C89: 12 | D89: 9548 | E89: 13 | F89: 9558 | K89: 0 | L89: 211
A90: 21 | B90: 9650 | C90: 21 | D90: 9653 | E90: 22 | F90: 9658 | K90: 0 | L90: 222
A91: 21 | B91: 9754 | C91: 21 | D91: 9763 | E91: 22 | F91: 9767 | K91: 0 | L91: 222
A92: 21 | B92: 9864 | C92: 21 | D92: 9866 | E92: 22 | F92: 9871 | K92: 0 | L92: 222
A93: 21 | B93: 9969 | C93: 21 | D93: 9974 | E93: 22 | F93: 9982 | K93: 0 | L93: 222
A94: 21 | B94: 10079 | C94: 21 | D94: 10083 | E94: 22 | F94: 10092 | K94: 0 | L94: 222
A95: 21 | B95: 10188 | C95: 21 | D95: 10196 | E95: 11 | F95: 10199 | K95: 0 | L95: 221
A96: 21 | B96: 10347 | C96: 21 | D96: 10354 | E96: 11 | F96: 10360 | K96: 0 | L96: 221
A97: 21 | B97: 10592 | C97: 21 | D97: 10602 | E97: 22 | F97: 10608 | K97: 0 | L97: 222
A98: 21 | B98: 10739 | C98: 21 | D98: 10743 | E98: 22 | F98: 10753 | K98: 0 | L98: 222
A99: 21 | B99: 10850 | C99: 21 | D99: 10853 | E99: 11 | F99: 10856 | K99: 0 | L99: 221
A100: 21 | B100: 11024 | C100: 21 | D100: 11030 | E100: 22 | F100: 11041 | K100: 0 | L100: 222
A101: 21 | B101: 11142 | C101: 21 | D101: 11146 | E101: 22 | F101: 11151 | K101: 0 | L101: 222
A102: 21 | B102: 11247 | C102: 21 | D102: 11250 | E102: 22 | F102: 11255 | K102: 0 | L102: 222
A103: 21 | B103: 11351 | C103: 12 | D103: 11357 | E103: 24 | F103: 11362 | K103: 0 | L103: 212
A104: 21 | B104: 11459 | C104: 21 | D104: 11462 | E104: 22 | F104: 11471 | K104: 0 | L104: 222
A105: 21 | B105: 11568 | C105: 21 | D105: 11574 | E105: 22 | F105: 11578 | K105: 0 | L105: 222
A106: 12 | B106: 11672 | C106: 23 | D106: 11675 | E106: 24 | F106: 11687 | K106: 0 | L106: 122
A107: 21 | B107: 11784 | C107: 21 | D107: 11788 | E107: 22 | F107: 11791 | K107: 0 | L107: 222
A108: 21 | B108: 11884 | C108: 21 | D108: 11887 | E108: 11 | F108: 11897 | K108: 0 | L108: 221
A109: 21 | B109: 12073 | C109: 21 | D109: 12087 | E109: 22 | F109: 12098 | K109: 0 | L109: 222
A110: 12 | B110: 12195 | C110: 23 | D110: 12200 | E110: 24 | F110: 12206 | K110: 0 | L110: 122
A111: 21 | B111: 12302 | C111: 21 | D111: 12311 | E111: 11 | F111: 12315 | K111: 0 | L111: 221
A112: 21 | B112: 12485 | C112: 21 | D112: 12490 | E112: 22 | F112: 12499 | K112: 0 | L112: 222
A113: 21 | B113: 12593 | C113: 21 | D113: 12596 | E113: 11 | F113: 12603 | K113: 0 | L113: 221
A114: 21 | B114: 12959 | C114: 21 | D114: 12967 | E114: 22 | F114: 12973 | K114: 0 | L114: 222
A115: 21 | B115: 13073 | C115: 21 | D115: 13077 | E115: 22 | F115: 13085 | K115: 0 | L115: 222
A116: 21 | B116: 13182 | C116: 21 | D116: 13188 | E116: 22 | F116: 13195 | K116: 0 | L116: 222
A117: 21 | B117: 13292 | C117: 21 | D117: 13302 | E117: 22 | F117: 13313 | K117: 0 | L117: 222
A118: 21 | B118: 13411 | C118: 21 | D118: 13414 | E118: 22 | F118: 13420 | K118: 0 | L118: 222
A119: 21 | B119: 13516 | C119: 21 | D119: 13520 | E119: 22 | F119: 13524 | K119: 0 | L119: 222
A120: 21 | B120: 13621 | C120: 21 | D120: 13629 | E120: 22 | F120: 13634 | K120: 0 | L120: 222
A121: 21 | B121: 13737 | C121: 21 | D121: 13742 | E121: 22 | F121: 13746 | K121: 0 | L121: 222
A122: 21 | B122: 13842 | C122: 21 | D122: 13846 | E122: 22 | F122: 13850 | K122: 0 | L122: 222
A123: 21 | B123: 13947 | C123: 21 | D123: 13951 | E123: 22 | F123: 13957 | K123: 0 | L123: 222
A124: 21 | B124: 14054 | C124: 21 | D124: 14058 | E124: 22 | F124: 14063 | K124: 0 | L124: 222
A125: 21 | B125: 14161 | C125: 21 | D125: 14164 | E125: 22 | F125: 14170 | K125: 0 | L125: 222
A126: 21 | B126: 14267 | C126: 21 | D126: 14270 | E126: 22 | F126: 14275 | K126: 0 | L126: 222
A127: 21 | B127: 14373 | C127: 21 | D127: 14376 | E127: 11 | F127: 14381 | K127: 0 | L127: 221
A128: 21 | B128: 14585 | C128: 21 | D128: 14592 | E128: 22 | F128: 14599 | K128: 0 | L128: 222
A129: 21 | B129: 14696 | C129: 21 | D129: 14700 | E129: 22 | F129: 14704 | K129: 0 | L129: 222
A130: 21 | B130: 14829 | C130: 21 | D130: 14835 | E130: 22 | F130: 14839 | K130: 0 | L130: 222
A131: 21 | B131: 14936 | C131: 21 | D131: 14940 | E131: 11 | F131: 14942 | K131: 0 | L131: 221
A132: 21 | B132: 15157 | C132: 21 | D132: 15162 | E132: 11 | F132: 15165 | K132: 0 | L132: 221
A133: 12 | B133: 15605 | C133: 23 | D133: 15614 | E133: 24 | F133: 15620 | K133: 0 | L133: 122
A134: 21 | B134: 15716 | C134: 21 | D134: 15719 | E134: 22 | F134: 15723 | K134: 0 | L134: 222
A135: 21 | B135: 15820 | C135: 21 | D135: 15823 | E135: 22 | F135: 15830 | K135: 0 | L135: 222
A136: 21 | B136: 15928 | C136: 12 | D136: 15932 | E136: 13 | F136: 15936 | K136: 0 | L136: 211
A137: 21 | B137: 16036 | C137: 21 | D137: 16042 | E137: 22 | F137: 16048 | K137: 0 | L137: 222
A138: 21 | B138: 16181 | C138: 21 | D138: 16188 | E138: 22 | F138: 16191 | K138: 0 | L138: 222
A139: 21 | B139: 16290 | C139: 21 | D139: 16293 | E139: 22 | F139: 16297 | K139: 0 | L139: 222
A140: 21 | B140: 16395 | C140: 21 | D140: 16399 | E140: 22 | F140: 16405 | K140: 0 | L140: 222
A141: 21 | B141: 16503 | C141: 21 | D141: 16511 | E141: 22 | F141: 16516 | K141: 0 | L141: 222
A142: 12 | B142: 16610 | C142: 23 | D142: 16614 | E142: 13 | F142: 16620 | K142: 0 | L142: 121
A143: 21 | B143: 16717 | C143: 21 | D143: 16722 | E143: 22 | F143: 16730 | K143: 0 | L143: 222
A144: 21 | B144: 16828 | C144: 21 | D144: 16830 | E144: 22 | F144: 16832 | K144: 0 | L144: 222
A145: 21 | B145: 16927 | C145: 21 | D145: 16929 | E145: 22 | F145: 16935 | K145: 0 | L145: 222
A146: 12 | B146: 17046 | C146: 23 | D146: 17051 | E146: 24 | F146: 17059 | K146: 0 | L146: 122
A147: 21 | B147: 17152 | C147: 12 | D147: 17161 | E147: 24 | F147: 17169 | K147: 0 | L147: 212
A148: 21 | B148: 17265 | C148: 21 | D148: 17270 | E148: 22 | F148: 17275 | K148: 0 | L148: 222
A149: 21 | B149: 17372 | C149: 21 | D149: 17374 | E149: 22 | F149: 17380 | K149: 0 | L149: 222
A150: 21 | B150: 17477 | C150: 21 | D150: 17481 | E150: 22 | F150: 17484 | K150: 0 | L150: 222
A151: 21 | B151: 17581 | C151: 21 | D151: 17590 | E151: 22 | F151: 17595 | K151: 0 | L151: 222
A152: 21 | B152: 17687 | C152: 21 | D152: 17691 | E152: 22 | F152: 17699 | K152: 0 | L152: 222
A153: 21 | B153: 17796 | C153: 21 | D153: 17805 | E153: 22 | F153: 17812 | K153: 0 | L153: 222
A154: 21 | B154: 17910 | C154: 21 | D154: 17912 | E154: 22 | F154: 17917 | K154: 0 | L154: 222
A155: 21 | B155: 18012 | C155: 21 | D155: 18016 | E155: 22 | F155: 18019 | K155: 0 | L155: 222
A156: 21 | B156: 18116 | C156: 21 | D156: 18119 | E156: 22 | F156: 18124 | K156: 0 | L156: 222
A157: 21 | B157: 18221 | C157: 12 | D157: 18230 | E157: 24 | F157: 18237 | K157: 0 | L157: 212
A158: 21 | B158: 18334 | C158: 21 | D158: 18340 | E158: 22 | F158: 18346 | K158: 0 | L158: 222
A159: 21 | B159: 18444 | C159: 21 | D159: 18448 | E159: 22 | F159: 18456 | K159: 0 | L159: 222
A160: 21 | B160: 18554 | C160: 21 | D160: 18562 | E160: 22 | F160: 18566 | K160: 0 | L160: 222
A161: 21 | B161: 18663 | C161: 21 | D161: 18665 | E161: 22 | F161: 18670 | K161: 0 | L161: 222
A162: 21 | B162: 18768 | C162: 21 | D162: 18776 | E162: 22 | F162: 18780 | K162: 0 | L162: 222
A163: 21 | B163: 18902 | C163: 21 | D163: 18915 | E163: 22 | F163: 18921 | K163: 0 | L163: 222
A164: 21 | B164: 19019 | C164: 21 | D164: 19028 | E164: 22 | F164: 19035 | K164: 0 | L164: 222
A165: 21 | B165: 19132 | C165: 21 | D165: 19138 | E165: 22 | F165: 19144 | K165: 0 | L165: 222

Sheet !M926930.Gus
A1: Report for:!M926930.Gus
A2: Date: | B2: <date>
A3: Hen: | B3: <hen> | F3: Correct Sequence | G3: =Start!J2 -> 221 | P3: Total Sequences in Data | Q3: =4994-COUNTBLANK(L7:L5000) -> 103 | V3: Total Sequences in Block Data | W3: =COUNTA(L7:L23) -> 17 | AA3: Total Sequences in Block Data | AB3: =COUNTA(L24:L40) -> 17 | AF3: Total Sequences in Block Data | AG3: =COUNTA(L41:L58) -> 18 | AK3: Total Sequences in Block Data | AL3: =COUNTA(L59:L75) -> 17 | AP3: Total Sequences in Block Data | AQ3: =COUNTA(L76:L92) -> 17 | AU3: Total Sequences in Block Data | AV3: =COUNTA(L93:L109) -> 17
P4: Total Sequences in Summary | Q4: =SUM(O7:O14) -> 103 | V4: Total Sequences in Block Summary | W4: =SUM(U7:U14) -> 17 | AA4: Total Sequences in Block Summary | AB4: =SUM(Z7:Z14) -> 17 | AF4: Total Sequences in Block Summary | AG4: =SUM(AE7:AE14) -> 18 | AK4: Total Sequences in Block Summary | AL4: =SUM(AJ7:AJ14) -> 17 | AP4: Total Sequences in Block Summary | AQ4: =SUM(AO7:AO14) -> 17 | AU4: Total Sequences in Block Summary | AV4: =SUM(AT7:AT14) -> 17
T5: Block 1 | Y5: Block 2 | AD5: Block 3 | AI5: Block 4 | AN5: Block 5 | AS5: Block 6
A6: Sequence Component 1 | B6: Time 1 | C6: Sequence Component 2 | D6: Time 2 | E6: Sequence Component 3 | F6: Time 3 | G6: Sequence Component 4 | H6: Time 4 | I6: Sequence Component 5 | J6: Time 5 | K6: Correct? 0=No 1=Yes | L6: Sequence | N6: Frequency | P6: Relative Frequency | Q6: Variability | T6: Frequency | V6: Relative Frequency | W6: Variability | Y6: Frequency | AA6: Relative Frequency | AB6: Variability | AD6: Frequency | AF6: Relative Frequency | AG6: Variability | AI6: Frequency | AK6: Relative Frequency | AL6: Variability | AN6: Frequency | AP6: Relative Frequency | AQ6: Variability | AS6: Frequency | AU6: Relative Frequency | AV6: Variability
A7: 21 | B7: 166 | C7: 21 | D7: 176 | E7: 22 | F7: 179 | K7: 0 | L7: 222 | N7: 111 | O7: =COUNTIF($L$7:$L$500,N7) -> 0 | P7: =O7/$Q$4 -> 0 | Q7: =IF(P7=0,0,(P7*((LOG(P7))/LOG(2)))) -> 0 | T7: =N7 -> 111 | U7: =COUNTIF(L7:L23,T7) -> 0 | V7: =U7/(W4-U13) -> 0 | W7: =IF(V7=0,0,(V7*((LOG(V7))/LOG(2)))) -> 0 | Y7: =N7 -> 111 | Z7: =COUNTIF(L24:L40,Y7) -> 0 | AA7: =Z7/(AB4-Z13) -> 0 | AB7: =IF(AA7=0,0,(AA7*((LOG(AA7))/LOG(2)))) -> 0 | AD7: =N7 -> 111 | AE7: =COUNTIF(L41:L58,AD7) -> 0 | AF7: =AE7/(AG4-AE13) -> 0 | AG7: =IF(AF7=0,0,(AF7*((LOG(AF7))/LOG(2)))) -> 0 | AI7: =N7 -> 111 | AJ7: =COUNTIF(L59:L75,AI7) -> 0 | AK7: =AJ7/(AL4-AJ13) -> 0 | AL7: =IF(AK7=0,0,(AK7*((LOG(AK7))/LOG(2)))) -> 0 | AN7: =N7 -> 111 | AO7: =COUNTIF(L76:L92,AN7) -> 0 | AP7: =AO7/(AQ4-AO13) -> 0 | AQ7: =IF(AP7=0,0,(AP7*((LOG(AP7))/LOG(2)))) -> 0 | AS7: =N7 -> 111 | AT7: =COUNTIF(L93:L109,AS7) -> 0 | AU7: =AT7/(AV4-AT13) -> 0 | AV7: =IF(AU7=0,0,(AU7*((LOG(AU7))/LOG(2)))) -> 0
A8: 12 | B8: 278 | C8: 23 | D8: 287 | E8: 24 | F8: 299 | K8: 0 | L8: 122 | N8: 112 | O8: =COUNTIF($L$7:$L$500,N8) -> 0 | P8: =O8/$Q$4 -> 0 | Q8: =IF(P8=0,0,(P8*((LOG(P8))/LOG(2)))) -> 0 | T8: =N8 -> 112 | U8: =COUNTIF(L7:L23,T8) -> 0 | V8: =U8/(W4-U13) -> 0 | W8: =IF(V8=0,0,(V8*((LOG(V8))/LOG(2)))) -> 0 | Y8: =N8 -> 112 | Z8: =COUNTIF(L24:L40,Y8) -> 0 | AA8: =Z8/(AB4-Z13) -> 0 | AB8: =IF(AA8=0,0,(AA8*((LOG(AA8))/LOG(2)))) -> 0 | AD8: =N8 -> 112 | AE8: =COUNTIF(L41:L58,AD8) -> 0 | AF8: =AE8/(AG4-AE13) -> 0 | AG8: =IF(AF8=0,0,(AF8*((LOG(AF8))/LOG(2)))) -> 0 | AI8: =N8 -> 112 | AJ8: =COUNTIF(L59:L75,AI8) -> 0 | AK8: =AJ8/(AL4-AJ13) -> 0 | AL8: =IF(AK8=0,0,(AK8*((LOG(AK8))/LOG(2)))) -> 0 | AN8: =N8 -> 112 | AO8: =COUNTIF(L76:L92,AN8) -> 0 | AP8: =AO8/(AQ4-AO13) -> 0 | AQ8: =IF(AP8=0,0,(AP8*((LOG(AP8))/LOG(2)))) -> 0 | AS8: =N8 -> 112 | AT8: =COUNTIF(L93:L109,AS8) -> 0 | AU8: =AT8/(AV4-AT13) -> 0 | AV8: =IF(AU8=0,0,(AU8*((LOG(AU8))/LOG(2)))) -> 0
A9: 21 | B9: 394 | C9: 21 | D9: 404 | E9: 22 | F9: 409 | K9: 0 | L9: 222 | N9: 121 | O9: =COUNTIF($L$7:$L$500,N9) -> 1 | P9: =O9/$Q$4 -> 0.009708737864 | Q9: =IF(P9=0,0,(P9*((LOG(P9))/LOG(2)))) -> -0.06491748085 | T9: =N9 -> 121 | U9: =COUNTIF(L7:L23,T9) -> 0 | V9: =U9/(W4-U13) -> 0 | W9: =IF(V9=0,0,(V9*((LOG(V9))/LOG(2)))) -> 0 | Y9: =N9 -> 121 | Z9: =COUNTIF(L24:L40,Y9) -> 1 | AA9: =Z9/(AB4-Z13) -> 0.06666666667 | AB9: =IF(AA9=0,0,(AA9*((LOG(AA9))/LOG(2)))) -> -0.260459373 | AD9: =N9 -> 121 | AE9: =COUNTIF(L41:L58,AD9) -> 0 | AF9: =AE9/(AG4-AE13) -> 0 | AG9: =IF(AF9=0,0,(AF9*((LOG(AF9))/LOG(2)))) -> 0 | AI9: =N9 -> 121 | AJ9: =COUNTIF(L59:L75,AI9) -> 0 | AK9: =AJ9/(AL4-AJ13) -> 0 | AL9: =IF(AK9=0,0,(AK9*((LOG(AK9))/LOG(2)))) -> 0 | AN9: =N9 -> 121 | AO9: =COUNTIF(L76:L92,AN9) -> 0 | AP9: =AO9/(AQ4-AO13) -> 0 | AQ9: =IF(AP9=0,0,(AP9*((LOG(AP9))/LOG(2)))) -> 0 | AS9: =N9 -> 121 | AT9: =COUNTIF(L93:L109,AS9) -> 0 | AU9: =AT9/(AV4-AT13) -> 0 | AV9: =IF(AU9=0,0,(AU9*((LOG(AU9))/LOG(2)))) -> 0
A10: 21 | B10: 697 | C10: 21 | D10: 703 | E10: 22 | F10: 709 | K10: 0 | L10: 222 | N10: 122 | O10: =COUNTIF($L$7:$L$500,N10) -> 13 | P10: =O10/$Q$4 -> 0.1262135922 | Q10: =IF(P10=0,0,(P10*((LOG(P10))/LOG(2)))) -> -0.3768814613 | T10: =N10 -> 122 | U10: =COUNTIF(L7:L23,T10) -> 4 | V10: =U10/(W4-U13) -> 0.25 | W10: =IF(V10=0,0,(V10*((LOG(V10))/LOG(2)))) -> -0.5 | Y10: =N10 -> 122 | Z10: =COUNTIF(L24:L40,Y10) -> 3 | AA10: =Z10/(AB4-Z13) -> 0.2 | AB10: =IF(AA10=0,0,(AA10*((LOG(AA10))/LOG(2)))) -> -0.464385619 | AD10: =N10 -> 122 | AE10: =COUNTIF(L41:L58,AD10) -> 1 | AF10: =AE10/(AG4-AE13) -> 0.0625 | AG10: =IF(AF10=0,0,(AF10*((LOG(AF10))/LOG(2)))) -> -0.25 | AI10: =N10 -> 122 | AJ10: =COUNTIF(L59:L75,AI10) -> 3 | AK10: =AJ10/(AL4-AJ13) -> 0.2 | AL10: =IF(AK10=0,0,(AK10*((LOG(AK10))/LOG(2)))) -> -0.464385619 | AN10: =N10 -> 122 | AO10: =COUNTIF(L76:L92,AN10) -> 1 | AP10: =AO10/(AQ4-AO13) -> 0.07142857143 | AQ10: =IF(AP10=0,0,(AP10*((LOG(AP10))/LOG(2)))) -> -0.271953923 | AS10: =N10 -> 122 | AT10: =COUNTIF(L93:L109,AS10) -> 1 | AU10: =AT10/(AV4-AT13) -> 0.06666666667 | AV10: =IF(AU10=0,0,(AU10*((LOG(AU10))/LOG(2)))) -> -0.260459373
A11: 21 | B11: 809 | C11: 21 | D11: 818 | E11: 22 | F11: 823 | K11: 0 | L11: 222 | N11: 211 | O11: =COUNTIF($L$7:$L$500,N11) -> 0 | P11: =O11/$Q$4 -> 0 | Q11: =IF(P11=0,0,(P11*((LOG(P11))/LOG(2)))) -> 0 | T11: =N11 -> 211 | U11: =COUNTIF(L7:L23,T11) -> 0 | V11: =U11/(W4-U13) -> 0 | W11: =IF(V11=0,0,(V11*((LOG(V11))/LOG(2)))) -> 0 | Y11: =N11 -> 211 | Z11: =COUNTIF(L24:L40,Y11) -> 0 | AA11: =Z11/(AB4-Z13) -> 0 | AB11: =IF(AA11=0,0,(AA11*((LOG(AA11))/LOG(2)))) -> 0 | AD11: =N11 -> 211 | AE11: =COUNTIF(L41:L58,AD11) -> 0 | AF11: =AE11/(AG4-AE13) -> 0 | AG11: =IF(AF11=0,0,(AF11*((LOG(AF11))/LOG(2)))) -> 0 | AI11: =N11 -> 211 | AJ11: =COUNTIF(L59:L75,AI11) -> 0 | AK11: =AJ11/(AL4-AJ13) -> 0 | AL11: =IF(AK11=0,0,(AK11*((LOG(AK11))/LOG(2)))) -> 0 | AN11: =N11 -> 211 | AO11: =COUNTIF(L76:L92,AN11) -> 0 | AP11: =AO11/(AQ4-AO13) -> 0 | AQ11: =IF(AP11=0,0,(AP11*((LOG(AP11))/LOG(2)))) -> 0 | AS11: =N11 -> 211 | AT11: =COUNTIF(L93:L109,AS11) -> 0 | AU11: =AT11/(AV4-AT13) -> 0 | AV11: =IF(AU11=0,0,(AU11*((LOG(AU11))/LOG(2)))) -> 0
A12: 12 | B12: 916 | C12: 23 | D12: 921 | E12: 24 | F12: 927 | K12: 0 | L12: 122 | N12: 212 | O12: =COUNTIF($L$7:$L$500,N12) -> 7 | P12: =O12/$Q$4 -> 0.06796116505 | Q12: =IF(P12=0,0,(P12*((LOG(P12))/LOG(2)))) -> -0.2636312547 | T12: =N12 -> 212 | U12: =COUNTIF(L7:L23,T12) -> 0 | V12: =U12/(W4-U13) -> 0 | W12: =IF(V12=0,0,(V12*((LOG(V12))/LOG(2)))) -> 0 | Y12: =N12 -> 212 | Z12: =COUNTIF(L24:L40,Y12) -> 2 | AA12: =Z12/(AB4-Z13) -> 0.1333333333 | AB12: =IF(AA12=0,0,(AA12*((LOG(AA12))/LOG(2)))) -> -0.3875854127 | AD12: =N12 -> 212 | AE12: =COUNTIF(L41:L58,AD12) -> 0 | AF12: =AE12/(AG4-AE13) -> 0 | AG12: =IF(AF12=0,0,(AF12*((LOG(AF12))/LOG(2)))) -> 0 | AI12: =N12 -> 212 | AJ12: =COUNTIF(L59:L75,AI12) -> 1 | AK12: =AJ12/(AL4-AJ13) -> 0.06666666667 | AL12: =IF(AK12=0,0,(AK12*((LOG(AK12))/LOG(2)))) -> -0.260459373 | AN12: =N12 -> 212 | AO12: =COUNTIF(L76:L92,AN12) -> 2 | AP12: =AO12/(AQ4-AO13) -> 0.1428571429 | AQ12: =IF(AP12=0,0,(AP12*((LOG(AP12))/LOG(2)))) -> -0.4010507032 | AS12: =N12 -> 212 | AT12: =COUNTIF(L93:L109,AS12) -> 2 | AU12: =AT12/(AV4-AT13) -> 0.1333333333 | AV12: =IF(AU12=0,0,(AU12*((LOG(AU12))/LOG(2)))) -> -0.3875854127
A13: 21 | B13: 1024 | C13: 21 | D13: 1027 | E13: 22 | F13: 1032 | K13: 0 | L13: 222 | N13: 221 | O13: =COUNTIF($L$7:$L$500,N13) -> 12 | P13: =O13/$Q$4 -> 0.1165048544 | Q13: =IF(P13=0,0,(P13*((LOG(P13))/LOG(2)))) -> -0.3613442361 | T13: =N13 -> 221 | U13: =COUNTIF(L7:L23,T13) -> 1 | Y13: =N13 -> 221 | Z13: =COUNTIF(L24:L40,Y13) -> 2 | AD13: =N13 -> 221 | AE13: =COUNTIF(L41:L58,AD13) -> 2 | AI13: =N13 -> 221 | AJ13: =COUNTIF(L59:L75,AI13) -> 2 | AN13: =N13 -> 221 | AO13: =COUNTIF(L76:L92,AN13) -> 3 | AS13: =N13 -> 221 | AT13: =COUNTIF(L93:L109,AS13) -> 2
A14: 21 | B14: 1153 | C14: 21 | D14: 1182 | E14: 22 | F14: 1188 | K14: 0 | L14: 222 | N14: 222 | O14: =COUNTIF($L$7:$L$500,N14) -> 70 | P14: =O14/$Q$4 -> 0.6796116505 | Q14: =IF(P14=0,0,(P14*((LOG(P14))/LOG(2)))) -> -0.3786915118 | T14: =N14 -> 222 | U14: =COUNTIF(L7:L23,T14) -> 12 | V14: =U14/(W4-U13) -> 0.75 | W14: =IF(V14=0,0,(V14*((LOG(V14))/LOG(2)))) -> -0.3112781245 | Y14: =N14 -> 222 | Z14: =COUNTIF(L24:L40,Y14) -> 9 | AA14: =Z14/(AB4-Z13) -> 0.6 | AB14: =IF(AA14=0,0,(AA14*((LOG(AA14))/LOG(2)))) -> -0.4421793565 | AD14: =N14 -> 222 | AE14: =COUNTIF(L41:L58,AD14) -> 15 | AF14: =AE14/(AG4-AE13) -> 0.9375 | AG14: =IF(AF14=0,0,(AF14*((LOG(AF14))/LOG(2)))) -> -0.08729006662 | AI14: =N14 -> 222 | AJ14: =COUNTIF(L59:L75,AI14) -> 11 | AK14: =AJ14/(AL4-AJ13) -> 0.7333333333 | AL14: =IF(AK14=0,0,(AK14*((LOG(AK14))/LOG(2)))) -> -0.3281365831 | AN14: =N14 -> 222 | AO14: =COUNTIF(L76:L92,AN14) -> 11 | AP14: =AO14/(AQ4-AO13) -> 0.7857142857 | AQ14: =IF(AP14=0,0,(AP14*((LOG(AP14))/LOG(2)))) -> -0.2733683098 | AS14: =N14 -> 222 | AT14: =COUNTIF(L93:L109,AS14) -> 12 | AU14: =AT14/(AV4-AT13) -> 0.8 | AV14: =IF(AU14=0,0,(AU14*((LOG(AU14))/LOG(2)))) -> -0.2575424759
A15: 21 | B15: 1285 | C15: 21 | D15: 1289 | E15: 22 | F15: 1293 | K15: 0 | L15: 222 | P15: =SUM(P7:P14) -> 1 | Q15: =-SUM(Q7:Q14) -> 1.445465945 | V15: =SUM(V7:V14) -> 1 | W15: =-SUM(W7:W14) -> 0.8112781245 | AA15: =SUM(AA7:AA14) -> 1 | AB15: =-SUM(AB7:AB14) -> 1.554609761 | AF15: =SUM(AF7:AF14) -> 1 | AG15: =-SUM(AG7:AG14) -> 0.3372900666 | AK15: =SUM(AK7:AK14) -> 1 | AL15: =-SUM(AL7:AL14) -> 1.052981575 | AP15: =SUM(AP7:AP14) -> 1 | AQ15: =-SUM(AQ7:AQ14) -> 0.946372936 | AU15: =SUM(AU7:AU14) -> 1 | AV15: =-SUM(AV7:AV14) -> 0.9055872617
A16: 21 | B16: 1393 | C16: 21 | D16: 1399 | E16: 22 | F16: 1409 | K16: 0 | L16: 222 | P16: U= | Q16: =Q15/(LOG(Q4)/LOG(2)) -> 0.2161767488 | V16: U1= | W16: =W15/(LOG(W4)/LOG(2)) -> 0.198479633 | AA16: U2= | AB16: =AB15/(LOG(AB4)/LOG(2)) -> 0.3803361209 | AF16: U3= | AG16: =AG15/(LOG(AG4)/LOG(2)) -> 0.08088636282 | AK16: U4= | AL16: =AL15/(LOG(AL4)/LOG(2)) -> 0.2576125132 | AP16: U5= | AQ16: =AQ15/(LOG(AQ4)/LOG(2)) -> 0.2315306518 | AU16: U6= | AV16: =AV15/(LOG(AV4)/LOG(2)) -> 0.2215524145
A17: 12 | B17: 1500 | C17: 23 | D17: 1505 | E17: 24 | F17: 1509 | K17: 0 | L17: 122
A18: 21 | B18: 1670 | C18: 21 | D18: 1675 | E18: 22 | F18: 1680 | K18: 0 | L18: 222
A19: 21 | B19: 1777 | C19: 21 | D19: 1779 | E19: 22 | F19: 1783 | K19: 0 | L19: 222 | N19: Total Target Seq
A20: 12 | B20: 1877 | C20: 23 | D20: 1880 | E20: 24 | F20: 1890 | K20: 0 | L20: 122 | N20: =COUNTIF(L7:L109,G3) -> 12 | P20: 17 | Q20: 17 | R20: 18 | S20: 17 | T20: 17 | U20: 17
A21: 21 | B21: 1987 | C21: 21 | D21: 1993 | E21: 11 | F21: 1998 | K21: 0 | L21: 221 | P21: % of reinforcement given in 6 equal intervals based on number of trials
A22: 21 | B22: 2158 | C22: 21 | D22: 2168 | E22: 22 | F22: 2176 | K22: 0 | L22: 222 | P22: %_1 | Q22: %_2 | R22: %_3 | S22: %_4 | T22: %_5 | U22: %_6
A23: 21 | B23: 2275 | C23: 21 | D23: 2281 | E23: 22 | F23: 2289 | K23: 0 | L23: 222 | O23: target sequence | P23: =$G$3 -> 221 | Q23: =$G$3 -> 221 | R23: =$G$3 -> 221 | S23: =$G$3 -> 221 | T23: =$G$3 -> 221 | U23: =$G$3 -> 221
A24: 21 | B24: 2397 | C24: 21 | D24: 2401 | E24: 11 | F24: 2405 | K24: 0 | L24: 221 | O24: total reinforcement | P24: =U13 -> 1 | Q24: =Z13 -> 2 | R24: =AE13 -> 2 | S24: =AJ13 -> 2 | T24: =AO13 -> 3 | U24: =AT13 -> 2
A25: 21 | B25: 2531 | C25: 21 | D25: 2535 | E25: 22 | F25: 2545 | K25: 0 | L25: 222 | O25: % target
A26: 21 | B26: 2643 | C26: 21 | D26: 2653 | E26: 11 | F26: 2656 | K26: 0 | L26: 221 | O26: CCRF
A27: 21 | B27: 2800 | C27: 12 | D27: 2812 | E27: 24 | F27: 2814 | K27: 0 | L27: 212 | O27: % CCRf
A28: 21 | B28: 2936 | C28: 21 | D28: 2947 | E28: 22 | F28: 2953 | K28: 0 | L28: 222 | O28: average response rate | P28: =F23/P20 -> 134.6470588 | Q28: =(F40-F23)/Q20 -> 120.5882353 | R28: =(F58-F40)/R20 -> 118.7222222 | S28: =(F75-F58)/S20 -> 119.5882353 | T28: =(F92-F75)/T20 -> 131.6470588 | U28: =(F109-F92)/U20 -> 122.1176471
A29: 21 | B29: 3051 | C29: 21 | D29: 3054 | E29: 22 | F29: 3056 | K29: 0 | L29: 222
A30: 21 | B30: 3158 | C30: 21 | D30: 3164 | E30: 22 | F30: 3168 | K30: 0 | L30: 222
A31: 21 | B31: 3266 | C31: 21 | D31: 3268 | E31: 22 | F31: 3273 | K31: 0 | L31: 222
A32: 21 | B32: 3369 | C32: 21 | D32: 3373 | E32: 22 | F32: 3376 | K32: 0 | L32: 222
A33: 12 | B33: 3505 | C33: 23 | D33: 3529 | E33: 24 | F33: 3532 | K33: 0 | L33: 122
A34: 12 | B34: 3683 | C34: 23 | D34: 3688 | E34: 24 | F34: 3697 | K34: 0 | L34: 122
A35: 21 | B35: 3795 | C35: 21 | D35: 3800 | E35: 22 | F35: 3806 | K35: 0 | L35: 222
A36: 21 | B36: 3902 | C36: 21 | D36: 3906 | E36: 22 | F36: 3912 | K36: 0 | L36: 222
A37: 21 | B37: 4010 | C37: 12 | D37: 4017 | E37: 24 | F37: 4023 | K37: 0 | L37: 212
A38: 12 | B38: 4117 | C38: 23 | D38: 4123 | E38: 13 | F38: 4129 | K38: 0 | L38: 121
A39: 21 | B39: 4227 | C39: 21 | D39: 4233 | E39: 22 | F39: 4238 | K39: 0 | L39: 222
A40: 12 | B40: 4332 | C40: 23 | D40: 4336 | E40: 24 | F40: 4339 | K40: 0 | L40: 122
A41: 21 | B41: 4431 | C41: 21 | D41: 4439 | E41: 22 | F41: 4441 | K41: 0 | L41: 222
A42: 21 | B42: 4541 | C42: 21 | D42: 4546 | E42: 22 | F42: 4549 | K42: 0 | L42: 222
A43: 21 | B43: 4646 | C43: 21 | D43: 4654 | E43: 22 | F43: 4659 | K43: 0 | L43: 222
A44: 21 | B44: 4755 | C44: 21 | D44: 4758 | E44: 22 | F44: 4763 | K44: 0 | L44: 222
A45: 21 | B45: 4861 | C45: 21 | D45: 4865 | E45: 22 | F45: 4870 | K45: 0 | L45: 222
A46: 21 | B46: 4965 | C46: 21 | D46: 4969 | E46: 22 | F46: 4973 | K46: 0 | L46: 222
A47: 12 | B47: 5136 | C47: 23 | D47: 5149 | E47: 24 | F47: 5153 | K47: 0 | L47: 122
A48: 21 | B48: 5250 | C48: 21 | D48: 5258 | E48: 22 | F48: 5262 | K48: 0 | L48: 222
A49: 21 | B49: 5360 | C49: 21 | D49: 5364 | E49: 22 | F49: 5374 | K49: 0 | L49: 222
A50: 21 | B50: 5471 | C50: 21 | D50: 5476 | E50: 22 | F50: 5481 | K50: 0 | L50: 222
A51: 21 | B51: 5579 | C51: 21 | D51: 5582 | E51: 11 | F51: 5585 | K51: 0 | L51: 221
A52: 21 | B52: 5779 | C52: 21 | D52: 5787 | E52: 22 | F52: 5792 | K52: 0 | L52: 222
A53: 21 | B53: 5892 | C53: 21 | D53: 5896 | E53: 22 | F53: 5903 | K53: 0 | L53: 222
A54: 21 | B54: 6000 | C54: 21 | D54: 6003 | E54: 22 | F54: 6009 | K54: 0 | L54: 222
A55: 21 | B55: 6105 | C55: 21 | D55: 6109 | E55: 22 | F55: 6114 | K55: 0 | L55: 222
A56: 21 | B56: 6210 | C56: 21 | D56: 6218 | E56: 11 | F56: 6221 | K56: 0 | L56: 221
A57: 21 | B57: 6338 | C57: 21 | D57: 6343 | E57: 22 | F57: 6348 | K57: 0 | L57: 222
A58: 21 | B58: 6462 | C58: 21 | D58: 6466 | E58: 22 | F58: 6476 | K58: 0 | L58: 222
A59: 21 | B59: 6575 | C59: 21 | D59: 6583 | E59: 22 | F59: 6587 | K59: 0 | L59: 222
A60: 12 | B60: 6679 | C60: 23 | D60: 6683 | E60: 24 | F60: 6688 | K60: 0 | L60: 122
A61: 21 | B61: 6792 | C61: 21 | D61: 6800 | E61: 22 | F61: 6805 | K61: 0 | L61: 222
A62: 21 | B62: 6902 | C62: 21 | D62: 6910 | E62: 11 | F62: 6915 | K62: 0 | L62: 221
A63: 21 | B63: 7050 | C63: 21 | D63: 7061 | E63: 22 | F63: 7069 | K63: 0 | L63: 222
A64: 21 | B64: 7167 | C64: 21 | D64: 7175 | E64: 22 | F64: 7180 | K64: 0 | L64: 222
A65: 21 | B65: 7280 | C65: 21 | D65: 7284 | E65: 22 | F65: 7288 | K65: 0 | L65: 222
A66: 21 | B66: 7384 | C66: 21 | D66: 7392 | E66: 22 | F66: 7397 | K66: 0 | L66: 222
A67: 21 | B67: 7493 | C67: 12 | D67: 7496 | E67: 24 | F67: 7502 | K67: 0 | L67: 212
A68: 21 | B68: 7600 | C68: 21 | D68: 7604 | E68: 22 | F68: 7609 | K68: 0 | L68: 222
A69: 21 | B69: 7740 | C69: 21 | D69: 7745 | E69: 22 | F69: 7756 | K69: 0 | L69: 222
A70: 12 | B70: 7975 | C70: 23 | D70: 7981 | E70: 24 | F70: 7987 | K70: 0 | L70: 122
A71: 12 | B71: 8081 | C71: 23 | D71: 8083 | E71: 24 | F71: 8090 | K71: 0 | L71: 122
A72: 21 | B72: 8186 | C72: 21 | D72: 8190 | E72: 22 | F72: 8195 | K72: 0 | L72: 222
A73: 21 | B73: 8291 | C73: 21 | D73: 8295 | E73: 22 | F73: 8299 | K73: 0 | L73: 222
A74: 21 | B74: 8396 | C74: 21 | D74: 8398 | E74: 22 | F74: 8400 | K74: 0 | L74: 222
A75: 21 | B75: 8496 | C75: 21 | D75: 8507 | E75: 11 | F75: 8509 | K75: 0 | L75: 221
A76: 21 | B76: 8627 | C76: 21 | D76: 8642 | E76: 22 | F76: 8652 | K76: 0 | L76: 222
A77: 21 | B77: 8773 | C77: 21 | D77: 8778 | E77: 22 | F77: 8792 | K77: 0 | L77: 222
A78: 12 | B78: 8884 | C78: 23 | D78: 8891 | E78: 24 | F78: 8895 | K78: 0 | L78: 122
A79: 21 | B79: 8992 | C79: 21 | D79: 8995 | E79: 11 | F79: 9004 | K79: 0 | L79: 221
A80: 21 | B80: 9137 | C80: 21 | D80: 9145 | E80: 22 | F80: 9161 | K80: 0 | L80: 222
A81: 21 | B81: 9258 | C81: 21 | D81: 9264 | E81: 22 | F81: 9267 | K81: 0 | L81: 222
A82: 21 | B82: 9364 | C82: 21 | D82: 9367 | E82: 22 | F82: 9369 | K82: 0 | L82: 222
A83: 21 | B83: 9468 | C83: 21 | D83: 9472 | E83: 22 | F83: 9478 | K83: 0 | L83: 222
A84: 21 | B84: 9575 | C84: 21 | D84: 9578 | E84: 11 | F84: 9583 | K84: 0 | L84: 221
A85: 21 | B85: 9841 | C85: 21 | D85: 9845 | E85: 22 | F85: 9851 | K85: 0 | L85: 222
A86: 21 | B86: 9952 | C86: 21 | D86: 9956 | E86: 22 | F86: 9970 | K86: 0 | L86: 222
A87: 21 | B87: 10066 | C87: 21 | D87: 10070 | E87: 22 | F87: 10072 | K87: 0 | L87: 222
A88: 21 | B88: 10169 | C88: 21 | D88: 10174 | E88: 11 | F88: 10179 | K88: 0 | L88: 221
A89: 21 | B89: 10379 | C89: 12 | D89: 10383 | E89: 24 | F89: 10386 | K89: 0 | L89: 212
A90: 21 | B90: 10511 | C90: 21 | D90: 10520 | E90: 22 | F90: 10526 | K90: 0 | L90: 222
A91: 21 | B91: 10623 | C91: 12 | D91: 10628 | E91: 24 | F91: 10638 | K91: 0 | L91: 212
A92: 21 | B92: 10733 | C92: 21 | D92: 10741 | E92: 22 | F92: 10747 | K92: 0 | L92: 222
A93: 21 | B93: 10843 | C93: 21 | D93: 10854 | E93: 22 | F93: 10858 | K93: 0 | L93: 222
A94: 21 | B94: 10953 | C94: 21 | D94: 10957 | E94: 22 | F94: 10961 | K94: 0 | L94: 222
A95: 21 | B95: 11058 | C95: 21 | D95: 11062 | E95: 22 | F95: 11067 | K95: 0 | L95: 222
A96: 21 | B96: 11164 | C96: 21 | D96: 11172 | E96: 11 | F96: 11176 | K96: 0 | L96: 221
A97: 21 | B97: 11344 | C97: 21 | D97: 11350 | E97: 22 | F97: 11362 | K97: 0 | L97: 222
A98: 21 | B98: 11454 | C98: 21 | D98: 11458 | E98: 22 | F98: 11467 | K98: 0 | L98: 222
A99: 21 | B99: 11563 | C99: 21 | D99: 11567 | E99: 22 | F99: 11571 | K99: 0 | L99: 222
A100: 21 | B100: 11667 | C100: 12 | D100: 11673 | E100: 24 | F100: 11678 | K100: 0 | L100: 212
A101: 21 | B101: 11775 | C101: 21 | D101: 11780 | E101: 11 | F101: 11782 | K101: 0 | L101: 221
A102: 21 | B102: 11990 | C102: 21 | D102: 11995 | E102: 22 | F102: 12003 | K102: 0 | L102: 222
A103: 21 | B103: 12169 | C103: 21 | D103: 12173 | E103: 22 | F103: 12180 | K103: 0 | L103: 222
A104: 21 | B104: 12275 | C104: 12 | D104: 12281 | E104: 24 | F104: 12284 | K104: 0 | L104: 212
A105: 21 | B105: 12380 | C105: 21 | D105: 12391 | E105: 22 | F105: 12405 | K105: 0 | L105: 222
A106: 21 | B106: 12507 | C106: 21 | D106: 12512 | E106: 22 | F106: 12516 | K106: 0 | L106: 222
A107: 21 | B107: 12613 | C107: 21 | D107: 12620 | E107: 22 | F107: 12624 | K107: 0 | L107: 222
A108: 12 | B108: 12717 | C108: 23 | D108: 12719 | E108: 24 | F108: 12724 | K108: 0 | L108: 122
A109: 21 | B109: 12816 | C109: 21 | D109: 12821 | E109: 22 | F109: 12823 | K109: 0 | L109: 222

Sheet !M927A20.Gus
A1: Report for:!M927A20.Gus
A2: Date: | B2: <date>
A3: Hen: | B3: <hen> | F3: Correct Sequence | G3: =Start!J2 -> 221 | P3: Total Sequences in Data | Q3: =4994-COUNTBLANK(L7:L5000) -> 153 | V3: Total Sequences in Block Data | W3: =COUNTA(L7:L32) -> 26 | AA3: Total Sequences in Block Data | AB3: =COUNTA(L33:L57) -> 25 | AF3: Total Sequences in Block Data | AG3: =COUNTA(L58:L83) -> 26 | AK3: Total Sequences in Block Data | AL3: =COUNTA(L84:L108) -> 25 | AP3: Total Sequences in Block Data | AQ3: =COUNTA(L109:L134) -> 26 | AU3: Total Sequences in Block Data | AV3: =COUNTA(L135:L159) -> 25
P4: Total Sequences in Summary | Q4: =SUM(O7:O14) -> 153 | V4: Total Sequences in Block Summary | W4: =SUM(U7:U14) -> 26 | AA4: Total Sequences in Block Summary | AB4: =SUM(Z7:Z14) -> 25 | AF4: Total Sequences in Block Summary | AG4: =SUM(AE7:AE14) -> 26 | AK4: Total Sequences in Block Summary | AL4: =SUM(AJ7:AJ14) -> 25 | AP4: Total Sequences in Block Summary | AQ4: =SUM(AO7:AO14) -> 26 | AU4: Total Sequences in Block Summary | AV4: =SUM(AT7:AT14) -> 25
T5: Block 1 | Y5: Block 2 | AD5: Block 3 | AI5: Block 4 | AN5: Block 5 | AS5: Block 6
A6: Sequence Component 1 | B6: Time 1 | C6: Sequence Component 2 | D6: Time 2 | E6: Sequence Component 3 | F6: Time 3 | G6: Sequence Component 4 | H6: Time 4 | I6: Sequence Component 5 | J6: Time 5 | K6: Correct? 0=No 1=Yes | L6: Sequence | N6: Frequency | P6: Relative Frequency | Q6: Variability | T6: Frequency | V6: Relative Frequency | W6: Variability | Y6: Frequency | AA6: Relative Frequency | AB6: Variability | AD6: Frequency | AF6: Relative Frequency | AG6: Variability | AI6: Frequency | AK6: Relative Frequency | AL6: Variability | AN6: Frequency | AP6: Relative Frequency | AQ6: Variability | AS6: Frequency | AU6: Relative Frequency | AV6: Variability
A7: 21 | B7: 540 | C7: 21 | D7: 544 | E7: 22 | F7: 552 | K7: 0 | L7: 222 | N7: 111 | O7: =COUNTIF($L$7:$L$500,N7) -> 0 | P7: =O7/$Q$4 -> 0 | Q7: =IF(P7=0,0,(P7*((LOG(P7))/LOG(2)))) -> 0 | T7: =N7 -> 111 | U7: =COUNTIF(L7:L32,T7) -> 0 | V7: =U7/(W4-U13) -> 0 | W7: =IF(V7=0,0,(V7*((LOG(V7))/LOG(2)))) -> 0 | Y7: =N7 -> 111 | Z7: =COUNTIF(L33:L57,Y7) -> 0 | AA7: =Z7/(AB4-Z13) -> 0 | AB7: =IF(AA7=0,0,(AA7*((LOG(AA7))/LOG(2)))) -> 0 | AD7: =N7 -> 111 | AE7: =COUNTIF(L58:L83,AD7) -> 0 | AF7: =AE7/(AG4-AE13) -> 0 | AG7: =IF(AF7=0,0,(AF7*((LOG(AF7))/LOG(2)))) -> 0 | AI7: =N7 -> 111 | AJ7: =COUNTIF(L84:L108,AI7) -> 0 | AK7: =AJ7/(AL4-AJ13) -> 0 | AL7: =IF(AK7=0,0,(AK7*((LOG(AK7))/LOG(2)))) -> 0 | AN7: =N7 -> 111 | AO7: =COUNTIF(L109:L134,AN7) -> 0 | AP7: =AO7/(AQ4-AO13) -> 0 | AQ7: =IF(AP7=0,0,(AP7*((LOG(AP7))/LOG(2)))) -> 0 | AS7: =N7 -> 111 | AT7: =COUNTIF(L135:L159,AS7) -> 0 | AU7: =AT7/(AV4-AT13) -> 0 | AV7: =IF(AU7=0,0,(AU7*((LOG(AU7))/LOG(2)))) -> 0
A8: 21 | B8: 660 | C8: 21 | D8: 673 | E8: 22 | F8: 684 | K8: 0 | L8: 222 | N8: 112 | O8: =COUNTIF($L$7:$L$500,N8) -> 1 | P8: =O8/$Q$4 -> 0.006535947712 | Q8: =IF(P8=0,0,(P8*((LOG(P8))/LOG(2)))) -> -0.04743390747 | T8: =N8 -> 112 | U8: =COUNTIF(L7:L32,T8) -> 0 | V8: =U8/(W4-U13) -> 0 | W8: =IF(V8=0,0,(V8*((LOG(V8))/LOG(2)))) -> 0 | Y8: =N8 -> 112 | Z8: =COUNTIF(L33:L57,Y8) -> 0 | AA8: =Z8/(AB4-Z13) -> 0 | AB8: =IF(AA8=0,0,(AA8*((LOG(AA8))/LOG(2)))) -> 0 | AD8: =N8 -> 112 | AE8: =COUNTIF(L58:L83,AD8) -> 0 | AF8: =AE8/(AG4-AE13) -> 0 | AG8: =IF(AF8=0,0,(AF8*((LOG(AF8))/LOG(2)))) -> 0 | AI8: =N8 -> 112 | AJ8: =COUNTIF(L84:L108,AI8) -> 0 | AK8: =AJ8/(AL4-AJ13) -> 0 | AL8: =IF(AK8=0,0,(AK8*((LOG(AK8))/LOG(2)))) -> 0 | AN8: =N8 -> 112 | AO8: =COUNTIF(L109:L134,AN8) -> 0 | AP8: =AO8/(AQ4-AO13) -> 0 | AQ8: =IF(AP8=0,0,(AP8*((LOG(AP8))/LOG(2)))) -> 0 | AS8: =N8 -> 112 | AT8: =COUNTIF(L135:L159,AS8) -> 1 | AU8: =AT8/(AV4-AT13) -> 0.04545454545 | AV8: =IF(AU8=0,0,(AU8*((LOG(AU8))/LOG(2)))) -> -0.2027014372
A9: 12 | B9: 789 | C9: 23 | D9: 794 | E9: 24 | F9: 802 | K9: 0 | L9: 122 | N9: 121 | O9: =COUNTIF($L$7:$L$500,N9) -> 3 | P9: =O9/$Q$4 -> 0.01960784314 | Q9: =IF(P9=0,0,(P9*((LOG(P9))/LOG(2)))) -> -0.1112240263 | T9: =N9 -> 121 | U9: =COUNTIF(L7:L32,T9) -> 0 | V9: =U9/(W4-U13) -> 0 | W9: =IF(V9=0,0,(V9*((LOG(V9))/LOG(2)))) -> 0 | Y9: =N9 -> 121 | Z9: =COUNTIF(L33:L57,Y9) -> 0 | AA9: =Z9/(AB4-Z13) -> 0 | AB9: =IF(AA9=0,0,(AA9*((LOG(AA9))/LOG(2)))) -> 0 | AD9: =N9 -> 121 | AE9: =COUNTIF(L58:L83,AD9) -> 1 | AF9: =AE9/(AG4-AE13) -> 0.04166666667 | AG9: =IF(AF9=0,0,(AF9*((LOG(AF9))/LOG(2)))) -> -0.1910401042 | AI9: =N9 -> 121 | AJ9: =COUNTIF(L84:L108,AI9) -> 1 | AK9: =AJ9/(AL4-AJ13) -> 0.04545454545 | AL9: =IF(AK9=0,0,(AK9*((LOG(AK9))/LOG(2)))) -> -0.2027014372 | AN9: =N9 -> 121 | AO9: =COUNTIF(L109:L134,AN9) -> 1 | AP9: =AO9/(AQ4-AO13) -> 0.04347826087 | AQ9: =IF(AP9=0,0,(AP9*((LOG(AP9))/LOG(2)))) -> -0.1966766068 | AS9: =N9 -> 121 | AT9: =COUNTIF(L135:L159,AS9) -> 0 | AU9: =AT9/(AV4-AT13) -> 0 | AV9: =IF(AU9=0,0,(AU9*((LOG(AU9))/LOG(2)))) -> 0
A10: 12 | B10: 936 | C10: 23 | D10: 942 | E10: 24 | F10: 946 | K10: 0 | L10: 122 | N10: 122 | O10: =COUNTIF($L$7:$L$500,N10) -> 18 | P10: =O10/$Q$4 -> 0.1176470588 | Q10: =IF(P10=0,0,(P10*((LOG(P10))/LOG(2)))) -> -0.3632309225 | T10: =N10 -> 122 | U10: =COUNTIF(L7:L32,T10) -> 5 | V10: =U10/(W4-U13) -> 0.2 | W10: =IF(V10=0,0,(V10*((LOG(V10))/LOG(2)))) -> -0.464385619 | Y10: =N10 -> 122 | Z10: =COUNTIF(L33:L57,Y10) -> 2 | AA10: =Z10/(AB4-Z13) -> 0.09523809524 | AB10: =IF(AA10=0,0,(AA10*((LOG(AA10))/LOG(2)))) -> -0.3230778498 | AD10: =N10 -> 122 | AE10: =COUNTIF(L58:L83,AD10) -> 4 | AF10: =AE10/(AG4-AE13) -> 0.1666666667 | AG10: =IF(AF10=0,0,(AF10*((LOG(AF10))/LOG(2)))) -> -0.4308270835 | AI10: =N10 -> 122 | AJ10: =COUNTIF(L84:L108,AI10) -> 3 | AK10: =AJ10/(AL4-AJ13) -> 0.1363636364 | AL10: =IF(AK10=0,0,(AK10*((LOG(AK10))/LOG(2)))) -> -0.3919730615 | AN10: =N10 -> 122 | AO10: =COUNTIF(L109:L134,AN10) -> 3 | AP10: =AO10/(AQ4-AO13) -> 0.1304347826 | AQ10: =IF(AP10=0,0,(AP10*((LOG(AP10))/LOG(2)))) -> -0.3832955811 | AS10: =N10 -> 122 | AT10: =COUNTIF(L135:L159,AS10) -> 1 | AU10: =AT10/(AV4-AT13) -> 0.04545454545 | AV10: =IF(AU10=0,0,(AU10*((LOG(AU10))/LOG(2)))) -> -0.2027014372
A11: 21 | B11: 1043 | C11: 21 | D11: 1046 | E11: 22 | F11: 1051 | K11: 0 | L11: 222 | N11: 211 | O11: =COUNTIF($L$7:$L$500,N11) -> 1 | P11: =O11/$Q$4 -> 0.006535947712 | Q11: =IF(P11=0,0,(P11*((LOG(P11))/LOG(2)))) -> -0.04743390747 | T11: =N11 -> 211 | U11: =COUNTIF(L7:L32,T11) -> 0 | V11: =U11/(W4-U13) -> 0 | W11: =IF(V11=0,0,(V11*((LOG(V11))/LOG(2)))) -> 0 | Y11: =N11 -> 211 | Z11: =COUNTIF(L33:L57,Y11) -> 0 | AA11: =Z11/(AB4-Z13) -> 0 | AB11: =IF(AA11=0,0,(AA11*((LOG(AA11))/LOG(2)))) -> 0 | AD11: =N11 -> 211 | AE11: =COUNTIF(L58:L83,AD11) -> 0 | AF11: =AE11/(AG4-AE13) -> 0 | AG11: =IF(AF11=0,0,(AF11*((LOG(AF11))/LOG(2)))) -> 0 | AI11: =N11 -> 211 | AJ11: =COUNTIF(L84:L108,AI11) -> 0 | AK11: =AJ11/(AL4-AJ13) -> 0 | AL11: =IF(AK11=0,0,(AK11*((LOG(AK11))/LOG(2)))) -> 0 | AN11: =N11 -> 211 | AO11: =COUNTIF(L109:L134,AN11) -> 1 | AP11: =AO11/(AQ4-AO13) -> 0.04347826087 | AQ11: =IF(AP11=0,0,(AP11*((LOG(AP11))/LOG(2)))) -> -0.1966766068 | AS11: =N11 -> 211 | AT11: =COUNTIF(L135:L159,AS11) -> 0 | AU11: =AT11/(AV4-AT13) -> 0 | AV11: =IF(AU11=0,0,(AU11*((LOG(AU11))/LOG(2)))) -> 0
A12: 21 | B12: 1148 | C12: 21 | D12: 1150 | E12: 22 | F12: 1155 | K12: 0 | L12: 222 | N12: 212 | O12: =COUNTIF($L$7:$L$500,N12) -> 20 | P12: =O12/$Q$4 -> 0.1307189542 | Q12: =IF(P12=0,0,(P12*((LOG(P12))/LOG(2)))) -> -0.3837202285 | T12: =N12 -> 212 | U12: =COUNTIF(L7:L32,T12) -> 2 | V12: =U12/(W4-U13) -> 0.08 | W12: =IF(V12=0,0,(V12*((LOG(V12))/LOG(2)))) -> -0.2915084952 | Y12: =N12 -> 212 | Z12: =COUNTIF(L33:L57,Y12) -> 3 | AA12: =Z12/(AB4-Z13) -> 0.1428571429 | AB12: =IF(AA12=0,0,(AA12*((LOG(AA12))/LOG(2)))) -> -0.4010507032 | AD12: =N12 -> 212 | AE12: =COUNTIF(L58:L83,AD12) -> 5 | AF12: =AE12/(AG4-AE13) -> 0.2083333333 | AG12: =IF(AF12=0,0,(AF12*((LOG(AF12))/LOG(2)))) -> -0.4714655012 | AI12: =N12 -> 212 | AJ12: =COUNTIF(L84:L108,AI12) -> 2 | AK12: =AJ12/(AL4-AJ13) -> 0.09090909091 | AL12: =IF(AK12=0,0,(AK12*((LOG(AK12))/LOG(2)))) -> -0.3144937835 | AN12: =N12 -> 212 | AO12: =COUNTIF(L109:L134,AN12) -> 6 | AP12: =AO12/(AQ4-AO13) -> 0.2608695652 | AQ12: =IF(AP12=0,0,(AP12*((LOG(AP12))/LOG(2)))) -> -0.505721597 | AS12: =N12 -> 212 | AT12: =COUNTIF(L135:L159,AS12) -> 2 | AU12: =AT12/(AV4-AT13) -> 0.09090909091 | AV12: =IF(AU12=0,0,(AU12*((LOG(AU12))/LOG(2)))) -> -0.3144937835
A13: 21 | B13: 1252 | C13: 21 | D13: 1254 | E13: 22 | F13: 1262 | K13: 0 | L13: 222 | N13: 221 | O13: =COUNTIF($L$7:$L$500,N13) -> 16 | P13: =O13/$Q$4 -> 0.1045751634 | Q13: =IF(P13=0,0,(P13*((LOG(P13))/LOG(2)))) -> -0.3406418659 | T13: =N13 -> 221 | U13: =COUNTIF(L7:L32,T13) -> 1 | Y13: =N13 -> 221 | Z13: =COUNTIF(L33:L57,Y13) -> 4 | AD13: =N13 -> 221 | AE13: =COUNTIF(L58:L83,AD13) -> 2 | AI13: =N13 -> 221 | AJ13: =COUNTIF(L84:L108,AI13) -> 3 | AN13: =N13 -> 221 | AO13: =COUNTIF(L109:L134,AN13) -> 3 | AS13: =N13 -> 221 | AT13: =COUNTIF(L135:L159,AS13) -> 3
A14: 21 | B14: 1359 | C14: 21 | D14: 1362 | E14: 22 | F14: 1365 | K14: 0 | L14: 222 | N14: 222 | O14: =COUNTIF($L$7:$L$500,N14) -> 94 | P14: =O14/$Q$4 -> 0.614379085 | Q14: =IF(P14=0,0,(P14*((LOG(P14))/LOG(2)))) -> -0.431785001 | T14: =N14 -> 222 | U14: =COUNTIF(L7:L32,T14) -> 18 | V14: =U14/(W4-U13) -> 0.72 | W14: =IF(V14=0,0,(V14*((LOG(V14))/LOG(2)))) -> -0.3412304556 | Y14: =N14 -> 222 | Z14: =COUNTIF(L33:L57,Y14) -> 16 | AA14: =Z14/(AB4-Z13) -> 0.7619047619 | AB14: =IF(AA14=0,0,(AA14*((LOG(AA14))/LOG(2)))) -> -0.2989085126 | AD14: =N14 -> 222 | AE14: =COUNTIF(L58:L83,AD14) -> 14 | AF14: =AE14/(AG4-AE13) -> 0.5833333333 | AG14: =IF(AF14=0,0,(AF14*((LOG(AF14))/LOG(2)))) -> -0.4536044209 | AI14: =N14 -> 222 | AJ14: =COUNTIF(L84:L108,AI14) -> 16 | AK14: =AJ14/(AL4-AJ13) -> 0.7272727273 | AL14: =IF(AK14=0,0,(AK14*((LOG(AK14))/LOG(2)))) -> -0.3341320863 | AN14: =N14 -> 222 | AO14: =COUNTIF(L109:L134,AN14) -> 12 | AP14: =AO14/(AQ4-AO13) -> 0.5217391304 | AQ14: =IF(AP14=0,0,(AP14*((LOG(AP14))/LOG(2)))) -> -0.4897040637 | AS14: =N14 -> 222 | AT14: =COUNTIF(L135:L159,AS14) -> 18 | AU14: =AT14/(AV4-AT13) -> 0.8181818182 | AV14: =IF(AU14=0,0,(AU14*((LOG(AU14))/LOG(2)))) -> -0.2368690504
A15: 21 | B15: 1458 | C15: 21 | D15: 1463 | E15: 22 | F15: 1466 | K15: 0 | L15: 222 | P15: =SUM(P7:P14) -> 1 | Q15: =-SUM(Q7:Q14) -> 1.725469859 | V15: =SUM(V7:V14) -> 1 | W15: =-SUM(W7:W14) -> 1.09712457 | AA15: =SUM(AA7:AA14) -> 1 | AB15: =-SUM(AB7:AB14) -> 1.023037066 | AF15: =SUM(AF7:AF14) -> 1 | AG15: =-SUM(AG7:AG14) -> 1.54693711 | AK15: =SUM(AK7:AK14) -> 1 | AL15: =-SUM(AL7:AL14) -> 1.243300369 | AP15: =SUM(AP7:AP14) -> 1 | AQ15: =-SUM(AQ7:AQ14) -> 1.772074455 | AU15: =SUM(AU7:AU14) -> 1 | AV15: =-SUM(AV7:AV14) -> 0.9567657084
A16: 21 | B16: 1563 | C16: 21 | D16: 1568 | E16: 22 | F16: 1570 | K16: 0 | L16: 222 | P16: U= | Q16: =Q15/(LOG(Q4)/LOG(2)) -> 0.2377535687 | V16: U1= | W16: =W15/(LOG(W4)/LOG(2)) -> 0.2334089225 | AA16: U2= | AB16: =AB15/(LOG(AB4)/LOG(2)) -> 0.2202990411 | AF16: U3= | AG16: =AG15/(LOG(AG4)/LOG(2)) -> 0.3291047652 | AK16: U4= | AL16: =AL15/(LOG(AL4)/LOG(2)) -> 0.2677301617 | AP16: U5= | AQ16: =AQ15/(LOG(AQ4)/LOG(2)) -> 0.377001847 | AU16: U6= | AV16: =AV15/(LOG(AV4)/LOG(2)) -> 0.2060282811
A17: 21 | B17: 1668 | C17: 21 | D17: 1677 | E17: 22 | F17: 1683 | K17: 0 | L17: 222
A18: 21 | B18: 1781 | C18: 12 | D18: 1788 | E18: 24 | F18: 1791 | K18: 0 | L18: 212
A19: 21 | B19: 1887 | C19: 21 | D19: 1890 | E19: 22 | F19: 1895 | K19: 0 | L19: 222 | N19: Total Target Seq
A20: 21 | B20: 1994 | C20: 21 | D20: 1996 | E20: 22 | F20: 1998 | K20: 0 | L20: 222 | N20: =COUNTIF(L7:L159,G3) -> 16 | P20: 26 | Q20: 25 | R20: 26 | S20: 25 | T20: 26 | U20: 25
A21: 21 | B21: 2096 | C21: 21 | D21: 2099 | E21: 22 | F21: 2103 | K21: 0 | L21: 222 | P21: % of reinforcement given in 6 equal intervals based on number of trials
A22: 12 | B22: 2197 | C22: 23 | D22: 2200 | E22: 24 | F22: 2204 | K22: 0 | L22: 122 | P22: %_1 | Q22: %_2 | R22: %_3 | S22: %_4 | T22: %_5 | U22: %_6
A23: 21 | B23: 2305 | C23: 21 | D23: 2311 | E23: 22 | F23: 2315 | K23: 0 | L23: 222 | O23: target sequence | P23: =$G$3 -> 221 | Q23: =$G$3 -> 221 | R23: =$G$3 -> 221 | S23: =$G$3 -> 221 | T23: =$G$3 -> 221 | U23: =$G$3 -> 221
A24: 21 | B24: 2413 | C24: 21 | D24: 2418 | E24: 22 | F24: 2422 | K24: 0 | L24: 222 | O24: total reinforcement | P24: =U13 -> 1 | Q24: =Z13 -> 4 | R24: =AE13 -> 2 | S24: =AJ13 -> 3 | T24: =AO13 -> 3 | U24: =AT13 -> 3
A25: 12 | B25: 2520 | C25: 23 | D25: 2532 | E25: 24 | F25: 2537 | K25: 0 | L25: 122 | O25: % target
A26: 21 | B26: 2634 | C26: 12 | D26: 2638 | E26: 24 | F26: 2640 | K26: 0 | L26: 212 | O26: CCRF
A27: 21 | B27: 2737 | C27: 21 | D27: 2739 | E27: 22 | F27: 2743 | K27: 0 | L27: 222 | O27: % CCRf
A28: 21 | B28: 2840 | C28: 21 | D28: 2848 | E28: 11 | F28: 2853 | K28: 0 | L28: 221 | O28: average response rate | P28: =F32/P20 -> 132.0769231 | Q28: =(F57-F32)/Q20 -> 114.48 | R28: =(F83-F57)/R20 -> 112.8076923 | S28: =(F108-F83)/S20 -> 113.64 | T28: =(F134-F108)/T20 -> 128.0384615 | U28: =(F159-F134)/U20 -> 125.2
A29: 21 | B29: 3070 | C29: 21 | D29: 3075 | E29: 22 | F29: 3082 | K29: 0 | L29: 222
A30: 21 | B30: 3178 | C30: 21 | D30: 3183 | E30: 22 | F30: 3190 | K30: 0 | L30: 222
A31: 21 | B31: 3287 | C31: 21 | D31: 3293 | E31: 22 | F31: 3305 | K31: 0 | L31: 222
A32: 12 | B32: 3420 | C32: 23 | D32: 3428 | E32: 24 | F32: 3434 | K32: 0 | L32: 122
A33: 21 | B33: 3531 | C33: 21 | D33: 3534 | E33: 22 | F33: 3536 | K33: 0 | L33: 222
A34: 21 | B34: 3633 | C34: 21 | D34: 3638 | E34: 22 | F34: 3643 | K34: 0 | L34: 222
A35: 21 | B35: 3741 | C35: 21 | D35: 3745 | E35: 22 | F35: 3749 | K35: 0 | L35: 222
A36: 21 | B36: 3849 | C36: 21 | D36: 3852 | E36: 22 | F36: 3857 | K36: 0 | L36: 222
A37: 21 | B37: 3954 | C37: 21 | D37: 3963 | E37: 22 | F37: 3969 | K37: 0 | L37: 222
A38: 21 | B38: 4066 | C38: 21 | D38: 4068 | E38: 22 | F38: 4070 | K38: 0 | L38: 222
A39: 21 | B39: 4167 | C39: 12 | D39: 4178 | E39: 24 | F39: 4187 | K39: 0 | L39: 212
A40: 21 | B40: 4283 | C40: 21 | D40: 4288 | E40: 22 | F40: 4292 | K40: 0 | L40: 222
A41: 21 | B41: 4423 | C41: 21 | D41: 4428 | E41: 22 | F41: 4431 | K41: 0 | L41: 222
A42: 21 | B42: 4527 | C42: 21 | D42: 4531 | E42: 22 | F42: 4538 | K42: 0 | L42: 222
A43: 21 | B43: 4634 | C43: 21 | D43: 4637 | E43: 11 | F43: 4640 | K43: 0 | L43: 221
A44: 21 | B44: 4781 | C44: 21 | D44: 4787 | E44: 22 | F44: 4800 | K44: 0 | L44: 222
A45: 12 | B45: 4892 | C45: 23 | D45: 4895 | E45: 24 | F45: 4903 | K45: 0 | L45: 122
A46: 21 | B46: 5003 | C46: 21 | D46: 5007 | E46: 22 | F46: 5014 | K46: 0 | L46: 222
A47: 21 | B47: 5110 | C47: 21 | D47: 5117 | E47: 11 | F47: 5125 | K47: 0 | L47: 221
A48: 21 | B48: 5225 | C48: 21 | D48: 5230 | E48: 22 | F48: 5237 | K48: 0 | L48: 222
A49: 21 | B49: 5329 | C49: 21 | D49: 5333 | E49: 11 | F49: 5335 | K49: 0 | L49: 221
A50: 21 | B50: 5477 | C50: 21 | D50: 5485 | E50: 22 | F50: 5498 | K50: 0 | L50: 222
A51: 12 | B51: 5590 | C51: 23 | D51: 5594 | E51: 24 | F51: 5601 | K51: 0 | L51: 122
A52: 21 | B52: 5724 | C52: 21 | D52: 5729 | E52: 11 | F52: 5732 | K52: 0 | L52: 221
A53: 21 | B53: 5849 | C53: 12 | D53: 5861 | E53: 24 | F53: 5868 | K53: 0 | L53: 212
A54: 21 | B54: 5964 | C54: 12 | D54: 5977 | E54: 24 | F54: 5981 | K54: 0 | L54: 212
A55: 21 | B55: 6076 | C55: 21 | D55: 6080 | E55: 22 | F55: 6083 | K55: 0 | L55: 222
A56: 21 | B56: 6178 | C56: 21 | D56: 6185 | E56: 22 | F56: 6190 | K56: 0 | L56: 222
A57: 21 | B57: 6287 | C57: 21 | D57: 6291 | E57: 22 | F57: 6296 | K57: 0 | L57: 222
A58: 21 | B58: 6392 | C58: 21 | D58: 6395 | E58: 22 | F58: 6401 | K58: 0 | L58: 222
A59: 12 | B59: 6494 | C59: 23 | D59: 6497 | E59: 24 | F59: 6505 | K59: 0 | L59: 122
A60: 12 | B60: 6599 | C60: 23 | D60: 6601 | E60: 13 | F60: 6606 | K60: 0 | L60: 121
A61: 21 | B61: 6709 | C61: 12 | D61: 6717 | E61: 24 | F61: 6720 | K61: 0 | L61: 212
A62: 21 | B62: 6821 | C62: 21 | D62: 6827 | E62: 11 | F62: 6835 | K62: 0 | L62: 221
A63: 21 | B63: 6980 | C63: 21 | D63: 6984 | E63: 22 | F63: 6988 | K63: 0 | L63: 222
A64: 21 | B64: 7122 | C64: 21 | D64: 7130 | E64: 22 | F64: 7136 | K64: 0 | L64: 222
A65: 21 | B65: 7232 | C65: 12 | D65: 7237 | E65: 24 | F65: 7242 | K65: 0 | L65: 212
A66: 12 | B66: 7334 | C66: 23 | D66: 7337 | E66: 24 | F66: 7343 | K66: 0 | L66: 122
A67: 21 | B67: 7437 | C67: 21 | D67: 7441 | E67: 22 | F67: 7445 | K67: 0 | L67: 222
A68: 21 | B68: 7541 | C68: 12 | D68: 7547 | E68: 24 | F68: 7549 | K68: 0 | L68: 212
A69: 21 | B69: 7645 | C69: 21 | D69: 7650 | E69: 22 | F69: 7653 | K69: 0 | L69: 222
A70: 21 | B70: 7750 | C70: 12 | D70: 7758 | E70: 24 | F70: 7767 | K70: 0 | L70: 212
A71: 21 | B71: 7863 | C71: 21 | D71: 7868 | E71: 22 | F71: 7872 | K71: 0 | L71: 222
A72: 21 | B72: 7969 | C72: 21 | D72: 7972 | E72: 22 | F72: 7977 | K72: 0 | L72: 222
A73: 21 | B73: 8073 | C73: 12 | D73: 8077 | E73: 24 | F73: 8081 | K73: 0 | L73: 212
A74: 21 | B74: 8178 | C74: 21 | D74: 8183 | E74: 11 | F74: 8185 | K74: 0 | L74: 221
A75: 12 | B75: 8366 | C75: 23 | D75: 8372 | E75: 24 | F75: 8381 | K75: 0 | L75: 122
A76: 21 | B76: 8480 | C76: 21 | D76: 8483 | E76: 22 | F76: 8488 | K76: 0 | L76: 222
A77: 21 | B77: 8586 | C77: 21 | D77: 8589 | E77: 22 | F77: 8593 | K77: 0 | L77: 222
A78: 21 | B78: 8690 | C78: 21 | D78: 8694 | E78: 22 | F78: 8698 | K78: 0 | L78: 222
A79: 21 | B79: 8795 | C79: 21 | D79: 8801 | E79: 22 | F79: 8815 | K79: 0 | L79: 222
A80: 21 | B80: 8912 | C80: 21 | D80: 8916 | E80: 22 | F80: 8920 | K80: 0 | L80: 222
A81: 21 | B81: 9017 | C81: 21 | D81: 9022 | E81: 22 | F81: 9026 | K81: 0 | L81: 222
A82: 12 | B82: 9119 | C82: 23 | D82: 9123 | E82: 24 | F82: 9127 | K82: 0 | L82: 122
A83: 21 | B83: 9224 | C83: 21 | D83: 9227 | E83: 22 | F83: 9229 | K83: 0 | L83: 222
A84: 21 | B84: 9325 | C84: 21 | D84: 9333 | E84: 22 | F84: 9344 | K84: 0 | L84: 222
A85: 21 | B85: 9441 | C85: 21 | D85: 9445 | E85: 22 | F85: 9449 | K85: 0 | L85: 222
A86: 21 | B86: 9541 | C86: 12 | D86: 9546 | E86: 24 | F86: 9551 | K86: 0 | L86: 212
A87: 21 | B87: 9648 | C87: 21 | D87: 9653 | E87: 22 | F87: 9657 | K87: 0 | L87: 222
A88: 21 | B88: 9754 | C88: 21 | D88: 9761 | E88: 22 | F88: 9766 | K88: 0 | L88: 222
A89: 21 | B89: 9865 | C89: 21 | D89: 9868 | E89: 22 | F89: 9873 | K89: 0 | L89: 222
A90: 21 | B90: 9971 | C90: 21 | D90: 9979 | E90: 11 | F90: 9985 | K90: 0 | L90: 221
A91: 12 | B91: 10165 | C91: 23 | D91: 10187 | E91: 24 | F91: 10205 | K91: 0 | L91: 122
A92: 21 | B92: 10302 | C92: 21 | D92: 10306 | E92: 22 | F92: 10310 | K92: 0 | L92: 222
A93: 21 | B93: 10407 | C93: 21 | D93: 10411 | E93: 11 | F93: 10414 | K93: 0 | L93: 221
A94: 21 | B94: 10576 | C94: 21 | D94: 10587 | E94: 22 | F94: 10594 | K94: 0 | L94: 222
A95: 21 | B95: 10689 | C95: 21 | D95: 10693 | E95: 22 | F95: 10700 | K95: 0 | L95: 222
A96: 21 | B96: 10797 | C96: 21 | D96: 10802 | E96: 11 | F96: 10805 | K96: 0 | L96: 221
A97: 21 | B97: 10903 | C97: 21 | D97: 10906 | E97: 22 | F97: 10911 | K97: 0 | L97: 222
A98: 21 | B98: 11009 | C98: 12 | D98: 11014 | E98: 24 | F98: 11017 | K98: 0 | L98: 212
A99: 21 | B99: 11113 | C99: 21 | D99: 11116 | E99: 22 | F99: 11118 | K99: 0 | L99: 222
A100: 21 | B100: 11215 | C100: 21 | D100: 11218 | E100: 22 | F100: 11222 | K100: 0 | L100: 222
A101: 21 | B101: 11319 | C101: 21 | D101: 11325 | E101: 22 | F101: 11329 | K101: 0 | L101: 222
A102: 21 | B102: 11426 | C102: 21 | D102: 11428 | E102: 22 | F102: 11432 | K102: 0 | L102: 222
A103: 21 | B103: 11530 | C103: 21 | D103: 11533 | E103: 22 | F103: 11537 | K103: 0 | L103: 222
A104: 12 | B104: 11631 | C104: 23 | D104: 11634 | E104: 24 | F104: 11641 | K104: 0 | L104: 122
A105: 12 | B105: 11736 | C105: 23 | D105: 11738 | E105: 24 | F105: 11743 | K105: 0 | L105: 122
A106: 21 | B106: 11838 | C106: 21 | D106: 11849 | E106: 22 | F106: 11853 | K106: 0 | L106: 222
A107: 12 | B107: 11953 | C107: 23 | D107: 11957 | E107: 13 | F107: 11961 | K107: 0 | L107: 121
A108: 21 | B108: 12058 | C108: 21 | D108: 12066 | E108: 22 | F108: 12070 | K108: 0 | L108: 222
A109: 21 | B109: 12166 | C109: 12 | D109: 12172 | E109: 24 | F109: 12176 | K109: 0 | L109: 212
A110: 21 | B110: 12273 | C110: 21 | D110: 12277 | E110: 22 | F110: 12281 | K110: 0 | L110: 222
A111: 21 | B111: 12378 | C111: 21 | D111: 12383 | E111: 22 | F111: 12387 | K111: 0 | L111: 222
A112: 21 | B112: 12485 | C112: 21 | D112: 12487 | E112: 22 | F112: 12491 | K112: 0 | L112: 222
A113: 21 | B113: 12588 | C113: 21 | D113: 12593 | E113: 22 | F113: 12597 | K113: 0 | L113: 222
A114: 21 | B114: 12695 | C114: 12 | D114: 12700 | E114: 24 | F114: 12703 | K114: 0 | L114: 212
A115: 21 | B115: 12799 | C115: 12 | D115: 12805 | E115: 24 | F115: 12809 | K115: 0 | L115: 212
A116: 21 | B116: 12901 | C116: 21 | D116: 12912 | E116: 22 | F116: 12925 | K116: 0 | L116: 222
A117: 21 | B117: 13021 | C117: 21 | D117: 13037 | E117: 22 | F117: 13044 | K117: 0 | L117: 222
A118: 21 | B118: 13141 | C118: 21 | D118: 13145 | E118: 22 | F118: 13148 | K118: 0 | L118: 222
A119: 12 | B119: 13307 | C119: 23 | D119: 13317 | E119: 13 | F119: 13320 | K119: 0 | L119: 121
A120: 21 | B120: 13417 | C120: 21 | D120: 13421 | E120: 22 | F120: 13424 | K120: 0 | L120: 222
A121: 21 | B121: 13517 | C121: 12 | D121: 13519 | E121: 24 | F121: 13525 | K121: 0 | L121: 212
A122: 21 | B122: 13622 | C122: 21 | D122: 13626 | E122: 11 | F122: 13629 | K122: 0 | L122: 221
A123: 21 | B123: 13999 | C123: 21 | D123: 14005 | E123: 22 | F123: 14011 | K123: 0 | L123: 222
A124: 21 | B124: 14115 | C124: 12 | D124: 14121 | E124: 24 | F124: 14127 | K124: 0 | L124: 212
A125: 21 | B125: 14223 | C125: 12 | D125: 14226 | E125: 24 | F125: 14237 | K125: 0 | L125: 212
A126: 12 | B126: 14329 | C126: 23 | D126: 14333 | E126: 24 | F126: 14335 | K126: 0 | L126: 122
A127: 12 | B127: 14427 | C127: 23 | D127: 14431 | E127: 24 | F127: 14434 | K127: 0 | L127: 122
A128: 21 | B128: 14531 | C128: 21 | D128: 14533 | E128: 11 | F128: 14538 | K128: 0 | L128: 221
A129: 21 | B129: 14761 | C129: 12 | D129: 14779 | E129: 13 | F129: 14784 | K129: 0 | L129: 211
A130: 21 | B130: 14899 | C130: 21 | D130: 14905 | E130: 22 | F130: 14909 | K130: 0 | L130: 222
A131: 21 | B131: 15005 | C131: 21 | D131: 15013 | E131: 11 | F131: 15018 | K131: 0 | L131: 221
A132: 21 | B132: 15177 | C132: 21 | D132: 15183 | E132: 22 | F132: 15189 | K132: 0 | L132: 222
A133: 21 | B133: 15285 | C133: 21 | D133: 15292 | E133: 22 | F133: 15298 | K133: 0 | L133: 222
A134: 12 | B134: 15389 | C134: 23 | D134: 15395 | E134: 24 | F134: 15399 | K134: 0 | L134: 122
A135: 21 | B135: 15491 | C135: 21 | D135: 15494 | E135: 22 | F135: 15512 | K135: 0 | L135: 222
A136: 21 | B136: 15609 | C136: 21 | D136: 15614 | E136: 11 | F136: 15617 | K136: 0 | L136: 221
A137: 21 | B137: 15823 | C137: 21 | D137: 15831 | E137: 22 | F137: 15841 | K137: 0 | L137: 222
A138: 21 | B138: 15938 | C138: 21 | D138: 15943 | E138: 22 | F138: 15949 | K138: 0 | L138: 222
A139: 12 | B139: 16042 | C139: 14 | D139: 16050 | E139: 24 | F139: 16052 | K139: 0 | L139: 112
A140: 21 | B140: 16209 | C140: 21 | D140: 16215 | E140: 22 | F140: 16226 | K140: 0 | L140: 222
A141: 21 | B141: 16322 | C141: 21 | D141: 16329 | E141: 11 | F141: 16334 | K141: 0 | L141: 221
A142: 21 | B142: 16488 | C142: 21 | D142: 16497 | E142: 22 | F142: 16504 | K142: 0 | L142: 222
A143: 21 | B143: 16600 | C143: 21 | D143: 16609 | E143: 22 | F143: 16613 | K143: 0 | L143: 222
A144: 21 | B144: 16711 | C144: 12 | D144: 16722 | E144: 24 | F144: 16724 | K144: 0 | L144: 212
A145: 21 | B145: 16821 | C145: 21 | D145: 16827 | E145: 11 | F145: 16831 | K145: 0 | L145: 221
A146: 21 | B146: 16989 | C146: 21 | D146: 17003 | E146: 22 | F146: 17006 | K146: 0 | L146: 222
A147: 21 | B147: 17103 | C147: 21 | D147: 17108 | E147: 22 | F147: 17116 | K147: 0 | L147: 222
A148: 21 | B148: 17208 | C148: 21 | D148: 17213 | E148: 22 | F148: 17221 | K148: 0 | L148: 222
A149: 21 | B149: 17318 | C149: 12 | D149: 17328 | E149: 24 | F149: 17335 | K149: 0 | L149: 212
A150: 21 | B150: 17434 | C150: 21 | D150: 17442 | E150: 22 | F150: 17447 | K150: 0 | L150: 222
A151: 12 | B151: 17544 | C151: 23 | D151: 17551 | E151: 24 | F151: 17559 | K151: 0 | L151: 122
A152: 21 | B152: 17656 | C152: 21 | D152: 17659 | E152: 22 | F152: 17663 | K152: 0 | L152: 222
A153: 21 | B153: 17818 | C153: 21 | D153: 17834 | E153: 22 | F153: 17839 | K153: 0 | L153: 222
A154: 21 | B154: 17935 | C154: 21 | D154: 17937 | E154: 22 | F154: 17942 | K154: 0 | L154: 222
A155: 21 | B155: 18039 | C155: 21 | D155: 18043 | E155: 22 | F155: 18047 | K155: 0 | L155: 222
A156: 21 | B156: 18142 | C156: 21 | D156: 18146 | E156: 22 | F156: 18151 | K156: 0 | L156: 222
A157: 21 | B157: 18247 | C157: 21 | D157: 18251 | E157: 22 | F157: 18260 | K157: 0 | L157: 222
A158: 21 | B158: 18420 | C158: 21 | D158: 18425 | E158: 22 | F158: 18427 | K158: 0 | L158: 222
A159: 21 | B159: 18525 | C159: 21 | D159: 18527 | E159: 22 | F159: 18529 | K159: 0 | L159: 222

Sheet !M928910.Gus
A1: Report for:!M928910.Gus
A2: Date: | B2: <date>
A3: Hen: | B3: <hen> | F3: Correct Sequence | G3: =Start!J2 -> 221 | P3: Total Sequences in Data | Q3: =4994-COUNTBLANK(L7:L5000) -> 35 | V3: Total Sequences in Block Data | W3: =COUNTA(L7:L12) -> 6 | AA3: Total Sequences in Block Data | AB3: =COUNTA(L13:L18) -> 6 | AF3: Total Sequences in Block Data | AG3: =COUNTA(L19:L23) -> 5 | AK3: Total Sequences in Block Data | AL3: =COUNTA(L24:L29) -> 6 | AP3: Total Sequences in Block Data | AQ3: =COUNTA(L30:L35) -> 6 | AU3: Total Sequences in Block Data | AV3: =COUNTA(L36:L41) -> 6
P4: Total Sequences in Summary | Q4: =SUM(O7:O14) -> 34 | V4: Total Sequences in Block Summary | W4: =SUM(U7:U14) -> 6 | AA4: Total Sequences in Block Summary | AB4: =SUM(Z7:Z14) -> 6 | AF4: Total Sequences in Block Summary | AG4: =SUM(AE7:AE14) -> 5 | AK4: Total Sequences in Block Summary | AL4: =SUM(AJ7:AJ14) -> 6 | AP4: Total Sequences in Block Summary | AQ4: =SUM(AO7:AO14) -> 6 | AU4: Total Sequences in Block Summary | AV4: =SUM(AT7:AT14) -> 5
T5: Block 1 | Y5: Block 2 | AD5: Block 3 | AI5: Block 4 | AN5: Block 5 | AS5: Block 6
A6: Sequence Component 1 | B6: Time 1 | C6: Sequence Component 2 | D6: Time 2 | E6: Sequence Component 3 | F6: Time 3 | G6: Sequence Component 4 | H6: Time 4 | I6: Sequence Component 5 | J6: Time 5 | K6: Correct? 0=No 1=Yes | L6: Sequence | N6: Frequency | P6: Relative Frequency | Q6: Variability | T6: Frequency | V6: Relative Frequency | W6: Variability | Y6: Frequency | AA6: Relative Frequency | AB6: Variability | AD6: Frequency | AF6: Relative Frequency | AG6: Variability | AI6: Frequency | AK6: Relative Frequency | AL6: Variability | AN6: Frequency | AP6: Relative Frequency | AQ6: Variability | AS6: Frequency | AU6: Relative Frequency | AV6: Variability
A7: 21 | B7: 157 | C7: 12 | D7: 181 | E7: 13 | F7: 197 | K7: 0 | L7: 211 | N7: 111 | O7: =COUNTIF($L$7:$L$500,N7) -> 0 | P7: =O7/$Q$4 -> 0 | Q7: =IF(P7=0,0,(P7*((LOG(P7))/LOG(2)))) -> 0 | T7: =N7 -> 111 | U7: =COUNTIF(L7:L12,T7) -> 0 | V7: =U7/(W4-U13) -> 0 | W7: =IF(V7=0,0,(V7*((LOG(V7))/LOG(2)))) -> 0 | Y7: =N7 -> 111 | Z7: =COUNTIF(L13:L18,Y7) -> 0 | AA7: =Z7/(AB4-Z13) -> 0 | AB7: =IF(AA7=0,0,(AA7*((LOG(AA7))/LOG(2)))) -> 0 | AD7: =N7 -> 111 | AE7: =COUNTIF(L19:L23,AD7) -> 0 | AF7: =AE7/(AG4-AE13) -> 0 | AG7: =IF(AF7=0,0,(AF7*((LOG(AF7))/LOG(2)))) -> 0 | AI7: =N7 -> 111 | AJ7: =COUNTIF(L24:L29,AI7) -> 0 | AK7: =AJ7/(AL4-AJ13) -> 0 | AL7: =IF(AK7=0,0,(AK7*((LOG(AK7))/LOG(2)))) -> 0 | AN7: =N7 -> 111 | AO7: =COUNTIF(L30:L35,AN7) -> 0 | AP7: =AO7/(AQ4-AO13) -> 0 | AQ7: =IF(AP7=0,0,(AP7*((LOG(AP7))/LOG(2)))) -> 0 | AS7: =N7 -> 111 | AT7: =COUNTIF(L36:L41,AS7) -> 0 | AU7: =AT7/(AV4-AT13) -> 0 | AV7: =IF(AU7=0,0,(AU7*((LOG(AU7))/LOG(2)))) -> 0
A8: 21 | B8: 373 | C8: 21 | D8: 1274 | E8: 22 | F8: 1297 | K8: 0 | L8: 222 | N8: 112 | O8: =COUNTIF($L$7:$L$500,N8) -> 0 | P8: =O8/$Q$4 -> 0 | Q8: =IF(P8=0,0,(P8*((LOG(P8))/LOG(2)))) -> 0 | T8: =N8 -> 112 | U8: =COUNTIF(L7:L12,T8) -> 0 | V8: =U8/(W4-U13) -> 0 | W8: =IF(V8=0,0,(V8*((LOG(V8))/LOG(2)))) -> 0 | Y8: =N8 -> 112 | Z8: =COUNTIF(L13:L18,Y8) -> 0 | AA8: =Z8/(AB4-Z13) -> 0 | AB8: =IF(AA8=0,0,(AA8*((LOG(AA8))/LOG(2)))) -> 0 | AD8: =N8 -> 112 | AE8: =COUNTIF(L19:L23,AD8) -> 0 | AF8: =AE8/(AG4-AE13) -> 0 | AG8: =IF(AF8=0,0,(AF8*((LOG(AF8))/LOG(2)))) -> 0 | AI8: =N8 -> 112 | AJ8: =COUNTIF(L24:L29,AI8) -> 0 | AK8: =AJ8/(AL4-AJ13) -> 0 | AL8: =IF(AK8=0,0,(AK8*((LOG(AK8))/LOG(2)))) -> 0 | AN8: =N8 -> 112 | AO8: =COUNTIF(L30:L35,AN8) -> 0 | AP8: =AO8/(AQ4-AO13) -> 0 | AQ8: =IF(AP8=0,0,(AP8*((LOG(AP8))/LOG(2)))) -> 0 | AS8: =N8 -> 112 | AT8: =COUNTIF(L36:L41,AS8) -> 0 | AU8: =AT8/(AV4-AT13) -> 0 | AV8: =IF(AU8=0,0,(AU8*((LOG(AU8))/LOG(2)))) -> 0
A9: 21 | B9: 1393 | C9: 21 | D9: 1424 | E9: 22 | F9: 1428 | K9: 0 | L9: 222 | N9: 121 | O9: =COUNTIF($L$7:$L$500,N9) -> 0 | P9: =O9/$Q$4 -> 0 | Q9: =IF(P9=0,0,(P9*((LOG(P9))/LOG(2)))) -> 0 | T9: =N9 -> 121 | U9: =COUNTIF(L7:L12,T9) -> 0 | V9: =U9/(W4-U13) -> 0 | W9: =IF(V9=0,0,(V9*((LOG(V9))/LOG(2)))) -> 0 | Y9: =N9 -> 121 | Z9: =COUNTIF(L13:L18,Y9) -> 0 | AA9: =Z9/(AB4-Z13) -> 0 | AB9: =IF(AA9=0,0,(AA9*((LOG(AA9))/LOG(2)))) -> 0 | AD9: =N9 -> 121 | AE9: =COUNTIF(L19:L23,AD9) -> 0 | AF9: =AE9/(AG4-AE13) -> 0 | AG9: =IF(AF9=0,0,(AF9*((LOG(AF9))/LOG(2)))) -> 0 | AI9: =N9 -> 121 | AJ9: =COUNTIF(L24:L29,AI9) -> 0 | AK9: =AJ9/(AL4-AJ13) -> 0 | AL9: =IF(AK9=0,0,(AK9*((LOG(AK9))/LOG(2)))) -> 0 | AN9: =N9 -> 121 | AO9: =COUNTIF(L30:L35,AN9) -> 0 | AP9: =AO9/(AQ4-AO13) -> 0 | AQ9: =IF(AP9=0,0,(AP9*((LOG(AP9))/LOG(2)))) -> 0 | AS9: =N9 -> 121 | AT9: =COUNTIF(L36:L41,AS9) -> 0 | AU9: =AT9/(AV4-AT13) -> 0 | AV9: =IF(AU9=0,0,(AU9*((LOG(AU9))/LOG(2)))) -> 0
A10: 21 | B10: 1549 | C10: 21 | D10: 1557 | E10: 22 | F10: 1564 | K10: 0 | L10: 222 | N10: 122 | O10: =COUNTIF($L$7:$L$500,N10) -> 0 | P10: =O10/$Q$4 -> 0 | Q10: =IF(P10=0,0,(P10*((LOG(P10))/LOG(2)))) -> 0 | T10: =N10 -> 122 | U10: =COUNTIF(L7:L12,T10) -> 0 | V10: =U10/(W4-U13) -> 0 | W10: =IF(V10=0,0,(V10*((LOG(V10))/LOG(2)))) -> 0 | Y10: =N10 -> 122 | Z10: =COUNTIF(L13:L18,Y10) -> 0 | AA10: =Z10/(AB4-Z13) -> 0 | AB10: =IF(AA10=0,0,(AA10*((LOG(AA10))/LOG(2)))) -> 0 | AD10: =N10 -> 122 | AE10: =COUNTIF(L19:L23,AD10) -> 0 | AF10: =AE10/(AG4-AE13) -> 0 | AG10: =IF(AF10=0,0,(AF10*((LOG(AF10))/LOG(2)))) -> 0 | AI10: =N10 -> 122 | AJ10: =COUNTIF(L24:L29,AI10) -> 0 | AK10: =AJ10/(AL4-AJ13) -> 0 | AL10: =IF(AK10=0,0,(AK10*((LOG(AK10))/LOG(2)))) -> 0 | AN10: =N10 -> 122 | AO10: =COUNTIF(L30:L35,AN10) -> 0 | AP10: =AO10/(AQ4-AO13) -> 0 | AQ10: =IF(AP10=0,0,(AP10*((LOG(AP10))/LOG(2)))) -> 0 | AS10: =N10 -> 122 | AT10: =COUNTIF(L36:L41,AS10) -> 0 | AU10: =AT10/(AV4-AT13) -> 0 | AV10: =IF(AU10=0,0,(AU10*((LOG(AU10))/LOG(2)))) -> 0
A11: 21 | B11: 1695 | C11: 12 | D11: 1747 | E11: 24 | F11: 2248 | K11: 0 | L11: 212 | N11: 211 | O11: =COUNTIF($L$7:$L$500,N11) -> 1 | P11: =O11/$Q$4 -> 0.02941176471 | Q11: =IF(P11=0,0,(P11*((LOG(P11))/LOG(2)))) -> -0.14963126 | T11: =N11 -> 211 | U11: =COUNTIF(L7:L12,T11) -> 1 | V11: =U11/(W4-U13) -> 0.1666666667 | W11: =IF(V11=0,0,(V11*((LOG(V11))/LOG(2)))) -> -0.4308270835 | Y11: =N11 -> 211 | Z11: =COUNTIF(L13:L18,Y11) -> 0 | AA11: =Z11/(AB4-Z13) -> 0 | AB11: =IF(AA11=0,0,(AA11*((LOG(AA11))/LOG(2)))) -> 0 | AD11: =N11 -> 211 | AE11: =COUNTIF(L19:L23,AD11) -> 0 | AF11: =AE11/(AG4-AE13) -> 0 | AG11: =IF(AF11=0,0,(AF11*((LOG(AF11))/LOG(2)))) -> 0 | AI11: =N11 -> 211 | AJ11: =COUNTIF(L24:L29,AI11) -> 0 | AK11: =AJ11/(AL4-AJ13) -> 0 | AL11: =IF(AK11=0,0,(AK11*((LOG(AK11))/LOG(2)))) -> 0 | AN11: =N11 -> 211 | AO11: =COUNTIF(L30:L35,AN11) -> 0 | AP11: =AO11/(AQ4-AO13) -> 0 | AQ11: =IF(AP11=0,0,(AP11*((LOG(AP11))/LOG(2)))) -> 0 | AS11: =N11 -> 211 | AT11: =COUNTIF(L36:L41,AS11) -> 0 | AU11: =AT11/(AV4-AT13) -> 0 | AV11: =IF(AU11=0,0,(AU11*((LOG(AU11))/LOG(2)))) -> 0
A12: 21 | B12: 2438 | C12: 21 | D12: 2460 | E12: 22 | F12: 2525 | K12: 0 | L12: 222 | N12: 212 | O12: =COUNTIF($L$7:$L$500,N12) -> 1 | P12: =O12/$Q$4 -> 0.02941176471 | Q12: =IF(P12=0,0,(P12*((LOG(P12))/LOG(2)))) -> -0.14963126 | T12: =N12 -> 212 | U12: =COUNTIF(L7:L12,T12) -> 1 | V12: =U12/(W4-U13) -> 0.1666666667 | W12: =IF(V12=0,0,(V12*((LOG(V12))/LOG(2)))) -> -0.4308270835 | Y12: =N12 -> 212 | Z12: =COUNTIF(L13:L18,Y12) -> 0 | AA12: =Z12/(AB4-Z13) -> 0 | AB12: =IF(AA12=0,0,(AA12*((LOG(AA12))/LOG(2)))) -> 0 | AD12: =N12 -> 212 | AE12: =COUNTIF(L19:L23,AD12) -> 0 | AF12: =AE12/(AG4-AE13) -> 0 | AG12: =IF(AF12=0,0,(AF12*((LOG(AF12))/LOG(2)))) -> 0 | AI12: =N12 -> 212 | AJ12: =COUNTIF(L24:L29,AI12) -> 0 | AK12: =AJ12/(AL4-AJ13) -> 0 | AL12: =IF(AK12=0,0,(AK12*((LOG(AK12))/LOG(2)))) -> 0 | AN12: =N12 -> 212 | AO12: =COUNTIF(L30:L35,AN12) -> 0 | AP12: =AO12/(AQ4-AO13) -> 0 | AQ12: =IF(AP12=0,0,(AP12*((LOG(AP12))/LOG(2)))) -> 0 | AS12: =N12 -> 212 | AT12: =COUNTIF(L36:L41,AS12) -> 0 | AU12: =AT12/(AV4-AT13) -> 0 | AV12: =IF(AU12=0,0,(AU12*((LOG(AU12))/LOG(2)))) -> 0
A13: 21 | B13: 2625 | C13: 21 | D13: 2639 | E13: 22 | F13: 2651 | K13: 0 | L13: 222 | N13: 221 | O13: =COUNTIF($L$7:$L$500,N13) -> 0 | P13: =O13/$Q$4 -> 0 | Q13: =IF(P13=0,0,(P13*((LOG(P13))/LOG(2)))) -> 0 | T13: =N13 -> 221 | U13: =COUNTIF(L7:L12,T13) -> 0 | Y13: =N13 -> 221 | Z13: =COUNTIF(L13:L18,Y13) -> 0 | AD13: =N13 -> 221 | AE13: =COUNTIF(L19:L23,AD13) -> 0 | AI13: =N13 -> 221 | AJ13: =COUNTIF(L24:L29,AI13) -> 0 | AN13: =N13 -> 221 | AO13: =COUNTIF(L30:L35,AN13) -> 0 | AS13: =N13 -> 221 | AT13: =COUNTIF(L36:L41,AS13) -> 0
A14: 21 | B14: 2753 | C14: 21 | D14: 2758 | E14: 22 | F14: 2764 | K14: 0 | L14: 222 | N14: 222 | O14: =COUNTIF($L$7:$L$500,N14) -> 32 | P14: =O14/$Q$4 -> 0.9411764706 | Q14: =IF(P14=0,0,(P14*((LOG(P14))/LOG(2)))) -> -0.08231796824 | T14: =N14 -> 222 | U14: =COUNTIF(L7:L12,T14) -> 4 | V14: =U14/(W4-U13) -> 0.6666666667 | W14: =IF(V14=0,0,(V14*((LOG(V14))/LOG(2)))) -> -0.3899750005 | Y14: =N14 -> 222 | Z14: =COUNTIF(L13:L18,Y14) -> 6 | AA14: =Z14/(AB4-Z13) -> 1 | AB14: =IF(AA14=0,0,(AA14*((LOG(AA14))/LOG(2)))) -> 0 | AD14: =N14 -> 222 | AE14: =COUNTIF(L19:L23,AD14) -> 5 | AF14: =AE14/(AG4-AE13) -> 1 | AG14: =IF(AF14=0,0,(AF14*((LOG(AF14))/LOG(2)))) -> 0 | AI14: =N14 -> 222 | AJ14: =COUNTIF(L24:L29,AI14) -> 6 | AK14: =AJ14/(AL4-AJ13) -> 1 | AL14: =IF(AK14=0,0,(AK14*((LOG(AK14))/LOG(2)))) -> 0 | AN14: =N14 -> 222 | AO14: =COUNTIF(L30:L35,AN14) -> 6 | AP14: =AO14/(AQ4-AO13) -> 1 | AQ14: =IF(AP14=0,0,(AP14*((LOG(AP14))/LOG(2)))) -> 0 | AS14: =N14 -> 222 | AT14: =COUNTIF(L36:L41,AS14) -> 5 | AU14: =AT14/(AV4-AT13) -> 1 | AV14: =IF(AU14=0,0,(AU14*((LOG(AU14))/LOG(2)))) -> 0
A15: 21 | B15: 2866 | C15: 21 | D15: 2876 | E15: 22 | F15: 2883 | K15: 0 | L15: 222 | P15: =SUM(P7:P14) -> 1 | Q15: =-SUM(Q7:Q14) -> 0.3815804883 | V15: =SUM(V7:V14) -> 1 | W15: =-SUM(W7:W14) -> 1.251629167 | AA15: =SUM(AA7:AA14) -> 1 | AB15: =-SUM(AB7:AB14) -> 0 | AF15: =SUM(AF7:AF14) -> 1 | AG15: =-SUM(AG7:AG14) -> 0 | AK15: =SUM(AK7:AK14) -> 1 | AL15: =-SUM(AL7:AL14) -> 0 | AP15: =SUM(AP7:AP14) -> 1 | AQ15: =-SUM(AQ7:AQ14) -> 0 | AU15: =SUM(AU7:AU14) -> 1 | AV15: =-SUM(AV7:AV14) -> 0
A16: 21 | B16: 2981 | C16: 21 | D16: 2997 | E16: 22 | F16: 3004 | K16: 0 | L16: 222 | P16: U= | Q16: =Q15/(LOG(Q4)/LOG(2)) -> 0.07500408361 | V16: U1= | W16: =W15/(LOG(W4)/LOG(2)) -> 0.484196257 | AA16: U2= | AB16: =AB15/(LOG(AB4)/LOG(2)) -> 0 | AF16: U3= | AG16: =AG15/(LOG(AG4)/LOG(2)) -> 0 | AK16: U4= | AL16: =AL15/(LOG(AL4)/LOG(2)) -> 0 | AP16: U5= | AQ16: =AQ15/(LOG(AQ4)/LOG(2)) -> 0 | AU16: U6= | AV16: =AV15/(LOG(AV4)/LOG(2)) -> 0
A17: 21 | B17: 3106 | C17: 21 | D17: 3290 | E17: 22 | F17: 3296 | K17: 0 | L17: 222
A18: 21 | B18: 3493 | C18: 21 | D18: 3506 | E18: 22 | F18: 3655 | K18: 0 | L18: 222
A19: 21 | B19: 3766 | C19: 21 | D19: 3785 | E19: 22 | F19: 3804 | K19: 0 | L19: 222 | N19: Total Target Seq
A20: 21 | B20: 3955 | C20: 21 | D20: 3963 | E20: 22 | F20: 3974 | K20: 0 | L20: 222 | N20: =COUNTIF(L7:L41,G3) -> 0 | P20: 6 | Q20: 6 | R20: 5 | S20: 6 | T20: 6 | U20: 6
A21: 21 | B21: 4072 | C21: 21 | D21: 4080 | E21: 22 | F21: 4097 | K21: 0 | L21: 222 | P21: % of reinforcement given in 6 equal intervals based on number of trials
A22: 21 | B22: 4194 | C22: 21 | D22: 4248 | E22: 22 | F22: 4257 | K22: 0 | L22: 222 | P22: %_1 | Q22: %_2 | R22: %_3 | S22: %_4 | T22: %_5 | U22: %_6
A23: 21 | B23: 4389 | C23: 21 | D23: 4403 | E23: 22 | F23: 4412 | K23: 0 | L23: 222 | O23: target sequence | P23: =$G$3 -> 221 | Q23: =$G$3 -> 221 | R23: =$G$3 -> 221 | S23: =$G$3 -> 221 | T23: =$G$3 -> 221 | U23: =$G$3 -> 221
A24: 21 | B24: 4525 | C24: 21 | D24: 4536 | E24: 22 | F24: 4542 | K24: 0 | L24: 222 | O24: total reinforcement | P24: =U13 -> 0 | Q24: =Z13 -> 0 | R24: =AE13 -> 0 | S24: =AJ13 -> 0 | T24: =AO13 -> 0 | U24: =AT13 -> 0
A25: 21 | B25: 4638 | C25: 21 | D25: 4645 | E25: 22 | F25: 4728 | K25: 0 | L25: 222 | O25: % target
A26: 21 | B26: 4830 | C26: 21 | D26: 4832 | E26: 22 | F26: 4845 | K26: 0 | L26: 222 | O26: CCRF
A27: 21 | B27: 4960 | C27: 21 | D27: 5082 | E27: 22 | F27: 5132 | K27: 0 | L27: 222 | O27: % CCRf
A28: 21 | B28: 5228 | C28: 21 | D28: 5234 | E28: 22 | F28: 5269 | K28: 0 | L28: 222 | O28: average response rate | P28: =F12/P20 -> 420.8333333 | Q28: =(F18-F12)/Q20 -> 188.3333333 | R28: =(F23-F18)/R20 -> 151.4 | S28: =(F29-F23)/S20 -> 160.1666667 | T28: =(F35-F29)/T20 -> 141.5 | U28: =(F41-F35)/U20 -> -1037
A29: 21 | B29: 5361 | C29: 21 | D29: 5366 | E29: 22 | F29: 5373 | K29: 0 | L29: 222
A30: 21 | B30: 5588 | C30: 21 | D30: 5602 | E30: 22 | F30: 5614 | K30: 0 | L30: 222
A31: 21 | B31: 5720 | C31: 21 | D31: 5733 | E31: 22 | F31: 5741 | K31: 0 | L31: 222
A32: 21 | B32: 5849 | C32: 21 | D32: 5869 | E32: 22 | F32: 5876 | K32: 0 | L32: 222
A33: 21 | B33: 5986 | C33: 21 | D33: 5989 | E33: 22 | F33: 6001 | K33: 0 | L33: 222
A34: 21 | B34: 6097 | C34: 21 | D34: 6102 | E34: 22 | F34: 6108 | K34: 0 | L34: 222
A35: 21 | B35: 6206 | C35: 21 | D35: 6210 | E35: 22 | F35: 6222 | K35: 0 | L35: 222
A36: 21 | B36: 6320 | C36: 21 | D36: 6336 | E36: 22 | F36: 6343 | K36: 0 | L36: 222
A37: 21 | B37: 6454 | C37: 21 | D37: 6458 | E37: 22 | F37: 6463 | K37: 0 | L37: 222
A38: 21 | B38: 6559 | C38: 21 | D38: 6564 | E38: 22 | F38: 6570 | K38: 0 | L38: 222
A39: 21 | B39: 6686 | C39: 21 | D39: 6691 | E39: 22 | F39: 6695 | K39: 0 | L39: 222
A40: 21 | B40: 11053 | C40: 21 | D40: 11056 | E40: 22 | F40: 11066 | K40: 0 | L40: 222
A41: 21 | B41: 22957 | L41: 2

Sheet !M930B00.Gus
A1: Report for:!M930B00.Gus
A2: Date: | B2: <date>
A3: Hen: | B3: <hen> | F3: Correct Sequence | G3: =Start!J2 -> 221 | P3: Total Sequences in Data | Q3: =4994-COUNTBLANK(L7:L5000) -> 185 | V3: Total Sequences in Block Data | W3: =COUNTA(L7:L37) -> 31 | AA3: Total Sequences in Block Data | AB3: =COUNTA(L38:L68) -> 31 | AF3: Total Sequences in Block Data | AG3: =COUNTA(L69:L98) -> 30 | AK3: Total Sequences in Block Data | AL3: =COUNTA(L99:L129) -> 31 | AP3: Total Sequences in Block Data | AQ3: =COUNTA(L130:L160) -> 31 | AU3: Total Sequences in Block Data | AV3: =COUNTA(L161:L191) -> 31
P4: Total Sequences in Summary | Q4: =SUM(O7:O14) -> 185 | V4: Total Sequences in Block Summary | W4: =SUM(U7:U14) -> 31 | AA4: Total Sequences in Block Summary | AB4: =SUM(Z7:Z14) -> 31 | AF4: Total Sequences in Block Summary | AG4: =SUM(AE7:AE14) -> 30 | AK4: Total Sequences in Block Summary | AL4: =SUM(AJ7:AJ14) -> 31 | AP4: Total Sequences in Block Summary | AQ4: =SUM(AO7:AO14) -> 31 | AU4: Total Sequences in Block Summary | AV4: =SUM(AT7:AT14) -> 31
T5: Block 1 | Y5: Block 2 | AD5: Block 3 | AI5: Block 4 | AN5: Block 5 | AS5: Block 6
A6: Sequence Component 1 | B6: Time 1 | C6: Sequence Component 2 | D6: Time 2 | E6: Sequence Component 3 | F6: Time 3 | G6: Sequence Component 4 | H6: Time 4 | I6: Sequence Component 5 | J6: Time 5 | K6: Correct? 0=No 1=Yes | L6: Sequence | N6: Frequency | P6: Relative Frequency | Q6: Variability | T6: Frequency | V6: Relative Frequency | W6: Variability | Y6: Frequency | AA6: Relative Frequency | AB6: Variability | AD6: Frequency | AF6: Relative Frequency | AG6: Variability | AI6: Frequency | AK6: Relative Frequency | AL6: Variability | AN6: Frequency | AP6: Relative Frequency | AQ6: Variability | AS6: Frequency | AU6: Relative Frequency | AV6: Variability
A7: 21 | B7: 214 | C7: 21 | D7: 220 | E7: 22 | F7: 237 | K7: 0 | L7: 222 | N7: 111 | O7: =COUNTIF($L$7:$L$500,N7) -> 5 | P7: =O7/$Q$4 -> 0.02702702703 | Q7: =IF(P7=0,0,(P7*((LOG(P7))/LOG(2)))) -> -0.1407960369 | T7: =N7 -> 111 | U7: =COUNTIF(L7:L37,T7) -> 0 | V7: =U7/(W4-U13) -> 0 | W7: =IF(V7=0,0,(V7*((LOG(V7))/LOG(2)))) -> 0 | Y7: =N7 -> 111 | Z7: =COUNTIF(L38:L68,Y7) -> 1 | AA7: =Z7/(AB4-Z13) -> 0.03571428571 | AB7: =IF(AA7=0,0,(AA7*((LOG(AA7))/LOG(2)))) -> -0.1716912472 | AD7: =N7 -> 111 | AE7: =COUNTIF(L69:L98,AD7) -> 3 | AF7: =AE7/(AG4-AE13) -> 0.125 | AG7: =IF(AF7=0,0,(AF7*((LOG(AF7))/LOG(2)))) -> -0.375 | AI7: =N7 -> 111 | AJ7: =COUNTIF(L99:L129,AI7) -> 1 | AK7: =AJ7/(AL4-AJ13) -> 0.03571428571 | AL7: =IF(AK7=0,0,(AK7*((LOG(AK7))/LOG(2)))) -> -0.1716912472 | AN7: =N7 -> 111 | AO7: =COUNTIF(L130:L160,AN7) -> 0 | AP7: =AO7/(AQ4-AO13) -> 0 | AQ7: =IF(AP7=0,0,(AP7*((LOG(AP7))/LOG(2)))) -> 0 | AS7: =N7 -> 111 | AT7: =COUNTIF(L161:L191,AS7) -> 0 | AU7: =AT7/(AV4-AT13) -> 0 | AV7: =IF(AU7=0,0,(AU7*((LOG(AU7))/LOG(2)))) -> 0
A8: 21 | B8: 343 | C8: 21 | D8: 353 | E8: 22 | F8: 361 | K8: 0 | L8: 222 | N8: 112 | O8: =COUNTIF($L$7:$L$500,N8) -> 6 | P8: =O8/$Q$4 -> 0.03243243243 | Q8: =IF(P8=0,0,(P8*((LOG(P8))/LOG(2)))) -> -0.1604243987 | T8: =N8 -> 112 | U8: =COUNTIF(L7:L37,T8) -> 0 | V8: =U8/(W4-U13) -> 0 | W8: =IF(V8=0,0,(V8*((LOG(V8))/LOG(2)))) -> 0 | Y8: =N8 -> 112 | Z8: =COUNTIF(L38:L68,Y8) -> 1 | AA8: =Z8/(AB4-Z13) -> 0.03571428571 | AB8: =IF(AA8=0,0,(AA8*((LOG(AA8))/LOG(2)))) -> -0.1716912472 | AD8: =N8 -> 112 | AE8: =COUNTIF(L69:L98,AD8) -> 4 | AF8: =AE8/(AG4-AE13) -> 0.1666666667 | AG8: =IF(AF8=0,0,(AF8*((LOG(AF8))/LOG(2)))) -> -0.4308270835 | AI8: =N8 -> 112 | AJ8: =COUNTIF(L99:L129,AI8) -> 0 | AK8: =AJ8/(AL4-AJ13) -> 0 | AL8: =IF(AK8=0,0,(AK8*((LOG(AK8))/LOG(2)))) -> 0 | AN8: =N8 -> 112 | AO8: =COUNTIF(L130:L160,AN8) -> 1 | AP8: =AO8/(AQ4-AO13) -> 0.03703703704 | AQ8: =IF(AP8=0,0,(AP8*((LOG(AP8))/LOG(2)))) -> -0.1761069445 | AS8: =N8 -> 112 | AT8: =COUNTIF(L161:L191,AS8) -> 0 | AU8: =AT8/(AV4-AT13) -> 0 | AV8: =IF(AU8=0,0,(AU8*((LOG(AU8))/LOG(2)))) -> 0
A9: 21 | B9: 470 | C9: 21 | D9: 480 | E9: 22 | F9: 487 | K9: 0 | L9: 222 | N9: 121 | O9: =COUNTIF($L$7:$L$500,N9) -> 8 | P9: =O9/$Q$4 -> 0.04324324324 | Q9: =IF(P9=0,0,(P9*((LOG(P9))/LOG(2)))) -> -0.1959516307 | T9: =N9 -> 121 | U9: =COUNTIF(L7:L37,T9) -> 2 | V9: =U9/(W4-U13) -> 0.07142857143 | W9: =IF(V9=0,0,(V9*((LOG(V9))/LOG(2)))) -> -0.271953923 | Y9: =N9 -> 121 | Z9: =COUNTIF(L38:L68,Y9) -> 3 | AA9: =Z9/(AB4-Z13) -> 0.1071428571 | AB9: =IF(AA9=0,0,(AA9*((LOG(AA9))/LOG(2)))) -> -0.3452563309 | AD9: =N9 -> 121 | AE9: =COUNTIF(L69:L98,AD9) -> 0 | AF9: =AE9/(AG4-AE13) -> 0 | AG9: =IF(AF9=0,0,(AF9*((LOG(AF9))/LOG(2)))) -> 0 | AI9: =N9 -> 121 | AJ9: =COUNTIF(L99:L129,AI9) -> 2 | AK9: =AJ9/(AL4-AJ13) -> 0.07142857143 | AL9: =IF(AK9=0,0,(AK9*((LOG(AK9))/LOG(2)))) -> -0.271953923 | AN9: =N9 -> 121 | AO9: =COUNTIF(L130:L160,AN9) -> 0 | AP9: =AO9/(AQ4-AO13) -> 0 | AQ9: =IF(AP9=0,0,(AP9*((LOG(AP9))/LOG(2)))) -> 0 | AS9: =N9 -> 121 | AT9: =COUNTIF(L161:L191,AS9) -> 1 | AU9: =AT9/(AV4-AT13) -> 0.03703703704 | AV9: =IF(AU9=0,0,(AU9*((LOG(AU9))/LOG(2)))) -> -0.1761069445
A10: 21 | B10: 586 | C10: 12 | D10: 589 | E10: 24 | F10: 605 | K10: 0 | L10: 212 | N10: 122 | O10: =COUNTIF($L$7:$L$500,N10) -> 32 | P10: =O10/$Q$4 -> 0.172972973 | Q10: =IF(P10=0,0,(P10*((LOG(P10))/LOG(2)))) -> -0.437860577 | T10: =N10 -> 122 | U10: =COUNTIF(L7:L37,T10) -> 7 | V10: =U10/(W4-U13) -> 0.25 | W10: =IF(V10=0,0,(V10*((LOG(V10))/LOG(2)))) -> -0.5 | Y10: =N10 -> 122 | Z10: =COUNTIF(L38:L68,Y10) -> 5 | AA10: =Z10/(AB4-Z13) -> 0.1785714286 | AB10: =IF(AA10=0,0,(AA10*((LOG(AA10))/LOG(2)))) -> -0.4438262191 | AD10: =N10 -> 122 | AE10: =COUNTIF(L69:L98,AD10) -> 3 | AF10: =AE10/(AG4-AE13) -> 0.125 | AG10: =IF(AF10=0,0,(AF10*((LOG(AF10))/LOG(2)))) -> -0.375 | AI10: =N10 -> 122 | AJ10: =COUNTIF(L99:L129,AI10) -> 11 | AK10: =AJ10/(AL4-AJ13) -> 0.3928571429 | AL10: =IF(AK10=0,0,(AK10*((LOG(AK10))/LOG(2)))) -> -0.5295412978 | AN10: =N10 -> 122 | AO10: =COUNTIF(L130:L160,AN10) -> 1 | AP10: =AO10/(AQ4-AO13) -> 0.03703703704 | AQ10: =IF(AP10=0,0,(AP10*((LOG(AP10))/LOG(2)))) -> -0.1761069445 | AS10: =N10 -> 122 | AT10: =COUNTIF(L161:L191,AS10) -> 5 | AU10: =AT10/(AV4-AT13) -> 0.1851851852 | AV10: =IF(AU10=0,0,(AU10*((LOG(AU10))/LOG(2)))) -> -0.4505480384
A11: 21 | B11: 697 | C11: 21 | D11: 702 | E11: 22 | F11: 720 | K11: 0 | L11: 222 | N11: 211 | O11: =COUNTIF($L$7:$L$500,N11) -> 8 | P11: =O11/$Q$4 -> 0.04324324324 | Q11: =IF(P11=0,0,(P11*((LOG(P11))/LOG(2)))) -> -0.1959516307 | T11: =N11 -> 211 | U11: =COUNTIF(L7:L37,T11) -> 0 | V11: =U11/(W4-U13) -> 0 | W11: =IF(V11=0,0,(V11*((LOG(V11))/LOG(2)))) -> 0 | Y11: =N11 -> 211 | Z11: =COUNTIF(L38:L68,Y11) -> 4 | AA11: =Z11/(AB4-Z13) -> 0.1428571429 | AB11: =IF(AA11=0,0,(AA11*((LOG(AA11))/LOG(2)))) -> -0.4010507032 | AD11: =N11 -> 211 | AE11: =COUNTIF(L69:L98,AD11) -> 3 | AF11: =AE11/(AG4-AE13) -> 0.125 | AG11: =IF(AF11=0,0,(AF11*((LOG(AF11))/LOG(2)))) -> -0.375 | AI11: =N11 -> 211 | AJ11: =COUNTIF(L99:L129,AI11) -> 1 | AK11: =AJ11/(AL4-AJ13) -> 0.03571428571 | AL11: =IF(AK11=0,0,(AK11*((LOG(AK11))/LOG(2)))) -> -0.1716912472 | AN11: =N11 -> 211 | AO11: =COUNTIF(L130:L160,AN11) -> 0 | AP11: =AO11/(AQ4-AO13) -> 0 | AQ11: =IF(AP11=0,0,(AP11*((LOG(AP11))/LOG(2)))) -> 0 | AS11: =N11 -> 211 | AT11: =COUNTIF(L161:L191,AS11) -> 0 | AU11: =AT11/(AV4-AT13) -> 0 | AV11: =IF(AU11=0,0,(AU11*((LOG(AU11))/LOG(2)))) -> 0
A12: 12 | B12: 916 | C12: 23 | D12: 920 | E12: 24 | F12: 928 | K12: 0 | L12: 122 | N12: 212 | O12: =COUNTIF($L$7:$L$500,N12) -> 32 | P12: =O12/$Q$4 -> 0.172972973 | Q12: =IF(P12=0,0,(P12*((LOG(P12))/LOG(2)))) -> -0.437860577 | T12: =N12 -> 212 | U12: =COUNTIF(L7:L37,T12) -> 6 | V12: =U12/(W4-U13) -> 0.2142857143 | W12: =IF(V12=0,0,(V12*((LOG(V12))/LOG(2)))) -> -0.4762269474 | Y12: =N12 -> 212 | Z12: =COUNTIF(L38:L68,Y12) -> 6 | AA12: =Z12/(AB4-Z13) -> 0.2142857143 | AB12: =IF(AA12=0,0,(AA12*((LOG(AA12))/LOG(2)))) -> -0.4762269474 | AD12: =N12 -> 212 | AE12: =COUNTIF(L69:L98,AD12) -> 8 | AF12: =AE12/(AG4-AE13) -> 0.3333333333 | AG12: =IF(AF12=0,0,(AF12*((LOG(AF12))/LOG(2)))) -> -0.5283208336 | AI12: =N12 -> 212 | AJ12: =COUNTIF(L99:L129,AI12) -> 3 | AK12: =AJ12/(AL4-AJ13) -> 0.1071428571 | AL12: =IF(AK12=0,0,(AK12*((LOG(AK12))/LOG(2)))) -> -0.3452563309 | AN12: =N12 -> 212 | AO12: =COUNTIF(L130:L160,AN12) -> 6 | AP12: =AO12/(AQ4-AO13) -> 0.2222222222 | AQ12: =IF(AP12=0,0,(AP12*((LOG(AP12))/LOG(2)))) -> -0.4822055559 | AS12: =N12 -> 212 | AT12: =COUNTIF(L161:L191,AS12) -> 3 | AU12: =AT12/(AV4-AT13) -> 0.1111111111 | AV12: =IF(AU12=0,0,(AU12*((LOG(AU12))/LOG(2)))) -> -0.352213889
A13: 21 | B13: 1030 | C13: 21 | D13: 1042 | E13: 11 | F13: 1047 | K13: 0 | L13: 221 | N13: 221 | O13: =COUNTIF($L$7:$L$500,N13) -> 23 | P13: =O13/$Q$4 -> 0.1243243243 | Q13: =IF(P13=0,0,(P13*((LOG(P13))/LOG(2)))) -> -0.3739451276 | T13: =N13 -> 221 | U13: =COUNTIF(L7:L37,T13) -> 3 | Y13: =N13 -> 221 | Z13: =COUNTIF(L38:L68,Y13) -> 3 | AD13: =N13 -> 221 | AE13: =COUNTIF(L69:L98,AD13) -> 6 | AI13: =N13 -> 221 | AJ13: =COUNTIF(L99:L129,AI13) -> 3 | AN13: =N13 -> 221 | AO13: =COUNTIF(L130:L160,AN13) -> 4 | AS13: =N13 -> 221 | AT13: =COUNTIF(L161:L191,AS13) -> 4
A14: 21 | B14: 1220 | C14: 21 | D14: 1225 | E14: 22 | F14: 1239 | K14: 0 | L14: 222 | N14: 222 | O14: =COUNTIF($L$7:$L$500,N14) -> 71 | P14: =O14/$Q$4 -> 0.3837837838 | Q14: =IF(P14=0,0,(P14*((LOG(P14))/LOG(2)))) -> -0.5302488552 | T14: =N14 -> 222 | U14: =COUNTIF(L7:L37,T14) -> 13 | V14: =U14/(W4-U13) -> 0.4642857143 | W14: =IF(V14=0,0,(V14*((LOG(V14))/LOG(2)))) -> -0.5139249161 | Y14: =N14 -> 222 | Z14: =COUNTIF(L38:L68,Y14) -> 8 | AA14: =Z14/(AB4-Z13) -> 0.2857142857 | AB14: =IF(AA14=0,0,(AA14*((LOG(AA14))/LOG(2)))) -> -0.5163871206 | AD14: =N14 -> 222 | AE14: =COUNTIF(L69:L98,AD14) -> 3 | AF14: =AE14/(AG4-AE13) -> 0.125 | AG14: =IF(AF14=0,0,(AF14*((LOG(AF14))/LOG(2)))) -> -0.375 | AI14: =N14 -> 222 | AJ14: =COUNTIF(L99:L129,AI14) -> 10 | AK14: =AJ14/(AL4-AJ13) -> 0.3571428571 | AL14: =IF(AK14=0,0,(AK14*((LOG(AK14))/LOG(2)))) -> -0.5305095811 | AN14: =N14 -> 222 | AO14: =COUNTIF(L130:L160,AN14) -> 19 | AP14: =AO14/(AQ4-AO13) -> 0.7037037037 | AQ14: =IF(AP14=0,0,(AP14*((LOG(AP14))/LOG(2)))) -> -0.3567496217 | AS14: =N14 -> 222 | AT14: =COUNTIF(L161:L191,AS14) -> 18 | AU14: =AT14/(AV4-AT13) -> 0.6666666667 | AV14: =IF(AU14=0,0,(AU14*((LOG(AU14))/LOG(2)))) -> -0.3899750005
A15: 12 | B15: 1343 | C15: 23 | D15: 1379 | E15: 24 | F15: 1390 | K15: 0 | L15: 122 | P15: =SUM(P7:P14) -> 1 | Q15: =-SUM(Q7:Q14) -> 2.473038834 | V15: =SUM(V7:V14) -> 1 | W15: =-SUM(W7:W14) -> 1.762105787 | AA15: =SUM(AA7:AA14) -> 1 | AB15: =-SUM(AB7:AB14) -> 2.526129816 | AF15: =SUM(AF7:AF14) -> 1 | AG15: =-SUM(AG7:AG14) -> 2.459147917 | AK15: =SUM(AK7:AK14) -> 1 | AL15: =-SUM(AL7:AL14) -> 2.020643627 | AP15: =SUM(AP7:AP14) -> 1 | AQ15: =-SUM(AQ7:AQ14) -> 1.191169067 | AU15: =SUM(AU7:AU14) -> 1 | AV15: =-SUM(AV7:AV14) -> 1.368843872
A16: 21 | B16: 1485 | C16: 12 | D16: 1495 | E16: 24 | F16: 1502 | K16: 0 | L16: 212 | P16: U= | Q16: =Q15/(LOG(Q4)/LOG(2)) -> 0.3283645699 | V16: U1= | W16: =W15/(LOG(W4)/LOG(2)) -> 0.3556794435 | AA16: U2= | AB16: =AB15/(LOG(AB4)/LOG(2)) -> 0.5098969959 | AF16: U3= | AG16: =AG15/(LOG(AG4)/LOG(2)) -> 0.5011621656 | AK16: U4= | AL16: =AL15/(LOG(AL4)/LOG(2)) -> 0.4078650705 | AP16: U5= | AQ16: =AQ15/(LOG(AQ4)/LOG(2)) -> 0.2404363881 | AU16: U6= | AV16: =AV15/(LOG(AV4)/LOG(2)) -> 0.2762998853
A17: 21 | B17: 1599 | C17: 12 | D17: 1607 | E17: 24 | F17: 1611 | K17: 0 | L17: 212
A18: 21 | B18: 1712 | C18: 12 | D18: 1715 | E18: 24 | F18: 1720 | K18: 0 | L18: 212
A19: 21 | B19: 1816 | C19: 21 | D19: 1832 | E19: 11 | F19: 1838 | K19: 0 | L19: 221 | N19: Total Target Seq
A20: 12 | B20: 1985 | C20: 23 | D20: 1994 | E20: 24 | F20: 2004 | K20: 0 | L20: 122 | N20: =COUNTIF(L7:L191,G3) -> 23 | P20: 31 | Q20: 31 | R20: 30 | S20: 31 | T20: 31 | U20: 31
A21: 21 | B21: 2100 | C21: 21 | D21: 2103 | E21: 22 | F21: 2114 | K21: 0 | L21: 222 | P21: % of reinforcement given in 6 equal intervals based on number of trials
A22: 21 | B22: 2212 | C22: 21 | D22: 2216 | E22: 22 | F22: 2221 | K22: 0 | L22: 222 | P22: %_1 | Q22: %_2 | R22: %_3 | S22: %_4 | T22: %_5 | U22: %_6
A23: 21 | B23: 2326 | C23: 21 | D23: 2341 | E23: 22 | F23: 2348 | K23: 0 | L23: 222 | O23: target sequence | P23: =$G$3 -> 221 | Q23: =$G$3 -> 221 | R23: =$G$3 -> 221 | S23: =$G$3 -> 221 | T23: =$G$3 -> 221 | U23: =$G$3 -> 221
A24: 12 | B24: 2441 | C24: 23 | D24: 2452 | E24: 24 | F24: 2454 | K24: 0 | L24: 122 | O24: total reinforcement | P24: =U13 -> 3 | Q24: =Z13 -> 3 | R24: =AE13 -> 6 | S24: =AJ13 -> 3 | T24: =AO13 -> 4 | U24: =AT13 -> 4
A25: 21 | B25: 2555 | C25: 21 | D25: 2568 | E25: 22 | F25: 2576 | K25: 0 | L25: 222 | O25: % target
A26: 21 | B26: 2673 | C26: 21 | D26: 2687 | E26: 22 | F26: 2695 | K26: 0 | L26: 222 | O26: CCRF
A27: 12 | B27: 2789 | C27: 23 | D27: 2791 | E27: 24 | F27: 2808 | K27: 0 | L27: 122 | O27: % CCRf
A28: 21 | B28: 2904 | C28: 12 | D28: 2913 | E28: 24 | F28: 2920 | K28: 0 | L28: 212 | O28: average response rate | P28: =F37/P20 -> 127.1612903 | Q28: =(F68-F37)/Q20 -> 115.3870968 | R28: =(F98-F68)/R20 -> 134.7333333 | S28: =(F129-F98)/S20 -> 122.3225806 | T28: =(F160-F129)/T20 -> 148.5483871 | U28: =(F191-F160)/U20 -> 128.2903226
A29: 12 | B29: 3012 | C29: 23 | D29: 3016 | E29: 13 | F29: 3020 | K29: 0 | L29: 121
A30: 21 | B30: 3117 | C30: 21 | D30: 3134 | E30: 22 | F30: 3141 | K30: 0 | L30: 222
A31: 12 | B31: 3234 | C31: 23 | D31: 3238 | E31: 13 | F31: 3244 | K31: 0 | L31: 121
A32: 21 | B32: 3341 | C32: 21 | D32: 3345 | E32: 22 | F32: 3355 | K32: 0 | L32: 222
A33: 21 | B33: 3451 | C33: 21 | D33: 3463 | E33: 22 | F33: 3470 | K33: 0 | L33: 222
A34: 12 | B34: 3562 | C34: 23 | D34: 3566 | E34: 24 | F34: 3579 | K34: 0 | L34: 122
A35: 21 | B35: 3675 | C35: 21 | D35: 3684 | E35: 11 | F35: 3689 | K35: 0 | L35: 221
A36: 21 | B36: 3825 | C36: 12 | D36: 3835 | E36: 24 | F36: 3839 | K36: 0 | L36: 212
A37: 12 | B37: 3935 | C37: 23 | D37: 3937 | E37: 24 | F37: 3942 | K37: 0 | L37: 122
A38: 21 | B38: 4038 | C38: 12 | D38: 4047 | E38: 24 | F38: 4053 | K38: 0 | L38: 212
A39: 12 | B39: 4150 | C39: 23 | D39: 4154 | E39: 24 | F39: 4162 | K39: 0 | L39: 122
A40: 21 | B40: 4259 | C40: 21 | D40: 4263 | E40: 22 | F40: 4267 | K40: 0 | L40: 222
A41: 21 | B41: 4363 | C41: 21 | D41: 4370 | E41: 11 | F41: 4373 | K41: 0 | L41: 221
A42: 21 | B42: 4495 | C42: 21 | D42: 4508 | E42: 22 | F42: 4517 | K42: 0 | L42: 222
A43: 21 | B43: 4616 | C43: 21 | D43: 4619 | E43: 22 | F43: 4625 | K43: 0 | L43: 222
A44: 21 | B44: 4721 | C44: 12 | D44: 4728 | E44: 24 | F44: 4739 | K44: 0 | L44: 212
A45: 21 | B45: 4835 | C45: 21 | D45: 4842 | E45: 22 | F45: 4848 | K45: 0 | L45: 222
A46: 21 | B46: 4946 | C46: 21 | D46: 4959 | E46: 11 | F46: 4966 | K46: 0 | L46: 221
A47: 12 | B47: 5161 | C47: 23 | D47: 5195 | E47: 24 | F47: 5199 | K47: 0 | L47: 122
A48: 21 | B48: 5296 | C48: 12 | D48: 5300 | E48: 13 | F48: 5308 | K48: 0 | L48: 211
A49: 21 | B49: 5407 | C49: 12 | D49: 5419 | E49: 24 | F49: 5426 | K49: 0 | L49: 212
A50: 21 | B50: 5522 | C50: 21 | D50: 5529 | E50: 22 | F50: 5531 | K50: 0 | L50: 222
A51: 12 | B51: 5624 | C51: 23 | D51: 5628 | E51: 24 | F51: 5639 | K51: 0 | L51: 122
A52: 12 | B52: 5733 | C52: 23 | D52: 5736 | E52: 13 | F52: 5743 | K52: 0 | L52: 121
A53: 12 | B53: 5837 | C53: 23 | D53: 5840 | E53: 13 | F53: 5844 | K53: 0 | L53: 121
A54: 21 | B54: 5941 | C54: 21 | D54: 5951 | E54: 22 | F54: 5957 | K54: 0 | L54: 222
A55: 21 | B55: 6055 | C55: 12 | D55: 6060 | E55: 13 | F55: 6062 | K55: 0 | L55: 211
A56: 21 | B56: 6157 | C56: 12 | D56: 6164 | E56: 13 | F56: 6171 | K56: 0 | L56: 211
A57: 12 | B57: 6268 | C57: 14 | D57: 6273 | E57: 24 | F57: 6284 | K57: 0 | L57: 112
A58: 12 | B58: 6378 | C58: 14 | D58: 6380 | E58: 13 | F58: 6386 | K58: 0 | L58: 111
A59: 12 | B59: 6480 | C59: 23 | D59: 6482 | E59: 24 | F59: 6489 | K59: 0 | L59: 122
A60: 21 | B60: 6586 | C60: 21 | D60: 6590 | E60: 22 | F60: 6594 | K60: 0 | L60: 222
A61: 21 | B61: 6691 | C61: 12 | D61: 6693 | E61: 13 | F61: 6698 | K61: 0 | L61: 211
A62: 21 | B62: 6794 | C62: 12 | D62: 6800 | E62: 24 | F62: 6812 | K62: 0 | L62: 212
A63: 21 | B63: 6908 | C63: 12 | D63: 6915 | E63: 24 | F63: 6920 | K63: 0 | L63: 212
A64: 21 | B64: 7016 | C64: 12 | D64: 7020 | E64: 24 | F64: 7033 | K64: 0 | L64: 212
A65: 12 | B65: 7163 | C65: 23 | D65: 7169 | E65: 13 | F65: 7174 | K65: 0 | L65: 121
A66: 21 | B66: 7269 | C66: 21 | D66: 7278 | E66: 22 | F66: 7282 | K66: 0 | L66: 222
A67: 21 | B67: 7379 | C67: 21 | D67: 7382 | E67: 11 | F67: 7393 | K67: 0 | L67: 221
A68: 12 | B68: 7500 | C68: 23 | D68: 7512 | E68: 24 | F68: 7519 | K68: 0 | L68: 122
A69: 21 | B69: 7618 | C69: 12 | D69: 7622 | E69: 13 | F69: 7624 | K69: 0 | L69: 211
A70: 12 | B70: 7719 | C70: 14 | D70: 7725 | E70: 24 | F70: 7730 | K70: 0 | L70: 112
A71: 12 | B71: 7829 | C71: 23 | D71: 7845 | E71: 24 | F71: 7852 | K71: 0 | L71: 122
A72: 21 | B72: 7949 | C72: 12 | D72: 7958 | E72: 24 | F72: 7961 | K72: 0 | L72: 212
A73: 21 | B73: 8057 | C73: 12 | D73: 8063 | E73: 24 | F73: 8074 | K73: 0 | L73: 212
A74: 21 | B74: 8171 | C74: 12 | D74: 8179 | E74: 24 | F74: 8186 | K74: 0 | L74: 212
A75: 12 | B75: 8322 | C75: 14 | D75: 8426 | E75: 13 | F75: 8462 | K75: 0 | L75: 111
A76: 12 | B76: 8614 | C76: 14 | D76: 8647 | E76: 24 | F76: 8817 | K76: 0 | L76: 112
A77: 21 | B77: 8914 | C77: 21 | D77: 8928 | E77: 22 | F77: 8935 | K77: 0 | L77: 222
A78: 21 | B78: 9033 | C78: 21 | D78: 9049 | E78: 22 | F78: 9055 | K78: 0 | L78: 222
A79: 21 | B79: 9154 | C79: 12 | D79: 9158 | E79: 24 | F79: 9163 | K79: 0 | L79: 212
A80: 21 | B80: 9261 | C80: 12 | D80: 9266 | E80: 24 | F80: 9272 | K80: 0 | L80: 212
A81: 21 | B81: 9371 | C81: 12 | D81: 9377 | E81: 24 | F81: 9380 | K81: 0 | L81: 212
A82: 21 | B82: 9478 | C82: 21 | D82: 9487 | E82: 11 | F82: 9494 | K82: 0 | L82: 221
A83: 21 | B83: 9635 | C83: 21 | D83: 9641 | E83: 11 | F83: 9647 | K83: 0 | L83: 221
A84: 21 | B84: 9839 | C84: 21 | D84: 9841 | E84: 11 | F84: 9843 | K84: 0 | L84: 221
A85: 12 | B85: 9949 | C85: 23 | D85: 9967 | E85: 24 | F85: 9974 | K85: 0 | L85: 122
A86: 21 | B86: 10073 | C86: 12 | D86: 10080 | E86: 24 | F86: 10083 | K86: 0 | L86: 212
A87: 21 | B87: 10181 | C87: 12 | D87: 10183 | E87: 24 | F87: 10192 | K87: 0 | L87: 212
A88: 21 | B88: 10288 | C88: 21 | D88: 10299 | E88: 11 | F88: 10302 | K88: 0 | L88: 221
A89: 12 | B89: 10408 | C89: 14 | D89: 10422 | E89: 24 | F89: 10445 | K89: 0 | L89: 112
A90: 12 | B90: 10537 | C90: 14 | D90: 10541 | E90: 13 | F90: 10548 | K90: 0 | L90: 111
A91: 21 | B91: 10644 | C91: 12 | D91: 10646 | E91: 13 | F91: 10653 | K91: 0 | L91: 211
A92: 21 | B92: 10749 | C92: 21 | D92: 10772 | E92: 11 | F92: 10774 | K92: 0 | L92: 221
A93: 12 | B93: 10908 | C93: 14 | D93: 10915 | E93: 13 | F93: 10921 | K93: 0 | L93: 111
A94: 21 | B94: 11021 | C94: 21 | D94: 11027 | E94: 22 | F94: 11034 | K94: 0 | L94: 222
A95: 21 | B95: 11130 | C95: 21 | D95: 11138 | E95: 11 | F95: 11142 | K95: 0 | L95: 221
A96: 12 | B96: 11229 | C96: 14 | D96: 11243 | E96: 24 | F96: 11303 | K96: 0 | L96: 112
A97: 12 | B97: 11433 | C97: 23 | D97: 11440 | E97: 24 | F97: 11449 | K97: 0 | L97: 122
A98: 21 | B98: 11545 | C98: 12 | D98: 11550 | E98: 13 | F98: 11561 | K98: 0 | L98: 211
A99: 12 | B99: 11655 | C99: 23 | D99: 11658 | E99: 24 | F99: 11666 | K99: 0 | L99: 122
A100: 21 | B100: 11763 | C100: 21 | D100: 11770 | E100: 11 | F100: 11775 | K100: 0 | L100: 221
A101: 12 | B101: 11862 | C101: 23 | D101: 11883 | E101: 24 | F101: 11888 | K101: 0 | L101: 122
A102: 21 | B102: 11984 | C102: 12 | D102: 11991 | E102: 24 | F102: 11994 | K102: 0 | L102: 212
A103: 21 | B103: 12091 | C103: 21 | D103: 12099 | E103: 22 | F103: 12106 | K103: 0 | L103: 222
A104: 12 | B104: 12201 | C104: 23 | D104: 12206 | E104: 24 | F104: 12210 | K104: 0 | L104: 122
A105: 12 | B105: 12302 | C105: 23 | D105: 12307 | E105: 13 | F105: 12316 | K105: 0 | L105: 121
A106: 12 | B106: 12405 | C106: 23 | D106: 12459 | E106: 24 | F106: 12464 | K106: 0 | L106: 122
A107: 21 | B107: 12559 | C107: 21 | D107: 12568 | E107: 22 | F107: 12577 | K107: 0 | L107: 222
A108: 21 | B108: 12689 | C108: 21 | D108: 12699 | E108: 22 | F108: 12706 | K108: 0 | L108: 222
A109: 12 | B109: 12799 | C109: 14 | D109: 12811 | E109: 13 | F109: 12814 | K109: 0 | L109: 111
A110: 21 | B110: 12911 | C110: 21 | D110: 12929 | E110: 22 | F110: 12935 | K110: 0 | L110: 222
A111: 21 | B111: 13034 | C111: 12 | D111: 13042 | E111: 13 | F111: 13043 | K111: 0 | L111: 211
A112: 21 | B112: 13140 | C112: 21 | D112: 13145 | E112: 22 | F112: 13151 | K112: 0 | L112: 222
A113: 12 | B113: 13244 | C113: 23 | D113: 13248 | E113: 24 | F113: 13259 | K113: 0 | L113: 122
A114: 12 | B114: 13362 | C114: 23 | D114: 13369 | E114: 13 | F114: 13379 | K114: 0 | L114: 121
A115: 12 | B115: 13533 | C115: 23 | D115: 13559 | E115: 24 | F115: 13566 | K115: 0 | L115: 122
A116: 21 | B116: 13687 | C116: 21 | D116: 13691 | E116: 22 | F116: 13704 | K116: 0 | L116: 222
A117: 21 | B117: 13801 | C117: 21 | D117: 13810 | E117: 11 | F117: 13816 | K117: 0 | L117: 221
A118: 12 | B118: 13927 | C118: 23 | D118: 13974 | E118: 24 | F118: 13981 | K118: 0 | L118: 122
A119: 12 | B119: 14086 | C119: 23 | D119: 14088 | E119: 24 | F119: 14095 | K119: 0 | L119: 122
A120: 12 | B120: 14188 | C120: 23 | D120: 14191 | E120: 24 | F120: 14203 | K120: 0 | L120: 122
A121: 21 | B121: 14299 | C121: 21 | D121: 14311 | E121: 22 | F121: 14317 | K121: 0 | L121: 222
A122: 21 | B122: 14413 | C122: 21 | D122: 14421 | E122: 22 | F122: 14430 | K122: 0 | L122: 222
A123: 21 | B123: 14542 | C123: 12 | D123: 14546 | E123: 24 | F123: 14560 | K123: 0 | L123: 212
A124: 12 | B124: 14652 | C124: 23 | D124: 14656 | E124: 24 | F124: 14665 | K124: 0 | L124: 122
A125: 21 | B125: 14761 | C125: 21 | D125: 14771 | E125: 11 | F125: 14778 | K125: 0 | L125: 221
A126: 21 | B126: 14997 | C126: 21 | D126: 15010 | E126: 22 | F126: 15024 | K126: 0 | L126: 222
A127: 21 | B127: 15117 | C127: 12 | D127: 15125 | E127: 24 | F127: 15131 | K127: 0 | L127: 212
A128: 21 | B128: 15228 | C128: 21 | D128: 15235 | E128: 22 | F128: 15241 | K128: 0 | L128: 222
A129: 12 | B129: 15341 | C129: 23 | D129: 15344 | E129: 24 | F129: 15353 | K129: 0 | L129: 122
A130: 12 | B130: 15446 | C130: 23 | D130: 15450 | E130: 24 | F130: 15459 | K130: 0 | L130: 122
A131: 21 | B131: 15555 | C131: 12 | D131: 15558 | E131: 24 | F131: 15563 | K131: 0 | L131: 212
A132: 21 | B132: 15660 | C132: 21 | D132: 15672 | E132: 11 | F132: 15675 | K132: 0 | L132: 221
A133: 21 | B133: 15790 | C133: 21 | D133: 15797 | E133: 22 | F133: 15803 | K133: 0 | L133: 222
A134: 21 | B134: 15906 | C134: 21 | D134: 15913 | E134: 22 | F134: 15920 | K134: 0 | L134: 222
A135: 21 | B135: 16017 | C135: 21 | D135: 16024 | E135: 11 | F135: 16026 | K135: 0 | L135: 221
A136: 21 | B136: 16185 | C136: 12 | D136: 16191 | E136: 24 | F136: 16196 | K136: 0 | L136: 212
A137: 21 | B137: 16293 | C137: 21 | D137: 16298 | E137: 22 | F137: 16302 | K137: 0 | L137: 222
A138: 21 | B138: 16398 | C138: 21 | D138: 16403 | E138: 22 | F138: 16407 | K138: 0 | L138: 222
A139: 21 | B139: 16504 | C139: 12 | D139: 16511 | E139: 24 | F139: 16514 | K139: 0 | L139: 212
A140: 21 | B140: 16615 | C140: 21 | D140: 16623 | E140: 22 | F140: 16629 | K140: 0 | L140: 222
A141: 12 | B141: 16724 | C141: 14 | D141: 16730 | E141: 24 | F141: 16736 | K141: 0 | L141: 112
A142: 21 | B142: 16833 | C142: 12 | D142: 16851 | E142: 24 | F142: 16862 | K142: 0 | L142: 212
A143: 21 | B143: 16959 | C143: 21 | D143: 16970 | E143: 11 | F143: 16975 | K143: 0 | L143: 221
A144: 21 | B144: 17209 | C144: 21 | D144: 17212 | E144: 22 | F144: 17218 | K144: 0 | L144: 222
A145: 21 | B145: 17315 | C145: 12 | D145: 17320 | E145: 24 | F145: 17325 | K145: 0 | L145: 212
A146: 21 | B146: 17422 | C146: 12 | D146: 17427 | E146: 24 | F146: 17429 | K146: 0 | L146: 212
A147: 21 | B147: 17533 | C147: 21 | D147: 17538 | E147: 22 | F147: 17546 | K147: 0 | L147: 222
A148: 21 | B148: 17641 | C148: 21 | D148: 17645 | E148: 11 | F148: 17649 | K148: 0 | L148: 221
A149: 21 | B149: 18002 | C149: 21 | D149: 18011 | E149: 22 | F149: 18018 | K149: 0 | L149: 222
A150: 21 | B150: 18114 | C150: 21 | D150: 18123 | E150: 22 | F150: 18142 | K150: 0 | L150: 222
A151: 21 | B151: 18296 | C151: 21 | D151: 18304 | E151: 22 | F151: 18310 | K151: 0 | L151: 222
A152: 21 | B152: 18406 | C152: 21 | D152: 18412 | E152: 22 | F152: 18420 | K152: 0 | L152: 222
A153: 21 | B153: 18534 | C153: 21 | D153: 18549 | E153: 22 | F153: 18555 | K153: 0 | L153: 222
A154: 21 | B154: 18651 | C154: 21 | D154: 18654 | E154: 22 | F154: 18662 | K154: 0 | L154: 222
A155: 21 | B155: 18759 | C155: 21 | D155: 18767 | E155: 22 | F155: 18772 | K155: 0 | L155: 222
A156: 21 | B156: 18865 | C156: 21 | D156: 18867 | E156: 22 | F156: 18875 | K156: 0 | L156: 222
A157: 21 | B157: 18971 | C157: 21 | D157: 18978 | E157: 22 | F157: 18982 | K157: 0 | L157: 222
A158: 21 | B158: 19686 | C158: 21 | D158: 19690 | E158: 22 | F158: 19697 | K158: 0 | L158: 222
A159: 21 | B159: 19836 | C159: 21 | D159: 19843 | E159: 22 | F159: 19847 | K159: 0 | L159: 222
A160: 21 | B160: 19944 | C160: 21 | D160: 19954 | E160: 22 | F160: 19958 | K160: 0 | L160: 222
A161: 21 | B161: 20055 | C161: 21 | D161: 20059 | E161: 22 | F161: 20068 | K161: 0 | L161: 222
A162: 21 | B162: 20164 | C162: 21 | D162: 20177 | E162: 22 | F162: 20182 | K162: 0 | L162: 222
A163: 12 | B163: 20274 | C163: 23 | D163: 20283 | E163: 24 | F163: 20293 | K163: 0 | L163: 122
A164: 12 | B164: 20394 | C164: 23 | D164: 20396 | E164: 24 | F164: 20408 | K164: 0 | L164: 122
A165: 21 | B165: 20504 | C165: 21 | D165: 20511 | E165: 22 | F165: 20519 | K165: 0 | L165: 222
A166: 21 | B166: 20615 | C166: 21 | D166: 20626 | E166: 22 | F166: 20630 | K166: 0 | L166: 222
A167: 12 | B167: 20811 | C167: 23 | D167: 20821 | E167: 24 | F167: 20836 | K167: 0 | L167: 122
A168: 12 | B168: 20944 | C168: 23 | D168: 20950 | E168: 24 | F168: 20958 | K168: 0 | L168: 122
A169: 21 | B169: 21055 | C169: 12 | D169: 21073 | E169: 24 | F169: 21075 | K169: 0 | L169: 212
A170: 21 | B170: 21170 | C170: 21 | D170: 21189 | E170: 11 | F170: 21191 | K170: 0 | L170: 221
A171: 21 | B171: 21309 | C171: 21 | D171: 21320 | E171: 22 | F171: 21325 | K171: 0 | L171: 222
A172: 21 | B172: 21448 | C172: 21 | D172: 21464 | E172: 22 | F172: 21471 | K172: 0 | L172: 222
A173: 21 | B173: 21568 | C173: 21 | D173: 21587 | E173: 22 | F173: 21594 | K173: 0 | L173: 222
A174: 21 | B174: 21691 | C174: 21 | D174: 21697 | E174: 22 | F174: 21704 | K174: 0 | L174: 222
A175: 12 | B175: 21810 | C175: 23 | D175: 21812 | E175: 13 | F175: 21831 | K175: 0 | L175: 121
A176: 21 | B176: 21928 | C176: 21 | D176: 21938 | E176: 11 | F176: 21943 | K176: 0 | L176: 221
A177: 21 | B177: 22128 | C177: 21 | D177: 22134 | E177: 22 | F177: 22141 | K177: 0 | L177: 222
A178: 21 | B178: 22240 | C178: 21 | D178: 22249 | E178: 11 | F178: 22255 | K178: 0 | L178: 221
A179: 12 | B179: 22414 | C179: 23 | D179: 22420 | E179: 24 | F179: 22432 | K179: 0 | L179: 122
A180: 21 | B180: 22530 | C180: 21 | D180: 22548 | E180: 11 | F180: 22550 | K180: 0 | L180: 221
A181: 21 | B181: 22700 | C181: 21 | D181: 22709 | E181: 22 | F181: 22717 | K181: 0 | L181: 222
A182: 21 | B182: 22864 | C182: 21 | D182: 22870 | E182: 22 | F182: 22875 | K182: 0 | L182: 222
A183: 21 | B183: 22972 | C183: 21 | D183: 22981 | E183: 22 | F183: 22985 | K183: 0 | L183: 222
A184: 21 | B184: 23080 | C184: 21 | D184: 23084 | E184: 22 | F184: 23098 | K184: 0 | L184: 222
A185: 21 | B185: 23194 | C185: 21 | D185: 23209 | E185: 22 | F185: 23215 | K185: 0 | L185: 222
A186: 21 | B186: 23310 | C186: 12 | D186: 23319 | E186: 24 | F186: 23327 | K186: 0 | L186: 212
A187: 21 | B187: 23423 | C187: 12 | D187: 23430 | E187: 24 | F187: 23443 | K187: 0 | L187: 212
A188: 21 | B188: 23556 | C188: 21 | D188: 23572 | E188: 22 | F188: 23577 | K188: 0 | L188: 222
A189: 21 | B189: 23685 | C189: 21 | D189: 23690 | E189: 22 | F189: 23703 | K189: 0 | L189: 222
A190: 21 | B190: 23805 | C190: 21 | D190: 23820 | E190: 22 | F190: 23828 | K190: 0 | L190: 222
A191: 21 | B191: 23924 | C191: 21 | D191: 23931 | E191: 22 | F191: 23935 | L191: 222

Sheet !MA01A50.Gus
A1: Report for:!MA01A50.Gus
A2: Date: | B2: <date>
A3: Hen: | B3: <hen> | F3: Correct Sequence | G3: =Start!J2 -> 221 | P3: Total Sequences in Data | Q3: =4994-COUNTBLANK(L7:L5000) -> 145 | V3: Total Sequences in Block Data | W3: =COUNTA(L7:L30) -> 24 | AA3: Total Sequences in Block Data | AB3: =COUNTA(L31:L54) -> 24 | AF3: Total Sequences in Block Data | AG3: =COUNTA(L55:L79) -> 25 | AK3: Total Sequences in Block Data | AL3: =COUNTA(L80:L103) -> 24 | AP3: Total Sequences in Block Data | AQ3: =COUNTA(L104:L127) -> 24 | AU3: Total Sequences in Block Data | AV3: =COUNTA(L128:L151) -> 24
P4: Total Sequences in Summary | Q4: =SUM(O7:O14) -> 145 | V4: Total Sequences in Block Summary | W4: =SUM(U7:U14) -> 24 | AA4: Total Sequences in Block Summary | AB4: =SUM(Z7:Z14) -> 24 | AF4: Total Sequences in Block Summary | AG4: =SUM(AE7:AE14) -> 25 | AK4: Total Sequences in Block Summary | AL4: =SUM(AJ7:AJ14) -> 24 | AP4: Total Sequences in Block Summary | AQ4: =SUM(AO7:AO14) -> 24 | AU4: Total Sequences in Block Summary | AV4: =SUM(AT7:AT14) -> 24
T5: Block 1 | Y5: Block 2 | AD5: Block 3 | AI5: Block 4 | AN5: Block 5 | AS5: Block 6
A6: Sequence Component 1 | B6: Time 1 | C6: Sequence Component 2 | D6: Time 2 | E6: Sequence Component 3 | F6: Time 3 | G6: Sequence Component 4 | H6: Time 4 | I6: Sequence Component 5 | J6: Time 5 | K6: Correct? 0=No 1=Yes | L6: Sequence | N6: Frequency | P6: Relative Frequency | Q6: Variability | T6: Frequency | V6: Relative Frequency | W6: Variability | Y6: Frequency | AA6: Relative Frequency | AB6: Variability | AD6: Frequency | AF6: Relative Frequency | AG6: Variability | AI6: Frequency | AK6: Relative Frequency | AL6: Variability | AN6: Frequency | AP6: Relative Frequency | AQ6: Variability | AS6: Frequency | AU6: Relative Frequency | AV6: Variability
A7: 21 | B7: 10 | C7: 21 | D7: 15 | E7: 22 | F7: 21 | K7: 0 | L7: 222 | N7: 111 | O7: =COUNTIF($L$7:$L$500,N7) -> 0 | P7: =O7/$Q$4 -> 0 | Q7: =IF(P7=0,0,(P7*((LOG(P7))/LOG(2)))) -> 0 | T7: =N7 -> 111 | U7: =COUNTIF(L7:L30,T7) -> 0 | V7: =U7/(W4-U13) -> 0 | W7: =IF(V7=0,0,(V7*((LOG(V7))/LOG(2)))) -> 0 | Y7: =N7 -> 111 | Z7: =COUNTIF(L31:L54,Y7) -> 0 | AA7: =Z7/(AB4-Z13) -> 0 | AB7: =IF(AA7=0,0,(AA7*((LOG(AA7))/LOG(2)))) -> 0 | AD7: =N7 -> 111 | AE7: =COUNTIF(L55:L79,AD7) -> 0 | AF7: =AE7/(AG4-AE13) -> 0 | AG7: =IF(AF7=0,0,(AF7*((LOG(AF7))/LOG(2)))) -> 0 | AI7: =N7 -> 111 | AJ7: =COUNTIF(L80:L103,AI7) -> 0 | AK7: =AJ7/(AL4-AJ13) -> 0 | AL7: =IF(AK7=0,0,(AK7*((LOG(AK7))/LOG(2)))) -> 0 | AN7: =N7 -> 111 | AO7: =COUNTIF(L104:L127,AN7) -> 0 | AP7: =AO7/(AQ4-AO13) -> 0 | AQ7: =IF(AP7=0,0,(AP7*((LOG(AP7))/LOG(2)))) -> 0 | AS7: =N7 -> 111 | AT7: =COUNTIF(L128:L151,AS7) -> 0 | AU7: =AT7/(AV4-AT13) -> 0 | AV7: =IF(AU7=0,0,(AU7*((LOG(AU7))/LOG(2)))) -> 0
A8: 21 | B8: 119 | C8: 21 | D8: 130 | E8: 22 | F8: 135 | K8: 0 | L8: 222 | N8: 112 | O8: =COUNTIF($L$7:$L$500,N8) -> 2 | P8: =O8/$Q$4 -> 0.01379310345 | Q8: =IF(P8=0,0,(P8*((LOG(P8))/LOG(2)))) -> -0.08524012538 | T8: =N8 -> 112 | U8: =COUNTIF(L7:L30,T8) -> 0 | V8: =U8/(W4-U13) -> 0 | W8: =IF(V8=0,0,(V8*((LOG(V8))/LOG(2)))) -> 0 | Y8: =N8 -> 112 | Z8: =COUNTIF(L31:L54,Y8) -> 2 | AA8: =Z8/(AB4-Z13) -> 0.09090909091 | AB8: =IF(AA8=0,0,(AA8*((LOG(AA8))/LOG(2)))) -> -0.3144937835 | AD8: =N8 -> 112 | AE8: =COUNTIF(L55:L79,AD8) -> 0 | AF8: =AE8/(AG4-AE13) -> 0 | AG8: =IF(AF8=0,0,(AF8*((LOG(AF8))/LOG(2)))) -> 0 | AI8: =N8 -> 112 | AJ8: =COUNTIF(L80:L103,AI8) -> 0 | AK8: =AJ8/(AL4-AJ13) -> 0 | AL8: =IF(AK8=0,0,(AK8*((LOG(AK8))/LOG(2)))) -> 0 | AN8: =N8 -> 112 | AO8: =COUNTIF(L104:L127,AN8) -> 0 | AP8: =AO8/(AQ4-AO13) -> 0 | AQ8: =IF(AP8=0,0,(AP8*((LOG(AP8))/LOG(2)))) -> 0 | AS8: =N8 -> 112 | AT8: =COUNTIF(L128:L151,AS8) -> 0 | AU8: =AT8/(AV4-AT13) -> 0 | AV8: =IF(AU8=0,0,(AU8*((LOG(AU8))/LOG(2)))) -> 0
A9: 21 | B9: 232 | C9: 21 | D9: 260 | E9: 11 | F9: 266 | K9: 0 | L9: 221 | N9: 121 | O9: =COUNTIF($L$7:$L$500,N9) -> 9 | P9: =O9/$Q$4 -> 0.06206896552 | Q9: =IF(P9=0,0,(P9*((LOG(P9))/LOG(2)))) -> -0.2488955641 | T9: =N9 -> 121 | U9: =COUNTIF(L7:L30,T9) -> 1 | V9: =U9/(W4-U13) -> 0.04761904762 | W9: =IF(V9=0,0,(V9*((LOG(V9))/LOG(2)))) -> -0.2091579725 | Y9: =N9 -> 121 | Z9: =COUNTIF(L31:L54,Y9) -> 0 | AA9: =Z9/(AB4-Z13) -> 0 | AB9: =IF(AA9=0,0,(AA9*((LOG(AA9))/LOG(2)))) -> 0 | AD9: =N9 -> 121 | AE9: =COUNTIF(L55:L79,AD9) -> 1 | AF9: =AE9/(AG4-AE13) -> 0.05 | AG9: =IF(AF9=0,0,(AF9*((LOG(AF9))/LOG(2)))) -> -0.2160964047 | AI9: =N9 -> 121 | AJ9: =COUNTIF(L80:L103,AI9) -> 3 | AK9: =AJ9/(AL4-AJ13) -> 0.1363636364 | AL9: =IF(AK9=0,0,(AK9*((LOG(AK9))/LOG(2)))) -> -0.3919730615 | AN9: =N9 -> 121 | AO9: =COUNTIF(L104:L127,AN9) -> 1 | AP9: =AO9/(AQ4-AO13) -> 0.05 | AQ9: =IF(AP9=0,0,(AP9*((LOG(AP9))/LOG(2)))) -> -0.2160964047 | AS9: =N9 -> 121 | AT9: =COUNTIF(L128:L151,AS9) -> 3 | AU9: =AT9/(AV4-AT13) -> 0.1304347826 | AV9: =IF(AU9=0,0,(AU9*((LOG(AU9))/LOG(2)))) -> -0.3832955811
A10: 21 | B10: 468 | C10: 21 | D10: 487 | E10: 22 | F10: 500 | K10: 0 | L10: 222 | N10: 122 | O10: =COUNTIF($L$7:$L$500,N10) -> 11 | P10: =O10/$Q$4 -> 0.07586206897 | Q10: =IF(P10=0,0,(P10*((LOG(P10))/LOG(2)))) -> -0.2822431185 | T10: =N10 -> 122 | U10: =COUNTIF(L7:L30,T10) -> 2 | V10: =U10/(W4-U13) -> 0.09523809524 | W10: =IF(V10=0,0,(V10*((LOG(V10))/LOG(2)))) -> -0.3230778498 | Y10: =N10 -> 122 | Z10: =COUNTIF(L31:L54,Y10) -> 2 | AA10: =Z10/(AB4-Z13) -> 0.09090909091 | AB10: =IF(AA10=0,0,(AA10*((LOG(AA10))/LOG(2)))) -> -0.3144937835 | AD10: =N10 -> 122 | AE10: =COUNTIF(L55:L79,AD10) -> 0 | AF10: =AE10/(AG4-AE13) -> 0 | AG10: =IF(AF10=0,0,(AF10*((LOG(AF10))/LOG(2)))) -> 0 | AI10: =N10 -> 122 | AJ10: =COUNTIF(L80:L103,AI10) -> 3 | AK10: =AJ10/(AL4-AJ13) -> 0.1363636364 | AL10: =IF(AK10=0,0,(AK10*((LOG(AK10))/LOG(2)))) -> -0.3919730615 | AN10: =N10 -> 122 | AO10: =COUNTIF(L104:L127,AN10) -> 3 | AP10: =AO10/(AQ4-AO13) -> 0.15 | AQ10: =IF(AP10=0,0,(AP10*((LOG(AP10))/LOG(2)))) -> -0.4105448391 | AS10: =N10 -> 122 | AT10: =COUNTIF(L128:L151,AS10) -> 1 | AU10: =AT10/(AV4-AT13) -> 0.04347826087 | AV10: =IF(AU10=0,0,(AU10*((LOG(AU10))/LOG(2)))) -> -0.1966766068
A11: 21 | B11: 598 | C11: 12 | D11: 604 | E11: 24 | F11: 610 | K11: 0 | L11: 212 | N11: 211 | O11: =COUNTIF($L$7:$L$500,N11) -> 2 | P11: =O11/$Q$4 -> 0.01379310345 | Q11: =IF(P11=0,0,(P11*((LOG(P11))/LOG(2)))) -> -0.08524012538 | T11: =N11 -> 211 | U11: =COUNTIF(L7:L30,T11) -> 0 | V11: =U11/(W4-U13) -> 0 | W11: =IF(V11=0,0,(V11*((LOG(V11))/LOG(2)))) -> 0 | Y11: =N11 -> 211 | Z11: =COUNTIF(L31:L54,Y11) -> 1 | AA11: =Z11/(AB4-Z13) -> 0.04545454545 | AB11: =IF(AA11=0,0,(AA11*((LOG(AA11))/LOG(2)))) -> -0.2027014372 | AD11: =N11 -> 211 | AE11: =COUNTIF(L55:L79,AD11) -> 0 | AF11: =AE11/(AG4-AE13) -> 0 | AG11: =IF(AF11=0,0,(AF11*((LOG(AF11))/LOG(2)))) -> 0 | AI11: =N11 -> 211 | AJ11: =COUNTIF(L80:L103,AI11) -> 0 | AK11: =AJ11/(AL4-AJ13) -> 0 | AL11: =IF(AK11=0,0,(AK11*((LOG(AK11))/LOG(2)))) -> 0 | AN11: =N11 -> 211 | AO11: =COUNTIF(L104:L127,AN11) -> 1 | AP11: =AO11/(AQ4-AO13) -> 0.05 | AQ11: =IF(AP11=0,0,(AP11*((LOG(AP11))/LOG(2)))) -> -0.2160964047 | AS11: =N11 -> 211 | AT11: =COUNTIF(L128:L151,AS11) -> 0 | AU11: =AT11/(AV4-AT13) -> 0 | AV11: =IF(AU11=0,0,(AU11*((LOG(AU11))/LOG(2)))) -> 0
A12: 21 | B12: 715 | C12: 21 | D12: 720 | E12: 22 | F12: 730 | K12: 0 | L12: 222 | N12: 212 | O12: =COUNTIF($L$7:$L$500,N12) -> 25 | P12: =O12/$Q$4 -> 0.1724137931 | Q12: =IF(P12=0,0,(P12*((LOG(P12))/LOG(2)))) -> -0.4372505 | T12: =N12 -> 212 | U12: =COUNTIF(L7:L30,T12) -> 3 | V12: =U12/(W4-U13) -> 0.1428571429 | W12: =IF(V12=0,0,(V12*((LOG(V12))/LOG(2)))) -> -0.4010507032 | Y12: =N12 -> 212 | Z12: =COUNTIF(L31:L54,Y12) -> 2 | AA12: =Z12/(AB4-Z13) -> 0.09090909091 | AB12: =IF(AA12=0,0,(AA12*((LOG(AA12))/LOG(2)))) -> -0.3144937835 | AD12: =N12 -> 212 | AE12: =COUNTIF(L55:L79,AD12) -> 3 | AF12: =AE12/(AG4-AE13) -> 0.15 | AG12: =IF(AF12=0,0,(AF12*((LOG(AF12))/LOG(2)))) -> -0.4105448391 | AI12: =N12 -> 212 | AJ12: =COUNTIF(L80:L103,AI12) -> 3 | AK12: =AJ12/(AL4-AJ13) -> 0.1363636364 | AL12: =IF(AK12=0,0,(AK12*((LOG(AK12))/LOG(2)))) -> -0.3919730615 | AN12: =N12 -> 212 | AO12: =COUNTIF(L104:L127,AN12) -> 7 | AP12: =AO12/(AQ4-AO13) -> 0.35 | AQ12: =IF(AP12=0,0,(AP12*((LOG(AP12))/LOG(2)))) -> -0.5301006105 | AS12: =N12 -> 212 | AT12: =COUNTIF(L128:L151,AS12) -> 7 | AU12: =AT12/(AV4-AT13) -> 0.3043478261 | AV12: =IF(AU12=0,0,(AU12*((LOG(AU12))/LOG(2)))) -> -0.5223238799
A13: 21 | B13: 828 | C13: 21 | D13: 834 | E13: 22 | F13: 838 | K13: 0 | L13: 222 | N13: 221 | O13: =COUNTIF($L$7:$L$500,N13) -> 17 | P13: =O13/$Q$4 -> 0.1172413793 | Q13: =IF(P13=0,0,(P13*((LOG(P13))/LOG(2)))) -> -0.3625626636 | T13: =N13 -> 221 | U13: =COUNTIF(L7:L30,T13) -> 3 | Y13: =N13 -> 221 | Z13: =COUNTIF(L31:L54,Y13) -> 2 | AD13: =N13 -> 221 | AE13: =COUNTIF(L55:L79,AD13) -> 5 | AI13: =N13 -> 221 | AJ13: =COUNTIF(L80:L103,AI13) -> 2 | AN13: =N13 -> 221 | AO13: =COUNTIF(L104:L127,AN13) -> 4 | AS13: =N13 -> 221 | AT13: =COUNTIF(L128:L151,AS13) -> 1
A14: 21 | B14: 935 | C14: 21 | D14: 947 | E14: 22 | F14: 967 | K14: 0 | L14: 222 | N14: 222 | O14: =COUNTIF($L$7:$L$500,N14) -> 79 | P14: =O14/$Q$4 -> 0.5448275862 | Q14: =IF(P14=0,0,(P14*((LOG(P14))/LOG(2)))) -> -0.4773388897 | T14: =N14 -> 222 | U14: =COUNTIF(L7:L30,T14) -> 15 | V14: =U14/(W4-U13) -> 0.7142857143 | W14: =IF(V14=0,0,(V14*((LOG(V14))/LOG(2)))) -> -0.346733448 | Y14: =N14 -> 222 | Z14: =COUNTIF(L31:L54,Y14) -> 15 | AA14: =Z14/(AB4-Z13) -> 0.6818181818 | AB14: =IF(AA14=0,0,(AA14*((LOG(AA14))/LOG(2)))) -> -0.3767325157 | AD14: =N14 -> 222 | AE14: =COUNTIF(L55:L79,AD14) -> 16 | AF14: =AE14/(AG4-AE13) -> 0.8 | AG14: =IF(AF14=0,0,(AF14*((LOG(AF14))/LOG(2)))) -> -0.2575424759 | AI14: =N14 -> 222 | AJ14: =COUNTIF(L80:L103,AI14) -> 13 | AK14: =AJ14/(AL4-AJ13) -> 0.5909090909 | AL14: =IF(AK14=0,0,(AK14*((LOG(AK14))/LOG(2)))) -> -0.4484952139 | AN14: =N14 -> 222 | AO14: =COUNTIF(L104:L127,AN14) -> 8 | AP14: =AO14/(AQ4-AO13) -> 0.4 | AQ14: =IF(AP14=0,0,(AP14*((LOG(AP14))/LOG(2)))) -> -0.528771238 | AS14: =N14 -> 222 | AT14: =COUNTIF(L128:L151,AS14) -> 12 | AU14: =AT14/(AV4-AT13) -> 0.5217391304 | AV14: =IF(AU14=0,0,(AU14*((LOG(AU14))/LOG(2)))) -> -0.4897040637
A15: 12 | B15: 1059 | C15: 23 | D15: 1064 | E15: 24 | F15: 1075 | K15: 0 | L15: 122 | P15: =SUM(P7:P14) -> 1 | Q15: =-SUM(Q7:Q14) -> 1.978770987 | V15: =SUM(V7:V14) -> 1 | W15: =-SUM(W7:W14) -> 1.280019973 | AA15: =SUM(AA7:AA14) -> 1 | AB15: =-SUM(AB7:AB14) -> 1.522915303 | AF15: =SUM(AF7:AF14) -> 1 | AG15: =-SUM(AG7:AG14) -> 0.8841837198 | AK15: =SUM(AK7:AK14) -> 1 | AL15: =-SUM(AL7:AL14) -> 1.624414399 | AP15: =SUM(AP7:AP14) -> 1 | AQ15: =-SUM(AQ7:AQ14) -> 1.901609497 | AU15: =SUM(AU7:AU14) -> 1 | AV15: =-SUM(AV7:AV14) -> 1.592000131
A16: 21 | B16: 1186 | C16: 21 | D16: 1204 | E16: 22 | F16: 1213 | K16: 0 | L16: 222 | P16: U= | Q16: =Q15/(LOG(Q4)/LOG(2)) -> 0.2755983345 | V16: U1= | W16: =W15/(LOG(W4)/LOG(2)) -> 0.27917785 | AA16: U2= | AB16: =AB15/(LOG(AB4)/LOG(2)) -> 0.332154364 | AF16: U3= | AG16: =AG15/(LOG(AG4)/LOG(2)) -> 0.1903986006 | AK16: U4= | AL16: =AL15/(LOG(AL4)/LOG(2)) -> 0.3542917523 | AP16: U5= | AQ16: =AQ15/(LOG(AQ4)/LOG(2)) -> 0.414749193 | AU16: U6= | AV16: =AV15/(LOG(AV4)/LOG(2)) -> 0.3472220615
A17: 21 | B17: 1311 | C17: 21 | D17: 1317 | E17: 11 | F17: 1320 | K17: 0 | L17: 221
A18: 21 | B18: 1419 | C18: 12 | D18: 1429 | E18: 24 | F18: 1437 | K18: 0 | L18: 212
A19: 21 | B19: 1533 | C19: 21 | D19: 1543 | E19: 22 | F19: 1550 | K19: 0 | L19: 222 | N19: Total Target Seq
A20: 21 | B20: 1646 | C20: 21 | D20: 1653 | E20: 22 | F20: 1660 | K20: 0 | L20: 222 | N20: =COUNTIF(L7:L151,G3) -> 17 | P20: 24 | Q20: 24 | R20: 25 | S20: 24 | T20: 24 | U20: 24
A21: 21 | B21: 1756 | C21: 21 | D21: 1771 | E21: 22 | F21: 1777 | K21: 0 | L21: 222 | P21: % of reinforcement given in 6 equal intervals based on number of trials
A22: 21 | B22: 1873 | C22: 21 | D22: 1889 | E22: 22 | F22: 1895 | K22: 0 | L22: 222 | P22: %_1 | Q22: %_2 | R22: %_3 | S22: %_4 | T22: %_5 | U22: %_6
A23: 21 | B23: 1991 | C23: 21 | D23: 2000 | E23: 22 | F23: 2004 | K23: 0 | L23: 222 | O23: target sequence | P23: =$G$3 -> 221 | Q23: =$G$3 -> 221 | R23: =$G$3 -> 221 | S23: =$G$3 -> 221 | T23: =$G$3 -> 221 | U23: =$G$3 -> 221
A24: 21 | B24: 2100 | C24: 21 | D24: 2107 | E24: 11 | F24: 2120 | K24: 0 | L24: 221 | O24: total reinforcement | P24: =U13 -> 3 | Q24: =Z13 -> 2 | R24: =AE13 -> 5 | S24: =AJ13 -> 2 | T24: =AO13 -> 4 | U24: =AT13 -> 1
A25: 21 | B25: 2220 | C25: 12 | D25: 2231 | E25: 24 | F25: 2240 | K25: 0 | L25: 212 | O25: % target
A26: 21 | B26: 2339 | C26: 21 | D26: 2350 | E26: 22 | F26: 2357 | K26: 0 | L26: 222 | O26: CCRF
A27: 12 | B27: 2450 | C27: 23 | D27: 2453 | E27: 13 | F27: 2460 | K27: 0 | L27: 121 | O27: % CCRf
A28: 21 | B28: 2556 | C28: 21 | D28: 2560 | E28: 22 | F28: 2569 | K28: 0 | L28: 222 | O28: average response rate | P28: =F30/P20 -> 115.6666667 | Q28: =(F54-F30)/Q20 -> 120 | R28: =(F79-F54)/R20 -> 131.8 | S28: =(F103-F79)/S20 -> 120.4166667 | T28: =(F127-F103)/T20 -> 133.7083333 | U28: =(F151-F127)/U20 -> 279.8333333
A29: 21 | B29: 2665 | C29: 21 | D29: 2667 | E29: 22 | F29: 2674 | K29: 0 | L29: 222
A30: 12 | B30: 2767 | C30: 23 | D30: 2770 | E30: 24 | F30: 2776 | K30: 0 | L30: 122
A31: 21 | B31: 2871 | C31: 21 | D31: 2889 | E31: 22 | F31: 2896 | K31: 0 | L31: 222
A32: 12 | B32: 2988 | C32: 14 | D32: 2998 | E32: 24 | F32: 3015 | K32: 0 | L32: 112
A33: 21 | B33: 3112 | C33: 21 | D33: 3126 | E33: 11 | F33: 3129 | K33: 0 | L33: 221
A34: 12 | B34: 3267 | C34: 23 | D34: 3278 | E34: 24 | F34: 3284 | K34: 0 | L34: 122
A35: 21 | B35: 3380 | C35: 21 | D35: 3389 | E35: 11 | F35: 3393 | K35: 0 | L35: 221
A36: 21 | B36: 3605 | C36: 21 | D36: 3609 | E36: 22 | F36: 3621 | K36: 0 | L36: 222
A37: 21 | B37: 3716 | C37: 21 | D37: 3725 | E37: 22 | F37: 3730 | K37: 0 | L37: 222
A38: 21 | B38: 3822 | C38: 21 | D38: 3827 | E38: 22 | F38: 3832 | K38: 0 | L38: 222
A39: 21 | B39: 3929 | C39: 21 | D39: 3936 | E39: 22 | F39: 3938 | K39: 0 | L39: 222
A40: 21 | B40: 4033 | C40: 12 | D40: 4042 | E40: 24 | F40: 4044 | K40: 0 | L40: 212
A41: 21 | B41: 4139 | C41: 21 | D41: 4148 | E41: 22 | F41: 4152 | K41: 0 | L41: 222
A42: 12 | B42: 4307 | C42: 14 | D42: 4313 | E42: 24 | F42: 4315 | K42: 0 | L42: 112
A43: 21 | B43: 4410 | C43: 21 | D43: 4414 | E43: 22 | F43: 4418 | K43: 0 | L43: 222
A44: 21 | B44: 4513 | C44: 21 | D44: 4525 | E44: 22 | F44: 4533 | K44: 0 | L44: 222
A45: 21 | B45: 4629 | C45: 21 | D45: 4636 | E45: 22 | F45: 4649 | K45: 0 | L45: 222
A46: 21 | B46: 4745 | C46: 12 | D46: 4757 | E46: 13 | F46: 4763 | K46: 0 | L46: 211
A47: 21 | B47: 4860 | C47: 21 | D47: 4880 | E47: 22 | F47: 4886 | K47: 0 | L47: 222
A48: 21 | B48: 4985 | C48: 21 | D48: 4993 | E48: 22 | F48: 4998 | K48: 0 | L48: 222
A49: 21 | B49: 5096 | C49: 21 | D49: 5112 | E49: 22 | F49: 5115 | K49: 0 | L49: 222
A50: 21 | B50: 5211 | C50: 12 | D50: 5220 | E50: 24 | F50: 5226 | K50: 0 | L50: 212
A51: 12 | B51: 5320 | C51: 23 | D51: 5322 | E51: 24 | F51: 5324 | K51: 0 | L51: 122
A52: 21 | B52: 5420 | C52: 21 | D52: 5434 | E52: 22 | F52: 5440 | K52: 0 | L52: 222
A53: 21 | B53: 5537 | C53: 21 | D53: 5539 | E53: 22 | F53: 5543 | K53: 0 | L53: 222
A54: 21 | B54: 5635 | C54: 21 | D54: 5640 | E54: 22 | F54: 5656 | K54: 0 | L54: 222
A55: 21 | B55: 5757 | C55: 21 | D55: 5764 | E55: 22 | F55: 5770 | K55: 0 | L55: 222
A56: 12 | B56: 5862 | C56: 23 | D56: 5867 | E56: 13 | F56: 5874 | K56: 0 | L56: 121
A57: 21 | B57: 5970 | C57: 21 | D57: 5973 | E57: 11 | F57: 5976 | K57: 0 | L57: 221
A58: 21 | B58: 6192 | C58: 21 | D58: 6201 | E58: 22 | F58: 6207 | K58: 0 | L58: 222
A59: 21 | B59: 6303 | C59: 12 | D59: 6314 | E59: 24 | F59: 6320 | K59: 0 | L59: 212
A60: 21 | B60: 6416 | C60: 21 | D60: 6427 | E60: 22 | F60: 6433 | K60: 0 | L60: 222
A61: 21 | B61: 6529 | C61: 21 | D61: 6546 | E61: 22 | F61: 6552 | K61: 0 | L61: 222
A62: 21 | B62: 6647 | C62: 21 | D62: 6659 | E62: 22 | F62: 6664 | K62: 0 | L62: 222
A63: 21 | B63: 6761 | C63: 21 | D63: 6765 | E63: 11 | F63: 6771 | K63: 0 | L63: 221
A64: 21 | B64: 6861 | C64: 21 | D64: 6865 | E64: 22 | F64: 6879 | K64: 0 | L64: 222
A65: 21 | B65: 6971 | C65: 21 | D65: 6974 | E65: 11 | F65: 6981 | K65: 0 | L65: 221
A66: 21 | B66: 7159 | C66: 12 | D66: 7169 | E66: 24 | F66: 7176 | K66: 0 | L66: 212
A67: 21 | B67: 7272 | C67: 12 | D67: 7278 | E67: 24 | F67: 7284 | K67: 0 | L67: 212
A68: 21 | B68: 7380 | C68: 21 | D68: 7388 | E68: 22 | F68: 7393 | K68: 0 | L68: 222
A69: 21 | B69: 7489 | C69: 21 | D69: 7493 | E69: 22 | F69: 7507 | K69: 0 | L69: 222
A70: 21 | B70: 7603 | C70: 21 | D70: 7627 | E70: 11 | F70: 7631 | K70: 0 | L70: 221
A71: 21 | B71: 7816 | C71: 21 | D71: 7824 | E71: 22 | F71: 7830 | K71: 0 | L71: 222
A72: 21 | B72: 7955 | C72: 21 | D72: 7970 | E72: 22 | F72: 7977 | K72: 0 | L72: 222
A73: 21 | B73: 8073 | C73: 21 | D73: 8075 | E73: 22 | F73: 8087 | K73: 0 | L73: 222
A74: 21 | B74: 8183 | C74: 21 | D74: 8197 | E74: 22 | F74: 8206 | K74: 0 | L74: 222
A75: 21 | B75: 8302 | C75: 21 | D75: 8306 | E75: 22 | F75: 8311 | K75: 0 | L75: 222
A76: 21 | B76: 8407 | C76: 21 | D76: 8417 | E76: 22 | F76: 8424 | K76: 0 | L76: 222
A77: 21 | B77: 8520 | C77: 21 | D77: 8528 | E77: 11 | F77: 8532 | K77: 0 | L77: 221
A78: 21 | B78: 8818 | C78: 21 | D78: 8825 | E78: 22 | F78: 8840 | K78: 0 | L78: 222
A79: 21 | B79: 8937 | C79: 21 | D79: 8945 | E79: 22 | F79: 8951 | K79: 0 | L79: 222
A80: 21 | B80: 9050 | C80: 21 | D80: 9058 | E80: 22 | F80: 9063 | K80: 0 | L80: 222
A81: 12 | B81: 9155 | C81: 23 | D81: 9158 | E81: 24 | F81: 9166 | K81: 0 | L81: 122
A82: 12 | B82: 9310 | C82: 23 | D82: 9314 | E82: 24 | F82: 9328 | K82: 0 | L82: 122
A83: 21 | B83: 9423 | C83: 21 | D83: 9432 | E83: 22 | F83: 9443 | K83: 0 | L83: 222
A84: 21 | B84: 9539 | C84: 21 | D84: 9550 | E84: 22 | F84: 9554 | K84: 0 | L84: 222
A85: 21 | B85: 9649 | C85: 21 | D85: 9662 | E85: 22 | F85: 9669 | K85: 0 | L85: 222
A86: 12 | B86: 9762 | C86: 23 | D86: 9765 | E86: 13 | F86: 9773 | K86: 0 | L86: 121
A87: 12 | B87: 9923 | C87: 23 | D87: 9926 | E87: 13 | F87: 9932 | K87: 0 | L87: 121
A88: 21 | B88: 10028 | C88: 12 | D88: 10033 | E88: 24 | F88: 10036 | K88: 0 | L88: 212
A89: 21 | B89: 10132 | C89: 21 | D89: 10136 | E89: 22 | F89: 10142 | K89: 0 | L89: 222
A90: 12 | B90: 10247 | C90: 23 | D90: 10254 | E90: 24 | F90: 10262 | K90: 0 | L90: 122
A91: 21 | B91: 10357 | C91: 21 | D91: 10367 | E91: 22 | F91: 10374 | K91: 0 | L91: 222
A92: 21 | B92: 10466 | C92: 21 | D92: 10469 | E92: 11 | F92: 10477 | K92: 0 | L92: 221
A93: 21 | B93: 10686 | C93: 21 | D93: 10696 | E93: 22 | F93: 10711 | K93: 0 | L93: 222
A94: 21 | B94: 10803 | C94: 21 | D94: 10809 | E94: 22 | F94: 10813 | K94: 0 | L94: 222
A95: 21 | B95: 10906 | C95: 21 | D95: 10908 | E95: 22 | F95: 10916 | K95: 0 | L95: 222
A96: 21 | B96: 11012 | C96: 21 | D96: 11015 | E96: 22 | F96: 11025 | K96: 0 | L96: 222
A97: 21 | B97: 11120 | C97: 21 | D97: 11133 | E97: 11 | F97: 11136 | K97: 0 | L97: 221
A98: 21 | B98: 11286 | C98: 21 | D98: 11292 | E98: 22 | F98: 11300 | K98: 0 | L98: 222
A99: 21 | B99: 11400 | C99: 12 | D99: 11403 | E99: 24 | F99: 11407 | K99: 0 | L99: 212
A100: 21 | B100: 11502 | C100: 21 | D100: 11505 | E100: 22 | F100: 11516 | K100: 0 | L100: 222
A101: 12 | B101: 11609 | C101: 23 | D101: 11612 | E101: 13 | F101: 11620 | K101: 0 | L101: 121
A102: 21 | B102: 11716 | C102: 12 | D102: 11726 | E102: 24 | F102: 11734 | K102: 0 | L102: 212
A103: 21 | B103: 11829 | C103: 21 | D103: 11833 | E103: 22 | F103: 11841 | K103: 0 | L103: 222
A104: 21 | B104: 11989 | C104: 12 | D104: 11999 | E104: 24 | F104: 12002 | K104: 0 | L104: 212
A105: 21 | B105: 12098 | C105: 12 | D105: 12104 | E105: 24 | F105: 12109 | K105: 0 | L105: 212
A106: 21 | B106: 12208 | C106: 21 | D106: 12218 | E106: 11 | F106: 12222 | K106: 0 | L106: 221
A107: 21 | B107: 12453 | C107: 21 | D107: 12461 | E107: 22 | F107: 12467 | K107: 0 | L107: 222
A108: 21 | B108: 12563 | C108: 12 | D108: 12570 | E108: 24 | F108: 12578 | K108: 0 | L108: 212
A109: 12 | B109: 12672 | C109: 23 | D109: 12673 | E109: 24 | F109: 12683 | K109: 0 | L109: 122
A110: 12 | B110: 12775 | C110: 23 | D110: 12778 | E110: 24 | F110: 12790 | K110: 0 | L110: 122
A111: 21 | B111: 12888 | C111: 21 | D111: 12891 | E111: 22 | F111: 12895 | K111: 0 | L111: 222
A112: 21 | B112: 12991 | C112: 21 | D112: 13003 | E112: 22 | F112: 13010 | K112: 0 | L112: 222
A113: 21 | B113: 13106 | C113: 21 | D113: 13110 | E113: 22 | F113: 13114 | K113: 0 | L113: 222
A114: 21 | B114: 13211 | C114: 12 | D114: 13217 | E114: 24 | F114: 13222 | K114: 0 | L114: 212
A115: 12 | B115: 13326 | C115: 23 | D115: 13334 | E115: 13 | F115: 13345 | K115: 0 | L115: 121
A116: 21 | B116: 13441 | C116: 12 | D116: 13447 | E116: 24 | F116: 13449 | K116: 0 | L116: 212
A117: 21 | B117: 13545 | C117: 12 | D117: 13551 | E117: 24 | F117: 13558 | K117: 0 | L117: 212
A118: 21 | B118: 13661 | C118: 21 | D118: 13665 | E118: 22 | F118: 13672 | K118: 0 | L118: 222
A119: 21 | B119: 13767 | C119: 21 | D119: 13771 | E119: 22 | F119: 13784 | K119: 0 | L119: 222
A120: 21 | B120: 13880 | C120: 12 | D120: 13891 | E120: 13 | F120: 13893 | K120: 0 | L120: 211
A121: 21 | B121: 13988 | C121: 21 | D121: 13999 | E121: 22 | F121: 14005 | K121: 0 | L121: 222
A122: 21 | B122: 14097 | C122: 12 | D122: 14107 | E122: 24 | F122: 14109 | K122: 0 | L122: 212
A123: 12 | B123: 14274 | C123: 23 | D123: 14279 | E123: 24 | F123: 14296 | K123: 0 | L123: 122
A124: 21 | B124: 14392 | C124: 21 | D124: 14407 | E124: 11 | F124: 14411 | K124: 0 | L124: 221
A125: 21 | B125: 14764 | C125: 21 | D125: 14770 | E125: 22 | F125: 14776 | K125: 0 | L125: 222
A126: 21 | B126: 14870 | C126: 21 | D126: 14877 | E126: 11 | F126: 14879 | K126: 0 | L126: 221
A127: 21 | B127: 15033 | C127: 21 | D127: 15045 | E127: 11 | F127: 15050 | K127: 0 | L127: 221
A128: 21 | B128: 15421 | C128: 21 | D128: 15429 | E128: 22 | F128: 15442 | K128: 0 | L128: 222
A129: 21 | B129: 15536 | C129: 21 | D129: 15543 | E129: 22 | F129: 15550 | K129: 0 | L129: 222
A130: 21 | B130: 15644 | C130: 12 | D130: 15654 | E130: 24 | F130: 15659 | K130: 0 | L130: 212
A131: 21 | B131: 15755 | C131: 21 | D131: 15774 | E131: 11 | F131: 15780 | K131: 0 | L131: 221
A132: 21 | B132: 15959 | C132: 21 | D132: 15964 | E132: 22 | F132: 15971 | K132: 0 | L132: 222
A133: 21 | B133: 16148 | C133: 21 | D133: 16153 | E133: 22 | F133: 16166 | K133: 0 | L133: 222
A134: 12 | B134: 16258 | C134: 23 | D134: 16262 | E134: 24 | F134: 16267 | K134: 0 | L134: 122
A135: 21 | B135: 16363 | C135: 21 | D135: 16368 | E135: 22 | F135: 16377 | K135: 0 | L135: 222
A136: 21 | B136: 16473 | C136: 12 | D136: 16481 | E136: 24 | F136: 16486 | K136: 0 | L136: 212
A137: 21 | B137: 16582 | C137: 12 | D137: 16592 | E137: 24 | F137: 16597 | K137: 0 | L137: 212
A138: 12 | B138: 16691 | C138: 23 | D138: 16694 | E138: 13 | F138: 16697 | K138: 0 | L138: 121
A139: 21 | B139: 16804 | C139: 21 | D139: 16809 | E139: 22 | F139: 16813 | K139: 0 | L139: 222
A140: 12 | B140: 16909 | C140: 23 | D140: 16913 | E140: 13 | F140: 16920 | K140: 0 | L140: 121
A141: 21 | B141: 17019 | C141: 12 | D141: 17025 | E141: 24 | F141: 17030 | K141: 0 | L141: 212
A142: 21 | B142: 17144 | C142: 12 | D142: 17150 | E142: 24 | F142: 17156 | K142: 0 | L142: 212
A143: 12 | B143: 17250 | C143: 23 | D143: 17251 | E143: 13 | F143: 17258 | K143: 0 | L143: 121
A144: 21 | B144: 17355 | C144: 12 | D144: 17360 | E144: 24 | F144: 17378 | K144: 0 | L144: 212
A145: 21 | B145: 17473 | C145: 12 | D145: 17481 | E145: 24 | F145: 17484 | K145: 0 | L145: 212
A146: 21 | B146: 17579 | C146: 21 | D146: 17595 | E146: 22 | F146: 17600 | K146: 0 | L146: 222
A147: 21 | B147: 17729 | C147: 21 | D147: 17736 | E147: 22 | F147: 17742 | K147: 0 | L147: 222
A148: 21 | B148: 17838 | C148: 21 | D148: 17844 | E148: 22 | F148: 17852 | K148: 0 | L148: 222
A149: 21 | B149: 20102 | C149: 21 | D149: 20112 | E149: 22 | F149: 20120 | K149: 0 | L149: 222
A150: 21 | B150: 21412 | C150: 21 | D150: 21438 | E150: 22 | F150: 21445 | K150: 0 | L150: 222
A151: 21 | B151: 21747 | C151: 21 | D151: 21758 | E151: 22 | F151: 21766 | K151: 0 | L151: 222

Sheet !MA02940.Gus
A1: Report for:!MA02940.Gus
A2: Date: | B2: <date>
A3: Hen: | B3: <hen> | F3: Correct Sequence | G3: =Start!J2 -> 221 | P3: Total Sequences in Data | Q3: =4994-COUNTBLANK(L7:L5000) -> 183 | V3: Total Sequences in Block Data | W3: =COUNTA(L7:L37) -> 31 | AA3: Total Sequences in Block Data | AB3: =COUNTA(L38:L67) -> 30 | AF3: Total Sequences in Block Data | AG3: =COUNTA(L68:L98) -> 31 | AK3: Total Sequences in Block Data | AL3: =COUNTA(L99:L128) -> 30 | AP3: Total Sequences in Block Data | AQ3: =COUNTA(L129:L159) -> 31 | AU3: Total Sequences in Block Data | AV3: =COUNTA(L160:L189) -> 30
P4: Total Sequences in Summary | Q4: =SUM(O7:O14) -> 183 | V4: Total Sequences in Block Summary | W4: =SUM(U7:U14) -> 31 | AA4: Total Sequences in Block Summary | AB4: =SUM(Z7:Z14) -> 30 | AF4: Total Sequences in Block Summary | AG4: =SUM(AE7:AE14) -> 31 | AK4: Total Sequences in Block Summary | AL4: =SUM(AJ7:AJ14) -> 30 | AP4: Total Sequences in Block Summary | AQ4: =SUM(AO7:AO14) -> 31 | AU4: Total Sequences in Block Summary | AV4: =SUM(AT7:AT14) -> 30
T5: Block 1 | Y5: Block 2 | AD5: Block 3 | AI5: Block 4 | AN5: Block 5 | AS5: Block 6
A6: Sequence Component 1 | B6: Time 1 | C6: Sequence Component 2 | D6: Time 2 | E6: Sequence Component 3 | F6: Time 3 | G6: Sequence Component 4 | H6: Time 4 | I6: Sequence Component 5 | J6: Time 5 | K6: Correct? 0=No 1=Yes | L6: Sequence | N6: Frequency | P6: Relative Frequency | Q6: Variability | T6: Frequency | V6: Relative Frequency | W6: Variability | Y6: Frequency | AA6: Relative Frequency | AB6: Variability | AD6: Frequency | AF6: Relative Frequency | AG6: Variability | AI6: Frequency | AK6: Relative Frequency | AL6: Variability | AN6: Frequency | AP6: Relative Frequency | AQ6: Variability | AS6: Frequency | AU6: Relative Frequency | AV6: Variability
A7: 21 | B7: 36 | C7: 21 | D7: 40 | E7: 22 | F7: 47 | K7: 0 | L7: 222 | N7: 111 | O7: =COUNTIF($L$7:$L$500,N7) -> 0 | P7: =O7/$Q$4 -> 0 | Q7: =IF(P7=0,0,(P7*((LOG(P7))/LOG(2)))) -> 0 | T7: =N7 -> 111 | U7: =COUNTIF(L7:L37,T7) -> 0 | V7: =U7/(W4-U13) -> 0 | W7: =IF(V7=0,0,(V7*((LOG(V7))/LOG(2)))) -> 0 | Y7: =N7 -> 111 | Z7: =COUNTIF(L38:L67,Y7) -> 0 | AA7: =Z7/(AB4-Z13) -> 0 | AB7: =IF(AA7=0,0,(AA7*((LOG(AA7))/LOG(2)))) -> 0 | AD7: =N7 -> 111 | AE7: =COUNTIF(L68:L98,AD7) -> 0 | AF7: =AE7/(AG4-AE13) -> 0 | AG7: =IF(AF7=0,0,(AF7*((LOG(AF7))/LOG(2)))) -> 0 | AI7: =N7 -> 111 | AJ7: =COUNTIF(L99:L128,AI7) -> 0 | AK7: =AJ7/(AL4-AJ13) -> 0 | AL7: =IF(AK7=0,0,(AK7*((LOG(AK7))/LOG(2)))) -> 0 | AN7: =N7 -> 111 | AO7: =COUNTIF(L129:L159,AN7) -> 0 | AP7: =AO7/(AQ4-AO13) -> 0 | AQ7: =IF(AP7=0,0,(AP7*((LOG(AP7))/LOG(2)))) -> 0 | AS7: =N7 -> 111 | AT7: =COUNTIF(L160:L189,AS7) -> 0 | AU7: =AT7/(AV4-AT13) -> 0 | AV7: =IF(AU7=0,0,(AU7*((LOG(AU7))/LOG(2)))) -> 0
A8: 21 | B8: 143 | C8: 21 | D8: 158 | E8: 22 | F8: 165 | K8: 0 | L8: 222 | N8: 112 | O8: =COUNTIF($L$7:$L$500,N8) -> 1 | P8: =O8/$Q$4 -> 0.005464480874 | Q8: =IF(P8=0,0,(P8*((LOG(P8))/LOG(2)))) -> -0.04106939802 | T8: =N8 -> 112 | U8: =COUNTIF(L7:L37,T8) -> 0 | V8: =U8/(W4-U13) -> 0 | W8: =IF(V8=0,0,(V8*((LOG(V8))/LOG(2)))) -> 0 | Y8: =N8 -> 112 | Z8: =COUNTIF(L38:L67,Y8) -> 0 | AA8: =Z8/(AB4-Z13) -> 0 | AB8: =IF(AA8=0,0,(AA8*((LOG(AA8))/LOG(2)))) -> 0 | AD8: =N8 -> 112 | AE8: =COUNTIF(L68:L98,AD8) -> 0 | AF8: =AE8/(AG4-AE13) -> 0 | AG8: =IF(AF8=0,0,(AF8*((LOG(AF8))/LOG(2)))) -> 0 | AI8: =N8 -> 112 | AJ8: =COUNTIF(L99:L128,AI8) -> 0 | AK8: =AJ8/(AL4-AJ13) -> 0 | AL8: =IF(AK8=0,0,(AK8*((LOG(AK8))/LOG(2)))) -> 0 | AN8: =N8 -> 112 | AO8: =COUNTIF(L129:L159,AN8) -> 0 | AP8: =AO8/(AQ4-AO13) -> 0 | AQ8: =IF(AP8=0,0,(AP8*((LOG(AP8))/LOG(2)))) -> 0 | AS8: =N8 -> 112 | AT8: =COUNTIF(L160:L189,AS8) -> 1 | AU8: =AT8/(AV4-AT13) -> 0.04166666667 | AV8: =IF(AU8=0,0,(AU8*((LOG(AU8))/LOG(2)))) -> -0.1910401042
A9: 21 | B9: 262 | C9: 21 | D9: 273 | E9: 22 | F9: 275 | K9: 0 | L9: 222 | N9: 121 | O9: =COUNTIF($L$7:$L$500,N9) -> 14 | P9: =O9/$Q$4 -> 0.07650273224 | Q9: =IF(P9=0,0,(P9*((LOG(P9))/LOG(2)))) -> -0.2836985182 | T9: =N9 -> 121 | U9: =COUNTIF(L7:L37,T9) -> 2 | V9: =U9/(W4-U13) -> 0.07407407407 | W9: =IF(V9=0,0,(V9*((LOG(V9))/LOG(2)))) -> -0.278139815 | Y9: =N9 -> 121 | Z9: =COUNTIF(L38:L67,Y9) -> 2 | AA9: =Z9/(AB4-Z13) -> 0.06666666667 | AB9: =IF(AA9=0,0,(AA9*((LOG(AA9))/LOG(2)))) -> -0.260459373 | AD9: =N9 -> 121 | AE9: =COUNTIF(L68:L98,AD9) -> 5 | AF9: =AE9/(AG4-AE13) -> 0.1851851852 | AG9: =IF(AF9=0,0,(AF9*((LOG(AF9))/LOG(2)))) -> -0.4505480384 | AI9: =N9 -> 121 | AJ9: =COUNTIF(L99:L128,AI9) -> 1 | AK9: =AJ9/(AL4-AJ13) -> 0.03703703704 | AL9: =IF(AK9=0,0,(AK9*((LOG(AK9))/LOG(2)))) -> -0.1761069445 | AN9: =N9 -> 121 | AO9: =COUNTIF(L129:L159,AN9) -> 3 | AP9: =AO9/(AQ4-AO13) -> 0.1153846154 | AQ9: =IF(AP9=0,0,(AP9*((LOG(AP9))/LOG(2)))) -> -0.3594781405 | AS9: =N9 -> 121 | AT9: =COUNTIF(L160:L189,AS9) -> 1 | AU9: =AT9/(AV4-AT13) -> 0.04166666667 | AV9: =IF(AU9=0,0,(AU9*((LOG(AU9))/LOG(2)))) -> -0.1910401042
A10: 12 | B10: 369 | C10: 23 | D10: 372 | E10: 24 | F10: 378 | K10: 0 | L10: 122 | N10: 122 | O10: =COUNTIF($L$7:$L$500,N10) -> 10 | P10: =O10/$Q$4 -> 0.05464480874 | Q10: =IF(P10=0,0,(P10*((LOG(P10))/LOG(2)))) -> -0.2291678548 | T10: =N10 -> 122 | U10: =COUNTIF(L7:L37,T10) -> 3 | V10: =U10/(W4-U13) -> 0.1111111111 | W10: =IF(V10=0,0,(V10*((LOG(V10))/LOG(2)))) -> -0.352213889 | Y10: =N10 -> 122 | Z10: =COUNTIF(L38:L67,Y10) -> 2 | AA10: =Z10/(AB4-Z13) -> 0.06666666667 | AB10: =IF(AA10=0,0,(AA10*((LOG(AA10))/LOG(2)))) -> -0.260459373 | AD10: =N10 -> 122 | AE10: =COUNTIF(L68:L98,AD10) -> 1 | AF10: =AE10/(AG4-AE13) -> 0.03703703704 | AG10: =IF(AF10=0,0,(AF10*((LOG(AF10))/LOG(2)))) -> -0.1761069445 | AI10: =N10 -> 122 | AJ10: =COUNTIF(L99:L128,AI10) -> 2 | AK10: =AJ10/(AL4-AJ13) -> 0.07407407407 | AL10: =IF(AK10=0,0,(AK10*((LOG(AK10))/LOG(2)))) -> -0.278139815 | AN10: =N10 -> 122 | AO10: =COUNTIF(L129:L159,AN10) -> 0 | AP10: =AO10/(AQ4-AO13) -> 0 | AQ10: =IF(AP10=0,0,(AP10*((LOG(AP10))/LOG(2)))) -> 0 | AS10: =N10 -> 122 | AT10: =COUNTIF(L160:L189,AS10) -> 2 | AU10: =AT10/(AV4-AT13) -> 0.08333333333 | AV10: =IF(AU10=0,0,(AU10*((LOG(AU10))/LOG(2)))) -> -0.2987468751
A11: 21 | B11: 606 | C11: 21 | D11: 618 | E11: 22 | F11: 630 | K11: 0 | L11: 222 | N11: 211 | O11: =COUNTIF($L$7:$L$500,N11) -> 1 | P11: =O11/$Q$4 -> 0.005464480874 | Q11: =IF(P11=0,0,(P11*((LOG(P11))/LOG(2)))) -> -0.04106939802 | T11: =N11 -> 211 | U11: =COUNTIF(L7:L37,T11) -> 0 | V11: =U11/(W4-U13) -> 0 | W11: =IF(V11=0,0,(V11*((LOG(V11))/LOG(2)))) -> 0 | Y11: =N11 -> 211 | Z11: =COUNTIF(L38:L67,Y11) -> 0 | AA11: =Z11/(AB4-Z13) -> 0 | AB11: =IF(AA11=0,0,(AA11*((LOG(AA11))/LOG(2)))) -> 0 | AD11: =N11 -> 211 | AE11: =COUNTIF(L68:L98,AD11) -> 0 | AF11: =AE11/(AG4-AE13) -> 0 | AG11: =IF(AF11=0,0,(AF11*((LOG(AF11))/LOG(2)))) -> 0 | AI11: =N11 -> 211 | AJ11: =COUNTIF(L99:L128,AI11) -> 1 | AK11: =AJ11/(AL4-AJ13) -> 0.03703703704 | AL11: =IF(AK11=0,0,(AK11*((LOG(AK11))/LOG(2)))) -> -0.1761069445 | AN11: =N11 -> 211 | AO11: =COUNTIF(L129:L159,AN11) -> 0 | AP11: =AO11/(AQ4-AO13) -> 0 | AQ11: =IF(AP11=0,0,(AP11*((LOG(AP11))/LOG(2)))) -> 0 | AS11: =N11 -> 211 | AT11: =COUNTIF(L160:L189,AS11) -> 0 | AU11: =AT11/(AV4-AT13) -> 0 | AV11: =IF(AU11=0,0,(AU11*((LOG(AU11))/LOG(2)))) -> 0
A12: 21 | B12: 728 | C12: 21 | D12: 740 | E12: 11 | F12: 744 | K12: 0 | L12: 221 | N12: 212 | O12: =COUNTIF($L$7:$L$500,N12) -> 54 | P12: =O12/$Q$4 -> 0.2950819672 | Q12: =IF(P12=0,0,(P12*((LOG(P12))/LOG(2)))) -> -0.519583968 | T12: =N12 -> 212 | U12: =COUNTIF(L7:L37,T12) -> 5 | V12: =U12/(W4-U13) -> 0.1851851852 | W12: =IF(V12=0,0,(V12*((LOG(V12))/LOG(2)))) -> -0.4505480384 | Y12: =N12 -> 212 | Z12: =COUNTIF(L38:L67,Y12) -> 11 | AA12: =Z12/(AB4-Z13) -> 0.3666666667 | AB12: =IF(AA12=0,0,(AA12*((LOG(AA12))/LOG(2)))) -> -0.5307349582 | AD12: =N12 -> 212 | AE12: =COUNTIF(L68:L98,AD12) -> 11 | AF12: =AE12/(AG4-AE13) -> 0.4074074074 | AG12: =IF(AF12=0,0,(AF12*((LOG(AF12))/LOG(2)))) -> -0.5277783229 | AI12: =N12 -> 212 | AJ12: =COUNTIF(L99:L128,AI12) -> 12 | AK12: =AJ12/(AL4-AJ13) -> 0.4444444444 | AL12: =IF(AK12=0,0,(AK12*((LOG(AK12))/LOG(2)))) -> -0.5199666673 | AN12: =N12 -> 212 | AO12: =COUNTIF(L129:L159,AN12) -> 11 | AP12: =AO12/(AQ4-AO13) -> 0.4230769231 | AQ12: =IF(AP12=0,0,(AP12*((LOG(AP12))/LOG(2)))) -> -0.5250418883 | AS12: =N12 -> 212 | AT12: =COUNTIF(L160:L189,AS12) -> 4 | AU12: =AT12/(AV4-AT13) -> 0.1666666667 | AV12: =IF(AU12=0,0,(AU12*((LOG(AU12))/LOG(2)))) -> -0.4308270835
A13: 21 | B13: 841 | C13: 12 | D13: 847 | E13: 24 | F13: 852 | K13: 0 | L13: 212 | N13: 221 | O13: =COUNTIF($L$7:$L$500,N13) -> 22 | P13: =O13/$Q$4 -> 0.1202185792 | Q13: =IF(P13=0,0,(P13*((LOG(P13))/LOG(2)))) -> -0.3674202231 | T13: =N13 -> 221 | U13: =COUNTIF(L7:L37,T13) -> 4 | Y13: =N13 -> 221 | Z13: =COUNTIF(L38:L67,Y13) -> 0 | AD13: =N13 -> 221 | AE13: =COUNTIF(L68:L98,AD13) -> 4 | AI13: =N13 -> 221 | AJ13: =COUNTIF(L99:L128,AI13) -> 3 | AN13: =N13 -> 221 | AO13: =COUNTIF(L129:L159,AN13) -> 5 | AS13: =N13 -> 221 | AT13: =COUNTIF(L160:L189,AS13) -> 6
A14: 21 | B14: 948 | C14: 21 | D14: 953 | E14: 11 | F14: 956 | K14: 0 | L14: 221 | N14: 222 | O14: =COUNTIF($L$7:$L$500,N14) -> 81 | P14: =O14/$Q$4 -> 0.4426229508 | Q14: =IF(P14=0,0,(P14*((LOG(P14))/LOG(2)))) -> -0.5204581239 | T14: =N14 -> 222 | U14: =COUNTIF(L7:L37,T14) -> 17 | V14: =U14/(W4-U13) -> 0.6296296296 | W14: =IF(V14=0,0,(V14*((LOG(V14))/LOG(2)))) -> -0.4202303421 | Y14: =N14 -> 222 | Z14: =COUNTIF(L38:L67,Y14) -> 15 | AA14: =Z14/(AB4-Z13) -> 0.5 | AB14: =IF(AA14=0,0,(AA14*((LOG(AA14))/LOG(2)))) -> -0.5 | AD14: =N14 -> 222 | AE14: =COUNTIF(L68:L98,AD14) -> 10 | AF14: =AE14/(AG4-AE13) -> 0.3703703704 | AG14: =IF(AF14=0,0,(AF14*((LOG(AF14))/LOG(2)))) -> -0.5307257064 | AI14: =N14 -> 222 | AJ14: =COUNTIF(L99:L128,AI14) -> 11 | AK14: =AJ14/(AL4-AJ13) -> 0.4074074074 | AL14: =IF(AK14=0,0,(AK14*((LOG(AK14))/LOG(2)))) -> -0.5277783229 | AN14: =N14 -> 222 | AO14: =COUNTIF(L129:L159,AN14) -> 12 | AP14: =AO14/(AQ4-AO13) -> 0.4615384615 | AQ14: =IF(AP14=0,0,(AP14*((LOG(AP14))/LOG(2)))) -> -0.5148356388 | AS14: =N14 -> 222 | AT14: =COUNTIF(L160:L189,AS14) -> 16 | AU14: =AT14/(AV4-AT13) -> 0.6666666667 | AV14: =IF(AU14=0,0,(AU14*((LOG(AU14))/LOG(2)))) -> -0.3899750005
A15: 21 | B15: 1078 | C15: 21 | D15: 1082 | E15: 22 | F15: 1091 | K15: 0 | L15: 222 | P15: =SUM(P7:P14) -> 1 | Q15: =-SUM(Q7:Q14) -> 2.002467484 | V15: =SUM(V7:V14) -> 1 | W15: =-SUM(W7:W14) -> 1.501132084 | AA15: =SUM(AA7:AA14) -> 1 | AB15: =-SUM(AB7:AB14) -> 1.551653704 | AF15: =SUM(AF7:AF14) -> 1 | AG15: =-SUM(AG7:AG14) -> 1.685159012 | AK15: =SUM(AK7:AK14) -> 1 | AL15: =-SUM(AL7:AL14) -> 1.678098694 | AP15: =SUM(AP7:AP14) -> 1 | AQ15: =-SUM(AQ7:AQ14) -> 1.399355668 | AU15: =SUM(AU7:AU14) -> 1 | AV15: =-SUM(AV7:AV14) -> 1.501629167
A16: 21 | B16: 1188 | C16: 21 | D16: 1202 | E16: 22 | F16: 1209 | K16: 0 | L16: 222 | P16: U= | Q16: =Q15/(LOG(Q4)/LOG(2)) -> 0.2664379269 | V16: U1= | W16: =W15/(LOG(W4)/LOG(2)) -> 0.3030021401 | AA16: U2= | AB16: =AB15/(LOG(AB4)/LOG(2)) -> 0.3162193397 | AF16: U3= | AG16: =AG15/(LOG(AG4)/LOG(2)) -> 0.3401478074 | AK16: U4= | AL16: =AL15/(LOG(AL4)/LOG(2)) -> 0.3419882024 | AP16: U5= | AQ16: =AQ15/(LOG(AQ4)/LOG(2)) -> 0.2824586633 | AU16: U6= | AV16: =AV15/(LOG(AV4)/LOG(2)) -> 0.3060245869
A17: 21 | B17: 1305 | C17: 21 | D17: 1315 | E17: 11 | F17: 1330 | K17: 0 | L17: 221
A18: 21 | B18: 1432 | C18: 21 | D18: 1446 | E18: 22 | F18: 1454 | K18: 0 | L18: 222
A19: 21 | B19: 1555 | C19: 21 | D19: 1557 | E19: 22 | F19: 1564 | K19: 0 | L19: 222 | N19: Total Target Seq
A20: 12 | B20: 1657 | C20: 23 | D20: 1660 | E20: 24 | F20: 1669 | K20: 0 | L20: 122 | N20: =COUNTIF(L7:L189,G3) -> 22 | P20: 31 | Q20: 30 | R20: 31 | S20: 30 | T20: 31 | U20: 30
A21: 21 | B21: 1766 | C21: 21 | D21: 1777 | E21: 22 | F21: 1781 | K21: 0 | L21: 222 | P21: % of reinforcement given in 6 equal intervals based on number of trials
A22: 21 | B22: 1877 | C22: 12 | D22: 1884 | E22: 24 | F22: 1893 | K22: 0 | L22: 212 | P22: %_1 | Q22: %_2 | R22: %_3 | S22: %_4 | T22: %_5 | U22: %_6
A23: 21 | B23: 1988 | C23: 12 | D23: 2000 | E23: 24 | F23: 2006 | K23: 0 | L23: 212 | O23: target sequence | P23: =$G$3 -> 221 | Q23: =$G$3 -> 221 | R23: =$G$3 -> 221 | S23: =$G$3 -> 221 | T23: =$G$3 -> 221 | U23: =$G$3 -> 221
A24: 21 | B24: 2102 | C24: 21 | D24: 2105 | E24: 22 | F24: 2120 | K24: 0 | L24: 222 | O24: total reinforcement | P24: =U13 -> 4 | Q24: =Z13 -> 0 | R24: =AE13 -> 4 | S24: =AJ13 -> 3 | T24: =AO13 -> 5 | U24: =AT13 -> 6
A25: 21 | B25: 2216 | C25: 21 | D25: 2223 | E25: 22 | F25: 2234 | K25: 0 | L25: 222 | O25: % target
A26: 12 | B26: 2327 | C26: 23 | D26: 2330 | E26: 13 | F26: 2335 | K26: 0 | L26: 121 | O26: CCRF
A27: 21 | B27: 2459 | C27: 21 | D27: 2472 | E27: 22 | F27: 2480 | K27: 0 | L27: 222 | O27: % CCRf
A28: 21 | B28: 2575 | C28: 12 | D28: 2583 | E28: 24 | F28: 2593 | K28: 0 | L28: 212 | O28: average response rate | P28: =F37/P20 -> 118.7741935 | Q28: =(F67-F37)/Q20 -> 106.2666667 | R28: =(F98-F67)/R20 -> 141.3225806 | S28: =(F128-F98)/S20 -> 136.8666667 | T28: =(F159-F128)/T20 -> 128.4516129 | U28: =(F189-F159)/U20 -> 145.4333333
A29: 21 | B29: 2691 | C29: 21 | D29: 2692 | E29: 22 | F29: 2704 | K29: 0 | L29: 222
A30: 21 | B30: 2800 | C30: 21 | D30: 2822 | E30: 22 | F30: 2826 | K30: 0 | L30: 222
A31: 21 | B31: 2921 | C31: 12 | D31: 2928 | E31: 24 | F31: 2931 | K31: 0 | L31: 212
A32: 12 | B32: 3025 | C32: 23 | D32: 3028 | E32: 13 | F32: 3035 | K32: 0 | L32: 121
A33: 12 | B33: 3129 | C33: 23 | D33: 3131 | E33: 24 | F33: 3138 | K33: 0 | L33: 122
A34: 21 | B34: 3234 | C34: 21 | D34: 3244 | E34: 22 | F34: 3250 | K34: 0 | L34: 222
A35: 21 | B35: 3347 | C35: 21 | D35: 3351 | E35: 11 | F35: 3357 | K35: 0 | L35: 221
A36: 21 | B36: 3551 | C36: 21 | D36: 3557 | E36: 22 | F36: 3573 | K36: 0 | L36: 222
A37: 21 | B37: 3669 | C37: 21 | D37: 3677 | E37: 22 | F37: 3682 | K37: 0 | L37: 222
A38: 21 | B38: 3780 | C38: 21 | D38: 3789 | E38: 22 | F38: 3794 | K38: 0 | L38: 222
A39: 21 | B39: 3890 | C39: 12 | D39: 3895 | E39: 24 | F39: 3899 | K39: 0 | L39: 212
A40: 21 | B40: 3995 | C40: 12 | D40: 4002 | E40: 24 | F40: 4006 | K40: 0 | L40: 212
A41: 21 | B41: 4102 | C41: 21 | D41: 4109 | E41: 22 | F41: 4115 | K41: 0 | L41: 222
A42: 21 | B42: 4212 | C42: 12 | D42: 4222 | E42: 24 | F42: 4226 | K42: 0 | L42: 212
A43: 21 | B43: 4322 | C43: 21 | D43: 4335 | E43: 22 | F43: 4344 | K43: 0 | L43: 222
A44: 21 | B44: 4440 | C44: 12 | D44: 4455 | E44: 24 | F44: 4457 | K44: 0 | L44: 212
A45: 21 | B45: 4552 | C45: 21 | D45: 4557 | E45: 22 | F45: 4566 | K45: 0 | L45: 222
A46: 21 | B46: 4661 | C46: 21 | D46: 4665 | E46: 22 | F46: 4669 | K46: 0 | L46: 222
A47: 21 | B47: 4765 | C47: 12 | D47: 4768 | E47: 24 | F47: 4774 | K47: 0 | L47: 212
A48: 21 | B48: 4866 | C48: 12 | D48: 4873 | E48: 24 | F48: 4877 | K48: 0 | L48: 212
A49: 21 | B49: 4972 | C49: 21 | D49: 4976 | E49: 22 | F49: 4980 | K49: 0 | L49: 222
A50: 12 | B50: 5073 | C50: 23 | D50: 5076 | E50: 24 | F50: 5081 | K50: 0 | L50: 122
A51: 12 | B51: 5174 | C51: 23 | D51: 5177 | E51: 24 | F51: 5180 | K51: 0 | L51: 122
A52: 21 | B52: 5276 | C52: 21 | D52: 5280 | E52: 22 | F52: 5283 | K52: 0 | L52: 222
A53: 21 | B53: 5379 | C53: 21 | D53: 5388 | E53: 22 | F53: 5392 | K53: 0 | L53: 222
A54: 12 | B54: 5485 | C54: 23 | D54: 5488 | E54: 13 | F54: 5497 | K54: 0 | L54: 121
A55: 21 | B55: 5594 | C55: 21 | D55: 5598 | E55: 22 | F55: 5601 | K55: 0 | L55: 222
A56: 21 | B56: 5697 | C56: 21 | D56: 5700 | E56: 22 | F56: 5703 | K56: 0 | L56: 222
A57: 21 | B57: 5799 | C57: 12 | D57: 5805 | E57: 24 | F57: 5807 | K57: 0 | L57: 212
A58: 21 | B58: 5903 | C58: 12 | D58: 5909 | E58: 24 | F58: 5916 | K58: 0 | L58: 212
A59: 21 | B59: 6012 | C59: 21 | D59: 6016 | E59: 22 | F59: 6025 | K59: 0 | L59: 222
A60: 21 | B60: 6121 | C60: 12 | D60: 6130 | E60: 24 | F60: 6134 | K60: 0 | L60: 212
A61: 21 | B61: 6231 | C61: 21 | D61: 6235 | E61: 22 | F61: 6238 | K61: 0 | L61: 222
A62: 21 | B62: 6335 | C62: 21 | D62: 6340 | E62: 22 | F62: 6344 | K62: 0 | L62: 222
A63: 21 | B63: 6442 | C63: 21 | D63: 6446 | E63: 22 | F63: 6450 | K63: 0 | L63: 222
A64: 12 | B64: 6543 | C64: 23 | D64: 6547 | E64: 13 | F64: 6553 | K64: 0 | L64: 121
A65: 21 | B65: 6649 | C65: 21 | D65: 6651 | E65: 22 | F65: 6656 | K65: 0 | L65: 222
A66: 21 | B66: 6752 | C66: 12 | D66: 6758 | E66: 24 | F66: 6764 | K66: 0 | L66: 212
A67: 21 | B67: 6860 | C67: 12 | D67: 6864 | E67: 24 | F67: 6870 | K67: 0 | L67: 212
A68: 21 | B68: 6969 | C68: 12 | D68: 6974 | E68: 24 | F68: 6982 | K68: 0 | L68: 212
A69: 21 | B69: 7078 | C69: 21 | D69: 7080 | E69: 22 | F69: 7084 | K69: 0 | L69: 222
A70: 12 | B70: 7177 | C70: 23 | D70: 7181 | E70: 24 | F70: 7190 | K70: 0 | L70: 122
A71: 12 | B71: 7283 | C71: 23 | D71: 7286 | E71: 13 | F71: 7292 | K71: 0 | L71: 121
A72: 21 | B72: 7393 | C72: 21 | D72: 7409 | E72: 22 | F72: 7417 | K72: 0 | L72: 222
A73: 12 | B73: 7509 | C73: 23 | D73: 7513 | E73: 13 | F73: 7520 | K73: 0 | L73: 121
A74: 21 | B74: 7617 | C74: 12 | D74: 7623 | E74: 24 | F74: 7625 | K74: 0 | L74: 212
A75: 21 | B75: 7721 | C75: 21 | D75: 7725 | E75: 22 | F75: 7730 | K75: 0 | L75: 222
A76: 21 | B76: 7964 | C76: 21 | D76: 7978 | E76: 22 | F76: 7984 | K76: 0 | L76: 222
A77: 21 | B77: 8081 | C77: 21 | D77: 8090 | E77: 22 | F77: 8096 | K77: 0 | L77: 222
A78: 21 | B78: 8192 | C78: 21 | D78: 8204 | E78: 11 | F78: 8207 | K78: 0 | L78: 221
A79: 21 | B79: 8571 | C79: 21 | D79: 8576 | E79: 22 | F79: 8586 | K79: 0 | L79: 222
A80: 21 | B80: 8682 | C80: 12 | D80: 8689 | E80: 24 | F80: 8697 | K80: 0 | L80: 212
A81: 21 | B81: 8793 | C81: 12 | D81: 8802 | E81: 24 | F81: 8806 | K81: 0 | L81: 212
A82: 12 | B82: 8899 | C82: 23 | D82: 8903 | E82: 13 | F82: 8916 | K82: 0 | L82: 121
A83: 21 | B83: 9012 | C83: 12 | D83: 9018 | E83: 24 | F83: 9023 | K83: 0 | L83: 212
A84: 21 | B84: 9118 | C84: 21 | D84: 9123 | E84: 11 | F84: 9125 | K84: 0 | L84: 221
A85: 21 | B85: 9522 | C85: 12 | D85: 9532 | E85: 24 | F85: 9539 | K85: 0 | L85: 212
A86: 12 | B86: 9631 | C86: 23 | D86: 9635 | E86: 13 | F86: 9639 | K86: 0 | L86: 121
A87: 21 | B87: 9736 | C87: 12 | D87: 9743 | E87: 24 | F87: 9754 | K87: 0 | L87: 212
A88: 12 | B88: 9847 | C88: 23 | D88: 9850 | E88: 13 | F88: 9857 | K88: 0 | L88: 121
A89: 21 | B89: 9954 | C89: 12 | D89: 9970 | E89: 24 | F89: 9972 | K89: 0 | L89: 212
A90: 21 | B90: 10069 | C90: 21 | D90: 10077 | E90: 22 | F90: 10083 | K90: 0 | L90: 222
A91: 21 | B91: 10179 | C91: 21 | D91: 10183 | E91: 22 | F91: 10189 | K91: 0 | L91: 222
A92: 21 | B92: 10285 | C92: 21 | D92: 10288 | E92: 11 | F92: 10293 | K92: 0 | L92: 221
A93: 21 | B93: 10589 | C93: 21 | D93: 10597 | E93: 22 | F93: 10602 | K93: 0 | L93: 222
A94: 21 | B94: 10701 | C94: 12 | D94: 10707 | E94: 24 | F94: 10710 | K94: 0 | L94: 212
A95: 21 | B95: 10806 | C95: 21 | D95: 10810 | E95: 11 | F95: 10815 | K95: 0 | L95: 221
A96: 21 | B96: 11031 | C96: 21 | D96: 11038 | E96: 22 | F96: 11044 | K96: 0 | L96: 222
A97: 21 | B97: 11137 | C97: 12 | D97: 11140 | E97: 24 | F97: 11141 | K97: 0 | L97: 212
A98: 21 | B98: 11237 | C98: 12 | D98: 11244 | E98: 24 | F98: 11251 | K98: 0 | L98: 212
A99: 21 | B99: 11346 | C99: 21 | D99: 11354 | E99: 22 | F99: 11360 | K99: 0 | L99: 222
A100: 21 | B100: 11457 | C100: 21 | D100: 11466 | E100: 22 | F100: 11473 | K100: 0 | L100: 222
A101: 12 | B101: 11565 | C101: 23 | D101: 11569 | E101: 13 | F101: 11573 | K101: 0 | L101: 121
A102: 21 | B102: 11670 | C102: 21 | D102: 11674 | E102: 22 | F102: 11678 | K102: 0 | L102: 222
A103: 21 | B103: 11769 | C103: 21 | D103: 11775 | E103: 11 | F103: 11782 | K103: 0 | L103: 221
A104: 21 | B104: 12147 | C104: 21 | D104: 12158 | E104: 22 | F104: 12165 | K104: 0 | L104: 222
A105: 21 | B105: 12267 | C105: 12 | D105: 12273 | E105: 24 | F105: 12282 | K105: 0 | L105: 212
A106: 21 | B106: 12379 | C106: 12 | D106: 12383 | E106: 24 | F106: 12390 | K106: 0 | L106: 212
A107: 21 | B107: 12483 | C107: 21 | D107: 12488 | E107: 22 | F107: 12492 | K107: 0 | L107: 222
A108: 21 | B108: 12584 | C108: 12 | D108: 12586 | E108: 24 | F108: 12592 | K108: 0 | L108: 212
A109: 21 | B109: 12688 | C109: 21 | D109: 12699 | E109: 22 | F109: 12704 | K109: 0 | L109: 222
A110: 21 | B110: 12800 | C110: 12 | D110: 12808 | E110: 24 | F110: 12815 | K110: 0 | L110: 212
A111: 21 | B111: 12911 | C111: 21 | D111: 12919 | E111: 22 | F111: 12925 | K111: 0 | L111: 222
A112: 21 | B112: 13022 | C112: 21 | D112: 13034 | E112: 22 | F112: 13040 | K112: 0 | L112: 222
A113: 21 | B113: 13137 | C113: 12 | D113: 13142 | E113: 24 | F113: 13145 | K113: 0 | L113: 212
A114: 21 | B114: 13241 | C114: 21 | D114: 13245 | E114: 22 | F114: 13249 | K114: 0 | L114: 222
A115: 21 | B115: 13370 | C115: 12 | D115: 13381 | E115: 24 | F115: 13384 | K115: 0 | L115: 212
A116: 21 | B116: 13480 | C116: 12 | D116: 13487 | E116: 24 | F116: 13490 | K116: 0 | L116: 212
A117: 21 | B117: 13586 | C117: 12 | D117: 13593 | E117: 13 | F117: 13596 | K117: 0 | L117: 211
A118: 21 | B118: 13693 | C118: 12 | D118: 13700 | E118: 24 | F118: 13703 | K118: 0 | L118: 212
A119: 12 | B119: 13797 | C119: 23 | D119: 13799 | E119: 24 | F119: 13803 | K119: 0 | L119: 122
A120: 21 | B120: 13899 | C120: 12 | D120: 13904 | E120: 24 | F120: 13906 | K120: 0 | L120: 212
A121: 21 | B121: 13999 | C121: 21 | D121: 14002 | E121: 11 | F121: 14011 | K121: 0 | L121: 221
A122: 21 | B122: 14417 | C122: 21 | D122: 14422 | E122: 22 | F122: 14428 | K122: 0 | L122: 222
A123: 21 | B123: 14524 | C123: 12 | D123: 14531 | E123: 24 | F123: 14533 | K123: 0 | L123: 212
A124: 21 | B124: 14628 | C124: 21 | D124: 14640 | E124: 11 | F124: 14644 | K124: 0 | L124: 221
A125: 21 | B125: 15021 | C125: 21 | D125: 15028 | E125: 22 | F125: 15035 | K125: 0 | L125: 222
A126: 12 | B126: 15133 | C126: 23 | D126: 15138 | E126: 24 | F126: 15145 | K126: 0 | L126: 122
A127: 21 | B127: 15241 | C127: 12 | D127: 15248 | E127: 24 | F127: 15249 | K127: 0 | L127: 212
A128: 21 | B128: 15344 | C128: 12 | D128: 15355 | E128: 24 | F128: 15357 | K128: 0 | L128: 212
A129: 21 | B129: 15451 | C129: 12 | D129: 15461 | E129: 24 | F129: 15463 | K129: 0 | L129: 212
A130: 21 | B130: 15559 | C130: 12 | D130: 15570 | E130: 24 | F130: 15573 | K130: 0 | L130: 212
A131: 21 | B131: 15669 | C131: 21 | D131: 15674 | E131: 11 | F131: 15677 | K131: 0 | L131: 221
A132: 21 | B132: 15872 | C132: 21 | D132: 15878 | E132: 22 | F132: 15886 | K132: 0 | L132: 222
A133: 21 | B133: 15980 | C133: 12 | D133: 15985 | E133: 24 | F133: 15988 | K133: 0 | L133: 212
A134: 12 | B134: 16083 | C134: 23 | D134: 16091 | E134: 13 | F134: 16094 | K134: 0 | L134: 121
A135: 21 | B135: 16187 | C135: 12 | D135: 16193 | E135: 24 | F135: 16195 | K135: 0 | L135: 212
A136: 21 | B136: 16291 | C136: 21 | D136: 16293 | E136: 22 | F136: 16299 | K136: 0 | L136: 222
A137: 21 | B137: 16395 | C137: 12 | D137: 16400 | E137: 24 | F137: 16404 | K137: 0 | L137: 212
A138: 21 | B138: 16501 | C138: 21 | D138: 16511 | E138: 22 | F138: 16515 | K138: 0 | L138: 222
A139: 21 | B139: 16611 | C139: 21 | D139: 16621 | E139: 22 | F139: 16628 | K139: 0 | L139: 222
A140: 12 | B140: 16720 | C140: 23 | D140: 16723 | E140: 13 | F140: 16729 | K140: 0 | L140: 121
A141: 21 | B141: 16826 | C141: 12 | D141: 16831 | E141: 24 | F141: 16834 | K141: 0 | L141: 212
A142: 21 | B142: 16931 | C142: 12 | D142: 16935 | E142: 24 | F142: 16943 | K142: 0 | L142: 212
A143: 21 | B143: 17039 | C143: 12 | D143: 17047 | E143: 24 | F143: 17049 | K143: 0 | L143: 212
A144: 21 | B144: 17170 | C144: 21 | D144: 17173 | E144: 22 | F144: 17185 | K144: 0 | L144: 222
A145: 21 | B145: 17277 | C145: 12 | D145: 17278 | E145: 24 | F145: 17285 | K145: 0 | L145: 212
A146: 21 | B146: 17387 | C146: 21 | D146: 17392 | E146: 22 | F146: 17399 | K146: 0 | L146: 222
A147: 21 | B147: 17495 | C147: 21 | D147: 17505 | E147: 11 | F147: 17507 | K147: 0 | L147: 221
A148: 21 | B148: 17873 | C148: 21 | D148: 17885 | E148: 22 | F148: 17897 | K148: 0 | L148: 222
A149: 12 | B149: 17989 | C149: 23 | D149: 17992 | E149: 13 | F149: 17997 | K149: 0 | L149: 121
A150: 21 | B150: 18090 | C150: 21 | D150: 18092 | E150: 11 | F150: 18100 | K150: 0 | L150: 221
A151: 21 | B151: 18272 | C151: 21 | D151: 18279 | E151: 22 | F151: 18286 | K151: 0 | L151: 222
A152: 21 | B152: 18382 | C152: 12 | D152: 18388 | E152: 24 | F152: 18396 | K152: 0 | L152: 212
A153: 21 | B153: 18492 | C153: 21 | D153: 18503 | E153: 11 | F153: 18504 | K153: 0 | L153: 221
A154: 21 | B154: 18692 | C154: 21 | D154: 18698 | E154: 22 | F154: 18703 | K154: 0 | L154: 222
A155: 21 | B155: 18808 | C155: 21 | D155: 18819 | E155: 22 | F155: 18827 | K155: 0 | L155: 222
A156: 21 | B156: 18925 | C156: 12 | D156: 18928 | E156: 24 | F156: 18930 | K156: 0 | L156: 212
A157: 21 | B157: 19025 | C157: 21 | D157: 19029 | E157: 11 | F157: 19031 | K157: 0 | L157: 221
A158: 21 | B158: 19219 | C158: 21 | D158: 19224 | E158: 22 | F158: 19231 | K158: 0 | L158: 222
A159: 21 | B159: 19329 | C159: 21 | D159: 19333 | E159: 22 | F159: 19339 | K159: 0 | L159: 222
A160: 21 | B160: 19435 | C160: 21 | D160: 19439 | E160: 11 | F160: 19441 | K160: 0 | L160: 221
A161: 21 | B161: 19661 | C161: 21 | D161: 19666 | E161: 22 | F161: 19679 | K161: 0 | L161: 222
A162: 21 | B162: 19774 | C162: 12 | D162: 19776 | E162: 24 | F162: 19779 | K162: 0 | L162: 212
A163: 12 | B163: 19871 | C163: 23 | D163: 19878 | E163: 24 | F163: 19884 | K163: 0 | L163: 122
A164: 21 | B164: 19984 | C164: 21 | D164: 19989 | E164: 22 | F164: 19995 | K164: 0 | L164: 222
A165: 21 | B165: 20092 | C165: 21 | D165: 20096 | E165: 22 | F165: 20103 | K165: 0 | L165: 222
A166: 21 | B166: 20199 | C166: 21 | D166: 20208 | E166: 11 | F166: 20213 | K166: 0 | L166: 221
A167: 21 | B167: 20460 | C167: 21 | D167: 20465 | E167: 22 | F167: 20472 | K167: 0 | L167: 222
A168: 21 | B168: 20567 | C168: 21 | D168: 20577 | E168: 22 | F168: 20583 | K168: 0 | L168: 222
A169: 21 | B169: 20695 | C169: 21 | D169: 20706 | E169: 22 | F169: 20711 | K169: 0 | L169: 222
A170: 21 | B170: 20807 | C170: 21 | D170: 20809 | E170: 11 | F170: 20814 | K170: 0 | L170: 221
A171: 21 | B171: 21045 | C171: 21 | D171: 21055 | E171: 22 | F171: 21061 | K171: 0 | L171: 222
A172: 12 | B172: 21153 | C172: 23 | D172: 21156 | E172: 24 | F172: 21160 | K172: 0 | L172: 122
A173: 21 | B173: 21408 | C173: 21 | D173: 21421 | E173: 22 | F173: 21428 | K173: 0 | L173: 222
A174: 21 | B174: 21522 | C174: 21 | D174: 21530 | E174: 11 | F174: 21535 | K174: 0 | L174: 221
A175: 21 | B175: 21767 | C175: 21 | D175: 21773 | E175: 22 | F175: 21781 | K175: 0 | L175: 222
A176: 21 | B176: 21886 | C176: 21 | D176: 21891 | E176: 22 | F176: 21898 | K176: 0 | L176: 222
A177: 21 | B177: 21993 | C177: 21 | D177: 21998 | E177: 22 | F177: 22003 | K177: 0 | L177: 222
A178: 21 | B178: 22101 | C178: 12 | D178: 22112 | E178: 24 | F178: 22118 | K178: 0 | L178: 212
A179: 12 | B179: 22211 | C179: 14 | D179: 22220 | E179: 24 | F179: 22222 | K179: 0 | L179: 112
A180: 21 | B180: 22318 | C180: 21 | D180: 22330 | E180: 22 | F180: 22336 | K180: 0 | L180: 222
A181: 21 | B181: 22428 | C181: 12 | D181: 22435 | E181: 24 | F181: 22450 | K181: 0 | L181: 212
A182: 21 | B182: 22545 | C182: 21 | D182: 22549 | E182: 22 | F182: 22552 | K182: 0 | L182: 222
A183: 21 | B183: 22647 | C183: 21 | D183: 22653 | E183: 22 | F183: 22659 | K183: 0 | L183: 222
A184: 21 | B184: 22755 | C184: 12 | D184: 22762 | E184: 24 | F184: 22768 | K184: 0 | L184: 212
A185: 21 | B185: 22864 | C185: 21 | D185: 22876 | E185: 11 | F185: 22880 | K185: 0 | L185: 221
A186: 21 | B186: 23354 | C186: 21 | D186: 23375 | E186: 22 | F186: 23381 | K186: 0 | L186: 222
A187: 21 | B187: 23476 | C187: 21 | D187: 23483 | E187: 22 | F187: 23487 | K187: 0 | L187: 222
A188: 12 | B188: 23580 | C188: 23 | D188: 23592 | E188: 13 | F188: 23594 | K188: 0 | L188: 121
A189: 21 | B189: 23689 | C189: 21 | D189: 23696 | E189: 11 | F189: 23702 | K189: 0 | L189: 221

Sheet !MA03940.Gus
A1: Report for:!MA03940.Gus
A2: Date: | B2: <date>
A3: Hen: | B3: <hen> | F3: Correct Sequence | G3: =Start!J2 -> 221 | P3: Total Sequences in Data | Q3: =4994-COUNTBLANK(L7:L5000) -> 185 | V3: Total Sequences in Block Data | W3: =COUNTA(L7:L37) -> 31 | AA3: Total Sequences in Block Data | AB3: =COUNTA(L38:L68) -> 31 | AF3: Total Sequences in Block Data | AG3: =COUNTA(L69:L98) -> 30 | AK3: Total Sequences in Block Data | AL3: =COUNTA(L99:L129) -> 31 | AP3: Total Sequences in Block Data | AQ3: =COUNTA(L130:L160) -> 31 | AU3: Total Sequences in Block Data | AV3: =COUNTA(L161:L191) -> 31
P4: Total Sequences in Summary | Q4: =SUM(O7:O14) -> 185 | V4: Total Sequences in Block Summary | W4: =SUM(U7:U14) -> 31 | AA4: Total Sequences in Block Summary | AB4: =SUM(Z7:Z14) -> 31 | AF4: Total Sequences in Block Summary | AG4: =SUM(AE7:AE14) -> 30 | AK4: Total Sequences in Block Summary | AL4: =SUM(AJ7:AJ14) -> 31 | AP4: Total Sequences in Block Summary | AQ4: =SUM(AO7:AO14) -> 31 | AU4: Total Sequences in Block Summary | AV4: =SUM(AT7:AT14) -> 31
T5: Block 1 | Y5: Block 2 | AD5: Block 3 | AI5: Block 4 | AN5: Block 5 | AS5: Block 6
A6: Sequence Component 1 | B6: Time 1 | C6: Sequence Component 2 | D6: Time 2 | E6: Sequence Component 3 | F6: Time 3 | G6: Sequence Component 4 | H6: Time 4 | I6: Sequence Component 5 | J6: Time 5 | K6: Correct? 0=No 1=Yes | L6: Sequence | N6: Frequency | P6: Relative Frequency | Q6: Variability | T6: Frequency | V6: Relative Frequency | W6: Variability | Y6: Frequency | AA6: Relative Frequency | AB6: Variability | AD6: Frequency | AF6: Relative Frequency | AG6: Variability | AI6: Frequency | AK6: Relative Frequency | AL6: Variability | AN6: Frequency | AP6: Relative Frequency | AQ6: Variability | AS6: Frequency | AU6: Relative Frequency | AV6: Variability
A7: 21 | B7: 8 | C7: 21 | D7: 14 | E7: 22 | F7: 26 | K7: 0 | L7: 222 | N7: 111 | O7: =COUNTIF($L$7:$L$500,N7) -> 0 | P7: =O7/$Q$4 -> 0 | Q7: =IF(P7=0,0,(P7*((LOG(P7))/LOG(2)))) -> 0 | T7: =N7 -> 111 | U7: =COUNTIF(L7:L37,T7) -> 0 | V7: =U7/(W4-U13) -> 0 | W7: =IF(V7=0,0,(V7*((LOG(V7))/LOG(2)))) -> 0 | Y7: =N7 -> 111 | Z7: =COUNTIF(L38:L68,Y7) -> 0 | AA7: =Z7/(AB4-Z13) -> 0 | AB7: =IF(AA7=0,0,(AA7*((LOG(AA7))/LOG(2)))) -> 0 | AD7: =N7 -> 111 | AE7: =COUNTIF(L69:L98,AD7) -> 0 | AF7: =AE7/(AG4-AE13) -> 0 | AG7: =IF(AF7=0,0,(AF7*((LOG(AF7))/LOG(2)))) -> 0 | AI7: =N7 -> 111 | AJ7: =COUNTIF(L99:L129,AI7) -> 0 | AK7: =AJ7/(AL4-AJ13) -> 0 | AL7: =IF(AK7=0,0,(AK7*((LOG(AK7))/LOG(2)))) -> 0 | AN7: =N7 -> 111 | AO7: =COUNTIF(L130:L160,AN7) -> 0 | AP7: =AO7/(AQ4-AO13) -> 0 | AQ7: =IF(AP7=0,0,(AP7*((LOG(AP7))/LOG(2)))) -> 0 | AS7: =N7 -> 111 | AT7: =COUNTIF(L161:L191,AS7) -> 0 | AU7: =AT7/(AV4-AT13) -> 0 | AV7: =IF(AU7=0,0,(AU7*((LOG(AU7))/LOG(2)))) -> 0
A8: 21 | B8: 123 | C8: 21 | D8: 127 | E8: 22 | F8: 136 | K8: 0 | L8: 222 | N8: 112 | O8: =COUNTIF($L$7:$L$500,N8) -> 3 | P8: =O8/$Q$4 -> 0.01621621622 | Q8: =IF(P8=0,0,(P8*((LOG(P8))/LOG(2)))) -> -0.09642841556 | T8: =N8 -> 112 | U8: =COUNTIF(L7:L37,T8) -> 0 | V8: =U8/(W4-U13) -> 0 | W8: =IF(V8=0,0,(V8*((LOG(V8))/LOG(2)))) -> 0 | Y8: =N8 -> 112 | Z8: =COUNTIF(L38:L68,Y8) -> 1 | AA8: =Z8/(AB4-Z13) -> 0.03703703704 | AB8: =IF(AA8=0,0,(AA8*((LOG(AA8))/LOG(2)))) -> -0.1761069445 | AD8: =N8 -> 112 | AE8: =COUNTIF(L69:L98,AD8) -> 0 | AF8: =AE8/(AG4-AE13) -> 0 | AG8: =IF(AF8=0,0,(AF8*((LOG(AF8))/LOG(2)))) -> 0 | AI8: =N8 -> 112 | AJ8: =COUNTIF(L99:L129,AI8) -> 0 | AK8: =AJ8/(AL4-AJ13) -> 0 | AL8: =IF(AK8=0,0,(AK8*((LOG(AK8))/LOG(2)))) -> 0 | AN8: =N8 -> 112 | AO8: =COUNTIF(L130:L160,AN8) -> 2 | AP8: =AO8/(AQ4-AO13) -> 0.07692307692 | AQ8: =IF(AP8=0,0,(AP8*((LOG(AP8))/LOG(2)))) -> -0.2846492091 | AS8: =N8 -> 112 | AT8: =COUNTIF(L161:L191,AS8) -> 0 | AU8: =AT8/(AV4-AT13) -> 0 | AV8: =IF(AU8=0,0,(AU8*((LOG(AU8))/LOG(2)))) -> 0
A9: 21 | B9: 234 | C9: 21 | D9: 247 | E9: 22 | F9: 254 | K9: 0 | L9: 222 | N9: 121 | O9: =COUNTIF($L$7:$L$500,N9) -> 2 | P9: =O9/$Q$4 -> 0.01081081081 | Q9: =IF(P9=0,0,(P9*((LOG(P9))/LOG(2)))) -> -0.0706095293 | T9: =N9 -> 121 | U9: =COUNTIF(L7:L37,T9) -> 1 | V9: =U9/(W4-U13) -> 0.03703703704 | W9: =IF(V9=0,0,(V9*((LOG(V9))/LOG(2)))) -> -0.1761069445 | Y9: =N9 -> 121 | Z9: =COUNTIF(L38:L68,Y9) -> 0 | AA9: =Z9/(AB4-Z13) -> 0 | AB9: =IF(AA9=0,0,(AA9*((LOG(AA9))/LOG(2)))) -> 0 | AD9: =N9 -> 121 | AE9: =COUNTIF(L69:L98,AD9) -> 1 | AF9: =AE9/(AG4-AE13) -> 0.03846153846 | AG9: =IF(AF9=0,0,(AF9*((LOG(AF9))/LOG(2)))) -> -0.180786143 | AI9: =N9 -> 121 | AJ9: =COUNTIF(L99:L129,AI9) -> 0 | AK9: =AJ9/(AL4-AJ13) -> 0 | AL9: =IF(AK9=0,0,(AK9*((LOG(AK9))/LOG(2)))) -> 0 | AN9: =N9 -> 121 | AO9: =COUNTIF(L130:L160,AN9) -> 0 | AP9: =AO9/(AQ4-AO13) -> 0 | AQ9: =IF(AP9=0,0,(AP9*((LOG(AP9))/LOG(2)))) -> 0 | AS9: =N9 -> 121 | AT9: =COUNTIF(L161:L191,AS9) -> 0 | AU9: =AT9/(AV4-AT13) -> 0 | AV9: =IF(AU9=0,0,(AU9*((LOG(AU9))/LOG(2)))) -> 0
A10: 21 | B10: 350 | C10: 21 | D10: 375 | E10: 11 | F10: 379 | K10: 0 | L10: 221 | N10: 122 | O10: =COUNTIF($L$7:$L$500,N10) -> 17 | P10: =O10/$Q$4 -> 0.09189189189 | Q10: =IF(P10=0,0,(P10*((LOG(P10))/LOG(2)))) -> -0.3164681974 | T10: =N10 -> 122 | U10: =COUNTIF(L7:L37,T10) -> 2 | V10: =U10/(W4-U13) -> 0.07407407407 | W10: =IF(V10=0,0,(V10*((LOG(V10))/LOG(2)))) -> -0.278139815 | Y10: =N10 -> 122 | Z10: =COUNTIF(L38:L68,Y10) -> 3 | AA10: =Z10/(AB4-Z13) -> 0.1111111111 | AB10: =IF(AA10=0,0,(AA10*((LOG(AA10))/LOG(2)))) -> -0.352213889 | AD10: =N10 -> 122 | AE10: =COUNTIF(L69:L98,AD10) -> 3 | AF10: =AE10/(AG4-AE13) -> 0.1153846154 | AG10: =IF(AF10=0,0,(AF10*((LOG(AF10))/LOG(2)))) -> -0.3594781405 | AI10: =N10 -> 122 | AJ10: =COUNTIF(L99:L129,AI10) -> 3 | AK10: =AJ10/(AL4-AJ13) -> 0.1153846154 | AL10: =IF(AK10=0,0,(AK10*((LOG(AK10))/LOG(2)))) -> -0.3594781405 | AN10: =N10 -> 122 | AO10: =COUNTIF(L130:L160,AN10) -> 2 | AP10: =AO10/(AQ4-AO13) -> 0.07692307692 | AQ10: =IF(AP10=0,0,(AP10*((LOG(AP10))/LOG(2)))) -> -0.2846492091 | AS10: =N10 -> 122 | AT10: =COUNTIF(L161:L191,AS10) -> 4 | AU10: =AT10/(AV4-AT13) -> 0.1538461538 | AV10: =IF(AU10=0,0,(AU10*((LOG(AU10))/LOG(2)))) -> -0.4154522643
A11: 21 | B11: 539 | C11: 21 | D11: 548 | E11: 22 | F11: 555 | K11: 0 | L11: 222 | N11: 211 | O11: =COUNTIF($L$7:$L$500,N11) -> 2 | P11: =O11/$Q$4 -> 0.01081081081 | Q11: =IF(P11=0,0,(P11*((LOG(P11))/LOG(2)))) -> -0.0706095293 | T11: =N11 -> 211 | U11: =COUNTIF(L7:L37,T11) -> 1 | V11: =U11/(W4-U13) -> 0.03703703704 | W11: =IF(V11=0,0,(V11*((LOG(V11))/LOG(2)))) -> -0.1761069445 | Y11: =N11 -> 211 | Z11: =COUNTIF(L38:L68,Y11) -> 1 | AA11: =Z11/(AB4-Z13) -> 0.03703703704 | AB11: =IF(AA11=0,0,(AA11*((LOG(AA11))/LOG(2)))) -> -0.1761069445 | AD11: =N11 -> 211 | AE11: =COUNTIF(L69:L98,AD11) -> 0 | AF11: =AE11/(AG4-AE13) -> 0 | AG11: =IF(AF11=0,0,(AF11*((LOG(AF11))/LOG(2)))) -> 0 | AI11: =N11 -> 211 | AJ11: =COUNTIF(L99:L129,AI11) -> 0 | AK11: =AJ11/(AL4-AJ13) -> 0 | AL11: =IF(AK11=0,0,(AK11*((LOG(AK11))/LOG(2)))) -> 0 | AN11: =N11 -> 211 | AO11: =COUNTIF(L130:L160,AN11) -> 0 | AP11: =AO11/(AQ4-AO13) -> 0 | AQ11: =IF(AP11=0,0,(AP11*((LOG(AP11))/LOG(2)))) -> 0 | AS11: =N11 -> 211 | AT11: =COUNTIF(L161:L191,AS11) -> 0 | AU11: =AT11/(AV4-AT13) -> 0 | AV11: =IF(AU11=0,0,(AU11*((LOG(AU11))/LOG(2)))) -> 0
A12: 21 | B12: 647 | C12: 12 | D12: 658 | E12: 24 | F12: 661 | K12: 0 | L12: 212 | N12: 212 | O12: =COUNTIF($L$7:$L$500,N12) -> 37 | P12: =O12/$Q$4 -> 0.2 | Q12: =IF(P12=0,0,(P12*((LOG(P12))/LOG(2)))) -> -0.464385619 | T12: =N12 -> 212 | U12: =COUNTIF(L7:L37,T12) -> 2 | V12: =U12/(W4-U13) -> 0.07407407407 | W12: =IF(V12=0,0,(V12*((LOG(V12))/LOG(2)))) -> -0.278139815 | Y12: =N12 -> 212 | Z12: =COUNTIF(L38:L68,Y12) -> 4 | AA12: =Z12/(AB4-Z13) -> 0.1481481481 | AB12: =IF(AA12=0,0,(AA12*((LOG(AA12))/LOG(2)))) -> -0.4081314818 | AD12: =N12 -> 212 | AE12: =COUNTIF(L69:L98,AD12) -> 9 | AF12: =AE12/(AG4-AE13) -> 0.3461538462 | AG12: =IF(AF12=0,0,(AF12*((LOG(AF12))/LOG(2)))) -> -0.5297935558 | AI12: =N12 -> 212 | AJ12: =COUNTIF(L99:L129,AI12) -> 6 | AK12: =AJ12/(AL4-AJ13) -> 0.2307692308 | AL12: =IF(AK12=0,0,(AK12*((LOG(AK12))/LOG(2)))) -> -0.4881870502 | AN12: =N12 -> 212 | AO12: =COUNTIF(L130:L160,AN12) -> 10 | AP12: =AO12/(AQ4-AO13) -> 0.3846153846 | AQ12: =IF(AP12=0,0,(AP12*((LOG(AP12))/LOG(2)))) -> -0.5301967782 | AS12: =N12 -> 212 | AT12: =COUNTIF(L161:L191,AS12) -> 6 | AU12: =AT12/(AV4-AT13) -> 0.2307692308 | AV12: =IF(AU12=0,0,(AU12*((LOG(AU12))/LOG(2)))) -> -0.4881870502
A13: 12 | B13: 760 | C13: 23 | D13: 764 | E13: 24 | F13: 774 | K13: 0 | L13: 122 | N13: 221 | O13: =COUNTIF($L$7:$L$500,N13) -> 27 | P13: =O13/$Q$4 -> 0.1459459459 | Q13: =IF(P13=0,0,(P13*((LOG(P13))/LOG(2)))) -> -0.4052180372 | T13: =N13 -> 221 | U13: =COUNTIF(L7:L37,T13) -> 4 | Y13: =N13 -> 221 | Z13: =COUNTIF(L38:L68,Y13) -> 4 | AD13: =N13 -> 221 | AE13: =COUNTIF(L69:L98,AD13) -> 4 | AI13: =N13 -> 221 | AJ13: =COUNTIF(L99:L129,AI13) -> 5 | AN13: =N13 -> 221 | AO13: =COUNTIF(L130:L160,AN13) -> 5 | AS13: =N13 -> 221 | AT13: =COUNTIF(L161:L191,AS13) -> 5
A14: 21 | B14: 872 | C14: 21 | D14: 876 | E14: 22 | F14: 888 | K14: 0 | L14: 222 | N14: 222 | O14: =COUNTIF($L$7:$L$500,N14) -> 97 | P14: =O14/$Q$4 -> 0.5243243243 | Q14: =IF(P14=0,0,(P14*((LOG(P14))/LOG(2)))) -> -0.4883916539 | T14: =N14 -> 222 | U14: =COUNTIF(L7:L37,T14) -> 21 | V14: =U14/(W4-U13) -> 0.7777777778 | W14: =IF(V14=0,0,(V14*((LOG(V14))/LOG(2)))) -> -0.2819989506 | Y14: =N14 -> 222 | Z14: =COUNTIF(L38:L68,Y14) -> 18 | AA14: =Z14/(AB4-Z13) -> 0.6666666667 | AB14: =IF(AA14=0,0,(AA14*((LOG(AA14))/LOG(2)))) -> -0.3899750005 | AD14: =N14 -> 222 | AE14: =COUNTIF(L69:L98,AD14) -> 13 | AF14: =AE14/(AG4-AE13) -> 0.5 | AG14: =IF(AF14=0,0,(AF14*((LOG(AF14))/LOG(2)))) -> -0.5 | AI14: =N14 -> 222 | AJ14: =COUNTIF(L99:L129,AI14) -> 17 | AK14: =AJ14/(AL4-AJ13) -> 0.6538461538 | AL14: =IF(AK14=0,0,(AK14*((LOG(AK14))/LOG(2)))) -> -0.4007925734 | AN14: =N14 -> 222 | AO14: =COUNTIF(L130:L160,AN14) -> 12 | AP14: =AO14/(AQ4-AO13) -> 0.4615384615 | AQ14: =IF(AP14=0,0,(AP14*((LOG(AP14))/LOG(2)))) -> -0.5148356388 | AS14: =N14 -> 222 | AT14: =COUNTIF(L161:L191,AS14) -> 16 | AU14: =AT14/(AV4-AT13) -> 0.6153846154 | AV14: =IF(AU14=0,0,(AU14*((LOG(AU14))/LOG(2)))) -> -0.4310398265
A15: 21 | B15: 980 | C15: 12 | D15: 983 | E15: 13 | F15: 996 | K15: 0 | L15: 211 | P15: =SUM(P7:P14) -> 1 | Q15: =-SUM(Q7:Q14) -> 1.912110982 | V15: =SUM(V7:V14) -> 1 | W15: =-SUM(W7:W14) -> 1.19049247 | AA15: =SUM(AA7:AA14) -> 1 | AB15: =-SUM(AB7:AB14) -> 1.50253426 | AF15: =SUM(AF7:AF14) -> 1 | AG15: =-SUM(AG7:AG14) -> 1.570057839 | AK15: =SUM(AK7:AK14) -> 1 | AL15: =-SUM(AL7:AL14) -> 1.248457764 | AP15: =SUM(AP7:AP14) -> 1 | AQ15: =-SUM(AQ7:AQ14) -> 1.614330835 | AU15: =SUM(AU7:AU14) -> 1 | AV15: =-SUM(AV7:AV14) -> 1.334679141
A16: 21 | B16: 1089 | C16: 21 | D16: 1105 | E16: 22 | F16: 1111 | K16: 0 | L16: 222 | P16: U= | Q16: =Q15/(LOG(Q4)/LOG(2)) -> 0.2538858232 | V16: U1= | W16: =W15/(LOG(W4)/LOG(2)) -> 0.2402998176 | AA16: U2= | AB16: =AB15/(LOG(AB4)/LOG(2)) -> 0.303285168 | AF16: U3= | AG16: =AG15/(LOG(AG4)/LOG(2)) -> 0.3199700113 | AK16: U4= | AL16: =AL15/(LOG(AL4)/LOG(2)) -> 0.2520000593 | AP16: U5= | AQ16: =AQ15/(LOG(AQ4)/LOG(2)) -> 0.3258512045 | AU16: U6= | AV16: =AV15/(LOG(AV4)/LOG(2)) -> 0.2694037655
A17: 21 | B17: 1208 | C17: 21 | D17: 1213 | E17: 22 | F17: 1220 | K17: 0 | L17: 222
A18: 21 | B18: 1317 | C18: 21 | D18: 1319 | E18: 22 | F18: 1322 | K18: 0 | L18: 222
A19: 21 | B19: 1420 | C19: 21 | D19: 1424 | E19: 22 | F19: 1429 | K19: 0 | L19: 222 | N19: Total Target Seq
A20: 21 | B20: 1525 | C20: 21 | D20: 1531 | E20: 22 | F20: 1538 | K20: 0 | L20: 222 | N20: =COUNTIF(L7:L191,G3) -> 27 | P20: 31 | Q20: 31 | R20: 30 | S20: 31 | T20: 31 | U20: 31
A21: 21 | B21: 1635 | C21: 21 | D21: 1650 | E21: 11 | F21: 1656 | K21: 0 | L21: 221 | P21: % of reinforcement given in 6 equal intervals based on number of trials
A22: 21 | B22: 1781 | C22: 21 | D22: 1784 | E22: 22 | F22: 1792 | K22: 0 | L22: 222 | P22: %_1 | Q22: %_2 | R22: %_3 | S22: %_4 | T22: %_5 | U22: %_6
A23: 21 | B23: 1888 | C23: 21 | D23: 1895 | E23: 22 | F23: 1902 | K23: 0 | L23: 222 | O23: target sequence | P23: =$G$3 -> 221 | Q23: =$G$3 -> 221 | R23: =$G$3 -> 221 | S23: =$G$3 -> 221 | T23: =$G$3 -> 221 | U23: =$G$3 -> 221
A24: 21 | B24: 1994 | C24: 21 | D24: 2008 | E24: 22 | F24: 2017 | K24: 0 | L24: 222 | O24: total reinforcement | P24: =U13 -> 4 | Q24: =Z13 -> 4 | R24: =AE13 -> 4 | S24: =AJ13 -> 5 | T24: =AO13 -> 5 | U24: =AT13 -> 5
A25: 21 | B25: 2109 | C25: 21 | D25: 2111 | E25: 22 | F25: 2116 | K25: 0 | L25: 222 | O25: % target
A26: 12 | B26: 2208 | C26: 23 | D26: 2210 | E26: 24 | F26: 2215 | K26: 0 | L26: 122 | O26: CCRF
A27: 21 | B27: 2311 | C27: 21 | D27: 2315 | E27: 22 | F27: 2325 | K27: 0 | L27: 222 | O27: % CCRf
A28: 21 | B28: 2422 | C28: 21 | D28: 2431 | E28: 22 | F28: 2438 | K28: 0 | L28: 222 | O28: average response rate | P28: =F37/P20 -> 117.5483871 | Q28: =(F68-F37)/Q20 -> 126.8387097 | R28: =(F98-F68)/R20 -> 121.6666667 | S28: =(F129-F98)/S20 -> 137.483871 | T28: =(F160-F129)/T20 -> 141 | U28: =(F191-F160)/U20 -> 133.3225806
A29: 12 | B29: 2530 | C29: 23 | D29: 2534 | E29: 13 | F29: 2542 | K29: 0 | L29: 121
A30: 21 | B30: 2759 | C30: 21 | D30: 2778 | E30: 22 | F30: 2792 | K30: 0 | L30: 222
A31: 21 | B31: 2887 | C31: 12 | D31: 2897 | E31: 24 | F31: 2905 | K31: 0 | L31: 212
A32: 21 | B32: 2999 | C32: 21 | D32: 3006 | E32: 11 | F32: 3009 | K32: 0 | L32: 221
A33: 21 | B33: 3144 | C33: 21 | D33: 3158 | E33: 22 | F33: 3171 | K33: 0 | L33: 222
A34: 21 | B34: 3268 | C34: 21 | D34: 3280 | E34: 11 | F34: 3285 | K34: 0 | L34: 221
A35: 21 | B35: 3401 | C35: 21 | D35: 3410 | E35: 22 | F35: 3416 | K35: 0 | L35: 222
A36: 21 | B36: 3509 | C36: 21 | D36: 3513 | E36: 22 | F36: 3522 | K36: 0 | L36: 222
A37: 21 | B37: 3621 | C37: 21 | D37: 3637 | E37: 22 | F37: 3644 | K37: 0 | L37: 222
A38: 21 | B38: 3738 | C38: 21 | D38: 3745 | E38: 22 | F38: 3749 | K38: 0 | L38: 222
A39: 21 | B39: 3844 | C39: 21 | D39: 3864 | E39: 11 | F39: 3866 | K39: 0 | L39: 221
A40: 21 | B40: 4066 | C40: 21 | D40: 4079 | E40: 22 | F40: 4083 | K40: 0 | L40: 222
A41: 21 | B41: 4178 | C41: 12 | D41: 4182 | E41: 24 | F41: 4194 | K41: 0 | L41: 212
A42: 21 | B42: 4286 | C42: 21 | D42: 4294 | E42: 22 | F42: 4298 | K42: 0 | L42: 222
A43: 21 | B43: 4394 | C43: 12 | D43: 4399 | E43: 24 | F43: 4401 | K43: 0 | L43: 212
A44: 21 | B44: 4494 | C44: 21 | D44: 4500 | E44: 22 | F44: 4505 | K44: 0 | L44: 222
A45: 21 | B45: 4600 | C45: 21 | D45: 4606 | E45: 22 | F45: 4613 | K45: 0 | L45: 222
A46: 21 | B46: 4710 | C46: 21 | D46: 4714 | E46: 22 | F46: 4721 | K46: 0 | L46: 222
A47: 21 | B47: 4818 | C47: 21 | D47: 4838 | E47: 22 | F47: 4844 | K47: 0 | L47: 222
A48: 21 | B48: 4940 | C48: 12 | D48: 4945 | E48: 24 | F48: 4950 | K48: 0 | L48: 212
A49: 21 | B49: 5047 | C49: 21 | D49: 5055 | E49: 22 | F49: 5060 | K49: 0 | L49: 222
A50: 12 | B50: 5152 | C50: 14 | D50: 5162 | E50: 24 | F50: 5168 | K50: 0 | L50: 112
A51: 21 | B51: 5265 | C51: 21 | D51: 5269 | E51: 11 | F51: 5272 | K51: 0 | L51: 221
A52: 21 | B52: 5421 | C52: 21 | D52: 5425 | E52: 22 | F52: 5431 | K52: 0 | L52: 222
A53: 21 | B53: 5527 | C53: 21 | D53: 5537 | E53: 11 | F53: 5540 | K53: 0 | L53: 221
A54: 21 | B54: 5767 | C54: 12 | D54: 5778 | E54: 13 | F54: 5783 | K54: 0 | L54: 211
A55: 12 | B55: 5876 | C55: 23 | D55: 5882 | E55: 24 | F55: 5885 | K55: 0 | L55: 122
A56: 21 | B56: 5983 | C56: 21 | D56: 5987 | E56: 22 | F56: 5994 | K56: 0 | L56: 222
A57: 21 | B57: 6092 | C57: 21 | D57: 6096 | E57: 22 | F57: 6102 | K57: 0 | L57: 222
A58: 12 | B58: 6202 | C58: 23 | D58: 6208 | E58: 24 | F58: 6215 | K58: 0 | L58: 122
A59: 21 | B59: 6307 | C59: 21 | D59: 6320 | E59: 22 | F59: 6327 | K59: 0 | L59: 222
A60: 21 | B60: 6424 | C60: 21 | D60: 6428 | E60: 22 | F60: 6432 | K60: 0 | L60: 222
A61: 21 | B61: 6528 | C61: 21 | D61: 6529 | E61: 22 | F61: 6536 | K61: 0 | L61: 222
A62: 21 | B62: 6632 | C62: 21 | D62: 6636 | E62: 22 | F62: 6641 | K62: 0 | L62: 222
A63: 21 | B63: 6738 | C63: 21 | D63: 6742 | E63: 22 | F63: 6745 | K63: 0 | L63: 222
A64: 21 | B64: 6842 | C64: 12 | D64: 6850 | E64: 24 | F64: 6855 | K64: 0 | L64: 212
A65: 21 | B65: 6952 | C65: 21 | D65: 6955 | E65: 22 | F65: 6968 | K65: 0 | L65: 222
A66: 12 | B66: 7060 | C66: 23 | D66: 7064 | E66: 24 | F66: 7072 | K66: 0 | L66: 122
A67: 21 | B67: 7169 | C67: 21 | D67: 7182 | E67: 11 | F67: 7186 | K67: 0 | L67: 221
A68: 21 | B68: 7563 | C68: 21 | D68: 7567 | E68: 22 | F68: 7576 | K68: 0 | L68: 222
A69: 21 | B69: 7673 | C69: 21 | D69: 7686 | E69: 22 | F69: 7693 | K69: 0 | L69: 222
A70: 21 | B70: 7787 | C70: 21 | D70: 7791 | E70: 22 | F70: 7796 | K70: 0 | L70: 222
A71: 21 | B71: 7891 | C71: 21 | D71: 7895 | E71: 22 | F71: 7901 | K71: 0 | L71: 222
A72: 21 | B72: 7997 | C72: 21 | D72: 8001 | E72: 22 | F72: 8010 | K72: 0 | L72: 222
A73: 21 | B73: 8107 | C73: 12 | D73: 8112 | E73: 24 | F73: 8122 | K73: 0 | L73: 212
A74: 21 | B74: 8214 | C74: 21 | D74: 8219 | E74: 11 | F74: 8234 | K74: 0 | L74: 221
A75: 21 | B75: 8536 | C75: 21 | D75: 8541 | E75: 22 | F75: 8549 | K75: 0 | L75: 222
A76: 21 | B76: 8643 | C76: 12 | D76: 8646 | E76: 24 | F76: 8649 | K76: 0 | L76: 212
A77: 21 | B77: 8741 | C77: 12 | D77: 8751 | E77: 24 | F77: 8752 | K77: 0 | L77: 212
A78: 12 | B78: 8847 | C78: 23 | D78: 8849 | E78: 24 | F78: 8856 | K78: 0 | L78: 122
A79: 21 | B79: 8953 | C79: 12 | D79: 8962 | E79: 24 | F79: 8964 | K79: 0 | L79: 212
A80: 21 | B80: 9057 | C80: 21 | D80: 9063 | E80: 22 | F80: 9071 | K80: 0 | L80: 222
A81: 21 | B81: 9167 | C81: 12 | D81: 9175 | E81: 24 | F81: 9181 | K81: 0 | L81: 212
A82: 21 | B82: 9277 | C82: 12 | D82: 9286 | E82: 24 | F82: 9289 | K82: 0 | L82: 212
A83: 12 | B83: 9382 | C83: 23 | D83: 9384 | E83: 13 | F83: 9394 | K83: 0 | L83: 121
A84: 21 | B84: 9490 | C84: 21 | D84: 9496 | E84: 22 | F84: 9500 | K84: 0 | L84: 222
A85: 21 | B85: 9595 | C85: 21 | D85: 9602 | E85: 11 | F85: 9604 | K85: 0 | L85: 221
A86: 21 | B86: 9841 | C86: 21 | D86: 9848 | E86: 22 | F86: 9853 | K86: 0 | L86: 222
A87: 12 | B87: 9945 | C87: 23 | D87: 9947 | E87: 24 | F87: 9953 | K87: 0 | L87: 122
A88: 21 | B88: 10052 | C88: 21 | D88: 10060 | E88: 22 | F88: 10067 | K88: 0 | L88: 222
A89: 21 | B89: 10163 | C89: 12 | D89: 10169 | E89: 24 | F89: 10178 | K89: 0 | L89: 212
A90: 21 | B90: 10273 | C90: 12 | D90: 10286 | E90: 24 | F90: 10288 | K90: 0 | L90: 212
A91: 21 | B91: 10384 | C91: 21 | D91: 10388 | E91: 22 | F91: 10392 | K91: 0 | L91: 222
A92: 21 | B92: 10484 | C92: 21 | D92: 10488 | E92: 22 | F92: 10491 | K92: 0 | L92: 222
A93: 21 | B93: 10584 | C93: 21 | D93: 10592 | E93: 11 | F93: 10595 | K93: 0 | L93: 221
A94: 21 | B94: 10746 | C94: 21 | D94: 10752 | E94: 22 | F94: 10758 | K94: 0 | L94: 222
A95: 21 | B95: 10892 | C95: 21 | D95: 10905 | E95: 22 | F95: 10911 | K95: 0 | L95: 222
A96: 12 | B96: 11003 | C96: 23 | D96: 11009 | E96: 24 | F96: 11017 | K96: 0 | L96: 122
A97: 21 | B97: 11116 | C97: 12 | D97: 11120 | E97: 24 | F97: 11122 | K97: 0 | L97: 212
A98: 21 | B98: 11214 | C98: 21 | D98: 11218 | E98: 11 | F98: 11226 | K98: 0 | L98: 221
A99: 21 | B99: 11347 | C99: 21 | D99: 11352 | E99: 22 | F99: 11358 | K99: 0 | L99: 222
A100: 21 | B100: 11454 | C100: 21 | D100: 11458 | E100: 22 | F100: 11464 | K100: 0 | L100: 222
A101: 21 | B101: 11556 | C101: 21 | D101: 11561 | E101: 22 | F101: 11564 | K101: 0 | L101: 222
A102: 21 | B102: 11656 | C102: 21 | D102: 11659 | E102: 11 | F102: 11664 | K102: 0 | L102: 221
A103: 21 | B103: 11906 | C103: 21 | D103: 11911 | E103: 22 | F103: 11917 | K103: 0 | L103: 222
A104: 21 | B104: 12013 | C104: 12 | D104: 12020 | E104: 24 | F104: 12029 | K104: 0 | L104: 212
A105: 21 | B105: 12126 | C105: 12 | D105: 12134 | E105: 24 | F105: 12142 | K105: 0 | L105: 212
A106: 21 | B106: 12234 | C106: 21 | D106: 12239 | E106: 22 | F106: 12245 | K106: 0 | L106: 222
A107: 21 | B107: 12338 | C107: 21 | D107: 12352 | E107: 22 | F107: 12359 | K107: 0 | L107: 222
A108: 21 | B108: 12451 | C108: 21 | D108: 12457 | E108: 22 | F108: 12461 | K108: 0 | L108: 222
A109: 12 | B109: 12555 | C109: 23 | D109: 12565 | E109: 24 | F109: 12572 | K109: 0 | L109: 122
A110: 21 | B110: 12664 | C110: 21 | D110: 12677 | E110: 11 | F110: 12681 | K110: 0 | L110: 221
A111: 21 | B111: 13057 | C111: 21 | D111: 13068 | E111: 22 | F111: 13074 | K111: 0 | L111: 222
A112: 12 | B112: 13168 | C112: 23 | D112: 13172 | E112: 24 | F112: 13178 | K112: 0 | L112: 122
A113: 21 | B113: 13274 | C113: 21 | D113: 13279 | E113: 22 | F113: 13283 | K113: 0 | L113: 222
A114: 21 | B114: 13378 | C114: 21 | D114: 13385 | E114: 22 | F114: 13391 | K114: 0 | L114: 222
A115: 21 | B115: 13490 | C115: 21 | D115: 13495 | E115: 22 | F115: 13502 | K115: 0 | L115: 222
A116: 21 | B116: 13596 | C116: 21 | D116: 13601 | E116: 22 | F116: 13607 | K116: 0 | L116: 222
A117: 21 | B117: 13703 | C117: 21 | D117: 13709 | E117: 22 | F117: 13717 | K117: 0 | L117: 222
A118: 21 | B118: 13815 | C118: 12 | D118: 13825 | E118: 24 | F118: 13829 | K118: 0 | L118: 212
A119: 21 | B119: 13922 | C119: 12 | D119: 13926 | E119: 24 | F119: 13930 | K119: 0 | L119: 212
A120: 21 | B120: 14026 | C120: 21 | D120: 14031 | E120: 11 | F120: 14033 | K120: 0 | L120: 221
A121: 21 | B121: 14361 | C121: 21 | D121: 14364 | E121: 22 | F121: 14376 | K121: 0 | L121: 222
A122: 21 | B122: 14469 | C122: 12 | D122: 14473 | E122: 24 | F122: 14480 | K122: 0 | L122: 212
A123: 21 | B123: 14575 | C123: 21 | D123: 14582 | E123: 11 | F123: 14586 | K123: 0 | L123: 221
A124: 21 | B124: 14826 | C124: 21 | D124: 14837 | E124: 22 | F124: 14843 | K124: 0 | L124: 222
A125: 21 | B125: 14938 | C125: 21 | D125: 14943 | E125: 22 | F125: 14948 | K125: 0 | L125: 222
A126: 12 | B126: 15049 | C126: 23 | D126: 15053 | E126: 24 | F126: 15059 | K126: 0 | L126: 122
A127: 21 | B127: 15153 | C127: 21 | D127: 15160 | E127: 11 | F127: 15167 | K127: 0 | L127: 221
A128: 21 | B128: 15366 | C128: 21 | D128: 15373 | E128: 22 | F128: 15384 | K128: 0 | L128: 222
A129: 21 | B129: 15481 | C129: 12 | D129: 15485 | E129: 24 | F129: 15488 | K129: 0 | L129: 212
A130: 21 | B130: 15583 | C130: 21 | D130: 15586 | E130: 22 | F130: 15595 | K130: 0 | L130: 222
A131: 21 | B131: 15690 | C131: 12 | D131: 15698 | E131: 24 | F131: 15706 | K131: 0 | L131: 212
A132: 21 | B132: 15803 | C132: 21 | D132: 15812 | E132: 11 | F132: 15815 | K132: 0 | L132: 221
A133: 21 | B133: 15964 | C133: 21 | D133: 15971 | E133: 22 | F133: 15985 | K133: 0 | L133: 222
A134: 21 | B134: 16080 | C134: 12 | D134: 16086 | E134: 24 | F134: 16088 | K134: 0 | L134: 212
A135: 21 | B135: 16192 | C135: 21 | D135: 16214 | E135: 22 | F135: 16220 | K135: 0 | L135: 222
A136: 21 | B136: 16337 | C136: 21 | D136: 16343 | E136: 22 | F136: 16349 | K136: 0 | L136: 222
A137: 21 | B137: 16443 | C137: 21 | D137: 16455 | E137: 22 | F137: 16459 | K137: 0 | L137: 222
A138: 21 | B138: 16554 | C138: 12 | D138: 16561 | E138: 24 | F138: 16567 | K138: 0 | L138: 212
A139: 12 | B139: 16662 | C139: 14 | D139: 16676 | E139: 24 | F139: 16681 | K139: 0 | L139: 112
A140: 21 | B140: 16888 | C140: 21 | D140: 16892 | E140: 22 | F140: 16899 | K140: 0 | L140: 222
A141: 21 | B141: 16996 | C141: 12 | D141: 17003 | E141: 24 | F141: 17007 | K141: 0 | L141: 212
A142: 12 | B142: 17102 | C142: 23 | D142: 17104 | E142: 24 | F142: 17109 | K142: 0 | L142: 122
A143: 21 | B143: 17216 | C143: 12 | D143: 17220 | E143: 24 | F143: 17225 | K143: 0 | L143: 212
A144: 21 | B144: 17320 | C144: 12 | D144: 17329 | E144: 24 | F144: 17334 | K144: 0 | L144: 212
A145: 21 | B145: 17430 | C145: 12 | D145: 17434 | E145: 24 | F145: 17438 | K145: 0 | L145: 212
A146: 21 | B146: 17531 | C146: 12 | D146: 17540 | E146: 24 | F146: 17556 | K146: 0 | L146: 212
A147: 21 | B147: 17652 | C147: 21 | D147: 17660 | E147: 11 | F147: 17665 | K147: 0 | L147: 221
A148: 21 | B148: 17961 | C148: 21 | D148: 17969 | E148: 22 | F148: 17974 | K148: 0 | L148: 222
A149: 21 | B149: 18075 | C149: 12 | D149: 18081 | E149: 24 | F149: 18085 | K149: 0 | L149: 212
A150: 21 | B150: 18229 | C150: 12 | D150: 18239 | E150: 24 | F150: 18242 | K150: 0 | L150: 212
A151: 21 | B151: 18334 | C151: 21 | D151: 18341 | E151: 11 | F151: 18349 | K151: 0 | L151: 221
A152: 21 | B152: 18643 | C152: 21 | D152: 18649 | E152: 22 | F152: 18659 | K152: 0 | L152: 222
A153: 21 | B153: 18752 | C153: 21 | D153: 18755 | E153: 11 | F153: 18761 | K153: 0 | L153: 221
A154: 21 | B154: 19072 | C154: 21 | D154: 19080 | E154: 22 | F154: 19087 | K154: 0 | L154: 222
A155: 21 | B155: 19185 | C155: 21 | D155: 19194 | E155: 11 | F155: 19197 | K155: 0 | L155: 221
A156: 21 | B156: 19411 | C156: 21 | D156: 19417 | E156: 22 | F156: 19427 | K156: 0 | L156: 222
A157: 21 | B157: 19523 | C157: 21 | D157: 19533 | E157: 22 | F157: 19538 | K157: 0 | L157: 222
A158: 21 | B158: 19630 | C158: 21 | D158: 19636 | E158: 22 | F158: 19644 | K158: 0 | L158: 222
A159: 12 | B159: 19736 | C159: 23 | D159: 19746 | E159: 24 | F159: 19751 | K159: 0 | L159: 122
A160: 12 | B160: 19844 | C160: 14 | D160: 19854 | E160: 24 | F160: 19859 | K160: 0 | L160: 112
A161: 21 | B161: 19953 | C161: 12 | D161: 19959 | E161: 24 | F161: 19960 | K161: 0 | L161: 212
A162: 12 | B162: 20054 | C162: 23 | D162: 20057 | E162: 24 | F162: 20068 | K162: 0 | L162: 122
A163: 21 | B163: 20178 | C163: 21 | D163: 20188 | E163: 22 | F163: 20194 | K163: 0 | L163: 222
A164: 21 | B164: 20289 | C164: 12 | D164: 20296 | E164: 24 | F164: 20301 | K164: 0 | L164: 212
A165: 21 | B165: 20397 | C165: 21 | D165: 20401 | E165: 22 | F165: 20405 | K165: 0 | L165: 222
A166: 21 | B166: 20502 | C166: 12 | D166: 20512 | E166: 24 | F166: 20514 | K166: 0 | L166: 212
A167: 21 | B167: 20606 | C167: 12 | D167: 20616 | E167: 24 | F167: 20623 | K167: 0 | L167: 212
A168: 21 | B168: 20719 | C168: 21 | D168: 20727 | E168: 22 | F168: 20732 | K168: 0 | L168: 222
A169: 21 | B169: 20827 | C169: 12 | D169: 20832 | E169: 24 | F169: 20838 | K169: 0 | L169: 212
A170: 12 | B170: 20931 | C170: 23 | D170: 20933 | E170: 24 | F170: 20938 | K170: 0 | L170: 122
A171: 21 | B171: 21035 | C171: 21 | D171: 21039 | E171: 11 | F171: 21040 | K171: 0 | L171: 221
A172: 21 | B172: 21268 | C172: 21 | D172: 21273 | E172: 22 | F172: 21280 | K172: 0 | L172: 222
A173: 21 | B173: 21387 | C173: 21 | D173: 21394 | E173: 22 | F173: 21401 | K173: 0 | L173: 222
A174: 21 | B174: 21497 | C174: 21 | D174: 21502 | E174: 22 | F174: 21507 | K174: 0 | L174: 222
A175: 21 | B175: 21602 | C175: 21 | D175: 21605 | E175: 11 | F175: 21608 | K175: 0 | L175: 221
A176: 21 | B176: 21857 | C176: 21 | D176: 21867 | E176: 22 | F176: 21872 | K176: 0 | L176: 222
A177: 21 | B177: 21964 | C177: 21 | D177: 21973 | E177: 22 | F177: 21979 | K177: 0 | L177: 222
A178: 21 | B178: 22074 | C178: 21 | D178: 22078 | E178: 22 | F178: 22082 | K178: 0 | L178: 222
A179: 21 | B179: 22179 | C179: 21 | D179: 22186 | E179: 11 | F179: 22191 | K179: 0 | L179: 221
A180: 21 | B180: 22428 | C180: 21 | D180: 22434 | E180: 22 | F180: 22440 | K180: 0 | L180: 222
A181: 21 | B181: 22532 | C181: 12 | D181: 22542 | E181: 24 | F181: 22546 | K181: 0 | L181: 212
A182: 21 | B182: 22640 | C182: 21 | D182: 22644 | E182: 22 | F182: 22650 | K182: 0 | L182: 222
A183: 21 | B183: 22746 | C183: 21 | D183: 22761 | E183: 11 | F183: 22765 | K183: 0 | L183: 221
A184: 21 | B184: 22994 | C184: 21 | D184: 23004 | E184: 22 | F184: 23010 | K184: 0 | L184: 222
A185: 21 | B185: 23105 | C185: 21 | D185: 23112 | E185: 11 | F185: 23115 | K185: 0 | L185: 221
A186: 21 | B186: 23460 | C186: 21 | D186: 23465 | E186: 22 | F186: 23471 | K186: 0 | L186: 222
A187: 12 | B187: 23564 | C187: 23 | D187: 23568 | E187: 24 | F187: 23573 | K187: 0 | L187: 122
A188: 21 | B188: 23666 | C188: 21 | D188: 23672 | E188: 22 | F188: 23677 | K188: 0 | L188: 222
A189: 21 | B189: 23769 | C189: 21 | D189: 23775 | E189: 22 | F189: 23783 | K189: 0 | L189: 222
A190: 12 | B190: 23875 | C190: 23 | D190: 23878 | E190: 24 | F190: 23881 | K190: 0 | L190: 122
A191: 21 | B191: 23980 | C191: 21 | D191: 23987 | E191: 22 | F191: 23992 | L191: 222

Sheet !MA04A50.Gus
A1: Report for:!MA04A50.Gus
A2: Date: | B2: <date>
A3: Hen: | B3: <hen> | F3: Correct Sequence | G3: =Start!J2 -> 221 | P3: Total Sequences in Data | Q3: =4994-COUNTBLANK(L7:L5000) -> 188 | V3: Total Sequences in Block Data | W3: =COUNTA(L7:L37) -> 31 | AA3: Total Sequences in Block Data | AB3: =COUNTA(L38:L69) -> 32 | AF3: Total Sequences in Block Data | AG3: =COUNTA(L70:L100) -> 31 | AK3: Total Sequences in Block Data | AL3: =COUNTA(L101:L131) -> 31 | AP3: Total Sequences in Block Data | AQ3: =COUNTA(L132:L163) -> 32 | AU3: Total Sequences in Block Data | AV3: =COUNTA(L164:L194) -> 31
P4: Total Sequences in Summary | Q4: =SUM(O7:O14) -> 188 | V4: Total Sequences in Block Summary | W4: =SUM(U7:U14) -> 31 | AA4: Total Sequences in Block Summary | AB4: =SUM(Z7:Z14) -> 32 | AF4: Total Sequences in Block Summary | AG4: =SUM(AE7:AE14) -> 31 | AK4: Total Sequences in Block Summary | AL4: =SUM(AJ7:AJ14) -> 31 | AP4: Total Sequences in Block Summary | AQ4: =SUM(AO7:AO14) -> 32 | AU4: Total Sequences in Block Summary | AV4: =SUM(AT7:AT14) -> 31
T5: Block 1 | Y5: Block 2 | AD5: Block 3 | AI5: Block 4 | AN5: Block 5 | AS5: Block 6
A6: Sequence Component 1 | B6: Time 1 | C6: Sequence Component 2 | D6: Time 2 | E6: Sequence Component 3 | F6: Time 3 | G6: Sequence Component 4 | H6: Time 4 | I6: Sequence Component 5 | J6: Time 5 | K6: Correct? 0=No 1=Yes | L6: Sequence | N6: Frequency | P6: Relative Frequency | Q6: Variability | T6: Frequency | V6: Relative Frequency | W6: Variability | Y6: Frequency | AA6: Relative Frequency | AB6: Variability | AD6: Frequency | AF6: Relative Frequency | AG6: Variability | AI6: Frequency | AK6: Relative Frequency | AL6: Variability | AN6: Frequency | AP6: Relative Frequency | AQ6: Variability | AS6: Frequency | AU6: Relative Frequency | AV6: Variability
A7: 21 | B7: 10 | C7: 21 | D7: 29 | E7: 22 | F7: 38 | K7: 0 | L7: 222 | N7: 111 | O7: =COUNTIF($L$7:$L$500,N7) -> 0 | P7: =O7/$Q$4 -> 0 | Q7: =IF(P7=0,0,(P7*((LOG(P7))/LOG(2)))) -> 0 | T7: =N7 -> 111 | U7: =COUNTIF(L7:L37,T7) -> 0 | V7: =U7/(W4-U13) -> 0 | W7: =IF(V7=0,0,(V7*((LOG(V7))/LOG(2)))) -> 0 | Y7: =N7 -> 111 | Z7: =COUNTIF(L38:L69,Y7) -> 0 | AA7: =Z7/(AB4-Z13) -> 0 | AB7: =IF(AA7=0,0,(AA7*((LOG(AA7))/LOG(2)))) -> 0 | AD7: =N7 -> 111 | AE7: =COUNTIF(L70:L100,AD7) -> 0 | AF7: =AE7/(AG4-AE13) -> 0 | AG7: =IF(AF7=0,0,(AF7*((LOG(AF7))/LOG(2)))) -> 0 | AI7: =N7 -> 111 | AJ7: =COUNTIF(L101:L131,AI7) -> 0 | AK7: =AJ7/(AL4-AJ13) -> 0 | AL7: =IF(AK7=0,0,(AK7*((LOG(AK7))/LOG(2)))) -> 0 | AN7: =N7 -> 111 | AO7: =COUNTIF(L132:L163,AN7) -> 0 | AP7: =AO7/(AQ4-AO13) -> 0 | AQ7: =IF(AP7=0,0,(AP7*((LOG(AP7))/LOG(2)))) -> 0 | AS7: =N7 -> 111 | AT7: =COUNTIF(L164:L194,AS7) -> 0 | AU7: =AT7/(AV4-AT13) -> 0 | AV7: =IF(AU7=0,0,(AU7*((LOG(AU7))/LOG(2)))) -> 0
A8: 21 | B8: 132 | C8: 21 | D8: 145 | E8: 22 | F8: 152 | K8: 0 | L8: 222 | N8: 112 | O8: =COUNTIF($L$7:$L$500,N8) -> 4 | P8: =O8/$Q$4 -> 0.02127659574 | Q8: =IF(P8=0,0,(P8*((LOG(P8))/LOG(2)))) -> -0.1181827415 | T8: =N8 -> 112 | U8: =COUNTIF(L7:L37,T8) -> 1 | V8: =U8/(W4-U13) -> 0.04 | W8: =IF(V8=0,0,(V8*((LOG(V8))/LOG(2)))) -> -0.1857542476 | Y8: =N8 -> 112 | Z8: =COUNTIF(L38:L69,Y8) -> 0 | AA8: =Z8/(AB4-Z13) -> 0 | AB8: =IF(AA8=0,0,(AA8*((LOG(AA8))/LOG(2)))) -> 0 | AD8: =N8 -> 112 | AE8: =COUNTIF(L70:L100,AD8) -> 0 | AF8: =AE8/(AG4-AE13) -> 0 | AG8: =IF(AF8=0,0,(AF8*((LOG(AF8))/LOG(2)))) -> 0 | AI8: =N8 -> 112 | AJ8: =COUNTIF(L101:L131,AI8) -> 1 | AK8: =AJ8/(AL4-AJ13) -> 0.03571428571 | AL8: =IF(AK8=0,0,(AK8*((LOG(AK8))/LOG(2)))) -> -0.1716912472 | AN8: =N8 -> 112 | AO8: =COUNTIF(L132:L163,AN8) -> 1 | AP8: =AO8/(AQ4-AO13) -> 0.03703703704 | AQ8: =IF(AP8=0,0,(AP8*((LOG(AP8))/LOG(2)))) -> -0.1761069445 | AS8: =N8 -> 112 | AT8: =COUNTIF(L164:L194,AS8) -> 1 | AU8: =AT8/(AV4-AT13) -> 0.03571428571 | AV8: =IF(AU8=0,0,(AU8*((LOG(AU8))/LOG(2)))) -> -0.1716912472
A9: 21 | B9: 247 | C9: 21 | D9: 259 | E9: 11 | F9: 264 | K9: 0 | L9: 221 | N9: 121 | O9: =COUNTIF($L$7:$L$500,N9) -> 8 | P9: =O9/$Q$4 -> 0.04255319149 | Q9: =IF(P9=0,0,(P9*((LOG(P9))/LOG(2)))) -> -0.1938122916 | T9: =N9 -> 121 | U9: =COUNTIF(L7:L37,T9) -> 0 | V9: =U9/(W4-U13) -> 0 | W9: =IF(V9=0,0,(V9*((LOG(V9))/LOG(2)))) -> 0 | Y9: =N9 -> 121 | Z9: =COUNTIF(L38:L69,Y9) -> 0 | AA9: =Z9/(AB4-Z13) -> 0 | AB9: =IF(AA9=0,0,(AA9*((LOG(AA9))/LOG(2)))) -> 0 | AD9: =N9 -> 121 | AE9: =COUNTIF(L70:L100,AD9) -> 1 | AF9: =AE9/(AG4-AE13) -> 0.03846153846 | AG9: =IF(AF9=0,0,(AF9*((LOG(AF9))/LOG(2)))) -> -0.180786143 | AI9: =N9 -> 121 | AJ9: =COUNTIF(L101:L131,AI9) -> 2 | AK9: =AJ9/(AL4-AJ13) -> 0.07142857143 | AL9: =IF(AK9=0,0,(AK9*((LOG(AK9))/LOG(2)))) -> -0.271953923 | AN9: =N9 -> 121 | AO9: =COUNTIF(L132:L163,AN9) -> 2 | AP9: =AO9/(AQ4-AO13) -> 0.07407407407 | AQ9: =IF(AP9=0,0,(AP9*((LOG(AP9))/LOG(2)))) -> -0.278139815 | AS9: =N9 -> 121 | AT9: =COUNTIF(L164:L194,AS9) -> 3 | AU9: =AT9/(AV4-AT13) -> 0.1071428571 | AV9: =IF(AU9=0,0,(AU9*((LOG(AU9))/LOG(2)))) -> -0.3452563309
A10: 21 | B10: 420 | C10: 21 | D10: 430 | E10: 11 | F10: 438 | K10: 0 | L10: 221 | N10: 122 | O10: =COUNTIF($L$7:$L$500,N10) -> 24 | P10: =O10/$Q$4 -> 0.1276595745 | Q10: =IF(P10=0,0,(P10*((LOG(P10))/LOG(2)))) -> -0.3791012363 | T10: =N10 -> 122 | U10: =COUNTIF(L7:L37,T10) -> 3 | V10: =U10/(W4-U13) -> 0.12 | W10: =IF(V10=0,0,(V10*((LOG(V10))/LOG(2)))) -> -0.3670672427 | Y10: =N10 -> 122 | Z10: =COUNTIF(L38:L69,Y10) -> 5 | AA10: =Z10/(AB4-Z13) -> 0.1851851852 | AB10: =IF(AA10=0,0,(AA10*((LOG(AA10))/LOG(2)))) -> -0.4505480384 | AD10: =N10 -> 122 | AE10: =COUNTIF(L70:L100,AD10) -> 2 | AF10: =AE10/(AG4-AE13) -> 0.07692307692 | AG10: =IF(AF10=0,0,(AF10*((LOG(AF10))/LOG(2)))) -> -0.2846492091 | AI10: =N10 -> 122 | AJ10: =COUNTIF(L101:L131,AI10) -> 5 | AK10: =AJ10/(AL4-AJ13) -> 0.1785714286 | AL10: =IF(AK10=0,0,(AK10*((LOG(AK10))/LOG(2)))) -> -0.4438262191 | AN10: =N10 -> 122 | AO10: =COUNTIF(L132:L163,AN10) -> 5 | AP10: =AO10/(AQ4-AO13) -> 0.1851851852 | AQ10: =IF(AP10=0,0,(AP10*((LOG(AP10))/LOG(2)))) -> -0.4505480384 | AS10: =N10 -> 122 | AT10: =COUNTIF(L164:L194,AS10) -> 4 | AU10: =AT10/(AV4-AT13) -> 0.1428571429 | AV10: =IF(AU10=0,0,(AU10*((LOG(AU10))/LOG(2)))) -> -0.4010507032
A11: 21 | B11: 605 | C11: 21 | D11: 624 | E11: 22 | F11: 630 | K11: 0 | L11: 222 | N11: 211 | O11: =COUNTIF($L$7:$L$500,N11) -> 2 | P11: =O11/$Q$4 -> 0.01063829787 | Q11: =IF(P11=0,0,(P11*((LOG(P11))/LOG(2)))) -> -0.06972966863 | T11: =N11 -> 211 | U11: =COUNTIF(L7:L37,T11) -> 0 | V11: =U11/(W4-U13) -> 0 | W11: =IF(V11=0,0,(V11*((LOG(V11))/LOG(2)))) -> 0 | Y11: =N11 -> 211 | Z11: =COUNTIF(L38:L69,Y11) -> 0 | AA11: =Z11/(AB4-Z13) -> 0 | AB11: =IF(AA11=0,0,(AA11*((LOG(AA11))/LOG(2)))) -> 0 | AD11: =N11 -> 211 | AE11: =COUNTIF(L70:L100,AD11) -> 0 | AF11: =AE11/(AG4-AE13) -> 0 | AG11: =IF(AF11=0,0,(AF11*((LOG(AF11))/LOG(2)))) -> 0 | AI11: =N11 -> 211 | AJ11: =COUNTIF(L101:L131,AI11) -> 1 | AK11: =AJ11/(AL4-AJ13) -> 0.03571428571 | AL11: =IF(AK11=0,0,(AK11*((LOG(AK11))/LOG(2)))) -> -0.1716912472 | AN11: =N11 -> 211 | AO11: =COUNTIF(L132:L163,AN11) -> 1 | AP11: =AO11/(AQ4-AO13) -> 0.03703703704 | AQ11: =IF(AP11=0,0,(AP11*((LOG(AP11))/LOG(2)))) -> -0.1761069445 | AS11: =N11 -> 211 | AT11: =COUNTIF(L164:L194,AS11) -> 0 | AU11: =AT11/(AV4-AT13) -> 0 | AV11: =IF(AU11=0,0,(AU11*((LOG(AU11))/LOG(2)))) -> 0
A12: 12 | B12: 732 | C12: 23 | D12: 735 | E12: 24 | F12: 744 | K12: 0 | L12: 122 | N12: 212 | O12: =COUNTIF($L$7:$L$500,N12) -> 48 | P12: =O12/$Q$4 -> 0.2553191489 | Q12: =IF(P12=0,0,(P12*((LOG(P12))/LOG(2)))) -> -0.5028833236 | T12: =N12 -> 212 | U12: =COUNTIF(L7:L37,T12) -> 4 | V12: =U12/(W4-U13) -> 0.16 | W12: =IF(V12=0,0,(V12*((LOG(V12))/LOG(2)))) -> -0.4230169904 | Y12: =N12 -> 212 | Z12: =COUNTIF(L38:L69,Y12) -> 5 | AA12: =Z12/(AB4-Z13) -> 0.1851851852 | AB12: =IF(AA12=0,0,(AA12*((LOG(AA12))/LOG(2)))) -> -0.4505480384 | AD12: =N12 -> 212 | AE12: =COUNTIF(L70:L100,AD12) -> 7 | AF12: =AE12/(AG4-AE13) -> 0.2692307692 | AG12: =IF(AF12=0,0,(AF12*((LOG(AF12))/LOG(2)))) -> -0.5096766759 | AI12: =N12 -> 212 | AJ12: =COUNTIF(L101:L131,AI12) -> 11 | AK12: =AJ12/(AL4-AJ13) -> 0.3928571429 | AL12: =IF(AK12=0,0,(AK12*((LOG(AK12))/LOG(2)))) -> -0.5295412978 | AN12: =N12 -> 212 | AO12: =COUNTIF(L132:L163,AN12) -> 11 | AP12: =AO12/(AQ4-AO13) -> 0.4074074074 | AQ12: =IF(AP12=0,0,(AP12*((LOG(AP12))/LOG(2)))) -> -0.5277783229 | AS12: =N12 -> 212 | AT12: =COUNTIF(L164:L194,AS12) -> 10 | AU12: =AT12/(AV4-AT13) -> 0.3571428571 | AV12: =IF(AU12=0,0,(AU12*((LOG(AU12))/LOG(2)))) -> -0.5305095811
A13: 21 | B13: 945 | C13: 21 | D13: 961 | E13: 22 | F13: 970 | K13: 0 | L13: 222 | N13: 221 | O13: =COUNTIF($L$7:$L$500,N13) -> 27 | P13: =O13/$Q$4 -> 0.1436170213 | Q13: =IF(P13=0,0,(P13*((LOG(P13))/LOG(2)))) -> -0.4020847683 | T13: =N13 -> 221 | U13: =COUNTIF(L7:L37,T13) -> 6 | Y13: =N13 -> 221 | Z13: =COUNTIF(L38:L69,Y13) -> 5 | AD13: =N13 -> 221 | AE13: =COUNTIF(L70:L100,AD13) -> 5 | AI13: =N13 -> 221 | AJ13: =COUNTIF(L101:L131,AI13) -> 3 | AN13: =N13 -> 221 | AO13: =COUNTIF(L132:L163,AN13) -> 5 | AS13: =N13 -> 221 | AT13: =COUNTIF(L164:L194,AS13) -> 3
A14: 21 | B14: 1069 | C14: 12 | D14: 1073 | E14: 24 | F14: 1080 | K14: 0 | L14: 212 | N14: 222 | O14: =COUNTIF($L$7:$L$500,N14) -> 75 | P14: =O14/$Q$4 -> 0.3989361702 | Q14: =IF(P14=0,0,(P14*((LOG(P14))/LOG(2)))) -> -0.5288976707 | T14: =N14 -> 222 | U14: =COUNTIF(L7:L37,T14) -> 17 | V14: =U14/(W4-U13) -> 0.68 | W14: =IF(V14=0,0,(V14*((LOG(V14))/LOG(2)))) -> -0.378347477 | Y14: =N14 -> 222 | Z14: =COUNTIF(L38:L69,Y14) -> 17 | AA14: =Z14/(AB4-Z13) -> 0.6296296296 | AB14: =IF(AA14=0,0,(AA14*((LOG(AA14))/LOG(2)))) -> -0.4202303421 | AD14: =N14 -> 222 | AE14: =COUNTIF(L70:L100,AD14) -> 16 | AF14: =AE14/(AG4-AE13) -> 0.6153846154 | AG14: =IF(AF14=0,0,(AF14*((LOG(AF14))/LOG(2)))) -> -0.4310398265 | AI14: =N14 -> 222 | AJ14: =COUNTIF(L101:L131,AI14) -> 8 | AK14: =AJ14/(AL4-AJ13) -> 0.2857142857 | AL14: =IF(AK14=0,0,(AK14*((LOG(AK14))/LOG(2)))) -> -0.5163871206 | AN14: =N14 -> 222 | AO14: =COUNTIF(L132:L163,AN14) -> 7 | AP14: =AO14/(AQ4-AO13) -> 0.2592592593 | AQ14: =IF(AP14=0,0,(AP14*((LOG(AP14))/LOG(2)))) -> -0.5049158541 | AS14: =N14 -> 222 | AT14: =COUNTIF(L164:L194,AS14) -> 10 | AU14: =AT14/(AV4-AT13) -> 0.3571428571 | AV14: =IF(AU14=0,0,(AU14*((LOG(AU14))/LOG(2)))) -> -0.5305095811
A15: 21 | B15: 1179 | C15: 21 | D15: 1188 | E15: 22 | F15: 1193 | K15: 0 | L15: 222 | P15: =SUM(P7:P14) -> 1 | Q15: =-SUM(Q7:Q14) -> 2.194691701 | V15: =SUM(V7:V14) -> 1 | W15: =-SUM(W7:W14) -> 1.354185958 | AA15: =SUM(AA7:AA14) -> 1 | AB15: =-SUM(AB7:AB14) -> 1.321326419 | AF15: =SUM(AF7:AF14) -> 1 | AG15: =-SUM(AG7:AG14) -> 1.406151855 | AK15: =SUM(AK7:AK14) -> 1 | AL15: =-SUM(AL7:AL14) -> 2.105091055 | AP15: =SUM(AP7:AP14) -> 1 | AQ15: =-SUM(AQ7:AQ14) -> 2.113595919 | AU15: =SUM(AU7:AU14) -> 1 | AV15: =-SUM(AV7:AV14) -> 1.979017443
A16: 21 | B16: 1291 | C16: 21 | D16: 1294 | E16: 22 | F16: 1300 | K16: 0 | L16: 222 | P16: U= | Q16: =Q15/(LOG(Q4)/LOG(2)) -> 0.2905110713 | V16: U1= | W16: =W15/(LOG(W4)/LOG(2)) -> 0.2733411986 | AA16: U2= | AB16: =AB15/(LOG(AB4)/LOG(2)) -> 0.2642652838 | AF16: U3= | AG16: =AG15/(LOG(AG4)/LOG(2)) -> 0.2838304674 | AK16: U4= | AL16: =AL15/(LOG(AL4)/LOG(2)) -> 0.4249107066 | AP16: U5= | AQ16: =AQ15/(LOG(AQ4)/LOG(2)) -> 0.4227191839 | AU16: U6= | AV16: =AV15/(LOG(AV4)/LOG(2)) -> 0.3994628633
A17: 21 | B17: 1398 | C17: 21 | D17: 1408 | E17: 22 | F17: 1417 | K17: 0 | L17: 222
A18: 21 | B18: 1512 | C18: 21 | D18: 1514 | E18: 22 | F18: 1524 | K18: 0 | L18: 222
A19: 21 | B19: 1619 | C19: 21 | D19: 1621 | E19: 11 | F19: 1625 | K19: 0 | L19: 221 | N19: Total Target Seq
A20: 21 | B20: 1730 | C20: 21 | D20: 1746 | E20: 22 | F20: 1754 | K20: 0 | L20: 222 | N20: =COUNTIF(L7:L194,G3) -> 27 | P20: 31 | Q20: 32 | R20: 31 | S20: 31 | T20: 32 | U20: 31
A21: 21 | B21: 1848 | C21: 21 | D21: 1853 | E21: 22 | F21: 1859 | K21: 0 | L21: 222 | P21: % of reinforcement given in 6 equal intervals based on number of trials
A22: 21 | B22: 1955 | C22: 21 | D22: 1961 | E22: 22 | F22: 1965 | K22: 0 | L22: 222 | P22: %_1 | Q22: %_2 | R22: %_3 | S22: %_4 | T22: %_5 | U22: %_6
A23: 21 | B23: 2058 | C23: 12 | D23: 2069 | E23: 24 | F23: 2073 | K23: 0 | L23: 212 | O23: target sequence | P23: =$G$3 -> 221 | Q23: =$G$3 -> 221 | R23: =$G$3 -> 221 | S23: =$G$3 -> 221 | T23: =$G$3 -> 221 | U23: =$G$3 -> 221
A24: 21 | B24: 2171 | C24: 12 | D24: 2181 | E24: 24 | F24: 2189 | K24: 0 | L24: 212 | O24: total reinforcement | P24: =U13 -> 6 | Q24: =Z13 -> 5 | R24: =AE13 -> 5 | S24: =AJ13 -> 3 | T24: =AO13 -> 5 | U24: =AT13 -> 3
A25: 12 | B25: 2283 | C25: 14 | D25: 2292 | E25: 24 | F25: 2298 | K25: 0 | L25: 112 | O25: % target
A26: 21 | B26: 2393 | C26: 21 | D26: 2405 | E26: 22 | F26: 2410 | K26: 0 | L26: 222 | O26: CCRF
A27: 12 | B27: 2506 | C27: 23 | D27: 2509 | E27: 24 | F27: 2522 | K27: 0 | L27: 122 | O27: % CCRf
A28: 21 | B28: 2620 | C28: 21 | D28: 2624 | E28: 22 | F28: 2635 | K28: 0 | L28: 222 | O28: average response rate | P28: =F37/P20 -> 120.516129 | Q28: =(F69-F37)/Q20 -> 126.6875 | R28: =(F100-F69)/R20 -> 139.1935484 | S28: =(F131-F100)/S20 -> 126.7419355 | T28: =(F163-F131)/T20 -> 129.5 | U28: =(F194-F163)/U20 -> 122.4193548
A29: 21 | B29: 2729 | C29: 12 | D29: 2735 | E29: 24 | F29: 2742 | K29: 0 | L29: 212
A30: 21 | B30: 2837 | C30: 21 | D30: 2848 | E30: 22 | F30: 2855 | K30: 0 | L30: 222
A31: 21 | B31: 2947 | C31: 21 | D31: 2950 | E31: 11 | F31: 2954 | K31: 0 | L31: 221
A32: 21 | B32: 3080 | C32: 21 | D32: 3087 | E32: 22 | F32: 3093 | K32: 0 | L32: 222
A33: 12 | B33: 3187 | C33: 23 | D33: 3190 | E33: 24 | F33: 3199 | K33: 0 | L33: 122
A34: 21 | B34: 3295 | C34: 21 | D34: 3299 | E34: 11 | F34: 3301 | K34: 0 | L34: 221
A35: 21 | B35: 3489 | C35: 21 | D35: 3502 | E35: 22 | F35: 3511 | K35: 0 | L35: 222
A36: 21 | B36: 3607 | C36: 21 | D36: 3610 | E36: 11 | F36: 3619 | K36: 0 | L36: 221
A37: 21 | B37: 3722 | C37: 21 | D37: 3729 | E37: 22 | F37: 3736 | K37: 0 | L37: 222
A38: 12 | B38: 3829 | C38: 23 | D38: 3831 | E38: 24 | F38: 3838 | K38: 0 | L38: 122
A39: 12 | B39: 3930 | C39: 23 | D39: 3933 | E39: 24 | F39: 3944 | K39: 0 | L39: 122
A40: 12 | B40: 4038 | C40: 23 | D40: 4054 | E40: 24 | F40: 4060 | K40: 0 | L40: 122
A41: 12 | B41: 4153 | C41: 23 | D41: 4164 | E41: 24 | F41: 4171 | K41: 0 | L41: 122
A42: 21 | B42: 4266 | C42: 21 | D42: 4279 | E42: 22 | F42: 4285 | K42: 0 | L42: 222
A43: 21 | B43: 4380 | C43: 21 | D43: 4384 | E43: 22 | F43: 4388 | K43: 0 | L43: 222
A44: 21 | B44: 4484 | C44: 21 | D44: 4487 | E44: 22 | F44: 4491 | K44: 0 | L44: 222
A45: 12 | B45: 4593 | C45: 23 | D45: 4596 | E45: 24 | F45: 4602 | K45: 0 | L45: 122
A46: 21 | B46: 4699 | C46: 21 | D46: 4703 | E46: 22 | F46: 4710 | K46: 0 | L46: 222
A47: 21 | B47: 4804 | C47: 21 | D47: 4807 | E47: 22 | F47: 4811 | K47: 0 | L47: 222
A48: 21 | B48: 4908 | C48: 12 | D48: 4913 | E48: 24 | F48: 4915 | K48: 0 | L48: 212
A49: 21 | B49: 5012 | C49: 21 | D49: 5022 | E49: 22 | F49: 5030 | K49: 0 | L49: 222
A50: 21 | B50: 5126 | C50: 12 | D50: 5133 | E50: 24 | F50: 5136 | K50: 0 | L50: 212
A51: 21 | B51: 5232 | C51: 21 | D51: 5235 | E51: 11 | F51: 5240 | K51: 0 | L51: 221
A52: 21 | B52: 5490 | C52: 21 | D52: 5495 | E52: 22 | F52: 5499 | K52: 0 | L52: 222
A53: 21 | B53: 5600 | C53: 21 | D53: 5608 | E53: 22 | F53: 5613 | K53: 0 | L53: 222
A54: 21 | B54: 5709 | C54: 12 | D54: 5711 | E54: 24 | F54: 5716 | K54: 0 | L54: 212
A55: 21 | B55: 5812 | C55: 21 | D55: 5819 | E55: 11 | F55: 5823 | K55: 0 | L55: 221
A56: 21 | B56: 5951 | C56: 21 | D56: 5956 | E56: 22 | F56: 5962 | K56: 0 | L56: 222
A57: 21 | B57: 6058 | C57: 12 | D57: 6064 | E57: 24 | F57: 6075 | K57: 0 | L57: 212
A58: 21 | B58: 6166 | C58: 21 | D58: 6182 | E58: 11 | F58: 6185 | K58: 0 | L58: 221
A59: 21 | B59: 6368 | C59: 21 | D59: 6381 | E59: 22 | F59: 6388 | K59: 0 | L59: 222
A60: 21 | B60: 6483 | C60: 21 | D60: 6488 | E60: 22 | F60: 6499 | K60: 0 | L60: 222
A61: 21 | B61: 6591 | C61: 21 | D61: 6609 | E61: 11 | F61: 6613 | K61: 0 | L61: 221
A62: 21 | B62: 6843 | C62: 12 | D62: 6848 | E62: 24 | F62: 6849 | K62: 0 | L62: 212
A63: 21 | B63: 6945 | C63: 21 | D63: 6955 | E63: 22 | F63: 6962 | K63: 0 | L63: 222
A64: 21 | B64: 7054 | C64: 21 | D64: 7062 | E64: 22 | F64: 7068 | K64: 0 | L64: 222
A65: 21 | B65: 7164 | C65: 21 | D65: 7176 | E65: 22 | F65: 7185 | K65: 0 | L65: 222
A66: 21 | B66: 7280 | C66: 21 | D66: 7286 | E66: 11 | F66: 7288 | K66: 0 | L66: 221
A67: 21 | B67: 7566 | C67: 21 | D67: 7569 | E67: 22 | F67: 7575 | K67: 0 | L67: 222
A68: 21 | B68: 7671 | C68: 21 | D68: 7677 | E68: 22 | F68: 7684 | K68: 0 | L68: 222
A69: 21 | B69: 7779 | C69: 21 | D69: 7784 | E69: 22 | F69: 7790 | K69: 0 | L69: 222
A70: 21 | B70: 7885 | C70: 21 | D70: 7897 | E70: 11 | F70: 7901 | K70: 0 | L70: 221
A71: 21 | B71: 8247 | C71: 21 | D71: 8257 | E71: 22 | F71: 8263 | K71: 0 | L71: 222
A72: 21 | B72: 8354 | C72: 12 | D72: 8361 | E72: 24 | F72: 8363 | K72: 0 | L72: 212
A73: 21 | B73: 8458 | C73: 21 | D73: 8467 | E73: 22 | F73: 8475 | K73: 0 | L73: 222
A74: 21 | B74: 8568 | C74: 21 | D74: 8571 | E74: 22 | F74: 8577 | K74: 0 | L74: 222
A75: 21 | B75: 8675 | C75: 12 | D75: 8680 | E75: 24 | F75: 8683 | K75: 0 | L75: 212
A76: 21 | B76: 8778 | C76: 21 | D76: 8785 | E76: 22 | F76: 8790 | K76: 0 | L76: 222
A77: 21 | B77: 8882 | C77: 21 | D77: 8886 | E77: 22 | F77: 8902 | K77: 0 | L77: 222
A78: 21 | B78: 8995 | C78: 21 | D78: 9003 | E78: 11 | F78: 9005 | K78: 0 | L78: 221
A79: 21 | B79: 9399 | C79: 21 | D79: 9403 | E79: 22 | F79: 9408 | K79: 0 | L79: 222
A80: 21 | B80: 9503 | C80: 12 | D80: 9513 | E80: 24 | F80: 9516 | K80: 0 | L80: 212
A81: 21 | B81: 9613 | C81: 21 | D81: 9615 | E81: 22 | F81: 9619 | K81: 0 | L81: 222
A82: 12 | B82: 9713 | C82: 23 | D82: 9717 | E82: 24 | F82: 9722 | K82: 0 | L82: 122
A83: 21 | B83: 9815 | C83: 21 | D83: 9818 | E83: 22 | F83: 9827 | K83: 0 | L83: 222
A84: 21 | B84: 9923 | C84: 21 | D84: 9941 | E84: 22 | F84: 9947 | K84: 0 | L84: 222
A85: 21 | B85: 10042 | C85: 21 | D85: 10061 | E85: 11 | F85: 10067 | K85: 0 | L85: 221
A86: 21 | B86: 10372 | C86: 21 | D86: 10376 | E86: 22 | F86: 10382 | K86: 0 | L86: 222
A87: 21 | B87: 10478 | C87: 12 | D87: 10482 | E87: 24 | F87: 10488 | K87: 0 | L87: 212
A88: 21 | B88: 10581 | C88: 21 | D88: 10583 | E88: 22 | F88: 10591 | K88: 0 | L88: 222
A89: 21 | B89: 10686 | C89: 21 | D89: 10706 | E89: 22 | F89: 10711 | K89: 0 | L89: 222
A90: 21 | B90: 10808 | C90: 12 | D90: 10817 | E90: 24 | F90: 10820 | K90: 0 | L90: 212
A91: 21 | B91: 10916 | C91: 21 | D91: 10919 | E91: 11 | F91: 10923 | K91: 0 | L91: 221
A92: 21 | B92: 11056 | C92: 21 | D92: 11062 | E92: 22 | F92: 11069 | K92: 0 | L92: 222
A93: 21 | B93: 11162 | C93: 21 | D93: 11165 | E93: 11 | F93: 11172 | K93: 0 | L93: 221
A94: 21 | B94: 11330 | C94: 21 | D94: 11335 | E94: 22 | F94: 11341 | K94: 0 | L94: 222
A95: 12 | B95: 11451 | C95: 23 | D95: 11460 | E95: 24 | F95: 11467 | K95: 0 | L95: 122
A96: 12 | B96: 11560 | C96: 23 | D96: 11563 | E96: 13 | F96: 11574 | K96: 0 | L96: 121
A97: 21 | B97: 11767 | C97: 21 | D97: 11773 | E97: 22 | F97: 11779 | K97: 0 | L97: 222
A98: 21 | B98: 11874 | C98: 12 | D98: 11880 | E98: 24 | F98: 11884 | K98: 0 | L98: 212
A99: 21 | B99: 11979 | C99: 21 | D99: 11990 | E99: 22 | F99: 11994 | K99: 0 | L99: 222
A100: 21 | B100: 12090 | C100: 12 | D100: 12100 | E100: 24 | F100: 12105 | K100: 0 | L100: 212
A101: 21 | B101: 12202 | C101: 12 | D101: 12208 | E101: 24 | F101: 12215 | K101: 0 | L101: 212
A102: 12 | B102: 12310 | C102: 23 | D102: 12314 | E102: 24 | F102: 12318 | K102: 0 | L102: 122
A103: 12 | B103: 12410 | C103: 23 | D103: 12412 | E103: 24 | F103: 12423 | K103: 0 | L103: 122
A104: 21 | B104: 12519 | C104: 12 | D104: 12529 | E104: 24 | F104: 12531 | K104: 0 | L104: 212
A105: 21 | B105: 12627 | C105: 12 | D105: 12636 | E105: 24 | F105: 12642 | K105: 0 | L105: 212
A106: 21 | B106: 12735 | C106: 21 | D106: 12738 | E106: 11 | F106: 12741 | K106: 0 | L106: 221
A107: 21 | B107: 13056 | C107: 21 | D107: 13064 | E107: 22 | F107: 13070 | K107: 0 | L107: 222
A108: 12 | B108: 13164 | C108: 23 | D108: 13167 | E108: 13 | F108: 13175 | K108: 0 | L108: 121
A109: 21 | B109: 13268 | C109: 12 | D109: 13273 | E109: 13 | F109: 13280 | K109: 0 | L109: 211
A110: 21 | B110: 13376 | C110: 21 | D110: 13380 | E110: 22 | F110: 13387 | K110: 0 | L110: 222
A111: 21 | B111: 13484 | C111: 12 | D111: 13490 | E111: 24 | F111: 13497 | K111: 0 | L111: 212
A112: 21 | B112: 13589 | C112: 12 | D112: 13596 | E112: 24 | F112: 13599 | K112: 0 | L112: 212
A113: 12 | B113: 13703 | C113: 14 | D113: 13719 | E113: 24 | F113: 13721 | K113: 0 | L113: 112
A114: 21 | B114: 13816 | C114: 12 | D114: 13821 | E114: 24 | F114: 13832 | K114: 0 | L114: 212
A115: 21 | B115: 13928 | C115: 12 | D115: 13937 | E115: 24 | F115: 13944 | K115: 0 | L115: 212
A116: 21 | B116: 14041 | C116: 21 | D116: 14045 | E116: 22 | F116: 14051 | K116: 0 | L116: 222
A117: 21 | B117: 14147 | C117: 12 | D117: 14153 | E117: 24 | F117: 14159 | K117: 0 | L117: 212
A118: 21 | B118: 14255 | C118: 12 | D118: 14261 | E118: 24 | F118: 14268 | K118: 0 | L118: 212
A119: 12 | B119: 14363 | C119: 23 | D119: 14365 | E119: 24 | F119: 14369 | K119: 0 | L119: 122
A120: 21 | B120: 14465 | C120: 12 | D120: 14472 | E120: 24 | F120: 14482 | K120: 0 | L120: 212
A121: 21 | B121: 14578 | C121: 21 | D121: 14580 | E121: 11 | F121: 14582 | K121: 0 | L121: 221
A122: 21 | B122: 14772 | C122: 21 | D122: 14784 | E122: 22 | F122: 14796 | K122: 0 | L122: 222
A123: 21 | B123: 14892 | C123: 21 | D123: 14902 | E123: 22 | F123: 14908 | K123: 0 | L123: 222
A124: 21 | B124: 15001 | C124: 21 | D124: 15006 | E124: 11 | F124: 15008 | K124: 0 | L124: 221
A125: 21 | B125: 15386 | C125: 21 | D125: 15391 | E125: 22 | F125: 15397 | K125: 0 | L125: 222
A126: 21 | B126: 15493 | C126: 12 | D126: 15499 | E126: 24 | F126: 15505 | K126: 0 | L126: 212
A127: 12 | B127: 15598 | C127: 23 | D127: 15604 | E127: 24 | F127: 15609 | K127: 0 | L127: 122
A128: 12 | B128: 15701 | C128: 23 | D128: 15703 | E128: 13 | F128: 15710 | K128: 0 | L128: 121
A129: 21 | B129: 15805 | C129: 21 | D129: 15811 | E129: 22 | F129: 15815 | K129: 0 | L129: 222
A130: 21 | B130: 15913 | C130: 21 | D130: 15917 | E130: 22 | F130: 15923 | K130: 0 | L130: 222
A131: 12 | B131: 16019 | C131: 23 | D131: 16027 | E131: 24 | F131: 16034 | K131: 0 | L131: 122
A132: 12 | B132: 16136 | C132: 23 | D132: 16139 | E132: 24 | F132: 16142 | K132: 0 | L132: 122
A133: 21 | B133: 16238 | C133: 21 | D133: 16242 | E133: 11 | F133: 16247 | K133: 0 | L133: 221
A134: 21 | B134: 16537 | C134: 21 | D134: 16541 | E134: 22 | F134: 16547 | K134: 0 | L134: 222
A135: 21 | B135: 16643 | C135: 12 | D135: 16647 | E135: 24 | F135: 16653 | K135: 0 | L135: 212
A136: 12 | B136: 16746 | C136: 23 | D136: 16748 | E136: 13 | F136: 16755 | K136: 0 | L136: 121
A137: 12 | B137: 16850 | C137: 14 | D137: 16872 | E137: 24 | F137: 16881 | K137: 0 | L137: 112
A138: 21 | B138: 16979 | C138: 21 | D138: 16982 | E138: 22 | F138: 16990 | K138: 0 | L138: 222
A139: 21 | B139: 17086 | C139: 12 | D139: 17091 | E139: 24 | F139: 17102 | K139: 0 | L139: 212
A140: 21 | B140: 17198 | C140: 12 | D140: 17202 | E140: 24 | F140: 17214 | K140: 0 | L140: 212
A141: 21 | B141: 17310 | C141: 12 | D141: 17315 | E141: 24 | F141: 17320 | K141: 0 | L141: 212
A142: 21 | B142: 17417 | C142: 21 | D142: 17424 | E142: 11 | F142: 17426 | K142: 0 | L142: 221
A143: 21 | B143: 17681 | C143: 21 | D143: 17690 | E143: 22 | F143: 17697 | K143: 0 | L143: 222
A144: 12 | B144: 17793 | C144: 23 | D144: 17803 | E144: 24 | F144: 17809 | K144: 0 | L144: 122
A145: 21 | B145: 17902 | C145: 12 | D145: 17906 | E145: 24 | F145: 17910 | K145: 0 | L145: 212
A146: 12 | B146: 18009 | C146: 23 | D146: 18011 | E146: 24 | F146: 18019 | K146: 0 | L146: 122
A147: 12 | B147: 18112 | C147: 23 | D147: 18114 | E147: 24 | F147: 18117 | K147: 0 | L147: 122
A148: 21 | B148: 18213 | C148: 21 | D148: 18218 | E148: 11 | F148: 18220 | K148: 0 | L148: 221
A149: 21 | B149: 18468 | C149: 21 | D149: 18478 | E149: 22 | F149: 18484 | K149: 0 | L149: 222
A150: 21 | B150: 18577 | C150: 21 | D150: 18579 | E150: 22 | F150: 18582 | K150: 0 | L150: 222
A151: 12 | B151: 18679 | C151: 23 | D151: 18684 | E151: 24 | F151: 18692 | K151: 0 | L151: 122
A152: 21 | B152: 18790 | C152: 12 | D152: 18795 | E152: 24 | F152: 18801 | K152: 0 | L152: 212
A153: 21 | B153: 18896 | C153: 21 | D153: 18898 | E153: 11 | F153: 18901 | K153: 0 | L153: 221
A154: 21 | B154: 19090 | C154: 21 | D154: 19096 | E154: 22 | F154: 19103 | K154: 0 | L154: 222
A155: 21 | B155: 19196 | C155: 12 | D155: 19200 | E155: 24 | F155: 19209 | K155: 0 | L155: 212
A156: 21 | B156: 19305 | C156: 12 | D156: 19308 | E156: 13 | F156: 19315 | K156: 0 | L156: 211
A157: 21 | B157: 19411 | C157: 12 | D157: 19413 | E157: 24 | F157: 19415 | K157: 0 | L157: 212
A158: 21 | B158: 19511 | C158: 12 | D158: 19516 | E158: 24 | F158: 19519 | K158: 0 | L158: 212
A159: 12 | B159: 19615 | C159: 23 | D159: 19618 | E159: 13 | F159: 19623 | K159: 0 | L159: 121
A160: 21 | B160: 19720 | C160: 12 | D160: 19724 | E160: 24 | F160: 19728 | K160: 0 | L160: 212
A161: 21 | B161: 19822 | C161: 12 | D161: 19831 | E161: 24 | F161: 19838 | K161: 0 | L161: 212
A162: 21 | B162: 19934 | C162: 21 | D162: 19938 | E162: 11 | F162: 19940 | K162: 0 | L162: 221
A163: 21 | B163: 20165 | C163: 21 | D163: 20171 | E163: 22 | F163: 20178 | K163: 0 | L163: 222
A164: 12 | B164: 20271 | C164: 23 | D164: 20273 | E164: 13 | F164: 20278 | K164: 0 | L164: 121
A165: 21 | B165: 20375 | C165: 12 | D165: 20383 | E165: 24 | F165: 20385 | K165: 0 | L165: 212
A166: 21 | B166: 20477 | C166: 12 | D166: 20483 | E166: 24 | F166: 20488 | K166: 0 | L166: 212
A167: 21 | B167: 20584 | C167: 21 | D167: 20602 | E167: 22 | F167: 20608 | K167: 0 | L167: 222
A168: 21 | B168: 20702 | C168: 12 | D168: 20708 | E168: 24 | F168: 20710 | K168: 0 | L168: 212
A169: 21 | B169: 20807 | C169: 12 | D169: 20812 | E169: 24 | F169: 20819 | K169: 0 | L169: 212
A170: 21 | B170: 20915 | C170: 21 | D170: 20920 | E170: 22 | F170: 20930 | K170: 0 | L170: 222
A171: 21 | B171: 21034 | C171: 21 | D171: 21045 | E171: 11 | F171: 21050 | K171: 0 | L171: 221
A172: 21 | B172: 21203 | C172: 21 | D172: 21207 | E172: 22 | F172: 21215 | K172: 0 | L172: 222
A173: 21 | B173: 21307 | C173: 12 | D173: 21312 | E173: 24 | F173: 21316 | K173: 0 | L173: 212
A174: 21 | B174: 21505 | C174: 21 | D174: 21508 | E174: 22 | F174: 21517 | K174: 0 | L174: 222
A175: 21 | B175: 21609 | C175: 21 | D175: 21617 | E175: 22 | F175: 21622 | K175: 0 | L175: 222
A176: 21 | B176: 21718 | C176: 21 | D176: 21725 | E176: 11 | F176: 21728 | K176: 0 | L176: 221
A177: 21 | B177: 21832 | C177: 21 | D177: 21837 | E177: 22 | F177: 21844 | K177: 0 | L177: 222
A178: 12 | B178: 21948 | C178: 23 | D178: 21953 | E178: 24 | F178: 21967 | K178: 0 | L178: 122
A179: 21 | B179: 22062 | C179: 12 | D179: 22068 | E179: 24 | F179: 22070 | K179: 0 | L179: 212
A180: 21 | B180: 22166 | C180: 21 | D180: 22171 | E180: 22 | F180: 22177 | K180: 0 | L180: 222
A181: 12 | B181: 22270 | C181: 23 | D181: 22273 | E181: 13 | F181: 22280 | K181: 0 | L181: 121
A182: 21 | B182: 22376 | C182: 21 | D182: 22378 | E182: 22 | F182: 22385 | K182: 0 | L182: 222
A183: 21 | B183: 22498 | C183: 21 | D183: 22506 | E183: 22 | F183: 22512 | K183: 0 | L183: 222
A184: 21 | B184: 22605 | C184: 21 | D184: 22614 | E184: 22 | F184: 22616 | K184: 0 | L184: 222
A185: 21 | B185: 22712 | C185: 12 | D185: 22716 | E185: 24 | F185: 22721 | K185: 0 | L185: 212
A186: 21 | B186: 22816 | C186: 21 | D186: 22820 | E186: 11 | F186: 22822 | K186: 0 | L186: 221
A187: 21 | B187: 23155 | C187: 12 | D187: 23167 | E187: 24 | F187: 23174 | K187: 0 | L187: 212
A188: 21 | B188: 23270 | C188: 12 | D188: 23275 | E188: 24 | F188: 23280 | K188: 0 | L188: 212
A189: 12 | B189: 23387 | C189: 14 | D189: 23397 | E189: 24 | F189: 23400 | K189: 0 | L189: 112
A190: 12 | B190: 23492 | C190: 23 | D190: 23494 | E190: 24 | F190: 23499 | K190: 0 | L190: 122
A191: 12 | B191: 23602 | C191: 23 | D191: 23606 | E191: 24 | F191: 23612 | K191: 0 | L191: 122
A192: 12 | B192: 23710 | C192: 23 | D192: 23715 | E192: 24 | F192: 23721 | K192: 0 | L192: 122
A193: 12 | B193: 23856 | C193: 23 | D193: 23860 | E193: 13 | F193: 23868 | K193: 0 | L193: 121
A194: 21 | B194: 23962 | C194: 12 | D194: 23969 | E194: 24 | F194: 23973 | L194: 212

Sheet !MA05A00.Gus
A1: Report for:!MA05A00.Gus
A2: Date: | B2: <date>
A3: Hen: | B3: <hen> | F3: Correct Sequence | G3: =Start!J2 -> 221 | P3: Total Sequences in Data | Q3: =4994-COUNTBLANK(L7:L5000) -> 184 | V3: Total Sequences in Block Data | W3: =COUNTA(L7:L37) -> 31 | AA3: Total Sequences in Block Data | AB3: =COUNTA(L38:L67) -> 30 | AF3: Total Sequences in Block Data | AG3: =COUNTA(L68:L98) -> 31 | AK3: Total Sequences in Block Data | AL3: =COUNTA(L99:L129) -> 31 | AP3: Total Sequences in Block Data | AQ3: =COUNTA(L130:L159) -> 30 | AU3: Total Sequences in Block Data | AV3: =COUNTA(L160:L190) -> 31
P4: Total Sequences in Summary | Q4: =SUM(O7:O14) -> 184 | V4: Total Sequences in Block Summary | W4: =SUM(U7:U14) -> 31 | AA4: Total Sequences in Block Summary | AB4: =SUM(Z7:Z14) -> 30 | AF4: Total Sequences in Block Summary | AG4: =SUM(AE7:AE14) -> 31 | AK4: Total Sequences in Block Summary | AL4: =SUM(AJ7:AJ14) -> 31 | AP4: Total Sequences in Block Summary | AQ4: =SUM(AO7:AO14) -> 30 | AU4: Total Sequences in Block Summary | AV4: =SUM(AT7:AT14) -> 31
T5: Block 1 | Y5: Block 2 | AD5: Block 3 | AI5: Block 4 | AN5: Block 5 | AS5: Block 6
A6: Sequence Component 1 | B6: Time 1 | C6: Sequence Component 2 | D6: Time 2 | E6: Sequence Component 3 | F6: Time 3 | G6: Sequence Component 4 | H6: Time 4 | I6: Sequence Component 5 | J6: Time 5 | K6: Correct? 0=No 1=Yes | L6: Sequence | N6: Frequency | P6: Relative Frequency | Q6: Variability | T6: Frequency | V6: Relative Frequency | W6: Variability | Y6: Frequency | AA6: Relative Frequency | AB6: Variability | AD6: Frequency | AF6: Relative Frequency | AG6: Variability | AI6: Frequency | AK6: Relative Frequency | AL6: Variability | AN6: Frequency | AP6: Relative Frequency | AQ6: Variability | AS6: Frequency | AU6: Relative Frequency | AV6: Variability
A7: 21 | B7: 18 | C7: 21 | D7: 23 | E7: 22 | F7: 28 | K7: 0 | L7: 222 | N7: 111 | O7: =COUNTIF($L$7:$L$500,N7) -> 1 | P7: =O7/$Q$4 -> 0.005434782609 | Q7: =IF(P7=0,0,(P7*((LOG(P7))/LOG(2)))) -> -0.04088892367 | T7: =N7 -> 111 | U7: =COUNTIF(L7:L37,T7) -> 0 | V7: =U7/(W4-U13) -> 0 | W7: =IF(V7=0,0,(V7*((LOG(V7))/LOG(2)))) -> 0 | Y7: =N7 -> 111 | Z7: =COUNTIF(L38:L67,Y7) -> 1 | AA7: =Z7/(AB4-Z13) -> 0.03846153846 | AB7: =IF(AA7=0,0,(AA7*((LOG(AA7))/LOG(2)))) -> -0.180786143 | AD7: =N7 -> 111 | AE7: =COUNTIF(L68:L98,AD7) -> 0 | AF7: =AE7/(AG4-AE13) -> 0 | AG7: =IF(AF7=0,0,(AF7*((LOG(AF7))/LOG(2)))) -> 0 | AI7: =N7 -> 111 | AJ7: =COUNTIF(L99:L129,AI7) -> 0 | AK7: =AJ7/(AL4-AJ13) -> 0 | AL7: =IF(AK7=0,0,(AK7*((LOG(AK7))/LOG(2)))) -> 0 | AN7: =N7 -> 111 | AO7: =COUNTIF(L130:L159,AN7) -> 0 | AP7: =AO7/(AQ4-AO13) -> 0 | AQ7: =IF(AP7=0,0,(AP7*((LOG(AP7))/LOG(2)))) -> 0 | AS7: =N7 -> 111 | AT7: =COUNTIF(L160:L190,AS7) -> 0 | AU7: =AT7/(AV4-AT13) -> 0 | AV7: =IF(AU7=0,0,(AU7*((LOG(AU7))/LOG(2)))) -> 0
A8: 21 | B8: 121 | C8: 21 | D8: 129 | E8: 22 | F8: 142 | K8: 0 | L8: 222 | N8: 112 | O8: =COUNTIF($L$7:$L$500,N8) -> 4 | P8: =O8/$Q$4 -> 0.02173913043 | Q8: =IF(P8=0,0,(P8*((LOG(P8))/LOG(2)))) -> -0.1200774338 | T8: =N8 -> 112 | U8: =COUNTIF(L7:L37,T8) -> 0 | V8: =U8/(W4-U13) -> 0 | W8: =IF(V8=0,0,(V8*((LOG(V8))/LOG(2)))) -> 0 | Y8: =N8 -> 112 | Z8: =COUNTIF(L38:L67,Y8) -> 2 | AA8: =Z8/(AB4-Z13) -> 0.07692307692 | AB8: =IF(AA8=0,0,(AA8*((LOG(AA8))/LOG(2)))) -> -0.2846492091 | AD8: =N8 -> 112 | AE8: =COUNTIF(L68:L98,AD8) -> 1 | AF8: =AE8/(AG4-AE13) -> 0.03448275862 | AG8: =IF(AF8=0,0,(AF8*((LOG(AF8))/LOG(2)))) -> -0.167516586 | AI8: =N8 -> 112 | AJ8: =COUNTIF(L99:L129,AI8) -> 0 | AK8: =AJ8/(AL4-AJ13) -> 0 | AL8: =IF(AK8=0,0,(AK8*((LOG(AK8))/LOG(2)))) -> 0 | AN8: =N8 -> 112 | AO8: =COUNTIF(L130:L159,AN8) -> 1 | AP8: =AO8/(AQ4-AO13) -> 0.03846153846 | AQ8: =IF(AP8=0,0,(AP8*((LOG(AP8))/LOG(2)))) -> -0.180786143 | AS8: =N8 -> 112 | AT8: =COUNTIF(L160:L190,AS8) -> 0 | AU8: =AT8/(AV4-AT13) -> 0 | AV8: =IF(AU8=0,0,(AU8*((LOG(AU8))/LOG(2)))) -> 0
A9: 21 | B9: 239 | C9: 21 | D9: 255 | E9: 22 | F9: 263 | K9: 0 | L9: 222 | N9: 121 | O9: =COUNTIF($L$7:$L$500,N9) -> 9 | P9: =O9/$Q$4 -> 0.04891304348 | Q9: =IF(P9=0,0,(P9*((LOG(P9))/LOG(2)))) -> -0.2129496336 | T9: =N9 -> 121 | U9: =COUNTIF(L7:L37,T9) -> 2 | V9: =U9/(W4-U13) -> 0.07407407407 | W9: =IF(V9=0,0,(V9*((LOG(V9))/LOG(2)))) -> -0.278139815 | Y9: =N9 -> 121 | Z9: =COUNTIF(L38:L67,Y9) -> 1 | AA9: =Z9/(AB4-Z13) -> 0.03846153846 | AB9: =IF(AA9=0,0,(AA9*((LOG(AA9))/LOG(2)))) -> -0.180786143 | AD9: =N9 -> 121 | AE9: =COUNTIF(L68:L98,AD9) -> 0 | AF9: =AE9/(AG4-AE13) -> 0 | AG9: =IF(AF9=0,0,(AF9*((LOG(AF9))/LOG(2)))) -> 0 | AI9: =N9 -> 121 | AJ9: =COUNTIF(L99:L129,AI9) -> 2 | AK9: =AJ9/(AL4-AJ13) -> 0.07692307692 | AL9: =IF(AK9=0,0,(AK9*((LOG(AK9))/LOG(2)))) -> -0.2846492091 | AN9: =N9 -> 121 | AO9: =COUNTIF(L130:L159,AN9) -> 2 | AP9: =AO9/(AQ4-AO13) -> 0.07692307692 | AQ9: =IF(AP9=0,0,(AP9*((LOG(AP9))/LOG(2)))) -> -0.2846492091 | AS9: =N9 -> 121 | AT9: =COUNTIF(L160:L190,AS9) -> 2 | AU9: =AT9/(AV4-AT13) -> 0.08333333333 | AV9: =IF(AU9=0,0,(AU9*((LOG(AU9))/LOG(2)))) -> -0.2987468751
A10: 21 | B10: 360 | C10: 21 | D10: 375 | E10: 22 | F10: 386 | K10: 0 | L10: 222 | N10: 122 | O10: =COUNTIF($L$7:$L$500,N10) -> 21 | P10: =O10/$Q$4 -> 0.1141304348 | Q10: =IF(P10=0,0,(P10*((LOG(P10))/LOG(2)))) -> -0.3573703 | T10: =N10 -> 122 | U10: =COUNTIF(L7:L37,T10) -> 2 | V10: =U10/(W4-U13) -> 0.07407407407 | W10: =IF(V10=0,0,(V10*((LOG(V10))/LOG(2)))) -> -0.278139815 | Y10: =N10 -> 122 | Z10: =COUNTIF(L38:L67,Y10) -> 2 | AA10: =Z10/(AB4-Z13) -> 0.07692307692 | AB10: =IF(AA10=0,0,(AA10*((LOG(AA10))/LOG(2)))) -> -0.2846492091 | AD10: =N10 -> 122 | AE10: =COUNTIF(L68:L98,AD10) -> 5 | AF10: =AE10/(AG4-AE13) -> 0.1724137931 | AG10: =IF(AF10=0,0,(AF10*((LOG(AF10))/LOG(2)))) -> -0.4372505 | AI10: =N10 -> 122 | AJ10: =COUNTIF(L99:L129,AI10) -> 2 | AK10: =AJ10/(AL4-AJ13) -> 0.07692307692 | AL10: =IF(AK10=0,0,(AK10*((LOG(AK10))/LOG(2)))) -> -0.2846492091 | AN10: =N10 -> 122 | AO10: =COUNTIF(L130:L159,AN10) -> 5 | AP10: =AO10/(AQ4-AO13) -> 0.1923076923 | AQ10: =IF(AP10=0,0,(AP10*((LOG(AP10))/LOG(2)))) -> -0.4574060814 | AS10: =N10 -> 122 | AT10: =COUNTIF(L160:L190,AS10) -> 5 | AU10: =AT10/(AV4-AT13) -> 0.2083333333 | AV10: =IF(AU10=0,0,(AU10*((LOG(AU10))/LOG(2)))) -> -0.4714655012
A11: 21 | B11: 483 | C11: 12 | D11: 493 | E11: 24 | F11: 495 | K11: 0 | L11: 212 | N11: 211 | O11: =COUNTIF($L$7:$L$500,N11) -> 5 | P11: =O11/$Q$4 -> 0.02717391304 | Q11: =IF(P11=0,0,(P11*((LOG(P11))/LOG(2)))) -> -0.1413487462 | T11: =N11 -> 211 | U11: =COUNTIF(L7:L37,T11) -> 0 | V11: =U11/(W4-U13) -> 0 | W11: =IF(V11=0,0,(V11*((LOG(V11))/LOG(2)))) -> 0 | Y11: =N11 -> 211 | Z11: =COUNTIF(L38:L67,Y11) -> 0 | AA11: =Z11/(AB4-Z13) -> 0 | AB11: =IF(AA11=0,0,(AA11*((LOG(AA11))/LOG(2)))) -> 0 | AD11: =N11 -> 211 | AE11: =COUNTIF(L68:L98,AD11) -> 2 | AF11: =AE11/(AG4-AE13) -> 0.06896551724 | AG11: =IF(AF11=0,0,(AF11*((LOG(AF11))/LOG(2)))) -> -0.2660676548 | AI11: =N11 -> 211 | AJ11: =COUNTIF(L99:L129,AI11) -> 0 | AK11: =AJ11/(AL4-AJ13) -> 0 | AL11: =IF(AK11=0,0,(AK11*((LOG(AK11))/LOG(2)))) -> 0 | AN11: =N11 -> 211 | AO11: =COUNTIF(L130:L159,AN11) -> 3 | AP11: =AO11/(AQ4-AO13) -> 0.1153846154 | AQ11: =IF(AP11=0,0,(AP11*((LOG(AP11))/LOG(2)))) -> -0.3594781405 | AS11: =N11 -> 211 | AT11: =COUNTIF(L160:L190,AS11) -> 0 | AU11: =AT11/(AV4-AT13) -> 0 | AV11: =IF(AU11=0,0,(AU11*((LOG(AU11))/LOG(2)))) -> 0
A12: 12 | B12: 605 | C12: 23 | D12: 620 | E12: 24 | F12: 629 | K12: 0 | L12: 122 | N12: 212 | O12: =COUNTIF($L$7:$L$500,N12) -> 48 | P12: =O12/$Q$4 -> 0.2608695652 | Q12: =IF(P12=0,0,(P12*((LOG(P12))/LOG(2)))) -> -0.505721597 | T12: =N12 -> 212 | U12: =COUNTIF(L7:L37,T12) -> 6 | V12: =U12/(W4-U13) -> 0.2222222222 | W12: =IF(V12=0,0,(V12*((LOG(V12))/LOG(2)))) -> -0.4822055559 | Y12: =N12 -> 212 | Z12: =COUNTIF(L38:L67,Y12) -> 4 | AA12: =Z12/(AB4-Z13) -> 0.1538461538 | AB12: =IF(AA12=0,0,(AA12*((LOG(AA12))/LOG(2)))) -> -0.4154522643 | AD12: =N12 -> 212 | AE12: =COUNTIF(L68:L98,AD12) -> 15 | AF12: =AE12/(AG4-AE13) -> 0.5172413793 | AG12: =IF(AF12=0,0,(AF12*((LOG(AF12))/LOG(2)))) -> -0.4919433101 | AI12: =N12 -> 212 | AJ12: =COUNTIF(L99:L129,AI12) -> 9 | AK12: =AJ12/(AL4-AJ13) -> 0.3461538462 | AL12: =IF(AK12=0,0,(AK12*((LOG(AK12))/LOG(2)))) -> -0.5297935558 | AN12: =N12 -> 212 | AO12: =COUNTIF(L130:L159,AN12) -> 9 | AP12: =AO12/(AQ4-AO13) -> 0.3461538462 | AQ12: =IF(AP12=0,0,(AP12*((LOG(AP12))/LOG(2)))) -> -0.5297935558 | AS12: =N12 -> 212 | AT12: =COUNTIF(L160:L190,AS12) -> 5 | AU12: =AT12/(AV4-AT13) -> 0.2083333333 | AV12: =IF(AU12=0,0,(AU12*((LOG(AU12))/LOG(2)))) -> -0.4714655012
A13: 21 | B13: 754 | C13: 21 | D13: 764 | E13: 22 | F13: 771 | K13: 0 | L13: 222 | N13: 221 | O13: =COUNTIF($L$7:$L$500,N13) -> 26 | P13: =O13/$Q$4 -> 0.1413043478 | Q13: =IF(P13=0,0,(P13*((LOG(P13))/LOG(2)))) -> -0.3989194467 | T13: =N13 -> 221 | U13: =COUNTIF(L7:L37,T13) -> 4 | Y13: =N13 -> 221 | Z13: =COUNTIF(L38:L67,Y13) -> 4 | AD13: =N13 -> 221 | AE13: =COUNTIF(L68:L98,AD13) -> 2 | AI13: =N13 -> 221 | AJ13: =COUNTIF(L99:L129,AI13) -> 5 | AN13: =N13 -> 221 | AO13: =COUNTIF(L130:L159,AN13) -> 4 | AS13: =N13 -> 221 | AT13: =COUNTIF(L160:L190,AS13) -> 7
A14: 21 | B14: 869 | C14: 12 | D14: 872 | E14: 24 | F14: 879 | K14: 0 | L14: 212 | N14: 222 | O14: =COUNTIF($L$7:$L$500,N14) -> 70 | P14: =O14/$Q$4 -> 0.3804347826 | Q14: =IF(P14=0,0,(P14*((LOG(P14))/LOG(2)))) -> -0.5304322051 | T14: =N14 -> 222 | U14: =COUNTIF(L7:L37,T14) -> 17 | V14: =U14/(W4-U13) -> 0.6296296296 | W14: =IF(V14=0,0,(V14*((LOG(V14))/LOG(2)))) -> -0.4202303421 | Y14: =N14 -> 222 | Z14: =COUNTIF(L38:L67,Y14) -> 16 | AA14: =Z14/(AB4-Z13) -> 0.6153846154 | AB14: =IF(AA14=0,0,(AA14*((LOG(AA14))/LOG(2)))) -> -0.4310398265 | AD14: =N14 -> 222 | AE14: =COUNTIF(L68:L98,AD14) -> 6 | AF14: =AE14/(AG4-AE13) -> 0.2068965517 | AG14: =IF(AF14=0,0,(AF14*((LOG(AF14))/LOG(2)))) -> -0.4702796885 | AI14: =N14 -> 222 | AJ14: =COUNTIF(L99:L129,AI14) -> 13 | AK14: =AJ14/(AL4-AJ13) -> 0.5 | AL14: =IF(AK14=0,0,(AK14*((LOG(AK14))/LOG(2)))) -> -0.5 | AN14: =N14 -> 222 | AO14: =COUNTIF(L130:L159,AN14) -> 6 | AP14: =AO14/(AQ4-AO13) -> 0.2307692308 | AQ14: =IF(AP14=0,0,(AP14*((LOG(AP14))/LOG(2)))) -> -0.4881870502 | AS14: =N14 -> 222 | AT14: =COUNTIF(L160:L190,AS14) -> 12 | AU14: =AT14/(AV4-AT13) -> 0.5 | AV14: =IF(AU14=0,0,(AU14*((LOG(AU14))/LOG(2)))) -> -0.5
A15: 21 | B15: 976 | C15: 12 | D15: 985 | E15: 24 | F15: 989 | K15: 0 | L15: 212 | P15: =SUM(P7:P14) -> 1 | Q15: =-SUM(Q7:Q14) -> 2.307708286 | V15: =SUM(V7:V14) -> 1 | W15: =-SUM(W7:W14) -> 1.458715528 | AA15: =SUM(AA7:AA14) -> 1 | AB15: =-SUM(AB7:AB14) -> 1.777362795 | AF15: =SUM(AF7:AF14) -> 1 | AG15: =-SUM(AG7:AG14) -> 1.83305774 | AK15: =SUM(AK7:AK14) -> 1 | AL15: =-SUM(AL7:AL14) -> 1.599091974 | AP15: =SUM(AP7:AP14) -> 1 | AQ15: =-SUM(AQ7:AQ14) -> 2.30030018 | AU15: =SUM(AU7:AU14) -> 1 | AV15: =-SUM(AV7:AV14) -> 1.741677877
A16: 21 | B16: 1104 | C16: 21 | D16: 1111 | E16: 11 | F16: 1120 | K16: 0 | L16: 221 | P16: U= | Q16: =Q15/(LOG(Q4)/LOG(2)) -> 0.3067308144 | V16: U1= | W16: =W15/(LOG(W4)/LOG(2)) -> 0.2944403969 | AA16: U2= | AB16: =AB15/(LOG(AB4)/LOG(2)) -> 0.3622177345 | AF16: U3= | AG16: =AG15/(LOG(AG4)/LOG(2)) -> 0.3700010304 | AK16: U4= | AL16: =AL15/(LOG(AL4)/LOG(2)) -> 0.3227752543 | AP16: U5= | AQ16: =AQ15/(LOG(AQ4)/LOG(2)) -> 0.4687897835 | AU16: U6= | AV16: =AV15/(LOG(AV4)/LOG(2)) -> 0.3515560887
A17: 21 | B17: 1240 | C17: 21 | D17: 1255 | E17: 22 | F17: 1261 | K17: 0 | L17: 222
A18: 21 | B18: 1363 | C18: 21 | D18: 1381 | E18: 22 | F18: 1388 | K18: 0 | L18: 222
A19: 21 | B19: 1479 | C19: 21 | D19: 1485 | E19: 22 | F19: 1491 | K19: 0 | L19: 222 | N19: Total Target Seq
A20: 21 | B20: 1587 | C20: 12 | D20: 1595 | E20: 24 | F20: 1607 | K20: 0 | L20: 212 | N20: =COUNTIF(L7:L190,G3) -> 26 | P20: 31 | Q20: 30 | R20: 31 | S20: 31 | T20: 30 | U20: 31
A21: 12 | B21: 1704 | C21: 23 | D21: 1707 | E21: 13 | F21: 1715 | K21: 0 | L21: 121 | P21: % of reinforcement given in 6 equal intervals based on number of trials
A22: 21 | B22: 1812 | C22: 21 | D22: 1823 | E22: 22 | F22: 1831 | K22: 0 | L22: 222 | P22: %_1 | Q22: %_2 | R22: %_3 | S22: %_4 | T22: %_5 | U22: %_6
A23: 12 | B23: 1935 | C23: 23 | D23: 1938 | E23: 24 | F23: 1940 | K23: 0 | L23: 122 | O23: target sequence | P23: =$G$3 -> 221 | Q23: =$G$3 -> 221 | R23: =$G$3 -> 221 | S23: =$G$3 -> 221 | T23: =$G$3 -> 221 | U23: =$G$3 -> 221
A24: 21 | B24: 2038 | C24: 21 | D24: 2056 | E24: 22 | F24: 2064 | K24: 0 | L24: 222 | O24: total reinforcement | P24: =U13 -> 4 | Q24: =Z13 -> 4 | R24: =AE13 -> 2 | S24: =AJ13 -> 5 | T24: =AO13 -> 4 | U24: =AT13 -> 7
A25: 21 | B25: 2160 | C25: 21 | D25: 2164 | E25: 11 | F25: 2166 | K25: 0 | L25: 221 | O25: % target
A26: 21 | B26: 2283 | C26: 21 | D26: 2288 | E26: 22 | F26: 2295 | K26: 0 | L26: 222 | O26: CCRF
A27: 21 | B27: 2406 | C27: 21 | D27: 2412 | E27: 22 | F27: 2419 | K27: 0 | L27: 222 | O27: % CCRf
A28: 21 | B28: 2517 | C28: 21 | D28: 2528 | E28: 22 | F28: 2532 | K28: 0 | L28: 222 | O28: average response rate | P28: =F37/P20 -> 120.0322581 | Q28: =(F67-F37)/Q20 -> 129.5 | R28: =(F98-F67)/R20 -> 120.8064516 | S28: =(F129-F98)/S20 -> 123.2580645 | T28: =(F159-F129)/T20 -> 129.9 | U28: =(F190-F159)/U20 -> 158.7096774
A29: 21 | B29: 2625 | C29: 21 | D29: 2646 | E29: 22 | F29: 2652 | K29: 0 | L29: 222
A30: 12 | B30: 2745 | C30: 23 | D30: 2747 | E30: 13 | F30: 2753 | K30: 0 | L30: 121
A31: 21 | B31: 2850 | C31: 21 | D31: 2853 | E31: 11 | F31: 2857 | K31: 0 | L31: 221
A32: 21 | B32: 2990 | C32: 21 | D32: 2995 | E32: 22 | F32: 3010 | K32: 0 | L32: 222
A33: 21 | B33: 3109 | C33: 21 | D33: 3115 | E33: 11 | F33: 3120 | K33: 0 | L33: 221
A34: 21 | B34: 3367 | C34: 21 | D34: 3376 | E34: 22 | F34: 3381 | K34: 0 | L34: 222
A35: 21 | B35: 3479 | C35: 12 | D35: 3486 | E35: 24 | F35: 3492 | K35: 0 | L35: 212
A36: 21 | B36: 3591 | C36: 21 | D36: 3595 | E36: 22 | F36: 3604 | K36: 0 | L36: 222
A37: 21 | B37: 3701 | C37: 12 | D37: 3713 | E37: 24 | F37: 3721 | K37: 0 | L37: 212
A38: 21 | B38: 3815 | C38: 21 | D38: 3832 | E38: 22 | F38: 3841 | K38: 0 | L38: 222
A39: 12 | B39: 3939 | C39: 14 | D39: 3942 | E39: 13 | F39: 3962 | K39: 0 | L39: 111
A40: 21 | B40: 4207 | C40: 21 | D40: 4218 | E40: 22 | F40: 4231 | K40: 0 | L40: 222
A41: 21 | B41: 4329 | C41: 21 | D41: 4340 | E41: 11 | F41: 4343 | K41: 0 | L41: 221
A42: 21 | B42: 4532 | C42: 21 | D42: 4538 | E42: 22 | F42: 4546 | K42: 0 | L42: 222
A43: 21 | B43: 4644 | C43: 21 | D43: 4651 | E43: 22 | F43: 4655 | K43: 0 | L43: 222
A44: 12 | B44: 4755 | C44: 23 | D44: 4759 | E44: 24 | F44: 4765 | K44: 0 | L44: 122
A45: 12 | B45: 4863 | C45: 23 | D45: 4868 | E45: 13 | F45: 4874 | K45: 0 | L45: 121
A46: 21 | B46: 4971 | C46: 21 | D46: 4978 | E46: 22 | F46: 4982 | K46: 0 | L46: 222
A47: 21 | B47: 5078 | C47: 21 | D47: 5088 | E47: 22 | F47: 5100 | K47: 0 | L47: 222
A48: 21 | B48: 5196 | C48: 21 | D48: 5203 | E48: 22 | F48: 5208 | K48: 0 | L48: 222
A49: 12 | B49: 5312 | C49: 14 | D49: 5317 | E49: 24 | F49: 5318 | K49: 0 | L49: 112
A50: 21 | B50: 5445 | C50: 21 | D50: 5451 | E50: 22 | F50: 5457 | K50: 0 | L50: 222
A51: 21 | B51: 5563 | C51: 21 | D51: 5580 | E51: 11 | F51: 5585 | K51: 0 | L51: 221
A52: 21 | B52: 5835 | C52: 21 | D52: 5846 | E52: 22 | F52: 5854 | K52: 0 | L52: 222
A53: 12 | B53: 5947 | C53: 14 | D53: 5957 | E53: 24 | F53: 5960 | K53: 0 | L53: 112
A54: 21 | B54: 6056 | C54: 12 | D54: 6065 | E54: 24 | F54: 6072 | K54: 0 | L54: 212
A55: 21 | B55: 6164 | C55: 21 | D55: 6168 | E55: 11 | F55: 6171 | K55: 0 | L55: 221
A56: 21 | B56: 6320 | C56: 21 | D56: 6337 | E56: 22 | F56: 6344 | K56: 0 | L56: 222
A57: 21 | B57: 6445 | C57: 21 | D57: 6447 | E57: 22 | F57: 6453 | K57: 0 | L57: 222
A58: 21 | B58: 6548 | C58: 21 | D58: 6551 | E58: 22 | F58: 6557 | K58: 0 | L58: 222
A59: 21 | B59: 6652 | C59: 21 | D59: 6657 | E59: 22 | F59: 6662 | K59: 0 | L59: 222
A60: 21 | B60: 6758 | C60: 21 | D60: 6762 | E60: 22 | F60: 6769 | K60: 0 | L60: 222
A61: 21 | B61: 6864 | C61: 12 | D61: 6868 | E61: 24 | F61: 6879 | K61: 0 | L61: 212
A62: 21 | B62: 6976 | C62: 21 | D62: 6986 | E62: 22 | F62: 6992 | K62: 0 | L62: 222
A63: 21 | B63: 7087 | C63: 12 | D63: 7093 | E63: 24 | F63: 7104 | K63: 0 | L63: 212
A64: 21 | B64: 7200 | C64: 21 | D64: 7203 | E64: 11 | F64: 7206 | K64: 0 | L64: 221
A65: 12 | B65: 7373 | C65: 23 | D65: 7381 | E65: 24 | F65: 7387 | K65: 0 | L65: 122
A66: 21 | B66: 7484 | C66: 21 | D66: 7491 | E66: 22 | F66: 7498 | K66: 0 | L66: 222
A67: 21 | B67: 7595 | C67: 12 | D67: 7603 | E67: 24 | F67: 7606 | K67: 0 | L67: 212
A68: 21 | B68: 7701 | C68: 12 | D68: 7707 | E68: 24 | F68: 7711 | K68: 0 | L68: 212
A69: 21 | B69: 7808 | C69: 12 | D69: 7812 | E69: 24 | F69: 7818 | K69: 0 | L69: 212
A70: 12 | B70: 7912 | C70: 23 | D70: 7915 | E70: 24 | F70: 7932 | K70: 0 | L70: 122
A71: 21 | B71: 8028 | C71: 12 | D71: 8034 | E71: 24 | F71: 8036 | K71: 0 | L71: 212
A72: 21 | B72: 8133 | C72: 21 | D72: 8141 | E72: 22 | F72: 8145 | K72: 0 | L72: 222
A73: 21 | B73: 8242 | C73: 21 | D73: 8246 | E73: 11 | F73: 8247 | K73: 0 | L73: 221
A74: 21 | B74: 8368 | C74: 21 | D74: 8373 | E74: 22 | F74: 8379 | K74: 0 | L74: 222
A75: 21 | B75: 8471 | C75: 12 | D75: 8480 | E75: 24 | F75: 8483 | K75: 0 | L75: 212
A76: 12 | B76: 8613 | C76: 23 | D76: 8617 | E76: 24 | F76: 8630 | K76: 0 | L76: 122
A77: 12 | B77: 8728 | C77: 23 | D77: 8730 | E77: 24 | F77: 8736 | K77: 0 | L77: 122
A78: 21 | B78: 8832 | C78: 21 | D78: 8836 | E78: 22 | F78: 8842 | K78: 0 | L78: 222
A79: 21 | B79: 8934 | C79: 21 | D79: 8945 | E79: 22 | F79: 8951 | K79: 0 | L79: 222
A80: 21 | B80: 9049 | C80: 12 | D80: 9052 | E80: 24 | F80: 9055 | K80: 0 | L80: 212
A81: 21 | B81: 9155 | C81: 12 | D81: 9157 | E81: 13 | F81: 9169 | K81: 0 | L81: 211
A82: 21 | B82: 9265 | C82: 21 | D82: 9274 | E82: 22 | F82: 9278 | K82: 0 | L82: 222
A83: 21 | B83: 9373 | C83: 12 | D83: 9383 | E83: 24 | F83: 9389 | K83: 0 | L83: 212
A84: 21 | B84: 9484 | C84: 12 | D84: 9487 | E84: 24 | F84: 9496 | K84: 0 | L84: 212
A85: 21 | B85: 9593 | C85: 12 | D85: 9598 | E85: 24 | F85: 9606 | K85: 0 | L85: 212
A86: 21 | B86: 9700 | C86: 12 | D86: 9708 | E86: 24 | F86: 9717 | K86: 0 | L86: 212
A87: 12 | B87: 9810 | C87: 23 | D87: 9812 | E87: 24 | F87: 9824 | K87: 0 | L87: 122
A88: 21 | B88: 9920 | C88: 12 | D88: 9924 | E88: 24 | F88: 9936 | K88: 0 | L88: 212
A89: 21 | B89: 10032 | C89: 12 | D89: 10039 | E89: 24 | F89: 10046 | K89: 0 | L89: 212
A90: 21 | B90: 10143 | C90: 12 | D90: 10151 | E90: 24 | F90: 10153 | K90: 0 | L90: 212
A91: 21 | B91: 10250 | C91: 12 | D91: 10258 | E91: 24 | F91: 10263 | K91: 0 | L91: 212
A92: 21 | B92: 10360 | C92: 12 | D92: 10366 | E92: 24 | F92: 10373 | K92: 0 | L92: 212
A93: 21 | B93: 10470 | C93: 21 | D93: 10472 | E93: 11 | F93: 10476 | K93: 0 | L93: 221
A94: 12 | B94: 10826 | C94: 23 | D94: 10836 | E94: 24 | F94: 10846 | K94: 0 | L94: 122
A95: 12 | B95: 10939 | C95: 14 | D95: 10945 | E95: 24 | F95: 10952 | K95: 0 | L95: 112
A96: 21 | B96: 11044 | C96: 12 | D96: 11061 | E96: 13 | F96: 11070 | K96: 0 | L96: 211
A97: 21 | B97: 11221 | C97: 21 | D97: 11228 | E97: 22 | F97: 11235 | K97: 0 | L97: 222
A98: 21 | B98: 11332 | C98: 12 | D98: 11347 | E98: 24 | F98: 11351 | K98: 0 | L98: 212
A99: 21 | B99: 11448 | C99: 21 | D99: 11452 | E99: 22 | F99: 11460 | K99: 0 | L99: 222
A100: 12 | B100: 11553 | C100: 23 | D100: 11557 | E100: 24 | F100: 11567 | K100: 0 | L100: 122
A101: 21 | B101: 11664 | C101: 12 | D101: 11670 | E101: 24 | F101: 11673 | K101: 0 | L101: 212
A102: 21 | B102: 11769 | C102: 21 | D102: 11772 | E102: 11 | F102: 11774 | K102: 0 | L102: 221
A103: 21 | B103: 11987 | C103: 21 | D103: 11998 | E103: 22 | F103: 12011 | K103: 0 | L103: 222
A104: 12 | B104: 12112 | C104: 23 | D104: 12125 | E104: 24 | F104: 12129 | K104: 0 | L104: 122
A105: 21 | B105: 12226 | C105: 21 | D105: 12228 | E105: 22 | F105: 12234 | K105: 0 | L105: 222
A106: 21 | B106: 12331 | C106: 21 | D106: 12333 | E106: 22 | F106: 12336 | K106: 0 | L106: 222
A107: 21 | B107: 12432 | C107: 21 | D107: 12436 | E107: 22 | F107: 12445 | K107: 0 | L107: 222
A108: 21 | B108: 12542 | C108: 21 | D108: 12546 | E108: 22 | F108: 12550 | K108: 0 | L108: 222
A109: 21 | B109: 12645 | C109: 12 | D109: 12649 | E109: 24 | F109: 12654 | K109: 0 | L109: 212
A110: 12 | B110: 12748 | C110: 23 | D110: 12750 | E110: 13 | F110: 12761 | K110: 0 | L110: 121
A111: 21 | B111: 12859 | C111: 21 | D111: 12869 | E111: 11 | F111: 12871 | K111: 0 | L111: 221
A112: 21 | B112: 13042 | C112: 21 | D112: 13049 | E112: 22 | F112: 13055 | K112: 0 | L112: 222
A113: 21 | B113: 13154 | C113: 21 | D113: 13166 | E113: 22 | F113: 13173 | K113: 0 | L113: 222
A114: 21 | B114: 13270 | C114: 12 | D114: 13276 | E114: 24 | F114: 13278 | K114: 0 | L114: 212
A115: 21 | B115: 13374 | C115: 21 | D115: 13376 | E115: 11 | F115: 13380 | K115: 0 | L115: 221
A116: 21 | B116: 13558 | C116: 21 | D116: 13561 | E116: 22 | F116: 13568 | K116: 0 | L116: 222
A117: 21 | B117: 13665 | C117: 12 | D117: 13668 | E117: 24 | F117: 13689 | K117: 0 | L117: 212
A118: 21 | B118: 13786 | C118: 21 | D118: 13794 | E118: 22 | F118: 13800 | K118: 0 | L118: 222
A119: 21 | B119: 13892 | C119: 21 | D119: 13897 | E119: 11 | F119: 13903 | K119: 0 | L119: 221
A120: 21 | B120: 14078 | C120: 21 | D120: 14082 | E120: 22 | F120: 14087 | K120: 0 | L120: 222
A121: 12 | B121: 14191 | C121: 23 | D121: 14201 | E121: 13 | F121: 14207 | K121: 0 | L121: 121
A122: 21 | B122: 14303 | C122: 12 | D122: 14312 | E122: 24 | F122: 14315 | K122: 0 | L122: 212
A123: 21 | B123: 14413 | C123: 12 | D123: 14415 | E123: 24 | F123: 14417 | K123: 0 | L123: 212
A124: 21 | B124: 14517 | C124: 21 | D124: 14524 | E124: 22 | F124: 14529 | K124: 0 | L124: 222
A125: 21 | B125: 14626 | C125: 21 | D125: 14629 | E125: 11 | F125: 14631 | K125: 0 | L125: 221
A126: 21 | B126: 14832 | C126: 21 | D126: 14840 | E126: 22 | F126: 14847 | K126: 0 | L126: 222
A127: 21 | B127: 14943 | C127: 12 | D127: 14949 | E127: 24 | F127: 14956 | K127: 0 | L127: 212
A128: 21 | B128: 15052 | C128: 12 | D128: 15058 | E128: 24 | F128: 15065 | K128: 0 | L128: 212
A129: 21 | B129: 15162 | C129: 12 | D129: 15168 | E129: 24 | F129: 15172 | K129: 0 | L129: 212
A130: 12 | B130: 15269 | C130: 14 | D130: 15277 | E130: 24 | F130: 15280 | K130: 0 | L130: 112
A131: 21 | B131: 15376 | C131: 12 | D131: 15379 | E131: 24 | F131: 15386 | K131: 0 | L131: 212
A132: 12 | B132: 15484 | C132: 23 | D132: 15488 | E132: 24 | F132: 15493 | K132: 0 | L132: 122
A133: 21 | B133: 15590 | C133: 12 | D133: 15600 | E133: 24 | F133: 15609 | K133: 0 | L133: 212
A134: 21 | B134: 15701 | C134: 12 | D134: 15724 | E134: 24 | F134: 15726 | K134: 0 | L134: 212
A135: 21 | B135: 15822 | C135: 21 | D135: 15836 | E135: 11 | F135: 15842 | K135: 0 | L135: 221
A136: 21 | B136: 16262 | C136: 21 | D136: 16267 | E136: 22 | F136: 16276 | K136: 0 | L136: 222
A137: 21 | B137: 16371 | C137: 21 | D137: 16374 | E137: 11 | F137: 16376 | K137: 0 | L137: 221
A138: 21 | B138: 16541 | C138: 21 | D138: 16548 | E138: 22 | F138: 16554 | K138: 0 | L138: 222
A139: 21 | B139: 16649 | C139: 12 | D139: 16656 | E139: 24 | F139: 16661 | K139: 0 | L139: 212
A140: 21 | B140: 16756 | C140: 21 | D140: 16762 | E140: 11 | F140: 16765 | K140: 0 | L140: 221
A141: 21 | B141: 16936 | C141: 21 | D141: 16942 | E141: 22 | F141: 16948 | K141: 0 | L141: 222
A142: 21 | B142: 17040 | C142: 12 | D142: 17045 | E142: 13 | F142: 17051 | K142: 0 | L142: 211
A143: 12 | B143: 17146 | C143: 23 | D143: 17160 | E143: 24 | F143: 17167 | K143: 0 | L143: 122
A144: 21 | B144: 17263 | C144: 12 | D144: 17266 | E144: 13 | F144: 17275 | K144: 0 | L144: 211
A145: 12 | B145: 17368 | C145: 23 | D145: 17370 | E145: 13 | F145: 17376 | K145: 0 | L145: 121
A146: 21 | B146: 17474 | C146: 12 | D146: 17479 | E146: 24 | F146: 17484 | K146: 0 | L146: 212
A147: 21 | B147: 17577 | C147: 21 | D147: 17579 | E147: 11 | F147: 17584 | K147: 0 | L147: 221
A148: 21 | B148: 17763 | C148: 21 | D148: 17769 | E148: 22 | F148: 17777 | K148: 0 | L148: 222
A149: 12 | B149: 17876 | C149: 23 | D149: 17881 | E149: 24 | F149: 17886 | K149: 0 | L149: 122
A150: 21 | B150: 17982 | C150: 12 | D150: 17991 | E150: 24 | F150: 17999 | K150: 0 | L150: 212
A151: 12 | B151: 18101 | C151: 23 | D151: 18116 | E151: 13 | F151: 18121 | K151: 0 | L151: 121
A152: 21 | B152: 18220 | C152: 12 | D152: 18222 | E152: 13 | F152: 18238 | K152: 0 | L152: 211
A153: 12 | B153: 18331 | C153: 23 | D153: 18337 | E153: 24 | F153: 18351 | K153: 0 | L153: 122
A154: 21 | B154: 18524 | C154: 12 | D154: 18529 | E154: 24 | F154: 18532 | K154: 0 | L154: 212
A155: 21 | B155: 18637 | C155: 21 | D155: 18642 | E155: 22 | F155: 18650 | K155: 0 | L155: 222
A156: 12 | B156: 18744 | C156: 23 | D156: 18748 | E156: 24 | F156: 18753 | K156: 0 | L156: 122
A157: 21 | B157: 18850 | C157: 21 | D157: 18852 | E157: 22 | F157: 18859 | K157: 0 | L157: 222
A158: 21 | B158: 18955 | C158: 12 | D158: 18960 | E158: 24 | F158: 18964 | K158: 0 | L158: 212
A159: 21 | B159: 19063 | C159: 12 | D159: 19067 | E159: 24 | F159: 19069 | K159: 0 | L159: 212
A160: 21 | B160: 19166 | C160: 21 | D160: 19172 | E160: 11 | F160: 19178 | K160: 0 | L160: 221
A161: 21 | B161: 19591 | C161: 21 | D161: 19605 | E161: 11 | F161: 19610 | K161: 0 | L161: 221
A162: 21 | B162: 19909 | C162: 21 | D162: 19912 | E162: 22 | F162: 19980 | K162: 0 | L162: 222
A163: 21 | B163: 20072 | C163: 12 | D163: 20086 | E163: 24 | F163: 20088 | K163: 0 | L163: 212
A164: 21 | B164: 20183 | C164: 12 | D164: 20186 | E164: 24 | F164: 20188 | K164: 0 | L164: 212
A165: 21 | B165: 20285 | C165: 21 | D165: 20289 | E165: 11 | F165: 20294 | K165: 0 | L165: 221
A166: 21 | B166: 20447 | C166: 21 | D166: 20453 | E166: 22 | F166: 20461 | K166: 0 | L166: 222
A167: 21 | B167: 20559 | C167: 21 | D167: 20567 | E167: 22 | F167: 20572 | K167: 0 | L167: 222
A168: 21 | B168: 20669 | C168: 21 | D168: 20675 | E168: 11 | F168: 20677 | K168: 0 | L168: 221
A169: 21 | B169: 20866 | C169: 21 | D169: 20871 | E169: 22 | F169: 20876 | K169: 0 | L169: 222
A170: 21 | B170: 20980 | C170: 12 | D170: 20984 | E170: 24 | F170: 20986 | K170: 0 | L170: 212
A171: 12 | B171: 21079 | C171: 23 | D171: 21082 | E171: 24 | F171: 21086 | K171: 0 | L171: 122
A172: 21 | B172: 21187 | C172: 21 | D172: 21197 | E172: 22 | F172: 21204 | K172: 0 | L172: 222
A173: 12 | B173: 21296 | C173: 23 | D173: 21299 | E173: 13 | F173: 21307 | K173: 0 | L173: 121
A174: 21 | B174: 21403 | C174: 12 | D174: 21409 | E174: 24 | F174: 21416 | K174: 0 | L174: 212
A175: 12 | B175: 21515 | C175: 23 | D175: 21523 | E175: 24 | F175: 21530 | K175: 0 | L175: 122
A176: 21 | B176: 21692 | C176: 21 | D176: 21699 | E176: 22 | F176: 21703 | K176: 0 | L176: 222
A177: 21 | B177: 21799 | C177: 21 | D177: 21807 | E177: 22 | F177: 21811 | K177: 0 | L177: 222
A178: 21 | B178: 21908 | C178: 12 | D178: 21910 | E178: 24 | F178: 21924 | K178: 0 | L178: 212
A179: 21 | B179: 22047 | C179: 21 | D179: 22052 | E179: 22 | F179: 22057 | K179: 0 | L179: 222
A180: 12 | B180: 22155 | C180: 23 | D180: 22162 | E180: 24 | F180: 22169 | K180: 0 | L180: 122
A181: 12 | B181: 22261 | C181: 23 | D181: 22271 | E181: 13 | F181: 22282 | K181: 0 | L181: 121
A182: 21 | B182: 22374 | C182: 21 | D182: 22376 | E182: 11 | F182: 22382 | K182: 0 | L182: 221
A183: 21 | B183: 22805 | C183: 21 | D183: 22819 | E183: 22 | F183: 22826 | K183: 0 | L183: 222
A184: 12 | B184: 22934 | C184: 23 | D184: 22938 | E184: 24 | F184: 22941 | K184: 0 | L184: 122
